Workbook

Sheet Summary
E1: =" Xilinx Power Estimator (XPE) - " & VERSION -> Xilinx Power Estimator (XPE) - 2015,4 | AO1: =VCCINT/0.95 -> 1 | AQ1: Pkgs | AR1: =IF(PROCESS<>"Maximum",1,IF(OR(ISOLY,GRADE="Extended",GRADE="Commercial",NUM_DICE>2),16,IF(OR(LEFT(GRADE,1)="Q",LEFT(GRADE,1)="M",RIGHT(SPEEDGRADE,3)="L"),46,31))) -> 1 | AS1: CLKROW | AT1: CLKCOL | AU1: LUT | AV1: FF | AW1: BRAM | AX1: MMCM | AY1: PLL | AZ1: DSP | BA1: GT | BB1: PCIE / MAC | BD1: 3.3 Pins | BE1: Pins | BF1: Banks | BG1: ThetaJA | BH1: ThetaJB | BI1: ThetaJC | BJ1: JA250 | BK1: JA500 | BL1: JA750 | BM1: Pkgs
E2: Kintex® UltraScaleTM, Virtex® UltraScale | O2: ="Release: " & TEXT(RELEASE_DATE,"d-mmm-yyyy") -> Release: d-00-yyyy | AQ2: FFVA1760 | AR2: =MATCH(RIGHT(PART,LEN(PART)-2),PVT_LIST,FALSE) -> 14 | AS2: 15 | AT2: 6 | AU2: 1074240 | AV2: 2148480 | AW2: 3780 | AX2: 30 | AY2: 60 | AZ2: 1800 | BA2: 0 | BB2: 6 | BC2: 0 | BD2: 0 | BE2: 448 | BF2: 17 | BG2: 5.9 | BH2: 1.4 | BI2: 0.06 | BJ2: 3.4 | BK2: 2.8 | BL2: 2.7 | BM2: FLGB2104
AP3: 1 | AQ3: FFVB1517 | AR3: =IF(GRADE="Commercial",1,IF(OR(GRADE="Q-Grade",LEFT(SPEEDGRADE,3)="-2L"),3,2)) -> 2 | AS3: 3 | AU3: 406080 | BA3: 60 | BB3: 9 | BM3: FLGC2104
AQ4: FFVC1517 | AS4: =IF(AND(LEFT(FAMILY,4)="Zynq",OPTIMIZATION="Powered Off"),0,1) -> 1 | BB4: 9 | BM4: FLGA2577
B5: Project | AQ5: FFVD1924 | AS5: 13 | BA5: 0
B6: Settings | G6: Summary | AQ6: FFVE1924 | BA6: 60
B7: Device | G7: Total On-Chip Power | J7: =SUM(J12:J30) -> 83.8794648 | M7: =P7/TOTAL_POWER -> 0.5429622913 | N7: Transceiver…… | P7: =SUM(J26:J27) -> 45.5433864 | AQ7: FFVJ1924
B8: Family | C8: Virtex UltraScale | M8: =P8/TOTAL_POWER -> 0.03933851497 | N8: I/O……………… | P8: =J25 -> 3.299693582
B9: Device | C9: XCVU190 | G9: Junction Temperature | J9: =IF(ISBLANK(USER_TJ),IF(TJA*TOTAL_POWER+AMBIENT_TEMP > 125, "125+",TJA*TOTAL_POWER+AMBIENT_TEMP),USER_TJ) -> 85.32577139 | M9: =P9/TOTAL_POWER -> 0.3294958707 | N9: =IF(LEFT(FAMILY,4)="Zynq","PS+FPGA Dyn..","Core Dynamic..") -> Core Dynamic.. | P9: =SUM(J16:J24,J28) -> 27.63793728
B10: Package | C10: FLGA2577 | G10: Thermal Margin | J10: =IF(ISBLANK(USER_TJ),TJ_MAX - (TJA*TOTAL_POWER + AMBIENT_TEMP),TJ_MAX-USER_TJ) -> 14.67422861 | K10: =IF(ISBLANK(USER_TJ),IF(THERMAL_MARGIN_C/TJA+TOTAL_POWER>=0,(MAX_AMBIENT - AMBIENT_TEMP)/TJA,""),(TJ_MAX-USER_TJ)/TJA) -> 16.17093555 | M10: =P10/TOTAL_POWER -> 0.08820332311 | N10: Device Static….. | P10: =J29+J30 -> 7.398447536 | AO10: 10 | AP10: 70.11249624 | AQ10: 2.115693629
B11: Speed Grade | C11: -2 | G11: Effective ΘJA | J11: =IF(USER_THETAJA>0,USER_THETAJA,$V54) -> 0.7788052957 | L11: Power supplied to off-chip devices… | P11: =VCCO_OFFCHIP+PS_OFFCHIP -> 0 | AO11: 25 | AP11: 70.4908855 | AQ11: 2.494082888
B12: Temp Grade | C12: Industrial | AO12: 40 | AP12: 71.06910219 | AQ12: 3.072299582
B13: Process | C13: Typical | G13: On-Chip Power | M13: Power Supply | AO13: 55 | AP13: 71.97821493 | AQ13: 3.981412317 | AX13: =IF(GRADE="Industrial",153,139) -> 153
B14: Voltage ID Used | C14: No | G14: Resource | J14: Power | M14: Source | O14: Voltage | P14: Total (A) | Q14: Static | R14: Active | AO14: 70 | AP14: 73.39882235 | AQ14: 5.402019739 | AW14: Static | AX14: =IF(AND(PROCESS="Maximum",NOT(EXACT($Z$1,"nomtpf"))),1,0) -> 0
B15: Characterization | C15: =Production_Status&" (± "&IF(LEFT(Production_Status,3)="Pro",20,25)&"% accuracy)" -> Production (± 20% accuracy) | I15: (Jump to sheet) | J15: (W) | K15: (%) | M15: VCCINT | O15: 0.95 | P15: =MAX(ICCINT_POWERUP,Q15+R15)*PL_POWERED -> 37.56407009 | Q15: =AX15*ICCQ_TEMP -> 4.185003528 | R15: =(CLOCK_POWER+LOGIC_POWER+Other_INTPOWER+BRAM_INTPOWER+DSP_POWER+MMCMINT_POWER+PLLINT_POWER+GTH_INTPOWER+GTY_INTPOWER+IO!AH18) / VCCINT -> 33.37906656 | S15: =O15*P15 -> 35.68586658 | AO15: 85 | AP15: 75.56197295 | AQ15: 7.565170336 | AX15: =IF(AND($AX$14>0,OFFSET(QUIESCENT_DATA,FACTOROW,$AX$13)>0),OFFSET(QUIESCENT_DATA,FACTOROW,$AX$13),1) -> 1
G16: Core Dynamic | J16: =CLOCK_POWER -> 2.231818002 | K16: =IF(AND(ISNUMBER(J16),J16>0),J16/TOTAL_POWER,0)*100 -> 2.660744209 | M16: VCCINT_IO | O16: 0.95 | P16: =MAX(OFFSET(ICCINT_POWERUP,0,1),Q16+R16) -> 0.9190965759 | Q16: =AX16*J58 -> 0.2589972018 | R16: =IOINT_POWER/VCCINT_IO -> 0.6600993741 | S16: =O16*P16 -> 0.8731417471 | AO16: 100 | AP16: 78.75065094 | AQ16: 10.75384833 | AX16: =IF(AND($AX$14>0,OFFSET(QUIESCENT_DATA,FACTOROW,$AX$13+1)>0),OFFSET(QUIESCENT_DATA,FACTOROW,$AX$13+1),1) -> 1
B17: Environment | J17: =LOGIC_POWER -> 13.46205789 | K17: 16.04928921 | M17: VCCBRAM | O17: 0.95 | P17: =MAX(ICCBRAM_POWERUP,Q17+R17)*PL_POWERED -> 0.5247410585 | Q17: =AX17*ICCBRAM_TEMP -> 0.3657977285 | R17: =BRAM_BRAMPOWER/VCCBRAM -> 0.15894333 | S17: 0.4985040056 | AX17: =IF(AND($AX$14>0,OFFSET(QUIESCENT_DATA,FACTOROW,$AX$13+2)>0),OFFSET(QUIESCENT_DATA,FACTOROW,$AX$13+2),1) -> 1
B18: Junction Temperature | E18: =JUNCTION_TEMP -> 85.32577139 | J18: =BRAM_POWER -> 5.780642605 | K18: 6.891606448 | M18: VCCAUX | O18: 1.8 | P18: =MAX(ICCAUX_POWERUP,Q18+R18)*PL_POWERED -> 0.8991257673 | Q18: =AX18*ICCAUXQ_TEMP -> 0.5515022187 | R18: =(MMCMAUX_POWER+PLLAUX_POWER+Other_AUXPOWER) / VCCAUX -> 0.3476235486 | S18: 1.618426381 | AO18: =VCC_MIN -> 0.92 | AP18: 70.25425464 | AX18: =IF(AND($AX$14>0,OFFSET(QUIESCENT_DATA,FACTOROW,$AX$13+3)>0),OFFSET(QUIESCENT_DATA,FACTOROW,$AX$13+3),1) -> 1
B19: Ambient Temp | C19: 20 | J19: =DSP_POWER -> 5.519624074 | K19: 6.580423572 | M19: VCCAUX_IO | O19: 1.8 | P19: =MAX(ICCAUXIO_POWERUP,Q19+R19)*PL_POWERED -> 0.5603823 | Q19: =AX19*H58 -> 0.22245126 | R19: =IO!E6 -> 0.33793104 | S19: 1.00868814 | AO19: =(AO18+AO20)/2 -> 0.935 | AP19: 71.17980483 | AX19: =IF(AND($AX$14>0,OFFSET(QUIESCENT_DATA,FACTOROW,$AX$13+4)>0),OFFSET(QUIESCENT_DATA,FACTOROW,$AX$13+4),1) -> 1
B20: Effective ΘJA | E20: =TJA -> 0.7788052957 | J20: =PLL_POWER -> 0.1078904343 | K20: 0.1286255635 | M20: VCCO 3.3V | O20: 3.3 | P20: =IF(Q20>0,MAX(ICCO_POWERUP,IO!G7+Q20),0)*PL_POWERED -> 0 | Q20: =AW20*AX20 -> 0 | R20: =IO!G7 -> 0 | S20: 0 | AO20: =IF(SPEEDGRADE="-1L (0.9V)",0.9,IF(SPEEDGRADE="-3",1,0.95)) -> 0.95 | AP20: 72.12419804 | AW20: =IF(OR(IO!BA501>0,LEFT(CFG_BANK,1)="3"),ICCOQ_D,0)*PL_POWERED -> 0 | AX20: =IF(AND($AX$14>0,OFFSET(QUIESCENT_DATA,FACTOROW,$AX$13+6)>0),OFFSET(QUIESCENT_DATA,FACTOROW,$AX$13+6),1) -> 1
B21: Airflow | C21: 500 | J21: =MMCM_POWER -> 0.510265877 | K21: 0.6083322995 | M21: VCCO 2.5V | O21: 2.5 | P21: =IF(Q21>0,MAX(ICCO_POWERUP,IO!G8+Q21),0)*PL_POWERED -> 0 | Q21: =AW21*AX21 -> 0 | R21: =IO!G8 -> 0 | S21: 0 | AO21: =(AO20+AO22)/2 -> 0.9645 | AP21: 73.0877915 | AW21: =IF(OR(IO!BB501>0,LEFT(CFG_BANK,1)="2"),ICCOQ_D,0)*PL_POWERED -> 0 | AX21: =IF(AND($AX$14>0,OFFSET(QUIESCENT_DATA,FACTOROW,$AX$13+6)>0),OFFSET(QUIESCENT_DATA,FACTOROW,$AX$13+6),1) -> 1
B22: Heat Sink | C22: Low Profile | J22: =Other_INTPOWER+Other_AUXPOWER+Other_XADCPOWER -> 0.0256384 | K22: 0.03056576489 | M22: VCCO 1.8V | O22: 1.8 | P22: =IF(Q22>0,MAX(ICCO_POWERUP,IO!G9+Q22),0)*PL_POWERED -> 1.076290717 | Q22: 8.148643067e-05 | R22: =IO!G9 -> 1.07620923 | S22: 1.93732329 | AO22: =VCC_MAX -> 0.979 | AP22: 74.07096801 | AW22: =IF(OR(IO!BC501>0,LEFT(CFG_BANK,1)="1"),ICCOQ_D,0)*PL_POWERED -> 8.148643067e-05 | AX22: =IF(AND($AX$14>0,OFFSET(QUIESCENT_DATA,FACTOROW,$AX$13+5)>0),OFFSET(QUIESCENT_DATA,FACTOROW,$AX$13+5),1) -> 1
B23: ΘSA | C23: 0.9 | J23: =IF(OR(NUM_CMACS>0,NUM_ILMACS>0),CMAC_POWER+ILMAC_POWER,0)+IF(NUM_PCIES>0,PCIE_POWER,0) -> 0 | K23: 0 | M23: VCCO 1.5V | O23: 1.5 | P23: =IF(Q23>0,MAX(ICCO_POWERUP,IO!G10+Q23),0)*PL_POWERED -> 0 | Q23: 0 | R23: =IO!G10 -> 0 | S23: 0 | AW23: =IF(IO!BD501>0,ICCOQ_D,0)*PL_POWERED -> 0 | AX23: =IF(AND($AX$14>0,OFFSET(QUIESCENT_DATA,FACTOROW,$AX$13+5)>0),OFFSET(QUIESCENT_DATA,FACTOROW,$AX$13+5),1) -> 1
B24: Board Selection | C24: Small (4"x4") | J24: 0 | K24: =IF(AND(ISNUMBER(J24),J24>0),J24/TOTAL_POWER,0)*100 -> 0 | M24: VCCO 1.35V | O24: 1.35 | P24: =IF(Q24>0,MAX(ICCO_POWERUP,IO!G11+Q24),0)*PL_POWERED -> 0 | Q24: 0 | R24: =IO!G11 -> 0 | S24: 0 | AW24: =IF(IO!BE501>0,ICCOQ_D,0)*PL_POWERED -> 0 | AX24: =IF(AND($AX$14>0,OFFSET(QUIESCENT_DATA,FACTOROW,$AX$13+5)>0),OFFSET(QUIESCENT_DATA,FACTOROW,$AX$13+5),1) -> 1
B25: # of Board Layers | C25: 16 or more | G25: I/O | J25: =IO_POWER -> 3.299693582 | K25: =IF(AND(ISNUMBER(J25),J25>0),J25/TOTAL_POWER,0)*100 -> 3.933851497 | M25: VCCO 1.2V | O25: 1.2 | P25: =IF(Q25>0,MAX(ICCO_POWERUP,IO!G12+Q25),0)*PL_POWERED -> 0 | Q25: 0 | R25: =IO!G12 -> 0 | S25: 0 | AW25: =IF(IO!BF501>0,ICCOQ_D,0)*PL_POWERED -> 0 | AX25: =IF(AND($AX$14>0,OFFSET(QUIESCENT_DATA,FACTOROW,$AX$13+5)>0),OFFSET(QUIESCENT_DATA,FACTOROW,$AX$13+5),1) -> 1
B26: ΘJB | C26: 1.4 | G26: Transceiver | J26: =IF(NUM_GTS>0,GTX_POWER,IF(NUM_GTHS>0,GTH_POWER,IF(NUM_GTPS>0,GTP_POWER,0))) -> 17.66384281 | K26: 21.05860219 | M26: Vcco 1.0V | O26: 1 | P26: =IF(Q26>0,MAX(ICCO_POWERUP,IO!G13+Q26),0)*PL_POWERED -> 0 | Q26: 0 | R26: =IO!G13 -> 0 | S26: 0 | U26: 0.95V | V26: 1.0V | W26: 1.2V | X26: 1.8V | Y26: total | Z26: checksum | AW26: =IF(IO!BG501>0,ICCOQ_D,0)*PL_POWERED -> 0 | AX26: =IF(AND($AX$14>0,OFFSET(QUIESCENT_DATA,FACTOROW,$AX$13+5)>0),OFFSET(QUIESCENT_DATA,FACTOROW,$AX$13+5),1) -> 1
B27: Board Temperature | C27: 25 | J27: =IF(NUM_GTZS>0,GTZ_POWER,IF(NUM_GTYS>0,GTY_POWER,0)) -> 27.87954358 | K27: 33.23762693 | M27: MGTVCCAUX | O27: 1.8 | P27: =MAX(IGTVCCAUX_POWERUP,Q27+R27)*PL_POWERED -> 0.2170454418 | Q27: =IF(AND(O27>0,NUM_GTS>0),GTXAUXQ,IF(AND(O27>0,NUM_GTHS>0),GTHAUXQ,0))*PL_POWERED*AX27 -> 0.002613118591 | R27: =IF(AND(O27>0,NUM_GTS>0),GTX_AUXPOWER/GTVCCAUX,IF(AND(O27>0,NUM_GTHS>0),GTH_AUXPOWER/GTVCCAUX,0)) -> 0.2144323232 | S27: 0.3906817953 | U27: =P15+P16+P17 -> 39.00790772 | V27: =P28+P31 -> 15.24820916 | W27: =P25+P29+P32 -> 21.65738274 | X27: =P18+P19+P22+P27+P30+P34 -> 3.102713344 | Y27: =U27+V27+W27+X27 -> 79.01621296 | Z27: =SUM(P15:P34) -> 79.01621296 | AA27: (A) | AO27: Temp | AP27: 50 | AQ27: 85 | AR27: 100 | AX27: =IF(AND($AX$14>0,OFFSET(QUIESCENT_DATA,FACTOROW,$AX$13+7)>0),OFFSET(QUIESCENT_DATA,FACTOROW,$AX$13+7),1) -> 1
G28: =IF(LEFT(FAMILY,4)="Zynq","PS Dynamic Static","") ->  | J28: =IF(LEFT(FAMILY,4)="Zynq",PS_POWER,0) -> 0 | K28: 0 | M28: MGTAVCC | O28: 1 | P28: =MAX(IAVCC_POWERUP,Q28+R28)*PL_POWERED -> 11.02768081 | Q28: =IF(AND(O28>0,NUM_GTS>0),AVCCQ,IF(AND(O28>0,NUM_GTHS>0),GTHAVCCQ,IF(AND(O28>0,NUM_GTPS>0),GTPAVCCQ,0)))*PL_POWERED*AX28 -> 0.3308571672 | R28: =IF(AND(O28>0,NUM_GTS>0),GTAVCC_POWER/O28,IF(AND(O28>0,NUM_GTHS>0),GTH_AVDD/O28,IF(AND(O28>0,NUM_GTPS>0),GTP_AVCCPOWER/O28,0))) -> 10.69682364 | S28: 11.02768081 | U28: =U27*0.95 -> 37.05751233 | V28: =V27 -> 15.24820916 | W28: =1.2*W27 -> 25.98885928 | X28: =1.8*X27 -> 5.58488402 | Y28: =U28+V28+W28+X28 -> 83.8794648 | Z28: =SUM(S15:S34) -> 83.8794648 | AA28: (W) | AO28: ="Typical (" & IF(SPEEDGRADE="-1L (0.9V)","0.9",IF(SPEEDGRADE="-3","1.0",0.95))&"V)" -> Typical (0,95V) | AP28: 71.62829041 | AQ28: 75.56197295 | AR28: 78.75065094 | AX28: =IF(AND($AX$14>0,OFFSET(QUIESCENT_DATA,FACTOROW,$AX$13+8)>0),OFFSET(QUIESCENT_DATA,FACTOROW,$AX$13+8),1) -> 1
B29: =IF(LEFT(FAMILY,4)="Zynq","PL","")&" Implementation" -> Implementation | J29: =IF(LEFT(FAMILY,4)="Zynq",PS_STATIC+IF(PL_POWERED=0,#REF!*VCCADC,0),0) -> 0 | K29: 0 | M29: MGTAVTT | O29: 1.2 | P29: =MAX(IAVTT_POWERUP,Q29+R29)*PL_POWERED -> 4.036203592 | Q29: =IF(AND(O29>0,NUM_GTS>0),AVTTQ,IF(AND(O29>0,NUM_GTHS>0),GTHVTTXQ,IF(AND(O29>0,NUM_GTPS>0),GTPVTTXQ,0)))*PL_POWERED*AX29 -> 0.1637089925 | R29: =IF(AND(O29>0,NUM_GTS>0),GTAVTT_POWER/AVTT,IF(AND(O29>0,NUM_GTHS>0),GTH_VTTX/O29,IF(AND(O29>0,NUM_GTPS>0),GTP_AVTTPOWER/O29,0))) -> 3.8724946 | S29: 4.843444311 | AO29: ="Maximum (" & VCC_MAX &"V)" -> Maximum (0,979V) | AP29: 76.70149605 | AQ29: 83.88807875 | AR29: 89.18416399 | AX29: =IF(AND($AX$14>0,OFFSET(QUIESCENT_DATA,FACTOROW,$AX$13+9)>0),OFFSET(QUIESCENT_DATA,FACTOROW,$AX$13+9),1) -> 1
B30: =IF(LEFT(FAMILY,4)="Zynq","Usage/","")&"Optimization" -> Optimization | C30: Default | F30: =IF(C30="Power Optimization",2,IF(C30="Default",1,3)) -> 1 | G30: =IF(LEFT(FAMILY,4)="Zynq","PL Static ","Device Static") -> Device Static | H30: =J29+J30 -> 7.398447536 | J30: =PL_STATIC -> 7.398447536 | K30: 8.820332311 | M30: MGTYVCCAUX | O30: 1.8 | P30: =MAX(OFFSET(IGTVCCAUX_POWERUP,0,3),Q30+R30) -> 0.3083731186 | Q30: =IF(LEFT(FAMILY,4)="Zynq",$G50,IF(NUM_GTZS>1,MGTZVCCHQ,IF(NUM_GTYS>0,GTYAUXQ,0)))*AX30 -> 0.002613118591 | R30: =IF(AND(O30>0,LEFT(FAMILY,4)="Zynq"),PS!D5,IF(NUM_GTZS>0,GTZ!D6,IF(NUM_GTYS>0,GTY!D6,0))) -> 0.30576 | S30: 0.5550716135 | AX30: =IF(AND($AX$14>0,OFFSET(QUIESCENT_DATA,FACTOROW,$AX$13+10)>0),OFFSET(QUIESCENT_DATA,FACTOROW,$AX$13+10),1) -> 1
M31: MGTYAVCC | O31: 1 | P31: =MAX(OFFSET(IAVCC_POWERUP,0,3),Q31+R31) -> 4.220528356 | Q31: =IF(LEFT(FAMILY,4)="Zynq",PS!S3/1000,IF(NUM_GTZS>1,MGTZAVCCQ,IF(NUM_GTYS>0,GTYAVCCQ,0)))*AX31 -> 0.538552556 | R31: =IF(AND(O31>0,LEFT(FAMILY,4)="Zynq"),PS!D6,IF(NUM_GTZS>0,GTZ!D7,IF(NUM_GTYS>0,GTY!D7,0))) -> 3.6819758 | S31: 4.220528356 | AX31: =IF(AND($AX$14>0,OFFSET(QUIESCENT_DATA,FACTOROW,$AX$13+11)>0),OFFSET(QUIESCENT_DATA,FACTOROW,$AX$13+11),1) -> 1
B32: Messages | C32: =IF(LEN(OVERMAP)>3,"Number of " & OVERMAP & " exceeds part size.","") ->  | M32: MGTYAVTT | O32: 1.2 | P32: =MAX(OFFSET(IAVTT_POWERUP,0,3),Q32+R32) -> 17.62117914 | Q32: =IF(LEFT(FAMILY,4)="Zynq",PS!S4/1000,IF(NUM_GTZS>1,MGTZVCCLQ,IF(NUM_GTYS>0,GTYVTTXQ,0)))*AX32 -> 0.2384069356 | R32: =IF(AND(O32>0,LEFT(FAMILY,4)="Zynq"),PS!D7,IF(NUM_GTZS>0,GTZ!D8,IF(NUM_GTYS>0,GTY!D8,0))) -> 17.38277221 | S32: 21.14541497 | AX32: =IF(AND($AX$14>0,OFFSET(QUIESCENT_DATA,FACTOROW,$AX$13+12)>0),OFFSET(QUIESCENT_DATA,FACTOROW,$AX$13+12),1) -> 1
C33: =IF(IOERRORS>0,"WARNING: Unsupported I/O standard(s) for current selections, ignored for power calculations","") ->  | M33: -
M34: VCCADC | O34: 1.8 | P34: =Q34+R34 -> 0.041496 | Q34: =AW34*AX34 -> 0.0414 | R34: =Other_XADCPOWER/VCCADC -> 9.6e-05 | S34: 0.0746928 | AW34: =VCCADCQ -> 0.0414 | AX34: =IF(AND($AX$14>0,OFFSET(QUIESCENT_DATA,FACTOROW,$AX$13+13)>0),OFFSET(QUIESCENT_DATA,FACTOROW,$AX$13+13),1) -> 1
M35: -
B36: XILINX Power Advantage (check for updates) | F36: File Support Request (WebCase) | M36: Xilinx Power Estimator User Guide
B37: =COPYRIGHT -> © Copyright 1994-2015 Xilinx, Inc. All Rights Reserved | F37: Whitepaper - 7 Steps for Worst Case Power Estimation | M37: Introduction to XPE (video)
B39: Legend | D39: User Entry | G39: Calculated Value | I39: Summary Value | L39: User Override | N39: Warning | P39: Error
U41: JEDEC | V41: =IF(AIRFLOW=250,THETAJA250,IF(AIRFLOW=500,THETAJA500,IF(AIRFLOW=750,THETAJA750,THETAJA))) -> 2.8
Y42: Opt
G43: Piccq | H43: Iccauxq | I43: Tj | J43: Iccq | U43: BoardType | V43: =IF(EXACT("Small (4""x4"")",BOARD),1,IF(EXACT("Medium (10""x10"")",BOARD),2,IF(EXACT("Large (20""x20"")",BOARD),3,0))) -> 1 | X43: Airflow | Y43: None | AA43: Leakage | AB43: =PL_POWERED*(ICCQ_TEMP*VCCINT+ICCBRAM_TEMP*VCCBRAM+ICCAUXQ_TEMP*VCCAUX+J58*O16+H58*O19+AW20*VCCO33+AW21*VCCO25+AW22*VCCO18+AW23*VCCO15+AW24*VCCO135+AW25*VCCO12+AW26*VCCO10+GTX_LEAKAGE+GTH_LEAKAGE+AW34*VCCADC+GTY_LEAKAGE) -> 7.398447536 | AD43: =Q15*1000 -> 4185.003528 | AM43: Utilization | AN43: =AM44&AM45&AM46&AM47&AM48&AM49 -> 
F44: =PL_POWERED*OFFSET(VccScale,2,0)*((P53*F46^4+Q53*F46^3+R53*F46^2+S53*F46+T53)+(Iccbramq*1000/OFFSET(BLOCK_LEAKAGE,2,3)*EXP(F46/OFFSET(BLOCK_LEAKAGE,2,4))))/1000 -> 0.3657977285 | G44: =PS!S$2/OFFSET(PS_DATA,PSFACTOROW,IF(PROCESS<>"Maximum",6,9))*EXP(MIN(155,$I44)/OFFSET(PS_DATA,PSFACTOROW,IF(PROCESS<>"Maximum",7,10)))/1000 -> 0 | H44: =PL_POWERED*VccAuxScale*($P$52*$I44^4+$Q$52*$I44^3+$R$52*$I44^2+$S$52*$I44+$T$52)/1000 -> 0.549261173 | I44: =TemperatureEstimate -> 83.63432807 | J44: =PL_POWERED*VccScale*($P$51*$I44^4+$Q$51*$I44^3+$R$51*$I44^2+$S$51*$I44+$T$51+OFFSET(Iccbramq,0,2))/1000 -> 4.146244383 | K44: Non-int Leakage | L44: =PL_POWERED*(Iccauxq_d*VCCAUX+IF(IO!AT504>0,ICCOQ_D, 0)*VCCO33+IF(IO!AT508>0,ICCOQ_D, 0)*VCCO25+IF(IO!AT509>0,ICCOQ_D, 0)*VCCO18+IF(IO!AT510>0,ICCOQ_D, 0)*VCCO15+IF(IO!AT511>0,ICCOQ_D, 0)*VCCO135+IF(IO!AT512>0,ICCOQ_D, 0)*VCCO12+GTX_LEAKAGE+GTH_LEAKAGE+GTP_LEAKAGE) -> 1.162252304 | U44: BoardLyr | V44: =IF(EXACT("8 to 11",LAYERS),1,IF(EXACT("12 to 15",LAYERS),2,IF(EXACT("16 or more",LAYERS),3,0))) -> 3 | X44: N/A | Y44: Default | AA44: CLOCK | AB44: =CLOCK_POWER -> 2.231818002 | AD44: =Q16*1000 -> 258.9972018 | AM44: =IF(IO!L11>1,"I/O, ","") -> 
E45: Temp | F45: =MIN(125,IF(ISBLANK(USER_TJ),TJA*(SUM(J12:J28,AW34)+PL_POWERED*((P52*F46^4+Q52*F46^3+R52*F46^2+S52*F46+T52)/1000*VccAuxScale*VCCAUX+(P51*F46^4+Q51*F46^3+R51*F46^2+S51*F46+T51)/1000*VccScale*VCCINT+(P55*F46^4+Q55*F46^3+R55*F46^2+S55*F46+T55)/1000*VccAuxScale*VCCAUX_IO+(P54*F46^4+Q54*F46^3+R54*F46^2+S54*F46+T54)/1000*VccioScale*VCCINT_IO))+AMBIENT_TEMP,USER_TJ)) -> 83.63432807 | G45: =PS!S$2/OFFSET(PS_DATA,PSFACTOROW,IF(PROCESS<>"Maximum",6,9))*EXP(MIN(155,$I45)/OFFSET(PS_DATA,PSFACTOROW,IF(PROCESS<>"Maximum",7,10)))/1000 -> 0 | H45: 0.5512538319 | I45: =MIN(125,IF(ISBLANK(USER_TJ),TJA*(SUM(J$12:J$28)+$G44+$H44*VCCAUX+$J44*VCCINT+$H52*VCCAUX_IO+$J52*VCCINT_IO)+AMBIENT_TEMP,USER_TJ)) -> 83.9033575 | J45: 4.180708258 | K45: Scaled ICCQ_D | L45: =PL_POWERED*ICCQ_DES*PROCESS_FACTOR*VccScale -> 0.6411809898 | P45: Max Adj | Q45: Typ Adj | U45: Airflow | V45: =IF(AIRFLOW=250,1,IF(AIRFLOW=500,2,IF(AIRFLOW=750,3,0))) -> 2 | X45: 0 | Y45: Power Optimization | AA45: LOGIC | AB45: =LOGIC_POWER -> 13.46205789 | AD45: 365.7977285 | AM45: =IF(Logic!I4>1,"Registers, ","") -> 
E46: Initial | F46: =MIN(125,IF(ISBLANK(USER_TJ),TJA*(SUM(J12:J28)+(Iccauxq_d*VccAuxScale*VCCAUX+ICCQ_DES*VccScale*VCCINT+VccAuxScale*L81*VCCAUX_IO+VccioScale*L80*VCCINT_IO))+AMBIENT_TEMP,USER_TJ)) -> 80.87024515 | G46: =PS!S$2/OFFSET(PS_DATA,PSFACTOROW,IF(PROCESS<>"Maximum",6,9))*EXP(MIN(155,$I46)/OFFSET(PS_DATA,PSFACTOROW,IF(PROCESS<>"Maximum",7,10)))/1000 -> 0 | H46: 0.5514746847 | I46: 83.93304804 | J46: 4.184527399 | K46: Non-aux Leakage | L46: =L45+IF(IO!AT504>0,ICCOQ_D, 0)*VCCO33+IF(IO!AT508>0,ICCOQ_D, 0)*VCCO25+IF(IO!AT509>0,ICCOQ_D, 0)*VCCO18+IF(IO!AS510>0,ICCOQ_D, 0)*VCCO15+IF(IO!AT511>0,ICCOQ_D, 0)*VCCO135+IF(IO!AT512>0,ICCOQ_D, 0)*VCCO12+GTP_LEAKAGE+GTX_LEAKAGE+GTH_LEAKAGE -> 1.173461467 | O46: MMF Factor | P46: =IF(PROCESS<>"Maximum",1,OFFSET(QUIESCENT_DATA,FACTOROW,IF(OR(GRADE="Extended",GRADE="Commercial"),64,IF(OR(LEFT(GRADE,1)="Q",LEFT(GRADE,1)="M",LEFT(SPEEDGRADE,3)="-1L"),66,65)))*OFFSET(POWER_SCALE,10,OFFSET(POWER_SCALE,1,1))) -> 1 | Q46: 1 | R46: =IF(PROCESS<>"Maximum",1,OFFSET(QUIESCENT_DATA,FACTOROW,IF(OR(GRADE="Extended",GRADE="Commercial"),133,IF(OR(LEFT(GRADE,1)="Q",LEFT(GRADE,1)="M",LEFT(SPEEDGRADE,3)="-1L"),135,134)))*OFFSET(POWER_SCALE,10,OFFSET(POWER_SCALE,1,1))) -> 1 | S46: 1 | U46: Heatsink | V46: =IF(EXACT("Custom",HEATSINK),1,IF(EXACT("Low Profile",HEATSINK),0,IF(EXACT("Medium Profile",HEATSINK),2,IF(EXACT("High Profile",HEATSINK),4,3)))) -> 0 | X46: 250 | Y46: Power Off | AA46: BRAM | AB46: =BRAM_POWER -> 5.780642605 | AD46: 551.5022187 | AM46: =IF(Logic!I5>1,"LUTs, ","") -> 
G47: =PS!S$2/OFFSET(PS_DATA,PSFACTOROW,IF(PROCESS<>"Maximum",6,9))*EXP(MIN(155,$I47)/OFFSET(PS_DATA,PSFACTOROW,IF(PROCESS<>"Maximum",7,10)))/1000 -> 0 | H47: 0.5514991698 | I47: 83.93633815 | J47: 4.184950803 | K47: Scaled ICCAUXQ_D | L47: =Iccauxq_d*IF(PROCESS="Typical",1,2)/0.121 -> 2.892993832 | O47: MMF Aux | P47: =IF(PROCESS<>"Maximum",1,OFFSET(QUIESCENT_DATA,FACTOROW,IF(OR(GRADE="Extended",GRADE="Commercial"),67,IF(OR(LEFT(GRADE,1)="Q",LEFT(GRADE,1)="M",LEFT(SPEEDGRADE,3)="-1L"),69,68)))*OFFSET(POWER_SCALE,10,OFFSET(POWER_SCALE,1,1))) -> 1 | Q47: 1 | R47: =IF(PROCESS<>"Maximum",1,OFFSET(QUIESCENT_DATA,FACTOROW,IF(OR(GRADE="Extended",GRADE="Commercial"),136,IF(OR(LEFT(GRADE,1)="Q",LEFT(GRADE,1)="M",LEFT(SPEEDGRADE,3)="-1L"),138,137)))*OFFSET(POWER_SCALE,10,OFFSET(POWER_SCALE,1,1))) -> 1 | S47: 1 | U47: Pkg size | V47: =OFFSET(Data!$A$718,MATCH(PACKAGE,BOARD_PKG_LIST,FALSE),3) -> 2756.25 | X47: 500 | Y47: ="Y43:Y45" -> Y43:Y45 | AA47: DSP | AB47: =DSP_POWER -> 5.519624074 | AD47: 222.45126 | AM47: =IF(BRAM!H4>1,"BRAMs, ","") -> 
G48: =PS!S$2/OFFSET(PS_DATA,PSFACTOROW,IF(PROCESS<>"Maximum",6,9))*EXP(MIN(155,$I48)/OFFSET(PS_DATA,PSFACTOROW,IF(PROCESS<>"Maximum",7,10)))/1000 -> 0 | H48: 0.5515018844 | I48: 83.93670291 | J48: 4.184997746 | K48: Iccint_c1 | L48: =OFFSET(QUIESCENT_DATA,FACTOROW,FACTORCOL+1) -> 0.000886377831 | O48: MMF Bram | P48: =IF(PROCESS<>"Maximum",1,OFFSET(QUIESCENT_DATA,FACTOROW,IF(OR(GRADE="Extended",GRADE="Commercial"),70,IF(OR(LEFT(GRADE,1)="Q",LEFT(GRADE,1)="M",LEFT(SPEEDGRADE,3)="-1L"),72,71)))*OFFSET(POWER_SCALE,10,OFFSET(POWER_SCALE,1,1))) -> 1 | Q48: 1 | U48: Air | V48: =1/(6*$V47*0.000001) -> 60.4686319 | X48: 750 | AA48: PLL | AB48: =PLL_POWER -> 0.1078904343 | AD48: 0 | AM48: =IF(DSP!H4>1,"DSPs, ","") -> 
G49: =PS!S$2/OFFSET(PS_DATA,PSFACTOROW,IF(PROCESS<>"Maximum",6,9))*EXP(MIN(155,$I49)/OFFSET(PS_DATA,PSFACTOROW,IF(PROCESS<>"Maximum",7,10)))/1000 -> 0 | H49: 0.5515021854 | I49: 83.93674335 | J49: 4.18500295 | K49: Iccint_c2 | L49: =OFFSET(QUIESCENT_DATA,FACTOROW,FACTORCOL+2) -> 0.1199056098 | O49: VID Factor | P49: =IF(AND(VID_Allowed=1,PROCESS="Maximum",Voltage_Scaling="Yes"),0.7,1) -> 1 | U49: ThetaSA | V49: =IF((HEATSINK="Custom")*(CUSTOMTSA>0),CUSTOMTSA,IF(HEATSINK="None",0,OFFSET(Data!$A$953,OFFSET(Data!$A$718,MATCH(PACKAGE,BOARD_PKG_LIST,FALSE),2)+IF($V45<=1,0,1)+$V46,3))) -> 0.9 | X49: =IF(OR($C22="None",$C22="Custom"),"X45:X48","X46:X47") -> X46:X47 | AA49: MMCM | AB49: =MMCM_POWER -> 0.510265877 | AD49: 0
G50: =PS!S$2/OFFSET(PS_DATA,PSFACTOROW,IF(PROCESS<>"Maximum",6,9))*EXP(MIN(155,$I50)/OFFSET(PS_DATA,PSFACTOROW,IF(PROCESS<>"Maximum",7,10)))/1000 -> 0 | H50: 0.5515022187 | I50: 83.93674783 | J50: 4.185003528 | K50: Iccintq_d | L50: =(P51*390625+Q51*15625+R51*625+S51*25+T51)/1000*OFFSET(POWER_SCALE,9,1) -> 0.6395290062 | O50: Bali Factor | P50: =IF(AND(NUM_DICE>1,PROCESS="Maximum",LEFT(SPEEDGRADE,3)<>"-1L"),IF(RIGHT(PART,5)="VU440",1,1),1) -> 1 | U50: ThetaCS | V50: 0.1 | AA50: Hard IP | AB50: =PCIE_POWER+IF(OR(NUM_CMACS>0,NUM_ILMACS>0),CMAC_POWER+ILMAC_POWER,0) -> 0 | AD50: 0.08148643067
H51: auxioq | J51: iccioq | K51: Iccintq_des | L51: =ICCINTQ_D+OFFSET(BLOCK_LEAKAGE,1,1)*BRAM!I4/1000 -> 0.6414868795 | O51: Vccint | P51: =OFFSET(QUIESCENT_DATA,FACTOROW,FACTORCOL) -> 3.374324044e-05 | Q51: =OFFSET(QUIESCENT_DATA,FACTOROW,FACTORCOL+1) -> 0.000886377831 | R51: =OFFSET(QUIESCENT_DATA,FACTOROW,FACTORCOL+2) -> 0.1199056098 | S51: =OFFSET(QUIESCENT_DATA,FACTOROW,FACTORCOL+3) -> 10.07655478 | T51: =OFFSET(QUIESCENT_DATA,FACTOROW,FACTORCOL+4) -> 285.6435237 | U51: ThetaJB | V51: =IF((BOARD="Custom")*(CUSTOMTJB>0),CUSTOMTJB,THETAJB) -> 1.4 | AD51: 0
H52: =PL_POWERED*$L$82*($P$55*$I44^4+$Q$55*$I44^3+$R$55*$I44^2+$S$55*$I44+$T$55)/1000 -> 0.2224029671 | J52: =PL_POWERED*VccioScale*($P$54*$I44^4+$Q$54*$I44^3+$R$54*$I44^2+$S$54*$I44+$T$54)/1000 -> 0.2569630721 | K52: Iccaux_c1 | L52: =OFFSET(QUIESCENT_DATA,FACTOROW,FACTORCOL+6) -> 1.316942483e-05 | O52: Vccaux | P52: =OFFSET(QUIESCENT_DATA,FACTOROW,FACTORCOL+5) -> 2.277339249e-06 | Q52: =OFFSET(QUIESCENT_DATA,FACTOROW,FACTORCOL+6) -> 1.316942483e-05 | R52: =OFFSET(QUIESCENT_DATA,FACTOROW,FACTORCOL+7) -> 0.006627563973 | S52: =OFFSET(QUIESCENT_DATA,FACTOROW,FACTORCOL+8) -> 0.6645231261 | T52: =OFFSET(QUIESCENT_DATA,FACTOROW,FACTORCOL+9) -> 328.2015901 | U52: ThetaJA | V52: =IF(BOARD="JEDEC (2S2P)",V41,MIN(V41,OFFSET(Data!$A$815,OFFSET(Data!$A$718,MATCH(PACKAGE,BOARD_PKG_LIST,FALSE),1)+(4*$V45)+$V44,3+$V43))) -> 2.8 | AA52: IO | AB52: =IO_POWER -> 3.299693582 | AD52: 0
H53: 0.2224459015 | J53: 0.2587719481 | K53: Iccaux_c2 | L53: =OFFSET(QUIESCENT_DATA,FACTOROW,FACTORCOL+7) -> 0.006627563973 | O53: Vccbram | P53: =OFFSET(QUIESCENT_DATA,FACTOROW,FACTORCOL+10) -> 1.290242817e-06 | Q53: =OFFSET(QUIESCENT_DATA,FACTOROW,FACTORCOL+11) -> 1.379649413e-05 | R53: =OFFSET(QUIESCENT_DATA,FACTOROW,FACTORCOL+12) -> 0.007135055481 | S53: =OFFSET(QUIESCENT_DATA,FACTOROW,FACTORCOL+13) -> 0.9261566312 | T53: =OFFSET(QUIESCENT_DATA,FACTOROW,FACTORCOL+14) -> 37.07594337 | U53: ThetaJX | V53: =$V52*(THETAJC+$V48)/(THETAJC+$V48-$V52) -> 2.935807826 | AA53: =IF(NUM_GTS>0,"GTX",IF(NUM_GTHS>0,"GTH",IF(NUM_GTPS>0,"GTP",""))) -> GTH | AB53: =IF(NUM_GTS>0,GTX_POWER,IF(NUM_GTHS>0,GTH_POWER,IF(NUM_GTPS>0,GTP_POWER,0))) -> 17.66384281 | AD53: 0
H54: 0.2224506659 | J54: 0.2589722345 | K54: Iccauxq_d | L54: =(P52*390625+Q52*15625+R52*625+S52*25+T52)/1000*OFFSET(POWER_SCALE,10,1) -> 0.3500522536 | O54: Vccint_io | P54: =OFFSET(QUIESCENT_DATA,FACTOROW,FACTORCOL+72) -> 9.402604038e-07 | Q54: =OFFSET(QUIESCENT_DATA,FACTOROW,FACTORCOL+72+1) -> 9.308323953e-05 | R54: =OFFSET(QUIESCENT_DATA,FACTOROW,FACTORCOL+72+2) -> 0.0109582333 | S54: =OFFSET(QUIESCENT_DATA,FACTOROW,FACTORCOL+72+3) -> 0.722094628 | T54: =OFFSET(QUIESCENT_DATA,FACTOROW,FACTORCOL+72+4) -> 19.64465576 | U54: eThetaJA | V54: =IF((BOARD="Custom"),$V57,IF($V46=3,$V52,$V53*(THETAJC+$V49+$V50)/($V53+THETAJC+$V49+$V50))) -> 0.7788052957 | AA54: =IF(LEFT(FAMILY,4)="Zynq","PS",IF(NUM_GTYS>0,"GTY","")) -> GTY | AB54: =IF(LEFT(FAMILY,4)="Zynq",PS_POWER,IF(NUM_GTYS>0,GTY_POWER,0)) -> 27.87954358 | AD54: 0
H55: 0.2224511942 | J55: 0.258994437 | K55: Iccoq | L55: =OFFSET(QUIESCENT_DATA,FACTOROW,IF(PROCESS="Typical",61,IF(TJ_MAX=85,62,63)))/1000 -> 8.148643067e-05 | O55: Vccaux_io | P55: =OFFSET(QUIESCENT_DATA,FACTOROW,FACTORCOL+72+5) -> 8.216569351e-08 | Q55: =OFFSET(QUIESCENT_DATA,FACTOROW,FACTORCOL+72+6) -> -2.077003192e-06 | R55: =OFFSET(QUIESCENT_DATA,FACTOROW,FACTORCOL+72+7) -> 4.727356643e-06 | S55: =OFFSET(QUIESCENT_DATA,FACTOROW,FACTORCOL+72+8) -> 0.009325904236 | T55: =OFFSET(QUIESCENT_DATA,FACTOROW,FACTORCOL+72+9) -> 218.7849502 | U55: TJA-Top | V55: =$V49+THETAJC -> 0.96 | AD55: 2.613118591
H56: 0.2224512528 | J56: 0.2589968986 | K56: Iccbram_c1 | L56: =OFFSET(QUIESCENT_DATA,FACTOROW,FACTORCOL+11) -> 1.379649413e-05 | U56: TJ | V56: =(TOTAL_POWER*$V55*$V51+$V51*AMBIENT_TEMP+$V55*BOARD_TEMP)/($V55+$V51) -> 69.80254267 | AD56: 330.8571672
H57: 0.2224512593 | J57: 0.2589971715 | K57: Iccbram_c2 | L57: =OFFSET(QUIESCENT_DATA,FACTOROW,FACTORCOL+12) -> 0.007135055481 | U57: eThetaJA | V57: =($V61 - AMBIENT_TEMP) /$V58 -> 0.593962119 | AD57: 163.7089925
H58: 0.22245126 | J58: 0.2589972018 | K58: Iccbramq | L58: =(IF(PROCESS="Typical",1,OFFSET(BLOCK_LEAKAGE,2,IF(FACTORCOL=16,10,IF(FACTORCOL=31,9,8))))*(OFFSET(BLOCK_LEAKAGE,2,1)*BRAM!I4))/1000*OFFSET(POWER_SCALE,9,1) -> 0.024272 | M58: =(IF(PROCESS="Typical",1,OFFSET(BLOCK_LEAKAGE,2,IF(FACTORCOL=16,10,IF(FACTORCOL=31,9,8))))*(OFFSET(BLOCK_LEAKAGE,1,1)*BRAM!I4))/1000*OFFSET(POWER_SCALE,9,1) -> 0.001957873329 | N58: =OFFSET(Iccbramq,0,1)*1000/OFFSET(BLOCK_LEAKAGE,2,3)*EXP(F46/OFFSET(BLOCK_LEAKAGE,2,4)) -> 11.68432299 | U58: Power | V58: =SUM(J12:J28)+((P52*V62^4+Q52*V62^3+R52*V62^2+S52*V62+T52)/1000*VCCAUX+(P51*V62^4+Q51*V62^3+R51*V62^2+S51*V62+T51)/1000*VccScale*VCCINT) -> 83.11601842 | AD58: 2.613118591
K59: Process | L59: =IF(PROCESS="Typical",1,OFFSET(QUIESCENT_DATA,FACTOROW,FACTORCOL)) -> 1 | U59: Power2 | AD59: 538.552556
K60: I-Grade | L60: =OFFSET(QUIESCENT_DATA,FACTOROW,FACTORCOL+3) -> 10.07655478 | U60: Temp | V60: =MIN(125,$V55*$V58+AMBIENT_TEMP) -> 99.79137768 | AD60: 238.4069356
K61: Q-Grade | L61: =OFFSET(QUIESCENT_DATA,FACTOROW,FACTORCOL+4) -> 285.6435237 | U61: Temp | V61: =($V58 * $V55 * $V51 + $V51 * AMBIENT_TEMP + $V55 * BOARD_TEMP) / ($V55 + $V51) -> 69.36776642 | AD61: 0
K62: I-Grade | L62: =OFFSET(QUIESCENT_DATA,FACTOROW,FACTORCOL+8) -> 0.6645231261 | U62: Temp | V62: =MIN(125,IF(ISBLANK(USER_TJ),$V55*(SUM(J12:J28)+(Iccauxq_d*VccAuxScale*VCCAUX+ICCQ_DES*VccScale*VCCINT))+AMBIENT_TEMP,USER_TJ)) -> 94.61142393 | AD62: 41.4
K63: Q-Grade | L63: =OFFSET(QUIESCENT_DATA,FACTOROW,FACTORCOL+9) -> 328.2015901
K64: I-Grade | L64: =OFFSET(QUIESCENT_DATA,FACTOROW,FACTORCOL+13) -> 0.9261566312 | O64: PowerUp | P64: Int | Q64: Int_io | R64: Aux | S64: I/O | T64: Aux_io | U64: Bram | V64: Avcc | W64: Avtt | X64: GTVccaux | Y64: Avcc | Z64: Avtt | AA64: GTVccaux
K65: Q-Grade | L65: =OFFSET(QUIESCENT_DATA,FACTOROW,FACTORCOL+14) -> 37.07594337 | O65: Adder | P65: 6.595 | Q65: 0 | R65: 0.8 | S65: 0.08 | T65: 0 | U65: 0.3 | V65: 0.0095 | W65: 0.0045 | X65: 0.002 | Y65: 0.02083333333 | Z65: 0.1166666667 | AA65: 0.001666666667
K66: Vcc_c1 | L66: =OFFSET(VOLTAGE_DATA,1,1) -> 0.164389 | O66: Min | P66: =IF(AND(LEFT(PROCESS,3)="Max",P65>0),ICCINTQ_D*VccScale+P65,0) -> 0 | Q66: =IF(AND(LEFT(PROCESS,3)="Max",Q65>0),L80*L79+Q65,0) -> 0 | R66: =IF(AND(LEFT(PROCESS,3)="Max",R65>0),Iccauxq_d*VccAuxScale + R65,0) -> 0 | S66: =IF(AND(LEFT(PROCESS,3)="Max",S65>0),ICCOQ_D+S65,0) -> 0 | T66: =IF(AND(LEFT(PROCESS,3)="Max",T65>0),L81*L82+T65,0) -> 0 | U66: =IF(AND(LEFT(PROCESS,3)="Max",U65>0),(P53*390625+Q53*15625+R53*625+S53*25+T53)/1000*OFFSET(VccScale,2,0)+U65,0) -> 0 | V66: =IF(AND(LEFT(PROCESS,3)="Max",V65>0),OFFSET(GTHAVCCQ,0,-1)+IF(Q28>0,V65*MAX(NUM_GTHS,OFFSET(GTH_PLANES,-1,0)),0),0) -> 0 | W66: =IF(AND(LEFT(PROCESS,3)="Max",W65>0),OFFSET(GTHVTTXQ,0,-1)+IF(Q29>0,W65*MAX(NUM_GTHS,OFFSET(GTH_PLANES,-1,0)),0),0) -> 0 | X66: =IF(AND(LEFT(PROCESS,3)="Max",X65>0),OFFSET(GTHAUXQ,0,-1)+IF(Q27>0,X65*MAX(NUM_GTHS,OFFSET(GTH_PLANES,-1,0)),0),0) -> 0 | Y66: =IF(AND(LEFT(PROCESS,3)="Max",Y65>0),OFFSET(GTYAVCCQ,0,-1)+IF(Q31>0,Y65*NUM_GTYS,0),0) -> 0 | Z66: =IF(AND(LEFT(PROCESS,3)="Max",Z65>0),OFFSET(GTYVTTXQ,0,-1)+IF(Q32>0,Z65*NUM_GTYS,0),0) -> 0 | AA66: =IF(AND(LEFT(PROCESS,3)="Max",AA65>0),OFFSET(GTYAUXQ,0,-1)+IF(Q30>0,AA65*NUM_GTYS,0),0) -> 0
K67: Vcc_c2 | L67: =OFFSET(VOLTAGE_DATA,2,1) -> 1.900045
K68: VccScale | L68: =Vcc_c1*EXP(Vcc_c2*VCCINT)*Bali_Factor*VID_Factor*MMF_Factor*OFFSET(MMF_Factor,0,1)*SCD_FACTOR -> 0.9995231552
K69: VccAuxScale | L69: =Bali_Factor*OFFSET(MMF_Factor,1,0)*OFFSET(MMF_Factor,1,1)*SCD_FACTOR -> 1
K70: VccBramScale | L70: =Vcc_c1*EXP(Vcc_c2*VCCBRAM)*VID_Factor*OFFSET(MMF_Factor,2,0)*OFFSET(MMF_Factor,2,1) -> 0.9995231552
K71: AVccScale | L71: =Vcc_c1*EXP(Vcc_c2*AVCC) -> 1.099136962
K72: Max bram | L72: =Iccbramq/OFFSET(BLOCK_LEAKAGE,2,3)*EXP(TJ_MAX/OFFSET(BLOCK_LEAKAGE,2,4))*VCCBRAM -> 0.2536795921
K73: Max PS | L73: =PS!S$2/OFFSET(PS_DATA,PSFACTOROW,IF(PROCESS_FACTOR=1,6,9))*EXP(TJ_MAX/OFFSET(PS_DATA,PSFACTOROW,IF(PROCESS_FACTOR=1,7,10)))/1000*VCCPINT -> 0
K74: Max Aux | L74: =(($P$52*TJ_MAX^4+$Q$52*TJ_MAX^3+$R$52*TJ_MAX^2+$S$52*TJ_MAX+$T$52)+($P$55*TJ_MAX^4+$Q$55*TJ_MAX^3+$R$55*TJ_MAX^2+$S$55*TJ_MAX+$T$55))/1000*VCCAUX -> 1.669927091
K75: Max Int | L75: =(($P$51*TJ_MAX^4+$Q$51*TJ_MAX^3+$R$51*TJ_MAX^2+$S$51*TJ_MAX+$T$51)+($P$54*TJ_MAX^4+$Q$54*TJ_MAX^3+$R$54*TJ_MAX^2+$S$54*TJ_MAX+$T$54))/1000*VCCINT -> 6.784522571
K76: Max Ambient | L76: =IF(ISBLANK(USER_TJ),TJ_MAX-(TJA*(SUM(L72:L75)+SUM(J12:J28)+GTX_LEAKAGE+GTH_LEAKAGE+GTP_LEAKAGE+GTY_LEAKAGE)),AMBIENT_TEMP) -> 32.59401024
K78: Oly | L78: =IF(MID(PART,4,1) = "U",1,0) -> 1
K79: VccioScale | L79: =OFFSET(VOLTAGE_DATA,1,2)*EXP(OFFSET(VOLTAGE_DATA,2,2)*VCCINT_IO)*VID_Factor*OFFSET(MMF_Factor,0,2)*OFFSET(MMF_Factor,0,3)*SCD_FACTOR -> 0.9993019372
K80: vccio_d | L80: =(P54*390625+Q54*15625+R54*625+S54*25+T54)/1000*OFFSET(POWER_SCALE,9,1) -> 0.04636763211
K81: vccauxio_d | L81: =(P55*390625+Q55*15625+R55*625+S55*25+T55)/1000*OFFSET(POWER_SCALE,10,1) -> 0.2190206952
K82: vccauxioScale | L82: =OFFSET(MMF_Factor,1,3)*OFFSET(MMF_Factor,1,2)*SCD_FACTOR -> 1

Sheet Snapshot
K1: Power Comparison Snapshots
B3: Settings
B7: Part
B8: Ambient Temperature
B9: Process
B10: Implementation
B12: Summary
B13: Total On-Chip Power
B14: Junction Temperature
B15: Effective ΘJA
B17: On-Chip Power
B18: Clocking
B19: Logic
B20: I/O
B21: BRAM
B22: DSP
B23: Transceiver
B24: Device Static
B26: Supply Summary
B27: VCCINT
B28: VCCINT_IO
B29: VCCBRAM
B30: VCCAUX
B31: VCCAUX_IO
B32: VCCO 3.3V
B33: VCCO 2.5V
B34: VCCO 1.8V
B35: VCCO 1.5V
B36: VCCO 1.35V
B37: VCCO 1.2V
B38: VCCO 1.0V
B39: MGTVCCAUX
B40: MGTAVCC
B41: MGTAVTT
B42: MGTYVCCAUX
B43: MGTYAVCC
B44: MGTYAVTT
B45: VCCADC

Sheet Graphs
B41: ="On-Chip Power over Vccint - (" & PROCESS & ", " & IF(JUNCTION_TEMP="125+",JUNCTION_TEMP,INT(JUNCTION_TEMP))& "C)" -> On-Chip Power over Vccint - (Typical, 85C)
B42: ="On-Chip Power - (" & PROCESS & ", " & VCCINT & "V)" -> On-Chip Power - (Typical, 0,95V)
B43: ="On-Chip Power by Function - (" & PROCESS & ", " & VCCINT & "V, " & IF(JUNCTION_TEMP="125+",JUNCTION_TEMP,INT(JUNCTION_TEMP)) & "C)" -> On-Chip Power by Function - (Typical, 0,95V, 85C)

Sheet IP_Manager
B1: IP Manager | AA1: IP Catalog
AA2: Block Memory
B3: Device | F3: On-Chip Summary | AA3: Distributed Memory
B4: Part | C4: XCVU095FFVD1924-2I | F4: Junction Temp | H4: =JUNCTION_TEMP -> 85.32577139 | AA4: Memory Interface
B5: Process | C5: =PROCESS -> Typical | F5: Static Power | H5: =SUM(Summary!J29:J30) -> 7.398447536 | AA5: =IF(NUM_GTHS>1, "Transceiver Interface","") -> Transceiver Interface
B6: Effective ΘJA | C6: =TJA -> 0.7788052957 | F6: Total Power | H6: =TOTAL_POWER -> 83.8794648 | AA6: =IF(NUM_GTYS>1,"GTY Transceiver Interface","") -> GTY Transceiver Interface
B7: Implementation | C7: =OPTIMIZATION -> Default
B13: IP Modules | E13: Power (W) | F13: Clocking* | G13: Logic | H13: I/O* | I13: BRAM | J13: DSP | K13: Transceiver* | L13: Source | AA13: Clock | AB13: PLL | AC13: MMCM | AD13: Logic | AE13: I/O | AF13: Phaser | AG13: BRAM | AH13: DSP | AI13: PCIE | AJ13: GTP/X/H | AK13: GTZ
B43: =ROW(IPROWS)-14 -> 29

Sheet Clock
B1: Clock Tree Power | P1: =IF(FALSE,1,OFFSET(POWER_SCALE,2,OFFSET(POWER_SCALE,1,1))*PL_POWERED/0.95)*0.95 -> 1 | Q1: =CLOCK_ROWS*CLOCK_COLS*34 -> 3060 | R1: 720 | S1: 30 | T1: 20
B3: Power | F3: Utilization | J3: Clocking Resources User Guide
B4: VCCINT | C4: =TEXT(VCCINT,"0.000")&"V" -> 0.001V | D4: =SUM(J10:J200) -> 2.231818002 | F4: Global | G4: =SUM(IF((F10:F199="Global")*(E10:E199>0),1)) -> 1 | H4: =IF(AND(G4/NUM_BUFG>=0.995, G4/NUM_BUFG<0.9999),0.99,G4/NUM_BUFG) -> 0.001388888889
B5: =TEXT(CLOCK_POWER/TOTAL_POWER,"0%")&" of total on-chip power "&TEXT(TOTAL_POWER,"0.000")&"W" -> 3% of total on-chip power 0.084W | F5: I/O | G5: =SUM(IF((F9:F198="I/O")*(E9:E198>0),1)) -> 0 | H5: - | J5: XPE User Guide
F6: Other | G6: =SUM(IF((F9:F199="Other")*(E9:E199>0),1)) -> 0 | H6: -
J7: Introduction to XPE (video)
B9: Name | E9: Frequency (MHz) | F9: Type | G9: Fanout | H9: Clock Buffer Enable | I9: Slice Clock Enable | J9: Power (W) | M9: Buffer | N9: HROW | O9: LEAF | P9: Local | Q9: HROW Utilization | R9: LEAF Utilization | S9: Slices | U9: RP | V9: Total Slice Clock Enable | W9: Number of Bels in Logic sheet
B10: ck1 | E10: 640 | F10: Global | G10: 150000 | H10: 1 | I10: 0.5 | J10: =IF($G10>0,SUM($M10:$P10)*(VCCINT/1000)*VCCINT_N,0)*OFFSET(POWER_OPT,OFFSET(OPTIMIZATION,0,3),1)*$P$1 -> 2.231818002 | M10: =IF($F10="Other",0.0004,IF($F10="CMT",OFFSET(CLOCK_DATA,5,7),OFFSET(CLOCK_DATA,5,1)))*$E10 -> 2.370592 | N10: =(OFFSET(CLOCK_DATA,5,2)+OFFSET(CLOCK_DATA,5,10)*0.25)*$E10*$H10*$Q10 -> 51.520552 | O10: =OFFSET(CLOCK_DATA,5,3)*$E10*$H10*$R10 -> 287.143808 | P10: =((OFFSET(CLOCK_DATA,5,4)*1.5)+OFFSET(CLOCK_DATA,5,5)*2.25*MIN($H10,$I10))*$E10*$S10 -> 2008.247155 | Q10: =IF(AND($G10>0,OR($F10="Global",$F10="Regional")), INT(0.99+MAX(CLOCK_COLS/2000/NUM_DICE,MIN(CLOCK_ROWS*(CLOCK_COLS), 0.5*$G10^0.32))), 0) -> 23 | R10: =IF(AND($G10>0,OR($F10="Global",$F10="Regional")),INT(0.99+MIN(NUM_LEAFS, 0.0845*(NUM_FFS^0.08)*$G10^0.6551)), 0) -> 668 | S10: =INT(0.9 + MIN(NUM_LUTS/8,INT(0.99+0.3589*$G10^0.9323))) -> 24024
B11: ck2 | F11: Global | H11: 1 | I11: 0.5 | J11: 0 | M11: 0 | N11: 0 | O11: 0 | P11: 0 | Q11: 0 | R11: 0 | S11: 0
F12: Global | H12: 1 | I12: 0.5 | J12: 0 | M12: 0 | N12: 0 | O12: 0 | P12: 0 | Q12: 0 | R12: 0 | S12: 0
F13: Global | H13: 1 | I13: 0.5 | J13: 0 | M13: 0 | N13: 0 | O13: 0 | P13: 0 | Q13: 0 | R13: 0 | S13: 0
F14: Global | H14: 1 | I14: 0.5 | J14: 0 | M14: 0 | N14: 0 | O14: 0 | P14: 0 | Q14: 0 | R14: 0 | S14: 0
F15: Global | H15: 1 | I15: 0.5 | J15: 0 | M15: 0 | N15: 0 | O15: 0 | P15: 0 | Q15: 0 | R15: 0 | S15: 0
F16: Global | H16: 1 | I16: 0.5 | J16: 0 | M16: 0 | N16: 0 | O16: 0 | P16: 0 | Q16: 0 | R16: 0 | S16: 0
F17: Global | H17: 1 | I17: 0.5 | J17: 0 | M17: 0 | N17: 0 | O17: 0 | P17: 0 | Q17: 0 | R17: 0 | S17: 0
F18: Global | H18: 1 | I18: 0.5 | J18: 0 | M18: 0 | N18: 0 | O18: 0 | P18: 0 | Q18: 0 | R18: 0 | S18: 0
F19: Global | H19: 1 | I19: 0.5 | J19: 0 | M19: 0 | N19: 0 | O19: 0 | P19: 0 | Q19: 0 | R19: 0 | S19: 0
F20: Global | H20: 1 | I20: 0.5 | J20: 0 | M20: 0 | N20: 0 | O20: 0 | P20: 0 | Q20: 0 | R20: 0 | S20: 0
F21: Global | H21: 1 | I21: 0.5 | J21: 0 | M21: 0 | N21: 0 | O21: 0 | P21: 0 | Q21: 0 | R21: 0 | S21: 0
F22: Global | H22: 1 | I22: 0.5 | J22: 0 | M22: 0 | N22: 0 | O22: 0 | P22: 0 | Q22: 0 | R22: 0 | S22: 0
F23: Global | H23: 1 | I23: 0.5 | J23: 0 | M23: 0 | N23: 0 | O23: 0 | P23: 0 | Q23: 0 | R23: 0 | S23: 0
F24: Global | H24: 1 | I24: 0.5 | J24: 0 | M24: 0 | N24: 0 | O24: 0 | P24: 0 | Q24: 0 | R24: 0 | S24: 0
F25: Global | H25: 1 | I25: 0.5 | J25: 0 | M25: 0 | N25: 0 | O25: 0 | P25: 0 | Q25: 0 | R25: 0 | S25: 0
F26: Global | H26: 1 | I26: 0.5 | J26: 0 | M26: 0 | N26: 0 | O26: 0 | P26: 0 | Q26: 0 | R26: 0 | S26: 0
F27: Global | H27: 1 | I27: 0.5 | J27: 0 | M27: 0 | N27: 0 | O27: 0 | P27: 0 | Q27: 0 | R27: 0 | S27: 0
F28: Global | H28: 1 | I28: 0.5 | J28: 0 | M28: 0 | N28: 0 | O28: 0 | P28: 0 | Q28: 0 | R28: 0 | S28: 0
F29: Global | H29: 1 | I29: 0.5 | J29: 0 | M29: 0 | N29: 0 | O29: 0 | P29: 0 | Q29: 0 | R29: 0 | S29: 0
F30: Global | H30: 1 | I30: 0.5 | J30: 0 | M30: 0 | N30: 0 | O30: 0 | P30: 0 | Q30: 0 | R30: 0 | S30: 0
F31: Global | H31: 1 | I31: 0.5 | J31: 0 | M31: 0 | N31: 0 | O31: 0 | P31: 0 | Q31: 0 | R31: 0 | S31: 0
F32: Global | H32: 1 | I32: 0.5 | J32: 0 | M32: 0 | N32: 0 | O32: 0 | P32: 0 | Q32: 0 | R32: 0 | S32: 0
F33: Global | H33: 1 | I33: 0.5 | J33: 0 | M33: 0 | N33: 0 | O33: 0 | P33: 0 | Q33: 0 | R33: 0 | S33: 0
F34: Global | H34: 1 | I34: 0.5 | J34: 0 | M34: 0 | N34: 0 | O34: 0 | P34: 0 | Q34: 0 | R34: 0 | S34: 0
F35: Global | H35: 1 | I35: 0.5 | J35: 0 | M35: 0 | N35: 0 | O35: 0 | P35: 0 | Q35: 0 | R35: 0 | S35: 0
F36: Global | H36: 1 | I36: 0.5 | J36: 0 | M36: 0 | N36: 0 | O36: 0 | P36: 0 | Q36: 0 | R36: 0 | S36: 0
F37: Global | H37: 1 | I37: 0.5 | J37: 0 | M37: 0 | N37: 0 | O37: 0 | P37: 0 | Q37: 0 | R37: 0 | S37: 0
F38: Global | H38: 1 | I38: 0.5 | J38: 0 | M38: 0 | N38: 0 | O38: 0 | P38: 0 | Q38: 0 | R38: 0 | S38: 0
F39: Global | H39: 1 | I39: 0.5 | J39: 0 | M39: 0 | N39: 0 | O39: 0 | P39: 0 | Q39: 0 | R39: 0 | S39: 0
F40: Global | H40: 1 | I40: 0.5 | J40: 0 | M40: 0 | N40: 0 | O40: 0 | P40: 0 | Q40: 0 | R40: 0 | S40: 0
F41: Global | H41: 1 | I41: 0.5 | J41: 0 | M41: 0 | N41: 0 | O41: 0 | P41: 0 | Q41: 0 | R41: 0 | S41: 0
F42: Global | H42: 1 | I42: 0.5 | J42: =IF($G42>0,SUM($M42:$P42)*(VCCINT/1000)*VCCINT_N,0)*OFFSET(POWER_OPT,OFFSET(OPTIMIZATION,0,3),1)*$P$1 -> 0 | M42: 0 | N42: =(OFFSET(CLOCK_DATA,5,2)+OFFSET(CLOCK_DATA,5,10)*0.25)*$E42*$H42*$Q42 -> 0 | O42: =OFFSET(CLOCK_DATA,5,3)*$E42*$H42*$R42 -> 0 | P42: =((OFFSET(CLOCK_DATA,5,4)*1.5)+OFFSET(CLOCK_DATA,5,5)*2.25*MIN($H42,$I42))*$E42*$S42 -> 0 | Q42: =IF(AND($G42>0,OR($F42="Global",$F42="Regional")), INT(0.99+MAX(CLOCK_COLS/2000/NUM_DICE,MIN(CLOCK_ROWS*(CLOCK_COLS), 0.5*$G42^0.32))), 0) -> 0 | R42: =IF(AND($G42>0,OR($F42="Global",$F42="Regional")),INT(0.99+MIN(NUM_LEAFS, 0.0845*(NUM_FFS^0.08)*$G42^0.6551)), 0) -> 0 | S42: =INT(0.9 + MIN(NUM_LUTS/8,INT(0.99+0.3589*$G42^0.9323))) -> 0
F43: Global | H43: 1 | I43: 0.5 | J43: 0 | M43: 0 | N43: 0 | O43: 0 | P43: 0 | Q43: 0 | R43: 0 | S43: 0
F44: Global | H44: 1 | I44: 0.5 | J44: 0 | M44: 0 | N44: 0 | O44: 0 | P44: 0 | Q44: 0 | R44: 0 | S44: 0
F45: Global | H45: 1 | I45: 0.5 | J45: 0 | M45: 0 | N45: 0 | O45: 0 | P45: 0 | Q45: 0 | R45: 0 | S45: 0
F46: Global | H46: 1 | I46: 0.5 | J46: 0 | M46: 0 | N46: 0 | O46: 0 | P46: 0 | Q46: 0 | R46: 0 | S46: 0
F47: Global | H47: 1 | I47: 0.5 | J47: 0 | M47: 0 | N47: 0 | O47: 0 | P47: 0 | Q47: 0 | R47: 0 | S47: 0
F48: Global | H48: 1 | I48: 0.5 | J48: 0 | M48: 0 | N48: 0 | O48: 0 | P48: 0 | Q48: 0 | R48: 0 | S48: 0
F49: Global | H49: 1 | I49: 0.5 | J49: 0 | M49: 0 | N49: 0 | O49: 0 | P49: 0 | Q49: 0 | R49: 0 | S49: 0
F50: Global | H50: 1 | I50: 0.5 | J50: 0 | M50: 0 | N50: 0 | O50: 0 | P50: 0 | Q50: 0 | R50: 0 | S50: 0
F51: Global | H51: 1 | I51: 0.5 | J51: 0 | M51: 0 | N51: 0 | O51: 0 | P51: 0 | Q51: 0 | R51: 0 | S51: 0
F52: Global | H52: 1 | I52: 0.5 | J52: 0 | M52: 0 | N52: 0 | O52: 0 | P52: 0 | Q52: 0 | R52: 0 | S52: 0
F53: Global | H53: 1 | I53: 0.5 | J53: 0 | M53: 0 | N53: 0 | O53: 0 | P53: 0 | Q53: 0 | R53: 0 | S53: 0
F54: Global | H54: 1 | I54: 0.5 | J54: 0 | M54: 0 | N54: 0 | O54: 0 | P54: 0 | Q54: 0 | R54: 0 | S54: 0
F55: Global | H55: 1 | I55: 0.5 | J55: 0 | M55: 0 | N55: 0 | O55: 0 | P55: 0 | Q55: 0 | R55: 0 | S55: 0
F56: Global | H56: 1 | I56: 0.5 | J56: 0 | M56: 0 | N56: 0 | O56: 0 | P56: 0 | Q56: 0 | R56: 0 | S56: 0
F57: Global | H57: 1 | I57: 0.5 | J57: 0 | M57: 0 | N57: 0 | O57: 0 | P57: 0 | Q57: 0 | R57: 0 | S57: 0
F58: Global | H58: 1 | I58: 0.5 | J58: 0 | M58: 0 | N58: 0 | O58: 0 | P58: 0 | Q58: 0 | R58: 0 | S58: 0
F59: Global | H59: 1 | I59: 0.5 | J59: 0 | M59: 0 | N59: 0 | O59: 0 | P59: 0 | Q59: 0 | R59: 0 | S59: 0
F60: Global | H60: 1 | I60: 0.5 | J60: 0 | M60: 0 | N60: 0 | O60: 0 | P60: 0 | Q60: 0 | R60: 0 | S60: 0
F61: Global | H61: 1 | I61: 0.5 | J61: 0 | M61: 0 | N61: 0 | O61: 0 | P61: 0 | Q61: 0 | R61: 0 | S61: 0
F62: Global | H62: 1 | I62: 0.5 | J62: 0 | M62: 0 | N62: 0 | O62: 0 | P62: 0 | Q62: 0 | R62: 0 | S62: 0
F63: Global | H63: 1 | I63: 0.5 | J63: 0 | M63: 0 | N63: 0 | O63: 0 | P63: 0 | Q63: 0 | R63: 0 | S63: 0
F64: Global | H64: 1 | I64: 0.5 | J64: 0 | M64: 0 | N64: 0 | O64: 0 | P64: 0 | Q64: 0 | R64: 0 | S64: 0
F65: Global | H65: 1 | I65: 0.5 | J65: 0 | M65: 0 | N65: 0 | O65: 0 | P65: 0 | Q65: 0 | R65: 0 | S65: 0
F66: Global | H66: 1 | I66: 0.5 | J66: 0 | M66: 0 | N66: 0 | O66: 0 | P66: 0 | Q66: 0 | R66: 0 | S66: 0
F67: Global | H67: 1 | I67: 0.5 | J67: 0 | M67: 0 | N67: 0 | O67: 0 | P67: 0 | Q67: 0 | R67: 0 | S67: 0
F68: Global | H68: 1 | I68: 0.5 | J68: 0 | M68: 0 | N68: 0 | O68: 0 | P68: 0 | Q68: 0 | R68: 0 | S68: 0
F69: Global | H69: 1 | I69: 0.5 | J69: 0 | M69: 0 | N69: 0 | O69: 0 | P69: 0 | Q69: 0 | R69: 0 | S69: 0
F70: Global | H70: 1 | I70: 0.5 | J70: 0 | M70: 0 | N70: 0 | O70: 0 | P70: 0 | Q70: 0 | R70: 0 | S70: 0
F71: Global | H71: 1 | I71: 0.5 | J71: 0 | M71: 0 | N71: 0 | O71: 0 | P71: 0 | Q71: 0 | R71: 0 | S71: 0
F72: Global | H72: 1 | I72: 0.5 | J72: 0 | M72: 0 | N72: 0 | O72: 0 | P72: 0 | Q72: 0 | R72: 0 | S72: 0
F73: Global | H73: 1 | I73: 0.5 | J73: 0 | M73: 0 | N73: 0 | O73: 0 | P73: 0 | Q73: 0 | R73: 0 | S73: 0
F74: Global | H74: 1 | I74: 0.5 | J74: =IF($G74>0,SUM($M74:$P74)*(VCCINT/1000)*VCCINT_N,0)*OFFSET(POWER_OPT,OFFSET(OPTIMIZATION,0,3),1)*$P$1 -> 0 | M74: =IF($F74="Other",0.0004,IF($F74="CMT",OFFSET(CLOCK_DATA,5,7),OFFSET(CLOCK_DATA,5,1)))*$E74 -> 0 | N74: =(OFFSET(CLOCK_DATA,5,2)+OFFSET(CLOCK_DATA,5,10)*0.25)*$E74*$H74*$Q74 -> 0 | O74: =OFFSET(CLOCK_DATA,5,3)*$E74*$H74*$R74 -> 0 | P74: =((OFFSET(CLOCK_DATA,5,4)*1.5)+OFFSET(CLOCK_DATA,5,5)*2.25*MIN($H74,$I74))*$E74*$S74 -> 0 | Q74: =IF(AND($G74>0,OR($F74="Global",$F74="Regional")), INT(0.99+MAX(CLOCK_COLS/2000/NUM_DICE,MIN(CLOCK_ROWS*(CLOCK_COLS), 0.5*$G74^0.32))), 0) -> 0 | R74: =IF(AND($G74>0,OR($F74="Global",$F74="Regional")),INT(0.99+MIN(NUM_LEAFS, 0.0845*(NUM_FFS^0.08)*$G74^0.6551)), 0) -> 0 | S74: =INT(0.9 + MIN(NUM_LUTS/8,INT(0.99+0.3589*$G74^0.9323))) -> 0
F75: Global | H75: 1 | I75: 0.5 | J75: 0 | M75: 0 | N75: 0 | O75: 0 | P75: 0 | Q75: 0 | R75: 0 | S75: 0
F76: Global | H76: 1 | I76: 0.5 | J76: 0 | M76: 0 | N76: 0 | O76: 0 | P76: 0 | Q76: 0 | R76: 0 | S76: 0
F77: Global | H77: 1 | I77: 0.5 | J77: 0 | M77: 0 | N77: 0 | O77: 0 | P77: 0 | Q77: 0 | R77: 0 | S77: 0
F78: Global | H78: 1 | I78: 0.5 | J78: 0 | M78: 0 | N78: 0 | O78: 0 | P78: 0 | Q78: 0 | R78: 0 | S78: 0
F79: Global | H79: 1 | I79: 0.5 | J79: 0 | M79: 0 | N79: 0 | O79: 0 | P79: 0 | Q79: 0 | R79: 0 | S79: 0
F80: Global | H80: 1 | I80: 0.5 | J80: 0 | M80: 0 | N80: 0 | O80: 0 | P80: 0 | Q80: 0 | R80: 0 | S80: 0
F81: Global | H81: 1 | I81: 0.5 | J81: 0 | M81: 0 | N81: 0 | O81: 0 | P81: 0 | Q81: 0 | R81: 0 | S81: 0
F82: Global | H82: 1 | I82: 0.5 | J82: 0 | M82: 0 | N82: 0 | O82: 0 | P82: 0 | Q82: 0 | R82: 0 | S82: 0
F83: Global | H83: 1 | I83: 0.5 | J83: 0 | M83: 0 | N83: 0 | O83: 0 | P83: 0 | Q83: 0 | R83: 0 | S83: 0
F84: Global | H84: 1 | I84: 0.5 | J84: 0 | M84: 0 | N84: 0 | O84: 0 | P84: 0 | Q84: 0 | R84: 0 | S84: 0
F85: Global | H85: 1 | I85: 0.5 | J85: 0 | M85: 0 | N85: 0 | O85: 0 | P85: 0 | Q85: 0 | R85: 0 | S85: 0
F86: Global | H86: 1 | I86: 0.5 | J86: 0 | M86: 0 | N86: 0 | O86: 0 | P86: 0 | Q86: 0 | R86: 0 | S86: 0
F87: Global | H87: 1 | I87: 0.5 | J87: 0 | M87: 0 | N87: 0 | O87: 0 | P87: 0 | Q87: 0 | R87: 0 | S87: 0
F88: Global | H88: 1 | I88: 0.5 | J88: 0 | M88: 0 | N88: 0 | O88: 0 | P88: 0 | Q88: 0 | R88: 0 | S88: 0
F89: Global | H89: 1 | I89: 0.5 | J89: 0 | M89: 0 | N89: 0 | O89: 0 | P89: 0 | Q89: 0 | R89: 0 | S89: 0
F90: Global | H90: 1 | I90: 0.5 | J90: 0 | M90: 0 | N90: 0 | O90: 0 | P90: 0 | Q90: 0 | R90: 0 | S90: 0
F91: Global | H91: 1 | I91: 0.5 | J91: 0 | M91: 0 | N91: 0 | O91: 0 | P91: 0 | Q91: 0 | R91: 0 | S91: 0
F92: Global | H92: 1 | I92: 0.5 | J92: 0 | M92: 0 | N92: 0 | O92: 0 | P92: 0 | Q92: 0 | R92: 0 | S92: 0
F93: Global | H93: 1 | I93: 0.5 | J93: 0 | M93: 0 | N93: 0 | O93: 0 | P93: 0 | Q93: 0 | R93: 0 | S93: 0
F94: Global | H94: 1 | I94: 0.5 | J94: 0 | M94: 0 | N94: 0 | O94: 0 | P94: 0 | Q94: 0 | R94: 0 | S94: 0
F95: Global | H95: 1 | I95: 0.5 | J95: 0 | M95: 0 | N95: 0 | O95: 0 | P95: 0 | Q95: 0 | R95: 0 | S95: 0
F96: Global | H96: 1 | I96: 0.5 | J96: 0 | M96: 0 | N96: 0 | O96: 0 | P96: 0 | Q96: 0 | R96: 0 | S96: 0
F97: Global | H97: 1 | I97: 0.5 | J97: 0 | M97: 0 | N97: 0 | O97: 0 | P97: 0 | Q97: 0 | R97: 0 | S97: 0
F98: Global | H98: 1 | I98: 0.5 | J98: 0 | M98: 0 | N98: 0 | O98: 0 | P98: 0 | Q98: 0 | R98: 0 | S98: 0
F99: Global | H99: 1 | I99: 0.5 | J99: 0 | M99: 0 | N99: 0 | O99: 0 | P99: 0 | Q99: 0 | R99: 0 | S99: 0
F100: Global | H100: 1 | I100: 0.5 | J100: 0 | M100: 0 | N100: 0 | O100: 0 | P100: 0 | Q100: 0 | R100: 0 | S100: 0
F101: Global | H101: 1 | I101: 0.5 | J101: 0 | M101: 0 | N101: 0 | O101: 0 | P101: 0 | Q101: 0 | R101: 0 | S101: 0
F102: Global | H102: 1 | I102: 0.5 | J102: 0 | M102: 0 | N102: 0 | O102: 0 | P102: 0 | Q102: 0 | R102: 0 | S102: 0
F103: Global | H103: 1 | I103: 0.5 | J103: 0 | M103: 0 | N103: 0 | O103: 0 | P103: 0 | Q103: 0 | R103: 0 | S103: 0
F104: Global | H104: 1 | I104: 0.5 | J104: 0 | M104: 0 | N104: 0 | O104: 0 | P104: 0 | Q104: 0 | R104: 0 | S104: 0
F105: Global | H105: 1 | I105: 0.5 | J105: 0 | M105: 0 | N105: 0 | O105: 0 | P105: 0 | Q105: 0 | R105: 0 | S105: 0
F106: Global | H106: 1 | I106: 0.5 | J106: =IF($G106>0,SUM($M106:$P106)*(VCCINT/1000)*VCCINT_N,0)*OFFSET(POWER_OPT,OFFSET(OPTIMIZATION,0,3),1)*$P$1 -> 0 | M106: 0 | N106: =(OFFSET(CLOCK_DATA,5,2)+OFFSET(CLOCK_DATA,5,10)*0.25)*$E106*$H106*$Q106 -> 0 | O106: =OFFSET(CLOCK_DATA,5,3)*$E106*$H106*$R106 -> 0 | P106: =((OFFSET(CLOCK_DATA,5,4)*1.5)+OFFSET(CLOCK_DATA,5,5)*2.25*MIN($H106,$I106))*$E106*$S106 -> 0 | Q106: =IF(AND($G106>0,OR($F106="Global",$F106="Regional")), INT(0.99+MAX(CLOCK_COLS/2000/NUM_DICE,MIN(CLOCK_ROWS*(CLOCK_COLS), 0.5*$G106^0.32))), 0) -> 0 | R106: =IF(AND($G106>0,OR($F106="Global",$F106="Regional")),INT(0.99+MIN(NUM_LEAFS, 0.0845*(NUM_FFS^0.08)*$G106^0.6551)), 0) -> 0 | S106: =INT(0.9 + MIN(NUM_LUTS/8,INT(0.99+0.3589*$G106^0.9323))) -> 0
F107: Global | H107: 1 | I107: 0.5 | J107: 0 | M107: 0 | N107: 0 | O107: 0 | P107: 0 | Q107: 0 | R107: 0 | S107: 0
F108: Global | H108: 1 | I108: 0.5 | J108: 0 | M108: 0 | N108: 0 | O108: 0 | P108: 0 | Q108: 0 | R108: 0 | S108: 0
F109: Global | H109: 1 | I109: 0.5 | J109: 0 | M109: 0 | N109: 0 | O109: 0 | P109: 0 | Q109: 0 | R109: 0 | S109: 0
F110: Global | H110: 1 | I110: 0.5 | J110: 0 | M110: 0 | N110: 0 | O110: 0 | P110: 0 | Q110: 0 | R110: 0 | S110: 0
F111: Global | H111: 1 | I111: 0.5 | J111: 0 | M111: 0 | N111: 0 | O111: 0 | P111: 0 | Q111: 0 | R111: 0 | S111: 0
F112: Global | H112: 1 | I112: 0.5 | J112: 0 | M112: 0 | N112: 0 | O112: 0 | P112: 0 | Q112: 0 | R112: 0 | S112: 0
F113: Global | H113: 1 | I113: 0.5 | J113: 0 | M113: 0 | N113: 0 | O113: 0 | P113: 0 | Q113: 0 | R113: 0 | S113: 0
F114: Global | H114: 1 | I114: 0.5 | J114: 0 | M114: 0 | N114: 0 | O114: 0 | P114: 0 | Q114: 0 | R114: 0 | S114: 0
F115: Global | H115: 1 | I115: 0.5 | J115: 0 | M115: 0 | N115: 0 | O115: 0 | P115: 0 | Q115: 0 | R115: 0 | S115: 0
F116: Global | H116: 1 | I116: 0.5 | J116: 0 | M116: 0 | N116: 0 | O116: 0 | P116: 0 | Q116: 0 | R116: 0 | S116: 0
F117: Global | H117: 1 | I117: 0.5 | J117: 0 | M117: 0 | N117: 0 | O117: 0 | P117: 0 | Q117: 0 | R117: 0 | S117: 0
F118: Global | H118: 1 | I118: 0.5 | J118: 0 | M118: 0 | N118: 0 | O118: 0 | P118: 0 | Q118: 0 | R118: 0 | S118: 0
F119: Global | H119: 1 | I119: 0.5 | J119: 0 | M119: 0 | N119: 0 | O119: 0 | P119: 0 | Q119: 0 | R119: 0 | S119: 0
F120: Global | H120: 1 | I120: 0.5 | J120: 0 | M120: 0 | N120: 0 | O120: 0 | P120: 0 | Q120: 0 | R120: 0 | S120: 0
F121: Global | H121: 1 | I121: 0.5 | J121: 0 | M121: 0 | N121: 0 | O121: 0 | P121: 0 | Q121: 0 | R121: 0 | S121: 0
F122: Global | H122: 1 | I122: 0.5 | J122: 0 | M122: 0 | N122: 0 | O122: 0 | P122: 0 | Q122: 0 | R122: 0 | S122: 0
F123: Global | H123: 1 | I123: 0.5 | J123: 0 | M123: 0 | N123: 0 | O123: 0 | P123: 0 | Q123: 0 | R123: 0 | S123: 0
F124: Global | H124: 1 | I124: 0.5 | J124: 0 | M124: 0 | N124: 0 | O124: 0 | P124: 0 | Q124: 0 | R124: 0 | S124: 0
F125: Global | H125: 1 | I125: 0.5 | J125: 0 | M125: 0 | N125: 0 | O125: 0 | P125: 0 | Q125: 0 | R125: 0 | S125: 0
F126: Global | H126: 1 | I126: 0.5 | J126: 0 | M126: 0 | N126: 0 | O126: 0 | P126: 0 | Q126: 0 | R126: 0 | S126: 0
F127: Global | H127: 1 | I127: 0.5 | J127: 0 | M127: 0 | N127: 0 | O127: 0 | P127: 0 | Q127: 0 | R127: 0 | S127: 0
F128: Global | H128: 1 | I128: 0.5 | J128: 0 | M128: 0 | N128: 0 | O128: 0 | P128: 0 | Q128: 0 | R128: 0 | S128: 0
F129: Global | H129: 1 | I129: 0.5 | J129: 0 | M129: 0 | N129: 0 | O129: 0 | P129: 0 | Q129: 0 | R129: 0 | S129: 0
F130: Global | H130: 1 | I130: 0.5 | J130: 0 | M130: 0 | N130: 0 | O130: 0 | P130: 0 | Q130: 0 | R130: 0 | S130: 0
F131: Global | H131: 1 | I131: 0.5 | J131: 0 | M131: 0 | N131: 0 | O131: 0 | P131: 0 | Q131: 0 | R131: 0 | S131: 0
F132: Global | H132: 1 | I132: 0.5 | J132: 0 | M132: 0 | N132: 0 | O132: 0 | P132: 0 | Q132: 0 | R132: 0 | S132: 0
F133: Global | H133: 1 | I133: 0.5 | J133: 0 | M133: 0 | N133: 0 | O133: 0 | P133: 0 | Q133: 0 | R133: 0 | S133: 0
F134: Global | H134: 1 | I134: 0.5 | J134: 0 | M134: 0 | N134: 0 | O134: 0 | P134: 0 | Q134: 0 | R134: 0 | S134: 0
F135: Global | H135: 1 | I135: 0.5 | J135: 0 | M135: 0 | N135: 0 | O135: 0 | P135: 0 | Q135: 0 | R135: 0 | S135: 0
F136: Global | H136: 1 | I136: 0.5 | J136: 0 | M136: 0 | N136: 0 | O136: 0 | P136: 0 | Q136: 0 | R136: 0 | S136: 0
F137: Global | H137: 1 | I137: 0.5 | J137: 0 | M137: 0 | N137: 0 | O137: 0 | P137: 0 | Q137: 0 | R137: 0 | S137: 0
F138: Global | H138: 1 | I138: 0.5 | J138: =IF($G138>0,SUM($M138:$P138)*(VCCINT/1000)*VCCINT_N,0)*OFFSET(POWER_OPT,OFFSET(OPTIMIZATION,0,3),1)*$P$1 -> 0 | M138: =IF($F138="Other",0.0004,IF($F138="CMT",OFFSET(CLOCK_DATA,5,7),OFFSET(CLOCK_DATA,5,1)))*$E138 -> 0 | N138: =(OFFSET(CLOCK_DATA,5,2)+OFFSET(CLOCK_DATA,5,10)*0.25)*$E138*$H138*$Q138 -> 0 | O138: =OFFSET(CLOCK_DATA,5,3)*$E138*$H138*$R138 -> 0 | P138: =((OFFSET(CLOCK_DATA,5,4)*1.5)+OFFSET(CLOCK_DATA,5,5)*2.25*MIN($H138,$I138))*$E138*$S138 -> 0 | Q138: =IF(AND($G138>0,OR($F138="Global",$F138="Regional")), INT(0.99+MAX(CLOCK_COLS/2000/NUM_DICE,MIN(CLOCK_ROWS*(CLOCK_COLS), 0.5*$G138^0.32))), 0) -> 0 | R138: =IF(AND($G138>0,OR($F138="Global",$F138="Regional")),INT(0.99+MIN(NUM_LEAFS, 0.0845*(NUM_FFS^0.08)*$G138^0.6551)), 0) -> 0 | S138: =INT(0.9 + MIN(NUM_LUTS/8,INT(0.99+0.3589*$G138^0.9323))) -> 0
F139: Global | H139: 1 | I139: 0.5 | J139: 0 | M139: 0 | N139: 0 | O139: 0 | P139: 0 | Q139: 0 | R139: 0 | S139: 0
F140: Global | H140: 1 | I140: 0.5 | J140: 0 | M140: 0 | N140: 0 | O140: 0 | P140: 0 | Q140: 0 | R140: 0 | S140: 0
F141: Global | H141: 1 | I141: 0.5 | J141: 0 | M141: 0 | N141: 0 | O141: 0 | P141: 0 | Q141: 0 | R141: 0 | S141: 0
F142: Global | H142: 1 | I142: 0.5 | J142: 0 | M142: 0 | N142: 0 | O142: 0 | P142: 0 | Q142: 0 | R142: 0 | S142: 0
F143: Global | H143: 1 | I143: 0.5 | J143: 0 | M143: 0 | N143: 0 | O143: 0 | P143: 0 | Q143: 0 | R143: 0 | S143: 0
F144: Global | H144: 1 | I144: 0.5 | J144: 0 | M144: 0 | N144: 0 | O144: 0 | P144: 0 | Q144: 0 | R144: 0 | S144: 0
F145: Global | H145: 1 | I145: 0.5 | J145: 0 | M145: 0 | N145: 0 | O145: 0 | P145: 0 | Q145: 0 | R145: 0 | S145: 0
F146: Global | H146: 1 | I146: 0.5 | J146: 0 | M146: 0 | N146: 0 | O146: 0 | P146: 0 | Q146: 0 | R146: 0 | S146: 0
F147: Global | H147: 1 | I147: 0.5 | J147: 0 | M147: 0 | N147: 0 | O147: 0 | P147: 0 | Q147: 0 | R147: 0 | S147: 0
F148: Global | H148: 1 | I148: 0.5 | J148: 0 | M148: 0 | N148: 0 | O148: 0 | P148: 0 | Q148: 0 | R148: 0 | S148: 0
F149: Global | H149: 1 | I149: 0.5 | J149: 0 | M149: 0 | N149: 0 | O149: 0 | P149: 0 | Q149: 0 | R149: 0 | S149: 0
F150: Global | H150: 1 | I150: 0.5 | J150: 0 | M150: 0 | N150: 0 | O150: 0 | P150: 0 | Q150: 0 | R150: 0 | S150: 0
F151: Global | H151: 1 | I151: 0.5 | J151: 0 | M151: 0 | N151: 0 | O151: 0 | P151: 0 | Q151: 0 | R151: 0 | S151: 0
F152: Global | H152: 1 | I152: 0.5 | J152: 0 | M152: 0 | N152: 0 | O152: 0 | P152: 0 | Q152: 0 | R152: 0 | S152: 0
F153: Global | H153: 1 | I153: 0.5 | J153: 0 | M153: 0 | N153: 0 | O153: 0 | P153: 0 | Q153: 0 | R153: 0 | S153: 0
F154: Global | H154: 1 | I154: 0.5 | J154: 0 | M154: 0 | N154: 0 | O154: 0 | P154: 0 | Q154: 0 | R154: 0 | S154: 0
F155: Global | H155: 1 | I155: 0.5 | J155: 0 | M155: 0 | N155: 0 | O155: 0 | P155: 0 | Q155: 0 | R155: 0 | S155: 0
F156: Global | H156: 1 | I156: 0.5 | J156: 0 | M156: 0 | N156: 0 | O156: 0 | P156: 0 | Q156: 0 | R156: 0 | S156: 0
F157: Global | H157: 1 | I157: 0.5 | J157: 0 | M157: 0 | N157: 0 | O157: 0 | P157: 0 | Q157: 0 | R157: 0 | S157: 0
F158: Global | H158: 1 | I158: 0.5 | J158: 0 | M158: 0 | N158: 0 | O158: 0 | P158: 0 | Q158: 0 | R158: 0 | S158: 0
F159: Global | H159: 1 | I159: 0.5 | J159: 0 | M159: 0 | N159: 0 | O159: 0 | P159: 0 | Q159: 0 | R159: 0 | S159: 0
F160: Global | H160: 1 | I160: 0.5 | J160: 0 | M160: 0 | N160: 0 | O160: 0 | P160: 0 | Q160: 0 | R160: 0 | S160: 0
F161: Global | H161: 1 | I161: 0.5 | J161: 0 | M161: 0 | N161: 0 | O161: 0 | P161: 0 | Q161: 0 | R161: 0 | S161: 0
F162: Global | H162: 1 | I162: 0.5 | J162: 0 | M162: 0 | N162: 0 | O162: 0 | P162: 0 | Q162: 0 | R162: 0 | S162: 0
F163: Global | H163: 1 | I163: 0.5 | J163: 0 | M163: 0 | N163: 0 | O163: 0 | P163: 0 | Q163: 0 | R163: 0 | S163: 0
F164: Global | H164: 1 | I164: 0.5 | J164: 0 | M164: 0 | N164: 0 | O164: 0 | P164: 0 | Q164: 0 | R164: 0 | S164: 0
F165: Global | H165: 1 | I165: 0.5 | J165: 0 | M165: 0 | N165: 0 | O165: 0 | P165: 0 | Q165: 0 | R165: 0 | S165: 0
F166: Global | H166: 1 | I166: 0.5 | J166: 0 | M166: 0 | N166: 0 | O166: 0 | P166: 0 | Q166: 0 | R166: 0 | S166: 0
F167: Global | H167: 1 | I167: 0.5 | J167: 0 | M167: 0 | N167: 0 | O167: 0 | P167: 0 | Q167: 0 | R167: 0 | S167: 0
F168: Global | H168: 1 | I168: 0.5 | J168: 0 | M168: 0 | N168: 0 | O168: 0 | P168: 0 | Q168: 0 | R168: 0 | S168: 0
F169: Global | H169: 1 | I169: 0.5 | J169: 0 | M169: 0 | N169: 0 | O169: 0 | P169: 0 | Q169: 0 | R169: 0 | S169: 0
F170: Global | H170: 1 | I170: 0.5 | J170: =IF($G170>0,SUM($M170:$P170)*(VCCINT/1000)*VCCINT_N,0)*OFFSET(POWER_OPT,OFFSET(OPTIMIZATION,0,3),1)*$P$1 -> 0 | M170: 0 | N170: =(OFFSET(CLOCK_DATA,5,2)+OFFSET(CLOCK_DATA,5,10)*0.25)*$E170*$H170*$Q170 -> 0 | O170: =OFFSET(CLOCK_DATA,5,3)*$E170*$H170*$R170 -> 0 | P170: =((OFFSET(CLOCK_DATA,5,4)*1.5)+OFFSET(CLOCK_DATA,5,5)*2.25*MIN($H170,$I170))*$E170*$S170 -> 0 | Q170: =IF(AND($G170>0,OR($F170="Global",$F170="Regional")), INT(0.99+MAX(CLOCK_COLS/2000/NUM_DICE,MIN(CLOCK_ROWS*(CLOCK_COLS), 0.5*$G170^0.32))), 0) -> 0 | R170: =IF(AND($G170>0,OR($F170="Global",$F170="Regional")),INT(0.99+MIN(NUM_LEAFS, 0.0845*(NUM_FFS^0.08)*$G170^0.6551)), 0) -> 0 | S170: =INT(0.9 + MIN(NUM_LUTS/8,INT(0.99+0.3589*$G170^0.9323))) -> 0
F171: Global | H171: 1 | I171: 0.5 | J171: 0 | M171: 0 | N171: 0 | O171: 0 | P171: 0 | Q171: 0 | R171: 0 | S171: 0
F172: Global | H172: 1 | I172: 0.5 | J172: 0 | M172: 0 | N172: 0 | O172: 0 | P172: 0 | Q172: 0 | R172: 0 | S172: 0
F173: Global | H173: 1 | I173: 0.5 | J173: 0 | M173: 0 | N173: 0 | O173: 0 | P173: 0 | Q173: 0 | R173: 0 | S173: 0
F174: Global | H174: 1 | I174: 0.5 | J174: 0 | M174: 0 | N174: 0 | O174: 0 | P174: 0 | Q174: 0 | R174: 0 | S174: 0
F175: Global | H175: 1 | I175: 0.5 | J175: 0 | M175: 0 | N175: 0 | O175: 0 | P175: 0 | Q175: 0 | R175: 0 | S175: 0
F176: Global | H176: 1 | I176: 0.5 | J176: 0 | M176: 0 | N176: 0 | O176: 0 | P176: 0 | Q176: 0 | R176: 0 | S176: 0
F177: Global | H177: 1 | I177: 0.5 | J177: 0 | M177: 0 | N177: 0 | O177: 0 | P177: 0 | Q177: 0 | R177: 0 | S177: 0
F178: Global | H178: 1 | I178: 0.5 | J178: 0 | M178: 0 | N178: 0 | O178: 0 | P178: 0 | Q178: 0 | R178: 0 | S178: 0
F179: Global | H179: 1 | I179: 0.5 | J179: 0 | M179: 0 | N179: 0 | O179: 0 | P179: 0 | Q179: 0 | R179: 0 | S179: 0
F180: Global | H180: 1 | I180: 0.5 | J180: 0 | M180: 0 | N180: 0 | O180: 0 | P180: 0 | Q180: 0 | R180: 0 | S180: 0
F181: Global | H181: 1 | I181: 0.5 | J181: 0 | M181: 0 | N181: 0 | O181: 0 | P181: 0 | Q181: 0 | R181: 0 | S181: 0
F182: Global | H182: 1 | I182: 0.5 | J182: 0 | M182: 0 | N182: 0 | O182: 0 | P182: 0 | Q182: 0 | R182: 0 | S182: 0
F183: Global | H183: 1 | I183: 0.5 | J183: 0 | M183: 0 | N183: 0 | O183: 0 | P183: 0 | Q183: 0 | R183: 0 | S183: 0
F184: Global | H184: 1 | I184: 0.5 | J184: 0 | M184: 0 | N184: 0 | O184: 0 | P184: 0 | Q184: 0 | R184: 0 | S184: 0
F185: Global | H185: 1 | I185: 0.5 | J185: 0 | M185: 0 | N185: 0 | O185: 0 | P185: 0 | Q185: 0 | R185: 0 | S185: 0
F186: Global | H186: 1 | I186: 0.5 | J186: 0 | M186: 0 | N186: 0 | O186: 0 | P186: 0 | Q186: 0 | R186: 0 | S186: 0
F187: Global | H187: 1 | I187: 0.5 | J187: 0 | M187: 0 | N187: 0 | O187: 0 | P187: 0 | Q187: 0 | R187: 0 | S187: 0
F188: Global | H188: 1 | I188: 0.5 | J188: 0 | M188: 0 | N188: 0 | O188: 0 | P188: 0 | Q188: 0 | R188: 0 | S188: 0
F189: Global | H189: 1 | I189: 0.5 | J189: 0 | M189: 0 | N189: 0 | O189: 0 | P189: 0 | Q189: 0 | R189: 0 | S189: 0
F190: Global | H190: 1 | I190: 0.5 | J190: 0 | M190: 0 | N190: 0 | O190: 0 | P190: 0 | Q190: 0 | R190: 0 | S190: 0
F191: Global | H191: 1 | I191: 0.5 | J191: 0 | M191: 0 | N191: 0 | O191: 0 | P191: 0 | Q191: 0 | R191: 0 | S191: 0
F192: Global | H192: 1 | I192: 0.5 | J192: 0 | M192: 0 | N192: 0 | O192: 0 | P192: 0 | Q192: 0 | R192: 0 | S192: 0
F193: Global | H193: 1 | I193: 0.5 | J193: 0 | M193: 0 | N193: 0 | O193: 0 | P193: 0 | Q193: 0 | R193: 0 | S193: 0
F194: Global | H194: 1 | I194: 0.5 | J194: 0 | M194: 0 | N194: 0 | O194: 0 | P194: 0 | Q194: 0 | R194: 0 | S194: 0
F195: Global | H195: 1 | I195: 0.5 | J195: 0 | M195: 0 | N195: 0 | O195: 0 | P195: 0 | Q195: 0 | R195: 0 | S195: 0
F196: Global | H196: 1 | I196: 0.5 | J196: 0 | M196: 0 | N196: 0 | O196: 0 | P196: 0 | Q196: 0 | R196: 0 | S196: 0
F197: Global | H197: 1 | I197: 0.5 | J197: 0 | M197: 0 | N197: 0 | O197: 0 | P197: 0 | Q197: 0 | R197: 0 | S197: 0
F198: Global | H198: 1 | I198: 0.5 | J198: 0 | M198: 0 | N198: 0 | O198: 0 | P198: 0 | Q198: 0 | R198: 0 | S198: 0
F199: Global | H199: 1 | I199: 0.5 | J199: 0 | M199: 0 | N199: 0 | O199: 0 | P199: 0 | Q199: 0 | R199: 0 | S199: 0
F200: Global | H200: 1 | I200: 0.5 | J200: 0 | M200: 0 | N200: 0 | O200: 0 | P200: 0 | Q200: 0 | R200: 0 | S200: 0
B201: =ROW(CLOCKROWS)-10 -> 191

Sheet Logic
B1: Logic Power | U1: =IF(TRUE,1,OFFSET(POWER_SCALE,3,OFFSET(POWER_SCALE,1,1))*PL_POWERED) -> 1
B3: Power | F3: Utilization | K3: CLB User Guide | Q3: Logic | R3: Signals
B4: VCCINT | C4: =TEXT(VCCINT,"0.000")&"V" -> 0.001V | D4: =SUM(M12:M500) -> 13.46205789 | F4: Registers | H4: =SUM(I12:I500) -> 0 | I4: =H4/NUM_FFS -> 0 | Q4: =SUM(Z12:Z500) -> 0 | R4: =SUM(AD12:AD500) -> 0
B5: =TEXT(LOGIC_POWER/TOTAL_POWER,"0%")&" of total on-chip power "&TEXT(TOTAL_POWER,"0.000")&"W" -> 16% of total on-chip power 0.084W | F5: LUTs | H5: =SUM(H6:H8) -> 650000 | I5: =H5/NUM_LUTS -> 0.6050789395 | K5: XPE User Guide | Q5: =SUM(Q6:Q8) -> 9.4873327 | R5: =SUM(R6:R8) -> 3.974725193
F6: Combinatorial | H6: =SUM(F12:F500) -> 500000 | I6: =H6/NUM_LUTS -> 0.4654453381 | Q6: =SUM(W12:W500) -> 6.36437585 | R6: =SUM(AA12:AA500) -> 2.978926358
F7: Shift Registers | H7: =SUM(G12:G500) -> 100000 | I7: =SUM(H7:H8)/NUM_LUTRAM -> 0.3693853428 | K7: Introduction to XPE (video) | Q7: =SUM(X12:X500) -> 1.90230394 | R7: =SUM(AB12:AB500) -> 0.6702474093
F8: Distributed RAMs | H8: =SUM(H12:H500) -> 50000 | Q8: =SUM(Y12:Y500) -> 1.22065291 | R8: =SUM(AC12:AC500) -> 0.3255514251
Q9: =SUM(Q4:Q5) -> 9.4873327 | R9: =SUM(R4:R5) -> 3.974725193
B10: Name | E10: Clock (MHz) | F10: LUTs as | I10: Registers | J10: Toggle Rate | K10: Routing Complexity | L10: Signal Rate (Mtr/s) | M10: Power (W) | O10: =SUM(O12:O500) -> 0 | P10: =SUM(P12:P500) -> 0 | U10: Routing | W10: LUTs as | Z10: Registers | AA10: LUTs as | AD10: Registers
F11: Logic | G11: Shift Registers | H11: Distributed RAMs | O11: RP_power | P11: RP_spower | Q11: RF | W11: Logic | X11: Shift Registers | Y11: Distributed RAMs | AA11: Logic | AB11: Shift Registers | AC11: Distributed RAMs | AE11: Logic | AF11: Routing
E12: 160 | F12: 500000 | G12: 100000 | H12: 50000 | I12: 0 | J12: 0.5 | K12: 8 | L12: =E12*J12 -> 80 | M12: =IF(TRUE,SUM(AE12:AF12),(VCCINT/1000)*VCCINT_N*IF($R12>0,$R12,($L12/2*(($F12+$I12)*0.45*$U12+($F12*(OFFSET(FANOUT,8,2))+$G12*(OFFSET(FANOUT,8,4)+$U12)+$H12*(OFFSET(FANOUT,8,5)+$U12)+$I12*(OFFSET(FANOUT,8,3)))))*OFFSET(POWER_OPT,OFFSET(OPTIMIZATION,0,3),2))*$U$1) -> 13.46205789 | O12: 0 | P12: 0 | Q12: =10^(K12/10)-1 -> 5.309573445 | U12: =OFFSET(FANOUT,8,1)+OFFSET(FANOUT,9,1)*($K12-3) -> 0.0008136315897 | W12: =(VCCINT/1000)*VCCINT*(IF($T12>0,$T12,($L12/2*(($F12*(Data!$N$435)))* OFFSET(POWER_OPT,OFFSET(OPTIMIZATION,0,3),2))*$U$1)) -> 6.36437585 | X12: =(VCCINT/1000)*VCCINT*(IF($T12>0,$T12,($L12/2*($G12*(Data!$P$435))))* OFFSET(POWER_OPT,OFFSET(OPTIMIZATION,0,3),2))*$U$1 -> 1.90230394 | Y12: =(VCCINT/1000)*VCCINT*(IF($T12>0,$T12,($L12/2*($H12*(Data!$Q$435))))* OFFSET(POWER_OPT,OFFSET(OPTIMIZATION,0,3),2))*$U$1 -> 1.22065291 | Z12: =( VCCINT / 1000 ) * VCCINT * ( IF( $T12 > 0, $T12, ( $L12 / 2 * ( ( $I12 * ( Data!$O$435 ) ) ) ) *OFFSET( POWER_OPT, OFFSET( OPTIMIZATION, 0, 3), 2)) * $U$1 ) -> 0 | AA12: =(VCCINT/1000)*VCCINT*(IF($T12 > 0, $T12,($L12/2*(($F12)*(Q12*Data!$N$436+Data!$N$437))))* OFFSET(POWER_OPT,OFFSET(OPTIMIZATION,0,3),2))*$U$1 -> 2.978926358 | AB12: =(VCCINT/1000)*VCCINT*(IF($T12 > 0, $T12,($L12/2*($G12*(Q12*Data!$P$436+Data!$P$437))))* OFFSET(POWER_OPT,OFFSET(OPTIMIZATION,0,3),2))*$U$1 -> 0.6702474093 | AC12: =(VCCINT/1000)*VCCINT*(IF($T12 > 0, $T12,($L12/2*($H12*(Q12*Data!$Q$436+Data!$Q$437))))* OFFSET(POWER_OPT,OFFSET(OPTIMIZATION,0,3),2))*$U$1 -> 0.3255514251 | AD12: =( VCCINT / 1000 ) * VCCINT * ( IF( $T12 > 0, $T12, ( $L12 / 2 * ( ( $I12 ) * (Q12*Data!$O$436+Data!$O$437) ) ) * OFFSET( POWER_OPT, OFFSET( OPTIMIZATION, 0, 3), 2)) * $U$1 ) -> 0 | AE12: =SUM(W12:Z12) -> 9.4873327 | AF12: =SUM(AA12:AD12) -> 3.974725193
J13: 0.125 | K13: 8 | L13: 0 | M13: 0 | O13: 0 | P13: 0 | Q13: =10^(K13/10)-1 -> 5.309573445 | U13: 0.0008136315897 | W13: =(VCCINT/1000)*VCCINT*(IF($T13>0,$T13,($L13/2*(($F13*(Data!$N$435)))* OFFSET(POWER_OPT,OFFSET(OPTIMIZATION,0,3),2))*$U$1)) -> 0 | X13: =(VCCINT/1000)*VCCINT*(IF($T13>0,$T13,($L13/2*($G13*(Data!$P$435))))* OFFSET(POWER_OPT,OFFSET(OPTIMIZATION,0,3),2))*$U$1 -> 0 | Y13: =(VCCINT/1000)*VCCINT*(IF($T13>0,$T13,($L13/2*($H13*(Data!$Q$435))))* OFFSET(POWER_OPT,OFFSET(OPTIMIZATION,0,3),2))*$U$1 -> 0 | Z13: =( VCCINT / 1000 ) * VCCINT * ( IF( $T13 > 0, $T13, ( $L13 / 2 * ( ( $I13 * ( Data!$O$435 ) ) ) ) *OFFSET( POWER_OPT, OFFSET( OPTIMIZATION, 0, 3), 2)) * $U$1 ) -> 0 | AA13: =(VCCINT/1000)*VCCINT*(IF($T13 > 0, $T13,($L13/2*(($F13)*(Q13*Data!$N$436+Data!$N$437))))* OFFSET(POWER_OPT,OFFSET(OPTIMIZATION,0,3),2))*$U$1 -> 0 | AB13: =(VCCINT/1000)*VCCINT*(IF($T13 > 0, $T13,($L13/2*($G13*(Q13*Data!$P$436+Data!$P$437))))* OFFSET(POWER_OPT,OFFSET(OPTIMIZATION,0,3),2))*$U$1 -> 0 | AC13: =(VCCINT/1000)*VCCINT*(IF($T13 > 0, $T13,($L13/2*($H13*(Q13*Data!$Q$436+Data!$Q$437))))* OFFSET(POWER_OPT,OFFSET(OPTIMIZATION,0,3),2))*$U$1 -> 0 | AD13: =( VCCINT / 1000 ) * VCCINT * ( IF( $T13 > 0, $T13, ( $L13 / 2 * ( ( $I13 ) * (Q13*Data!$O$436+Data!$O$437) ) ) * OFFSET( POWER_OPT, OFFSET( OPTIMIZATION, 0, 3), 2)) * $U$1 ) -> 0 | AE13: =SUM(W13:Z13) -> 0 | AF13: =SUM(AA13:AD13) -> 0
J14: 0.125 | K14: 8 | L14: 0 | M14: 0 | O14: 0 | P14: 0 | Q14: 5.309573445 | U14: 0.0008136315897 | W14: =(VCCINT/1000)*VCCINT*(IF($T14>0,$T14,($L14/2*(($F14*(Data!$N$435)))* OFFSET(POWER_OPT,OFFSET(OPTIMIZATION,0,3),2))*$U$1)) -> 0 | X14: =(VCCINT/1000)*VCCINT*(IF($T14>0,$T14,($L14/2*($G14*(Data!$P$435))))* OFFSET(POWER_OPT,OFFSET(OPTIMIZATION,0,3),2))*$U$1 -> 0 | Y14: =(VCCINT/1000)*VCCINT*(IF($T14>0,$T14,($L14/2*($H14*(Data!$Q$435))))* OFFSET(POWER_OPT,OFFSET(OPTIMIZATION,0,3),2))*$U$1 -> 0 | Z14: =( VCCINT / 1000 ) * VCCINT * ( IF( $T14 > 0, $T14, ( $L14 / 2 * ( ( $I14 * ( Data!$O$435 ) ) ) ) *OFFSET( POWER_OPT, OFFSET( OPTIMIZATION, 0, 3), 2)) * $U$1 ) -> 0 | AA14: =(VCCINT/1000)*VCCINT*(IF($T14 > 0, $T14,($L14/2*(($F14)*(Q14*Data!$N$436+Data!$N$437))))* OFFSET(POWER_OPT,OFFSET(OPTIMIZATION,0,3),2))*$U$1 -> 0 | AB14: =(VCCINT/1000)*VCCINT*(IF($T14 > 0, $T14,($L14/2*($G14*(Q14*Data!$P$436+Data!$P$437))))* OFFSET(POWER_OPT,OFFSET(OPTIMIZATION,0,3),2))*$U$1 -> 0 | AC14: =(VCCINT/1000)*VCCINT*(IF($T14 > 0, $T14,($L14/2*($H14*(Q14*Data!$Q$436+Data!$Q$437))))* OFFSET(POWER_OPT,OFFSET(OPTIMIZATION,0,3),2))*$U$1 -> 0 | AD14: =( VCCINT / 1000 ) * VCCINT * ( IF( $T14 > 0, $T14, ( $L14 / 2 * ( ( $I14 ) * (Q14*Data!$O$436+Data!$O$437) ) ) * OFFSET( POWER_OPT, OFFSET( OPTIMIZATION, 0, 3), 2)) * $U$1 ) -> 0 | AE14: 0 | AF14: 0
J15: 0.125 | K15: 8 | L15: 0 | M15: 0 | O15: 0 | P15: 0 | Q15: 5.309573445 | U15: 0.0008136315897 | W15: =(VCCINT/1000)*VCCINT*(IF($T15>0,$T15,($L15/2*(($F15*(Data!$N$435)))* OFFSET(POWER_OPT,OFFSET(OPTIMIZATION,0,3),2))*$U$1)) -> 0 | X15: =(VCCINT/1000)*VCCINT*(IF($T15>0,$T15,($L15/2*($G15*(Data!$P$435))))* OFFSET(POWER_OPT,OFFSET(OPTIMIZATION,0,3),2))*$U$1 -> 0 | Y15: =(VCCINT/1000)*VCCINT*(IF($T15>0,$T15,($L15/2*($H15*(Data!$Q$435))))* OFFSET(POWER_OPT,OFFSET(OPTIMIZATION,0,3),2))*$U$1 -> 0 | Z15: =( VCCINT / 1000 ) * VCCINT * ( IF( $T15 > 0, $T15, ( $L15 / 2 * ( ( $I15 * ( Data!$O$435 ) ) ) ) *OFFSET( POWER_OPT, OFFSET( OPTIMIZATION, 0, 3), 2)) * $U$1 ) -> 0 | AA15: =(VCCINT/1000)*VCCINT*(IF($T15 > 0, $T15,($L15/2*(($F15)*(Q15*Data!$N$436+Data!$N$437))))* OFFSET(POWER_OPT,OFFSET(OPTIMIZATION,0,3),2))*$U$1 -> 0 | AB15: =(VCCINT/1000)*VCCINT*(IF($T15 > 0, $T15,($L15/2*($G15*(Q15*Data!$P$436+Data!$P$437))))* OFFSET(POWER_OPT,OFFSET(OPTIMIZATION,0,3),2))*$U$1 -> 0 | AC15: =(VCCINT/1000)*VCCINT*(IF($T15 > 0, $T15,($L15/2*($H15*(Q15*Data!$Q$436+Data!$Q$437))))* OFFSET(POWER_OPT,OFFSET(OPTIMIZATION,0,3),2))*$U$1 -> 0 | AD15: =( VCCINT / 1000 ) * VCCINT * ( IF( $T15 > 0, $T15, ( $L15 / 2 * ( ( $I15 ) * (Q15*Data!$O$436+Data!$O$437) ) ) * OFFSET( POWER_OPT, OFFSET( OPTIMIZATION, 0, 3), 2)) * $U$1 ) -> 0 | AE15: 0 | AF15: 0
J16: 0.125 | K16: 8 | L16: 0 | M16: 0 | O16: 0 | P16: 0 | Q16: 5.309573445 | U16: 0.0008136315897 | W16: =(VCCINT/1000)*VCCINT*(IF($T16>0,$T16,($L16/2*(($F16*(Data!$N$435)))* OFFSET(POWER_OPT,OFFSET(OPTIMIZATION,0,3),2))*$U$1)) -> 0 | X16: =(VCCINT/1000)*VCCINT*(IF($T16>0,$T16,($L16/2*($G16*(Data!$P$435))))* OFFSET(POWER_OPT,OFFSET(OPTIMIZATION,0,3),2))*$U$1 -> 0 | Y16: =(VCCINT/1000)*VCCINT*(IF($T16>0,$T16,($L16/2*($H16*(Data!$Q$435))))* OFFSET(POWER_OPT,OFFSET(OPTIMIZATION,0,3),2))*$U$1 -> 0 | Z16: =( VCCINT / 1000 ) * VCCINT * ( IF( $T16 > 0, $T16, ( $L16 / 2 * ( ( $I16 * ( Data!$O$435 ) ) ) ) *OFFSET( POWER_OPT, OFFSET( OPTIMIZATION, 0, 3), 2)) * $U$1 ) -> 0 | AA16: =(VCCINT/1000)*VCCINT*(IF($T16 > 0, $T16,($L16/2*(($F16)*(Q16*Data!$N$436+Data!$N$437))))* OFFSET(POWER_OPT,OFFSET(OPTIMIZATION,0,3),2))*$U$1 -> 0 | AB16: =(VCCINT/1000)*VCCINT*(IF($T16 > 0, $T16,($L16/2*($G16*(Q16*Data!$P$436+Data!$P$437))))* OFFSET(POWER_OPT,OFFSET(OPTIMIZATION,0,3),2))*$U$1 -> 0 | AC16: =(VCCINT/1000)*VCCINT*(IF($T16 > 0, $T16,($L16/2*($H16*(Q16*Data!$Q$436+Data!$Q$437))))* OFFSET(POWER_OPT,OFFSET(OPTIMIZATION,0,3),2))*$U$1 -> 0 | AD16: =( VCCINT / 1000 ) * VCCINT * ( IF( $T16 > 0, $T16, ( $L16 / 2 * ( ( $I16 ) * (Q16*Data!$O$436+Data!$O$437) ) ) * OFFSET( POWER_OPT, OFFSET( OPTIMIZATION, 0, 3), 2)) * $U$1 ) -> 0 | AE16: 0 | AF16: 0
J17: 0.125 | K17: 8 | L17: 0 | M17: 0 | O17: 0 | P17: 0 | Q17: 5.309573445 | U17: 0.0008136315897 | W17: =(VCCINT/1000)*VCCINT*(IF($T17>0,$T17,($L17/2*(($F17*(Data!$N$435)))* OFFSET(POWER_OPT,OFFSET(OPTIMIZATION,0,3),2))*$U$1)) -> 0 | X17: =(VCCINT/1000)*VCCINT*(IF($T17>0,$T17,($L17/2*($G17*(Data!$P$435))))* OFFSET(POWER_OPT,OFFSET(OPTIMIZATION,0,3),2))*$U$1 -> 0 | Y17: =(VCCINT/1000)*VCCINT*(IF($T17>0,$T17,($L17/2*($H17*(Data!$Q$435))))* OFFSET(POWER_OPT,OFFSET(OPTIMIZATION,0,3),2))*$U$1 -> 0 | Z17: =( VCCINT / 1000 ) * VCCINT * ( IF( $T17 > 0, $T17, ( $L17 / 2 * ( ( $I17 * ( Data!$O$435 ) ) ) ) *OFFSET( POWER_OPT, OFFSET( OPTIMIZATION, 0, 3), 2)) * $U$1 ) -> 0 | AA17: =(VCCINT/1000)*VCCINT*(IF($T17 > 0, $T17,($L17/2*(($F17)*(Q17*Data!$N$436+Data!$N$437))))* OFFSET(POWER_OPT,OFFSET(OPTIMIZATION,0,3),2))*$U$1 -> 0 | AB17: =(VCCINT/1000)*VCCINT*(IF($T17 > 0, $T17,($L17/2*($G17*(Q17*Data!$P$436+Data!$P$437))))* OFFSET(POWER_OPT,OFFSET(OPTIMIZATION,0,3),2))*$U$1 -> 0 | AC17: =(VCCINT/1000)*VCCINT*(IF($T17 > 0, $T17,($L17/2*($H17*(Q17*Data!$Q$436+Data!$Q$437))))* OFFSET(POWER_OPT,OFFSET(OPTIMIZATION,0,3),2))*$U$1 -> 0 | AD17: =( VCCINT / 1000 ) * VCCINT * ( IF( $T17 > 0, $T17, ( $L17 / 2 * ( ( $I17 ) * (Q17*Data!$O$436+Data!$O$437) ) ) * OFFSET( POWER_OPT, OFFSET( OPTIMIZATION, 0, 3), 2)) * $U$1 ) -> 0 | AE17: 0 | AF17: 0
J18: 0.125 | K18: 8 | L18: 0 | M18: 0 | O18: 0 | P18: 0 | Q18: 5.309573445 | U18: 0.0008136315897 | W18: =(VCCINT/1000)*VCCINT*(IF($T18>0,$T18,($L18/2*(($F18*(Data!$N$435)))* OFFSET(POWER_OPT,OFFSET(OPTIMIZATION,0,3),2))*$U$1)) -> 0 | X18: =(VCCINT/1000)*VCCINT*(IF($T18>0,$T18,($L18/2*($G18*(Data!$P$435))))* OFFSET(POWER_OPT,OFFSET(OPTIMIZATION,0,3),2))*$U$1 -> 0 | Y18: =(VCCINT/1000)*VCCINT*(IF($T18>0,$T18,($L18/2*($H18*(Data!$Q$435))))* OFFSET(POWER_OPT,OFFSET(OPTIMIZATION,0,3),2))*$U$1 -> 0 | Z18: =( VCCINT / 1000 ) * VCCINT * ( IF( $T18 > 0, $T18, ( $L18 / 2 * ( ( $I18 * ( Data!$O$435 ) ) ) ) *OFFSET( POWER_OPT, OFFSET( OPTIMIZATION, 0, 3), 2)) * $U$1 ) -> 0 | AA18: =(VCCINT/1000)*VCCINT*(IF($T18 > 0, $T18,($L18/2*(($F18)*(Q18*Data!$N$436+Data!$N$437))))* OFFSET(POWER_OPT,OFFSET(OPTIMIZATION,0,3),2))*$U$1 -> 0 | AB18: =(VCCINT/1000)*VCCINT*(IF($T18 > 0, $T18,($L18/2*($G18*(Q18*Data!$P$436+Data!$P$437))))* OFFSET(POWER_OPT,OFFSET(OPTIMIZATION,0,3),2))*$U$1 -> 0 | AC18: =(VCCINT/1000)*VCCINT*(IF($T18 > 0, $T18,($L18/2*($H18*(Q18*Data!$Q$436+Data!$Q$437))))* OFFSET(POWER_OPT,OFFSET(OPTIMIZATION,0,3),2))*$U$1 -> 0 | AD18: =( VCCINT / 1000 ) * VCCINT * ( IF( $T18 > 0, $T18, ( $L18 / 2 * ( ( $I18 ) * (Q18*Data!$O$436+Data!$O$437) ) ) * OFFSET( POWER_OPT, OFFSET( OPTIMIZATION, 0, 3), 2)) * $U$1 ) -> 0 | AE18: 0 | AF18: 0
J19: 0.125 | K19: 8 | L19: 0 | M19: 0 | O19: 0 | P19: 0 | Q19: 5.309573445 | U19: 0.0008136315897 | W19: =(VCCINT/1000)*VCCINT*(IF($T19>0,$T19,($L19/2*(($F19*(Data!$N$435)))* OFFSET(POWER_OPT,OFFSET(OPTIMIZATION,0,3),2))*$U$1)) -> 0 | X19: =(VCCINT/1000)*VCCINT*(IF($T19>0,$T19,($L19/2*($G19*(Data!$P$435))))* OFFSET(POWER_OPT,OFFSET(OPTIMIZATION,0,3),2))*$U$1 -> 0 | Y19: =(VCCINT/1000)*VCCINT*(IF($T19>0,$T19,($L19/2*($H19*(Data!$Q$435))))* OFFSET(POWER_OPT,OFFSET(OPTIMIZATION,0,3),2))*$U$1 -> 0 | Z19: =( VCCINT / 1000 ) * VCCINT * ( IF( $T19 > 0, $T19, ( $L19 / 2 * ( ( $I19 * ( Data!$O$435 ) ) ) ) *OFFSET( POWER_OPT, OFFSET( OPTIMIZATION, 0, 3), 2)) * $U$1 ) -> 0 | AA19: =(VCCINT/1000)*VCCINT*(IF($T19 > 0, $T19,($L19/2*(($F19)*(Q19*Data!$N$436+Data!$N$437))))* OFFSET(POWER_OPT,OFFSET(OPTIMIZATION,0,3),2))*$U$1 -> 0 | AB19: =(VCCINT/1000)*VCCINT*(IF($T19 > 0, $T19,($L19/2*($G19*(Q19*Data!$P$436+Data!$P$437))))* OFFSET(POWER_OPT,OFFSET(OPTIMIZATION,0,3),2))*$U$1 -> 0 | AC19: =(VCCINT/1000)*VCCINT*(IF($T19 > 0, $T19,($L19/2*($H19*(Q19*Data!$Q$436+Data!$Q$437))))* OFFSET(POWER_OPT,OFFSET(OPTIMIZATION,0,3),2))*$U$1 -> 0 | AD19: =( VCCINT / 1000 ) * VCCINT * ( IF( $T19 > 0, $T19, ( $L19 / 2 * ( ( $I19 ) * (Q19*Data!$O$436+Data!$O$437) ) ) * OFFSET( POWER_OPT, OFFSET( OPTIMIZATION, 0, 3), 2)) * $U$1 ) -> 0 | AE19: 0 | AF19: 0
J20: 0.125 | K20: 8 | L20: 0 | M20: 0 | O20: 0 | P20: 0 | Q20: 5.309573445 | U20: 0.0008136315897 | W20: =(VCCINT/1000)*VCCINT*(IF($T20>0,$T20,($L20/2*(($F20*(Data!$N$435)))* OFFSET(POWER_OPT,OFFSET(OPTIMIZATION,0,3),2))*$U$1)) -> 0 | X20: =(VCCINT/1000)*VCCINT*(IF($T20>0,$T20,($L20/2*($G20*(Data!$P$435))))* OFFSET(POWER_OPT,OFFSET(OPTIMIZATION,0,3),2))*$U$1 -> 0 | Y20: =(VCCINT/1000)*VCCINT*(IF($T20>0,$T20,($L20/2*($H20*(Data!$Q$435))))* OFFSET(POWER_OPT,OFFSET(OPTIMIZATION,0,3),2))*$U$1 -> 0 | Z20: =( VCCINT / 1000 ) * VCCINT * ( IF( $T20 > 0, $T20, ( $L20 / 2 * ( ( $I20 * ( Data!$O$435 ) ) ) ) *OFFSET( POWER_OPT, OFFSET( OPTIMIZATION, 0, 3), 2)) * $U$1 ) -> 0 | AA20: =(VCCINT/1000)*VCCINT*(IF($T20 > 0, $T20,($L20/2*(($F20)*(Q20*Data!$N$436+Data!$N$437))))* OFFSET(POWER_OPT,OFFSET(OPTIMIZATION,0,3),2))*$U$1 -> 0 | AB20: =(VCCINT/1000)*VCCINT*(IF($T20 > 0, $T20,($L20/2*($G20*(Q20*Data!$P$436+Data!$P$437))))* OFFSET(POWER_OPT,OFFSET(OPTIMIZATION,0,3),2))*$U$1 -> 0 | AC20: =(VCCINT/1000)*VCCINT*(IF($T20 > 0, $T20,($L20/2*($H20*(Q20*Data!$Q$436+Data!$Q$437))))* OFFSET(POWER_OPT,OFFSET(OPTIMIZATION,0,3),2))*$U$1 -> 0 | AD20: =( VCCINT / 1000 ) * VCCINT * ( IF( $T20 > 0, $T20, ( $L20 / 2 * ( ( $I20 ) * (Q20*Data!$O$436+Data!$O$437) ) ) * OFFSET( POWER_OPT, OFFSET( OPTIMIZATION, 0, 3), 2)) * $U$1 ) -> 0 | AE20: 0 | AF20: 0
J21: 0.125 | K21: 8 | L21: 0 | M21: 0 | O21: 0 | P21: 0 | Q21: 5.309573445 | U21: 0.0008136315897 | W21: =(VCCINT/1000)*VCCINT*(IF($T21>0,$T21,($L21/2*(($F21*(Data!$N$435)))* OFFSET(POWER_OPT,OFFSET(OPTIMIZATION,0,3),2))*$U$1)) -> 0 | X21: =(VCCINT/1000)*VCCINT*(IF($T21>0,$T21,($L21/2*($G21*(Data!$P$435))))* OFFSET(POWER_OPT,OFFSET(OPTIMIZATION,0,3),2))*$U$1 -> 0 | Y21: =(VCCINT/1000)*VCCINT*(IF($T21>0,$T21,($L21/2*($H21*(Data!$Q$435))))* OFFSET(POWER_OPT,OFFSET(OPTIMIZATION,0,3),2))*$U$1 -> 0 | Z21: =( VCCINT / 1000 ) * VCCINT * ( IF( $T21 > 0, $T21, ( $L21 / 2 * ( ( $I21 * ( Data!$O$435 ) ) ) ) *OFFSET( POWER_OPT, OFFSET( OPTIMIZATION, 0, 3), 2)) * $U$1 ) -> 0 | AA21: =(VCCINT/1000)*VCCINT*(IF($T21 > 0, $T21,($L21/2*(($F21)*(Q21*Data!$N$436+Data!$N$437))))* OFFSET(POWER_OPT,OFFSET(OPTIMIZATION,0,3),2))*$U$1 -> 0 | AB21: =(VCCINT/1000)*VCCINT*(IF($T21 > 0, $T21,($L21/2*($G21*(Q21*Data!$P$436+Data!$P$437))))* OFFSET(POWER_OPT,OFFSET(OPTIMIZATION,0,3),2))*$U$1 -> 0 | AC21: =(VCCINT/1000)*VCCINT*(IF($T21 > 0, $T21,($L21/2*($H21*(Q21*Data!$Q$436+Data!$Q$437))))* OFFSET(POWER_OPT,OFFSET(OPTIMIZATION,0,3),2))*$U$1 -> 0 | AD21: =( VCCINT / 1000 ) * VCCINT * ( IF( $T21 > 0, $T21, ( $L21 / 2 * ( ( $I21 ) * (Q21*Data!$O$436+Data!$O$437) ) ) * OFFSET( POWER_OPT, OFFSET( OPTIMIZATION, 0, 3), 2)) * $U$1 ) -> 0 | AE21: 0 | AF21: 0
J22: 0.125 | K22: 8 | L22: 0 | M22: 0 | O22: 0 | P22: 0 | Q22: 5.309573445 | U22: 0.0008136315897 | W22: =(VCCINT/1000)*VCCINT*(IF($T22>0,$T22,($L22/2*(($F22*(Data!$N$435)))* OFFSET(POWER_OPT,OFFSET(OPTIMIZATION,0,3),2))*$U$1)) -> 0 | X22: =(VCCINT/1000)*VCCINT*(IF($T22>0,$T22,($L22/2*($G22*(Data!$P$435))))* OFFSET(POWER_OPT,OFFSET(OPTIMIZATION,0,3),2))*$U$1 -> 0 | Y22: =(VCCINT/1000)*VCCINT*(IF($T22>0,$T22,($L22/2*($H22*(Data!$Q$435))))* OFFSET(POWER_OPT,OFFSET(OPTIMIZATION,0,3),2))*$U$1 -> 0 | Z22: =( VCCINT / 1000 ) * VCCINT * ( IF( $T22 > 0, $T22, ( $L22 / 2 * ( ( $I22 * ( Data!$O$435 ) ) ) ) *OFFSET( POWER_OPT, OFFSET( OPTIMIZATION, 0, 3), 2)) * $U$1 ) -> 0 | AA22: =(VCCINT/1000)*VCCINT*(IF($T22 > 0, $T22,($L22/2*(($F22)*(Q22*Data!$N$436+Data!$N$437))))* OFFSET(POWER_OPT,OFFSET(OPTIMIZATION,0,3),2))*$U$1 -> 0 | AB22: =(VCCINT/1000)*VCCINT*(IF($T22 > 0, $T22,($L22/2*($G22*(Q22*Data!$P$436+Data!$P$437))))* OFFSET(POWER_OPT,OFFSET(OPTIMIZATION,0,3),2))*$U$1 -> 0 | AC22: =(VCCINT/1000)*VCCINT*(IF($T22 > 0, $T22,($L22/2*($H22*(Q22*Data!$Q$436+Data!$Q$437))))* OFFSET(POWER_OPT,OFFSET(OPTIMIZATION,0,3),2))*$U$1 -> 0 | AD22: =( VCCINT / 1000 ) * VCCINT * ( IF( $T22 > 0, $T22, ( $L22 / 2 * ( ( $I22 ) * (Q22*Data!$O$436+Data!$O$437) ) ) * OFFSET( POWER_OPT, OFFSET( OPTIMIZATION, 0, 3), 2)) * $U$1 ) -> 0 | AE22: 0 | AF22: 0
J23: 0.125 | K23: 8 | L23: 0 | M23: 0 | O23: 0 | P23: 0 | Q23: 5.309573445 | U23: 0.0008136315897 | W23: =(VCCINT/1000)*VCCINT*(IF($T23>0,$T23,($L23/2*(($F23*(Data!$N$435)))* OFFSET(POWER_OPT,OFFSET(OPTIMIZATION,0,3),2))*$U$1)) -> 0 | X23: =(VCCINT/1000)*VCCINT*(IF($T23>0,$T23,($L23/2*($G23*(Data!$P$435))))* OFFSET(POWER_OPT,OFFSET(OPTIMIZATION,0,3),2))*$U$1 -> 0 | Y23: =(VCCINT/1000)*VCCINT*(IF($T23>0,$T23,($L23/2*($H23*(Data!$Q$435))))* OFFSET(POWER_OPT,OFFSET(OPTIMIZATION,0,3),2))*$U$1 -> 0 | Z23: =( VCCINT / 1000 ) * VCCINT * ( IF( $T23 > 0, $T23, ( $L23 / 2 * ( ( $I23 * ( Data!$O$435 ) ) ) ) *OFFSET( POWER_OPT, OFFSET( OPTIMIZATION, 0, 3), 2)) * $U$1 ) -> 0 | AA23: =(VCCINT/1000)*VCCINT*(IF($T23 > 0, $T23,($L23/2*(($F23)*(Q23*Data!$N$436+Data!$N$437))))* OFFSET(POWER_OPT,OFFSET(OPTIMIZATION,0,3),2))*$U$1 -> 0 | AB23: =(VCCINT/1000)*VCCINT*(IF($T23 > 0, $T23,($L23/2*($G23*(Q23*Data!$P$436+Data!$P$437))))* OFFSET(POWER_OPT,OFFSET(OPTIMIZATION,0,3),2))*$U$1 -> 0 | AC23: =(VCCINT/1000)*VCCINT*(IF($T23 > 0, $T23,($L23/2*($H23*(Q23*Data!$Q$436+Data!$Q$437))))* OFFSET(POWER_OPT,OFFSET(OPTIMIZATION,0,3),2))*$U$1 -> 0 | AD23: =( VCCINT / 1000 ) * VCCINT * ( IF( $T23 > 0, $T23, ( $L23 / 2 * ( ( $I23 ) * (Q23*Data!$O$436+Data!$O$437) ) ) * OFFSET( POWER_OPT, OFFSET( OPTIMIZATION, 0, 3), 2)) * $U$1 ) -> 0 | AE23: 0 | AF23: 0
J24: 0.125 | K24: 8 | L24: 0 | M24: 0 | O24: 0 | P24: 0 | Q24: 5.309573445 | U24: 0.0008136315897 | W24: =(VCCINT/1000)*VCCINT*(IF($T24>0,$T24,($L24/2*(($F24*(Data!$N$435)))* OFFSET(POWER_OPT,OFFSET(OPTIMIZATION,0,3),2))*$U$1)) -> 0 | X24: =(VCCINT/1000)*VCCINT*(IF($T24>0,$T24,($L24/2*($G24*(Data!$P$435))))* OFFSET(POWER_OPT,OFFSET(OPTIMIZATION,0,3),2))*$U$1 -> 0 | Y24: =(VCCINT/1000)*VCCINT*(IF($T24>0,$T24,($L24/2*($H24*(Data!$Q$435))))* OFFSET(POWER_OPT,OFFSET(OPTIMIZATION,0,3),2))*$U$1 -> 0 | Z24: =( VCCINT / 1000 ) * VCCINT * ( IF( $T24 > 0, $T24, ( $L24 / 2 * ( ( $I24 * ( Data!$O$435 ) ) ) ) *OFFSET( POWER_OPT, OFFSET( OPTIMIZATION, 0, 3), 2)) * $U$1 ) -> 0 | AA24: =(VCCINT/1000)*VCCINT*(IF($T24 > 0, $T24,($L24/2*(($F24)*(Q24*Data!$N$436+Data!$N$437))))* OFFSET(POWER_OPT,OFFSET(OPTIMIZATION,0,3),2))*$U$1 -> 0 | AB24: =(VCCINT/1000)*VCCINT*(IF($T24 > 0, $T24,($L24/2*($G24*(Q24*Data!$P$436+Data!$P$437))))* OFFSET(POWER_OPT,OFFSET(OPTIMIZATION,0,3),2))*$U$1 -> 0 | AC24: =(VCCINT/1000)*VCCINT*(IF($T24 > 0, $T24,($L24/2*($H24*(Q24*Data!$Q$436+Data!$Q$437))))* OFFSET(POWER_OPT,OFFSET(OPTIMIZATION,0,3),2))*$U$1 -> 0 | AD24: =( VCCINT / 1000 ) * VCCINT * ( IF( $T24 > 0, $T24, ( $L24 / 2 * ( ( $I24 ) * (Q24*Data!$O$436+Data!$O$437) ) ) * OFFSET( POWER_OPT, OFFSET( OPTIMIZATION, 0, 3), 2)) * $U$1 ) -> 0 | AE24: 0 | AF24: 0
J25: 0.125 | K25: 8 | L25: 0 | M25: 0 | O25: 0 | P25: 0 | Q25: 5.309573445 | U25: 0.0008136315897 | W25: =(VCCINT/1000)*VCCINT*(IF($T25>0,$T25,($L25/2*(($F25*(Data!$N$435)))* OFFSET(POWER_OPT,OFFSET(OPTIMIZATION,0,3),2))*$U$1)) -> 0 | X25: =(VCCINT/1000)*VCCINT*(IF($T25>0,$T25,($L25/2*($G25*(Data!$P$435))))* OFFSET(POWER_OPT,OFFSET(OPTIMIZATION,0,3),2))*$U$1 -> 0 | Y25: =(VCCINT/1000)*VCCINT*(IF($T25>0,$T25,($L25/2*($H25*(Data!$Q$435))))* OFFSET(POWER_OPT,OFFSET(OPTIMIZATION,0,3),2))*$U$1 -> 0 | Z25: =( VCCINT / 1000 ) * VCCINT * ( IF( $T25 > 0, $T25, ( $L25 / 2 * ( ( $I25 * ( Data!$O$435 ) ) ) ) *OFFSET( POWER_OPT, OFFSET( OPTIMIZATION, 0, 3), 2)) * $U$1 ) -> 0 | AA25: =(VCCINT/1000)*VCCINT*(IF($T25 > 0, $T25,($L25/2*(($F25)*(Q25*Data!$N$436+Data!$N$437))))* OFFSET(POWER_OPT,OFFSET(OPTIMIZATION,0,3),2))*$U$1 -> 0 | AB25: =(VCCINT/1000)*VCCINT*(IF($T25 > 0, $T25,($L25/2*($G25*(Q25*Data!$P$436+Data!$P$437))))* OFFSET(POWER_OPT,OFFSET(OPTIMIZATION,0,3),2))*$U$1 -> 0 | AC25: =(VCCINT/1000)*VCCINT*(IF($T25 > 0, $T25,($L25/2*($H25*(Q25*Data!$Q$436+Data!$Q$437))))* OFFSET(POWER_OPT,OFFSET(OPTIMIZATION,0,3),2))*$U$1 -> 0 | AD25: =( VCCINT / 1000 ) * VCCINT * ( IF( $T25 > 0, $T25, ( $L25 / 2 * ( ( $I25 ) * (Q25*Data!$O$436+Data!$O$437) ) ) * OFFSET( POWER_OPT, OFFSET( OPTIMIZATION, 0, 3), 2)) * $U$1 ) -> 0 | AE25: 0 | AF25: 0
J26: 0.125 | K26: 8 | L26: 0 | M26: 0 | O26: 0 | P26: 0 | Q26: 5.309573445 | U26: 0.0008136315897 | W26: =(VCCINT/1000)*VCCINT*(IF($T26>0,$T26,($L26/2*(($F26*(Data!$N$435)))* OFFSET(POWER_OPT,OFFSET(OPTIMIZATION,0,3),2))*$U$1)) -> 0 | X26: =(VCCINT/1000)*VCCINT*(IF($T26>0,$T26,($L26/2*($G26*(Data!$P$435))))* OFFSET(POWER_OPT,OFFSET(OPTIMIZATION,0,3),2))*$U$1 -> 0 | Y26: =(VCCINT/1000)*VCCINT*(IF($T26>0,$T26,($L26/2*($H26*(Data!$Q$435))))* OFFSET(POWER_OPT,OFFSET(OPTIMIZATION,0,3),2))*$U$1 -> 0 | Z26: =( VCCINT / 1000 ) * VCCINT * ( IF( $T26 > 0, $T26, ( $L26 / 2 * ( ( $I26 * ( Data!$O$435 ) ) ) ) *OFFSET( POWER_OPT, OFFSET( OPTIMIZATION, 0, 3), 2)) * $U$1 ) -> 0 | AA26: =(VCCINT/1000)*VCCINT*(IF($T26 > 0, $T26,($L26/2*(($F26)*(Q26*Data!$N$436+Data!$N$437))))* OFFSET(POWER_OPT,OFFSET(OPTIMIZATION,0,3),2))*$U$1 -> 0 | AB26: =(VCCINT/1000)*VCCINT*(IF($T26 > 0, $T26,($L26/2*($G26*(Q26*Data!$P$436+Data!$P$437))))* OFFSET(POWER_OPT,OFFSET(OPTIMIZATION,0,3),2))*$U$1 -> 0 | AC26: =(VCCINT/1000)*VCCINT*(IF($T26 > 0, $T26,($L26/2*($H26*(Q26*Data!$Q$436+Data!$Q$437))))* OFFSET(POWER_OPT,OFFSET(OPTIMIZATION,0,3),2))*$U$1 -> 0 | AD26: =( VCCINT / 1000 ) * VCCINT * ( IF( $T26 > 0, $T26, ( $L26 / 2 * ( ( $I26 ) * (Q26*Data!$O$436+Data!$O$437) ) ) * OFFSET( POWER_OPT, OFFSET( OPTIMIZATION, 0, 3), 2)) * $U$1 ) -> 0 | AE26: 0 | AF26: 0
J27: 0.125 | K27: 8 | L27: 0 | M27: 0 | O27: 0 | P27: 0 | Q27: 5.309573445 | U27: 0.0008136315897 | W27: =(VCCINT/1000)*VCCINT*(IF($T27>0,$T27,($L27/2*(($F27*(Data!$N$435)))* OFFSET(POWER_OPT,OFFSET(OPTIMIZATION,0,3),2))*$U$1)) -> 0 | X27: =(VCCINT/1000)*VCCINT*(IF($T27>0,$T27,($L27/2*($G27*(Data!$P$435))))* OFFSET(POWER_OPT,OFFSET(OPTIMIZATION,0,3),2))*$U$1 -> 0 | Y27: =(VCCINT/1000)*VCCINT*(IF($T27>0,$T27,($L27/2*($H27*(Data!$Q$435))))* OFFSET(POWER_OPT,OFFSET(OPTIMIZATION,0,3),2))*$U$1 -> 0 | Z27: =( VCCINT / 1000 ) * VCCINT * ( IF( $T27 > 0, $T27, ( $L27 / 2 * ( ( $I27 * ( Data!$O$435 ) ) ) ) *OFFSET( POWER_OPT, OFFSET( OPTIMIZATION, 0, 3), 2)) * $U$1 ) -> 0 | AA27: =(VCCINT/1000)*VCCINT*(IF($T27 > 0, $T27,($L27/2*(($F27)*(Q27*Data!$N$436+Data!$N$437))))* OFFSET(POWER_OPT,OFFSET(OPTIMIZATION,0,3),2))*$U$1 -> 0 | AB27: =(VCCINT/1000)*VCCINT*(IF($T27 > 0, $T27,($L27/2*($G27*(Q27*Data!$P$436+Data!$P$437))))* OFFSET(POWER_OPT,OFFSET(OPTIMIZATION,0,3),2))*$U$1 -> 0 | AC27: =(VCCINT/1000)*VCCINT*(IF($T27 > 0, $T27,($L27/2*($H27*(Q27*Data!$Q$436+Data!$Q$437))))* OFFSET(POWER_OPT,OFFSET(OPTIMIZATION,0,3),2))*$U$1 -> 0 | AD27: =( VCCINT / 1000 ) * VCCINT * ( IF( $T27 > 0, $T27, ( $L27 / 2 * ( ( $I27 ) * (Q27*Data!$O$436+Data!$O$437) ) ) * OFFSET( POWER_OPT, OFFSET( OPTIMIZATION, 0, 3), 2)) * $U$1 ) -> 0 | AE27: 0 | AF27: 0
J28: 0.125 | K28: 8 | L28: 0 | M28: 0 | O28: 0 | P28: 0 | Q28: 5.309573445 | U28: 0.0008136315897 | W28: =(VCCINT/1000)*VCCINT*(IF($T28>0,$T28,($L28/2*(($F28*(Data!$N$435)))* OFFSET(POWER_OPT,OFFSET(OPTIMIZATION,0,3),2))*$U$1)) -> 0 | X28: =(VCCINT/1000)*VCCINT*(IF($T28>0,$T28,($L28/2*($G28*(Data!$P$435))))* OFFSET(POWER_OPT,OFFSET(OPTIMIZATION,0,3),2))*$U$1 -> 0 | Y28: =(VCCINT/1000)*VCCINT*(IF($T28>0,$T28,($L28/2*($H28*(Data!$Q$435))))* OFFSET(POWER_OPT,OFFSET(OPTIMIZATION,0,3),2))*$U$1 -> 0 | Z28: =( VCCINT / 1000 ) * VCCINT * ( IF( $T28 > 0, $T28, ( $L28 / 2 * ( ( $I28 * ( Data!$O$435 ) ) ) ) *OFFSET( POWER_OPT, OFFSET( OPTIMIZATION, 0, 3), 2)) * $U$1 ) -> 0 | AA28: =(VCCINT/1000)*VCCINT*(IF($T28 > 0, $T28,($L28/2*(($F28)*(Q28*Data!$N$436+Data!$N$437))))* OFFSET(POWER_OPT,OFFSET(OPTIMIZATION,0,3),2))*$U$1 -> 0 | AB28: =(VCCINT/1000)*VCCINT*(IF($T28 > 0, $T28,($L28/2*($G28*(Q28*Data!$P$436+Data!$P$437))))* OFFSET(POWER_OPT,OFFSET(OPTIMIZATION,0,3),2))*$U$1 -> 0 | AC28: =(VCCINT/1000)*VCCINT*(IF($T28 > 0, $T28,($L28/2*($H28*(Q28*Data!$Q$436+Data!$Q$437))))* OFFSET(POWER_OPT,OFFSET(OPTIMIZATION,0,3),2))*$U$1 -> 0 | AD28: =( VCCINT / 1000 ) * VCCINT * ( IF( $T28 > 0, $T28, ( $L28 / 2 * ( ( $I28 ) * (Q28*Data!$O$436+Data!$O$437) ) ) * OFFSET( POWER_OPT, OFFSET( OPTIMIZATION, 0, 3), 2)) * $U$1 ) -> 0 | AE28: 0 | AF28: 0
J29: 0.125 | K29: 8 | L29: 0 | M29: 0 | O29: 0 | P29: 0 | Q29: 5.309573445 | U29: 0.0008136315897 | W29: =(VCCINT/1000)*VCCINT*(IF($T29>0,$T29,($L29/2*(($F29*(Data!$N$435)))* OFFSET(POWER_OPT,OFFSET(OPTIMIZATION,0,3),2))*$U$1)) -> 0 | X29: =(VCCINT/1000)*VCCINT*(IF($T29>0,$T29,($L29/2*($G29*(Data!$P$435))))* OFFSET(POWER_OPT,OFFSET(OPTIMIZATION,0,3),2))*$U$1 -> 0 | Y29: =(VCCINT/1000)*VCCINT*(IF($T29>0,$T29,($L29/2*($H29*(Data!$Q$435))))* OFFSET(POWER_OPT,OFFSET(OPTIMIZATION,0,3),2))*$U$1 -> 0 | Z29: =( VCCINT / 1000 ) * VCCINT * ( IF( $T29 > 0, $T29, ( $L29 / 2 * ( ( $I29 * ( Data!$O$435 ) ) ) ) *OFFSET( POWER_OPT, OFFSET( OPTIMIZATION, 0, 3), 2)) * $U$1 ) -> 0 | AA29: =(VCCINT/1000)*VCCINT*(IF($T29 > 0, $T29,($L29/2*(($F29)*(Q29*Data!$N$436+Data!$N$437))))* OFFSET(POWER_OPT,OFFSET(OPTIMIZATION,0,3),2))*$U$1 -> 0 | AB29: =(VCCINT/1000)*VCCINT*(IF($T29 > 0, $T29,($L29/2*($G29*(Q29*Data!$P$436+Data!$P$437))))* OFFSET(POWER_OPT,OFFSET(OPTIMIZATION,0,3),2))*$U$1 -> 0 | AC29: =(VCCINT/1000)*VCCINT*(IF($T29 > 0, $T29,($L29/2*($H29*(Q29*Data!$Q$436+Data!$Q$437))))* OFFSET(POWER_OPT,OFFSET(OPTIMIZATION,0,3),2))*$U$1 -> 0 | AD29: =( VCCINT / 1000 ) * VCCINT * ( IF( $T29 > 0, $T29, ( $L29 / 2 * ( ( $I29 ) * (Q29*Data!$O$436+Data!$O$437) ) ) * OFFSET( POWER_OPT, OFFSET( OPTIMIZATION, 0, 3), 2)) * $U$1 ) -> 0 | AE29: 0 | AF29: 0
J30: 0.125 | K30: 8 | L30: 0 | M30: 0 | O30: 0 | P30: 0 | Q30: 5.309573445 | U30: 0.0008136315897 | W30: =(VCCINT/1000)*VCCINT*(IF($T30>0,$T30,($L30/2*(($F30*(Data!$N$435)))* OFFSET(POWER_OPT,OFFSET(OPTIMIZATION,0,3),2))*$U$1)) -> 0 | X30: =(VCCINT/1000)*VCCINT*(IF($T30>0,$T30,($L30/2*($G30*(Data!$P$435))))* OFFSET(POWER_OPT,OFFSET(OPTIMIZATION,0,3),2))*$U$1 -> 0 | Y30: =(VCCINT/1000)*VCCINT*(IF($T30>0,$T30,($L30/2*($H30*(Data!$Q$435))))* OFFSET(POWER_OPT,OFFSET(OPTIMIZATION,0,3),2))*$U$1 -> 0 | Z30: =( VCCINT / 1000 ) * VCCINT * ( IF( $T30 > 0, $T30, ( $L30 / 2 * ( ( $I30 * ( Data!$O$435 ) ) ) ) *OFFSET( POWER_OPT, OFFSET( OPTIMIZATION, 0, 3), 2)) * $U$1 ) -> 0 | AA30: =(VCCINT/1000)*VCCINT*(IF($T30 > 0, $T30,($L30/2*(($F30)*(Q30*Data!$N$436+Data!$N$437))))* OFFSET(POWER_OPT,OFFSET(OPTIMIZATION,0,3),2))*$U$1 -> 0 | AB30: =(VCCINT/1000)*VCCINT*(IF($T30 > 0, $T30,($L30/2*($G30*(Q30*Data!$P$436+Data!$P$437))))* OFFSET(POWER_OPT,OFFSET(OPTIMIZATION,0,3),2))*$U$1 -> 0 | AC30: =(VCCINT/1000)*VCCINT*(IF($T30 > 0, $T30,($L30/2*($H30*(Q30*Data!$Q$436+Data!$Q$437))))* OFFSET(POWER_OPT,OFFSET(OPTIMIZATION,0,3),2))*$U$1 -> 0 | AD30: =( VCCINT / 1000 ) * VCCINT * ( IF( $T30 > 0, $T30, ( $L30 / 2 * ( ( $I30 ) * (Q30*Data!$O$436+Data!$O$437) ) ) * OFFSET( POWER_OPT, OFFSET( OPTIMIZATION, 0, 3), 2)) * $U$1 ) -> 0 | AE30: 0 | AF30: 0
J31: 0.125 | K31: 8 | L31: 0 | M31: 0 | O31: 0 | P31: 0 | Q31: 5.309573445 | U31: 0.0008136315897 | W31: =(VCCINT/1000)*VCCINT*(IF($T31>0,$T31,($L31/2*(($F31*(Data!$N$435)))* OFFSET(POWER_OPT,OFFSET(OPTIMIZATION,0,3),2))*$U$1)) -> 0 | X31: =(VCCINT/1000)*VCCINT*(IF($T31>0,$T31,($L31/2*($G31*(Data!$P$435))))* OFFSET(POWER_OPT,OFFSET(OPTIMIZATION,0,3),2))*$U$1 -> 0 | Y31: =(VCCINT/1000)*VCCINT*(IF($T31>0,$T31,($L31/2*($H31*(Data!$Q$435))))* OFFSET(POWER_OPT,OFFSET(OPTIMIZATION,0,3),2))*$U$1 -> 0 | Z31: =( VCCINT / 1000 ) * VCCINT * ( IF( $T31 > 0, $T31, ( $L31 / 2 * ( ( $I31 * ( Data!$O$435 ) ) ) ) *OFFSET( POWER_OPT, OFFSET( OPTIMIZATION, 0, 3), 2)) * $U$1 ) -> 0 | AA31: =(VCCINT/1000)*VCCINT*(IF($T31 > 0, $T31,($L31/2*(($F31)*(Q31*Data!$N$436+Data!$N$437))))* OFFSET(POWER_OPT,OFFSET(OPTIMIZATION,0,3),2))*$U$1 -> 0 | AB31: =(VCCINT/1000)*VCCINT*(IF($T31 > 0, $T31,($L31/2*($G31*(Q31*Data!$P$436+Data!$P$437))))* OFFSET(POWER_OPT,OFFSET(OPTIMIZATION,0,3),2))*$U$1 -> 0 | AC31: =(VCCINT/1000)*VCCINT*(IF($T31 > 0, $T31,($L31/2*($H31*(Q31*Data!$Q$436+Data!$Q$437))))* OFFSET(POWER_OPT,OFFSET(OPTIMIZATION,0,3),2))*$U$1 -> 0 | AD31: =( VCCINT / 1000 ) * VCCINT * ( IF( $T31 > 0, $T31, ( $L31 / 2 * ( ( $I31 ) * (Q31*Data!$O$436+Data!$O$437) ) ) * OFFSET( POWER_OPT, OFFSET( OPTIMIZATION, 0, 3), 2)) * $U$1 ) -> 0 | AE31: 0 | AF31: 0
J32: 0.125 | K32: 8 | L32: 0 | M32: 0 | O32: 0 | P32: 0 | Q32: 5.309573445 | U32: 0.0008136315897 | W32: =(VCCINT/1000)*VCCINT*(IF($T32>0,$T32,($L32/2*(($F32*(Data!$N$435)))* OFFSET(POWER_OPT,OFFSET(OPTIMIZATION,0,3),2))*$U$1)) -> 0 | X32: =(VCCINT/1000)*VCCINT*(IF($T32>0,$T32,($L32/2*($G32*(Data!$P$435))))* OFFSET(POWER_OPT,OFFSET(OPTIMIZATION,0,3),2))*$U$1 -> 0 | Y32: =(VCCINT/1000)*VCCINT*(IF($T32>0,$T32,($L32/2*($H32*(Data!$Q$435))))* OFFSET(POWER_OPT,OFFSET(OPTIMIZATION,0,3),2))*$U$1 -> 0 | Z32: =( VCCINT / 1000 ) * VCCINT * ( IF( $T32 > 0, $T32, ( $L32 / 2 * ( ( $I32 * ( Data!$O$435 ) ) ) ) *OFFSET( POWER_OPT, OFFSET( OPTIMIZATION, 0, 3), 2)) * $U$1 ) -> 0 | AA32: =(VCCINT/1000)*VCCINT*(IF($T32 > 0, $T32,($L32/2*(($F32)*(Q32*Data!$N$436+Data!$N$437))))* OFFSET(POWER_OPT,OFFSET(OPTIMIZATION,0,3),2))*$U$1 -> 0 | AB32: =(VCCINT/1000)*VCCINT*(IF($T32 > 0, $T32,($L32/2*($G32*(Q32*Data!$P$436+Data!$P$437))))* OFFSET(POWER_OPT,OFFSET(OPTIMIZATION,0,3),2))*$U$1 -> 0 | AC32: =(VCCINT/1000)*VCCINT*(IF($T32 > 0, $T32,($L32/2*($H32*(Q32*Data!$Q$436+Data!$Q$437))))* OFFSET(POWER_OPT,OFFSET(OPTIMIZATION,0,3),2))*$U$1 -> 0 | AD32: =( VCCINT / 1000 ) * VCCINT * ( IF( $T32 > 0, $T32, ( $L32 / 2 * ( ( $I32 ) * (Q32*Data!$O$436+Data!$O$437) ) ) * OFFSET( POWER_OPT, OFFSET( OPTIMIZATION, 0, 3), 2)) * $U$1 ) -> 0 | AE32: 0 | AF32: 0
J33: 0.125 | K33: 8 | L33: 0 | M33: 0 | O33: 0 | P33: 0 | Q33: 5.309573445 | U33: 0.0008136315897 | W33: =(VCCINT/1000)*VCCINT*(IF($T33>0,$T33,($L33/2*(($F33*(Data!$N$435)))* OFFSET(POWER_OPT,OFFSET(OPTIMIZATION,0,3),2))*$U$1)) -> 0 | X33: =(VCCINT/1000)*VCCINT*(IF($T33>0,$T33,($L33/2*($G33*(Data!$P$435))))* OFFSET(POWER_OPT,OFFSET(OPTIMIZATION,0,3),2))*$U$1 -> 0 | Y33: =(VCCINT/1000)*VCCINT*(IF($T33>0,$T33,($L33/2*($H33*(Data!$Q$435))))* OFFSET(POWER_OPT,OFFSET(OPTIMIZATION,0,3),2))*$U$1 -> 0 | Z33: =( VCCINT / 1000 ) * VCCINT * ( IF( $T33 > 0, $T33, ( $L33 / 2 * ( ( $I33 * ( Data!$O$435 ) ) ) ) *OFFSET( POWER_OPT, OFFSET( OPTIMIZATION, 0, 3), 2)) * $U$1 ) -> 0 | AA33: =(VCCINT/1000)*VCCINT*(IF($T33 > 0, $T33,($L33/2*(($F33)*(Q33*Data!$N$436+Data!$N$437))))* OFFSET(POWER_OPT,OFFSET(OPTIMIZATION,0,3),2))*$U$1 -> 0 | AB33: =(VCCINT/1000)*VCCINT*(IF($T33 > 0, $T33,($L33/2*($G33*(Q33*Data!$P$436+Data!$P$437))))* OFFSET(POWER_OPT,OFFSET(OPTIMIZATION,0,3),2))*$U$1 -> 0 | AC33: =(VCCINT/1000)*VCCINT*(IF($T33 > 0, $T33,($L33/2*($H33*(Q33*Data!$Q$436+Data!$Q$437))))* OFFSET(POWER_OPT,OFFSET(OPTIMIZATION,0,3),2))*$U$1 -> 0 | AD33: =( VCCINT / 1000 ) * VCCINT * ( IF( $T33 > 0, $T33, ( $L33 / 2 * ( ( $I33 ) * (Q33*Data!$O$436+Data!$O$437) ) ) * OFFSET( POWER_OPT, OFFSET( OPTIMIZATION, 0, 3), 2)) * $U$1 ) -> 0 | AE33: 0 | AF33: 0
J34: 0.125 | K34: 8 | L34: 0 | M34: 0 | O34: 0 | P34: 0 | Q34: 5.309573445 | U34: 0.0008136315897 | W34: =(VCCINT/1000)*VCCINT*(IF($T34>0,$T34,($L34/2*(($F34*(Data!$N$435)))* OFFSET(POWER_OPT,OFFSET(OPTIMIZATION,0,3),2))*$U$1)) -> 0 | X34: =(VCCINT/1000)*VCCINT*(IF($T34>0,$T34,($L34/2*($G34*(Data!$P$435))))* OFFSET(POWER_OPT,OFFSET(OPTIMIZATION,0,3),2))*$U$1 -> 0 | Y34: =(VCCINT/1000)*VCCINT*(IF($T34>0,$T34,($L34/2*($H34*(Data!$Q$435))))* OFFSET(POWER_OPT,OFFSET(OPTIMIZATION,0,3),2))*$U$1 -> 0 | Z34: =( VCCINT / 1000 ) * VCCINT * ( IF( $T34 > 0, $T34, ( $L34 / 2 * ( ( $I34 * ( Data!$O$435 ) ) ) ) *OFFSET( POWER_OPT, OFFSET( OPTIMIZATION, 0, 3), 2)) * $U$1 ) -> 0 | AA34: =(VCCINT/1000)*VCCINT*(IF($T34 > 0, $T34,($L34/2*(($F34)*(Q34*Data!$N$436+Data!$N$437))))* OFFSET(POWER_OPT,OFFSET(OPTIMIZATION,0,3),2))*$U$1 -> 0 | AB34: =(VCCINT/1000)*VCCINT*(IF($T34 > 0, $T34,($L34/2*($G34*(Q34*Data!$P$436+Data!$P$437))))* OFFSET(POWER_OPT,OFFSET(OPTIMIZATION,0,3),2))*$U$1 -> 0 | AC34: =(VCCINT/1000)*VCCINT*(IF($T34 > 0, $T34,($L34/2*($H34*(Q34*Data!$Q$436+Data!$Q$437))))* OFFSET(POWER_OPT,OFFSET(OPTIMIZATION,0,3),2))*$U$1 -> 0 | AD34: =( VCCINT / 1000 ) * VCCINT * ( IF( $T34 > 0, $T34, ( $L34 / 2 * ( ( $I34 ) * (Q34*Data!$O$436+Data!$O$437) ) ) * OFFSET( POWER_OPT, OFFSET( OPTIMIZATION, 0, 3), 2)) * $U$1 ) -> 0 | AE34: 0 | AF34: 0
J35: 0.125 | K35: 8 | L35: 0 | M35: 0 | O35: 0 | P35: 0 | Q35: 5.309573445 | U35: 0.0008136315897 | W35: =(VCCINT/1000)*VCCINT*(IF($T35>0,$T35,($L35/2*(($F35*(Data!$N$435)))* OFFSET(POWER_OPT,OFFSET(OPTIMIZATION,0,3),2))*$U$1)) -> 0 | X35: =(VCCINT/1000)*VCCINT*(IF($T35>0,$T35,($L35/2*($G35*(Data!$P$435))))* OFFSET(POWER_OPT,OFFSET(OPTIMIZATION,0,3),2))*$U$1 -> 0 | Y35: =(VCCINT/1000)*VCCINT*(IF($T35>0,$T35,($L35/2*($H35*(Data!$Q$435))))* OFFSET(POWER_OPT,OFFSET(OPTIMIZATION,0,3),2))*$U$1 -> 0 | Z35: =( VCCINT / 1000 ) * VCCINT * ( IF( $T35 > 0, $T35, ( $L35 / 2 * ( ( $I35 * ( Data!$O$435 ) ) ) ) *OFFSET( POWER_OPT, OFFSET( OPTIMIZATION, 0, 3), 2)) * $U$1 ) -> 0 | AA35: =(VCCINT/1000)*VCCINT*(IF($T35 > 0, $T35,($L35/2*(($F35)*(Q35*Data!$N$436+Data!$N$437))))* OFFSET(POWER_OPT,OFFSET(OPTIMIZATION,0,3),2))*$U$1 -> 0 | AB35: =(VCCINT/1000)*VCCINT*(IF($T35 > 0, $T35,($L35/2*($G35*(Q35*Data!$P$436+Data!$P$437))))* OFFSET(POWER_OPT,OFFSET(OPTIMIZATION,0,3),2))*$U$1 -> 0 | AC35: =(VCCINT/1000)*VCCINT*(IF($T35 > 0, $T35,($L35/2*($H35*(Q35*Data!$Q$436+Data!$Q$437))))* OFFSET(POWER_OPT,OFFSET(OPTIMIZATION,0,3),2))*$U$1 -> 0 | AD35: =( VCCINT / 1000 ) * VCCINT * ( IF( $T35 > 0, $T35, ( $L35 / 2 * ( ( $I35 ) * (Q35*Data!$O$436+Data!$O$437) ) ) * OFFSET( POWER_OPT, OFFSET( OPTIMIZATION, 0, 3), 2)) * $U$1 ) -> 0 | AE35: 0 | AF35: 0
J36: 0.125 | K36: 8 | L36: 0 | M36: 0 | O36: 0 | P36: 0 | Q36: 5.309573445 | U36: 0.0008136315897 | W36: =(VCCINT/1000)*VCCINT*(IF($T36>0,$T36,($L36/2*(($F36*(Data!$N$435)))* OFFSET(POWER_OPT,OFFSET(OPTIMIZATION,0,3),2))*$U$1)) -> 0 | X36: =(VCCINT/1000)*VCCINT*(IF($T36>0,$T36,($L36/2*($G36*(Data!$P$435))))* OFFSET(POWER_OPT,OFFSET(OPTIMIZATION,0,3),2))*$U$1 -> 0 | Y36: =(VCCINT/1000)*VCCINT*(IF($T36>0,$T36,($L36/2*($H36*(Data!$Q$435))))* OFFSET(POWER_OPT,OFFSET(OPTIMIZATION,0,3),2))*$U$1 -> 0 | Z36: =( VCCINT / 1000 ) * VCCINT * ( IF( $T36 > 0, $T36, ( $L36 / 2 * ( ( $I36 * ( Data!$O$435 ) ) ) ) *OFFSET( POWER_OPT, OFFSET( OPTIMIZATION, 0, 3), 2)) * $U$1 ) -> 0 | AA36: =(VCCINT/1000)*VCCINT*(IF($T36 > 0, $T36,($L36/2*(($F36)*(Q36*Data!$N$436+Data!$N$437))))* OFFSET(POWER_OPT,OFFSET(OPTIMIZATION,0,3),2))*$U$1 -> 0 | AB36: =(VCCINT/1000)*VCCINT*(IF($T36 > 0, $T36,($L36/2*($G36*(Q36*Data!$P$436+Data!$P$437))))* OFFSET(POWER_OPT,OFFSET(OPTIMIZATION,0,3),2))*$U$1 -> 0 | AC36: =(VCCINT/1000)*VCCINT*(IF($T36 > 0, $T36,($L36/2*($H36*(Q36*Data!$Q$436+Data!$Q$437))))* OFFSET(POWER_OPT,OFFSET(OPTIMIZATION,0,3),2))*$U$1 -> 0 | AD36: =( VCCINT / 1000 ) * VCCINT * ( IF( $T36 > 0, $T36, ( $L36 / 2 * ( ( $I36 ) * (Q36*Data!$O$436+Data!$O$437) ) ) * OFFSET( POWER_OPT, OFFSET( OPTIMIZATION, 0, 3), 2)) * $U$1 ) -> 0 | AE36: 0 | AF36: 0
J37: 0.125 | K37: 8 | L37: 0 | M37: 0 | O37: 0 | P37: 0 | Q37: 5.309573445 | U37: 0.0008136315897 | W37: =(VCCINT/1000)*VCCINT*(IF($T37>0,$T37,($L37/2*(($F37*(Data!$N$435)))* OFFSET(POWER_OPT,OFFSET(OPTIMIZATION,0,3),2))*$U$1)) -> 0 | X37: =(VCCINT/1000)*VCCINT*(IF($T37>0,$T37,($L37/2*($G37*(Data!$P$435))))* OFFSET(POWER_OPT,OFFSET(OPTIMIZATION,0,3),2))*$U$1 -> 0 | Y37: =(VCCINT/1000)*VCCINT*(IF($T37>0,$T37,($L37/2*($H37*(Data!$Q$435))))* OFFSET(POWER_OPT,OFFSET(OPTIMIZATION,0,3),2))*$U$1 -> 0 | Z37: =( VCCINT / 1000 ) * VCCINT * ( IF( $T37 > 0, $T37, ( $L37 / 2 * ( ( $I37 * ( Data!$O$435 ) ) ) ) *OFFSET( POWER_OPT, OFFSET( OPTIMIZATION, 0, 3), 2)) * $U$1 ) -> 0 | AA37: =(VCCINT/1000)*VCCINT*(IF($T37 > 0, $T37,($L37/2*(($F37)*(Q37*Data!$N$436+Data!$N$437))))* OFFSET(POWER_OPT,OFFSET(OPTIMIZATION,0,3),2))*$U$1 -> 0 | AB37: =(VCCINT/1000)*VCCINT*(IF($T37 > 0, $T37,($L37/2*($G37*(Q37*Data!$P$436+Data!$P$437))))* OFFSET(POWER_OPT,OFFSET(OPTIMIZATION,0,3),2))*$U$1 -> 0 | AC37: =(VCCINT/1000)*VCCINT*(IF($T37 > 0, $T37,($L37/2*($H37*(Q37*Data!$Q$436+Data!$Q$437))))* OFFSET(POWER_OPT,OFFSET(OPTIMIZATION,0,3),2))*$U$1 -> 0 | AD37: =( VCCINT / 1000 ) * VCCINT * ( IF( $T37 > 0, $T37, ( $L37 / 2 * ( ( $I37 ) * (Q37*Data!$O$436+Data!$O$437) ) ) * OFFSET( POWER_OPT, OFFSET( OPTIMIZATION, 0, 3), 2)) * $U$1 ) -> 0 | AE37: 0 | AF37: 0
J38: 0.125 | K38: 8 | L38: 0 | M38: 0 | O38: 0 | P38: 0 | Q38: 5.309573445 | U38: 0.0008136315897 | W38: =(VCCINT/1000)*VCCINT*(IF($T38>0,$T38,($L38/2*(($F38*(Data!$N$435)))* OFFSET(POWER_OPT,OFFSET(OPTIMIZATION,0,3),2))*$U$1)) -> 0 | X38: =(VCCINT/1000)*VCCINT*(IF($T38>0,$T38,($L38/2*($G38*(Data!$P$435))))* OFFSET(POWER_OPT,OFFSET(OPTIMIZATION,0,3),2))*$U$1 -> 0 | Y38: =(VCCINT/1000)*VCCINT*(IF($T38>0,$T38,($L38/2*($H38*(Data!$Q$435))))* OFFSET(POWER_OPT,OFFSET(OPTIMIZATION,0,3),2))*$U$1 -> 0 | Z38: =( VCCINT / 1000 ) * VCCINT * ( IF( $T38 > 0, $T38, ( $L38 / 2 * ( ( $I38 * ( Data!$O$435 ) ) ) ) *OFFSET( POWER_OPT, OFFSET( OPTIMIZATION, 0, 3), 2)) * $U$1 ) -> 0 | AA38: =(VCCINT/1000)*VCCINT*(IF($T38 > 0, $T38,($L38/2*(($F38)*(Q38*Data!$N$436+Data!$N$437))))* OFFSET(POWER_OPT,OFFSET(OPTIMIZATION,0,3),2))*$U$1 -> 0 | AB38: =(VCCINT/1000)*VCCINT*(IF($T38 > 0, $T38,($L38/2*($G38*(Q38*Data!$P$436+Data!$P$437))))* OFFSET(POWER_OPT,OFFSET(OPTIMIZATION,0,3),2))*$U$1 -> 0 | AC38: =(VCCINT/1000)*VCCINT*(IF($T38 > 0, $T38,($L38/2*($H38*(Q38*Data!$Q$436+Data!$Q$437))))* OFFSET(POWER_OPT,OFFSET(OPTIMIZATION,0,3),2))*$U$1 -> 0 | AD38: =( VCCINT / 1000 ) * VCCINT * ( IF( $T38 > 0, $T38, ( $L38 / 2 * ( ( $I38 ) * (Q38*Data!$O$436+Data!$O$437) ) ) * OFFSET( POWER_OPT, OFFSET( OPTIMIZATION, 0, 3), 2)) * $U$1 ) -> 0 | AE38: 0 | AF38: 0
J39: 0.125 | K39: 8 | L39: 0 | M39: 0 | O39: 0 | P39: 0 | Q39: 5.309573445 | U39: 0.0008136315897 | W39: =(VCCINT/1000)*VCCINT*(IF($T39>0,$T39,($L39/2*(($F39*(Data!$N$435)))* OFFSET(POWER_OPT,OFFSET(OPTIMIZATION,0,3),2))*$U$1)) -> 0 | X39: =(VCCINT/1000)*VCCINT*(IF($T39>0,$T39,($L39/2*($G39*(Data!$P$435))))* OFFSET(POWER_OPT,OFFSET(OPTIMIZATION,0,3),2))*$U$1 -> 0 | Y39: =(VCCINT/1000)*VCCINT*(IF($T39>0,$T39,($L39/2*($H39*(Data!$Q$435))))* OFFSET(POWER_OPT,OFFSET(OPTIMIZATION,0,3),2))*$U$1 -> 0 | Z39: =( VCCINT / 1000 ) * VCCINT * ( IF( $T39 > 0, $T39, ( $L39 / 2 * ( ( $I39 * ( Data!$O$435 ) ) ) ) *OFFSET( POWER_OPT, OFFSET( OPTIMIZATION, 0, 3), 2)) * $U$1 ) -> 0 | AA39: =(VCCINT/1000)*VCCINT*(IF($T39 > 0, $T39,($L39/2*(($F39)*(Q39*Data!$N$436+Data!$N$437))))* OFFSET(POWER_OPT,OFFSET(OPTIMIZATION,0,3),2))*$U$1 -> 0 | AB39: =(VCCINT/1000)*VCCINT*(IF($T39 > 0, $T39,($L39/2*($G39*(Q39*Data!$P$436+Data!$P$437))))* OFFSET(POWER_OPT,OFFSET(OPTIMIZATION,0,3),2))*$U$1 -> 0 | AC39: =(VCCINT/1000)*VCCINT*(IF($T39 > 0, $T39,($L39/2*($H39*(Q39*Data!$Q$436+Data!$Q$437))))* OFFSET(POWER_OPT,OFFSET(OPTIMIZATION,0,3),2))*$U$1 -> 0 | AD39: =( VCCINT / 1000 ) * VCCINT * ( IF( $T39 > 0, $T39, ( $L39 / 2 * ( ( $I39 ) * (Q39*Data!$O$436+Data!$O$437) ) ) * OFFSET( POWER_OPT, OFFSET( OPTIMIZATION, 0, 3), 2)) * $U$1 ) -> 0 | AE39: 0 | AF39: 0
J40: 0.125 | K40: 8 | L40: 0 | M40: 0 | O40: 0 | P40: 0 | Q40: 5.309573445 | U40: 0.0008136315897 | W40: =(VCCINT/1000)*VCCINT*(IF($T40>0,$T40,($L40/2*(($F40*(Data!$N$435)))* OFFSET(POWER_OPT,OFFSET(OPTIMIZATION,0,3),2))*$U$1)) -> 0 | X40: =(VCCINT/1000)*VCCINT*(IF($T40>0,$T40,($L40/2*($G40*(Data!$P$435))))* OFFSET(POWER_OPT,OFFSET(OPTIMIZATION,0,3),2))*$U$1 -> 0 | Y40: =(VCCINT/1000)*VCCINT*(IF($T40>0,$T40,($L40/2*($H40*(Data!$Q$435))))* OFFSET(POWER_OPT,OFFSET(OPTIMIZATION,0,3),2))*$U$1 -> 0 | Z40: =( VCCINT / 1000 ) * VCCINT * ( IF( $T40 > 0, $T40, ( $L40 / 2 * ( ( $I40 * ( Data!$O$435 ) ) ) ) *OFFSET( POWER_OPT, OFFSET( OPTIMIZATION, 0, 3), 2)) * $U$1 ) -> 0 | AA40: =(VCCINT/1000)*VCCINT*(IF($T40 > 0, $T40,($L40/2*(($F40)*(Q40*Data!$N$436+Data!$N$437))))* OFFSET(POWER_OPT,OFFSET(OPTIMIZATION,0,3),2))*$U$1 -> 0 | AB40: =(VCCINT/1000)*VCCINT*(IF($T40 > 0, $T40,($L40/2*($G40*(Q40*Data!$P$436+Data!$P$437))))* OFFSET(POWER_OPT,OFFSET(OPTIMIZATION,0,3),2))*$U$1 -> 0 | AC40: =(VCCINT/1000)*VCCINT*(IF($T40 > 0, $T40,($L40/2*($H40*(Q40*Data!$Q$436+Data!$Q$437))))* OFFSET(POWER_OPT,OFFSET(OPTIMIZATION,0,3),2))*$U$1 -> 0 | AD40: =( VCCINT / 1000 ) * VCCINT * ( IF( $T40 > 0, $T40, ( $L40 / 2 * ( ( $I40 ) * (Q40*Data!$O$436+Data!$O$437) ) ) * OFFSET( POWER_OPT, OFFSET( OPTIMIZATION, 0, 3), 2)) * $U$1 ) -> 0 | AE40: 0 | AF40: 0
J41: 0.125 | K41: 8 | L41: 0 | M41: 0 | O41: 0 | P41: 0 | Q41: 5.309573445 | U41: 0.0008136315897 | W41: =(VCCINT/1000)*VCCINT*(IF($T41>0,$T41,($L41/2*(($F41*(Data!$N$435)))* OFFSET(POWER_OPT,OFFSET(OPTIMIZATION,0,3),2))*$U$1)) -> 0 | X41: =(VCCINT/1000)*VCCINT*(IF($T41>0,$T41,($L41/2*($G41*(Data!$P$435))))* OFFSET(POWER_OPT,OFFSET(OPTIMIZATION,0,3),2))*$U$1 -> 0 | Y41: =(VCCINT/1000)*VCCINT*(IF($T41>0,$T41,($L41/2*($H41*(Data!$Q$435))))* OFFSET(POWER_OPT,OFFSET(OPTIMIZATION,0,3),2))*$U$1 -> 0 | Z41: =( VCCINT / 1000 ) * VCCINT * ( IF( $T41 > 0, $T41, ( $L41 / 2 * ( ( $I41 * ( Data!$O$435 ) ) ) ) *OFFSET( POWER_OPT, OFFSET( OPTIMIZATION, 0, 3), 2)) * $U$1 ) -> 0 | AA41: =(VCCINT/1000)*VCCINT*(IF($T41 > 0, $T41,($L41/2*(($F41)*(Q41*Data!$N$436+Data!$N$437))))* OFFSET(POWER_OPT,OFFSET(OPTIMIZATION,0,3),2))*$U$1 -> 0 | AB41: =(VCCINT/1000)*VCCINT*(IF($T41 > 0, $T41,($L41/2*($G41*(Q41*Data!$P$436+Data!$P$437))))* OFFSET(POWER_OPT,OFFSET(OPTIMIZATION,0,3),2))*$U$1 -> 0 | AC41: =(VCCINT/1000)*VCCINT*(IF($T41 > 0, $T41,($L41/2*($H41*(Q41*Data!$Q$436+Data!$Q$437))))* OFFSET(POWER_OPT,OFFSET(OPTIMIZATION,0,3),2))*$U$1 -> 0 | AD41: =( VCCINT / 1000 ) * VCCINT * ( IF( $T41 > 0, $T41, ( $L41 / 2 * ( ( $I41 ) * (Q41*Data!$O$436+Data!$O$437) ) ) * OFFSET( POWER_OPT, OFFSET( OPTIMIZATION, 0, 3), 2)) * $U$1 ) -> 0 | AE41: 0 | AF41: 0
J42: 0.125 | K42: 8 | L42: 0 | M42: 0 | O42: 0 | P42: 0 | Q42: 5.309573445 | U42: 0.0008136315897 | W42: =(VCCINT/1000)*VCCINT*(IF($T42>0,$T42,($L42/2*(($F42*(Data!$N$435)))* OFFSET(POWER_OPT,OFFSET(OPTIMIZATION,0,3),2))*$U$1)) -> 0 | X42: =(VCCINT/1000)*VCCINT*(IF($T42>0,$T42,($L42/2*($G42*(Data!$P$435))))* OFFSET(POWER_OPT,OFFSET(OPTIMIZATION,0,3),2))*$U$1 -> 0 | Y42: =(VCCINT/1000)*VCCINT*(IF($T42>0,$T42,($L42/2*($H42*(Data!$Q$435))))* OFFSET(POWER_OPT,OFFSET(OPTIMIZATION,0,3),2))*$U$1 -> 0 | Z42: =( VCCINT / 1000 ) * VCCINT * ( IF( $T42 > 0, $T42, ( $L42 / 2 * ( ( $I42 * ( Data!$O$435 ) ) ) ) *OFFSET( POWER_OPT, OFFSET( OPTIMIZATION, 0, 3), 2)) * $U$1 ) -> 0 | AA42: =(VCCINT/1000)*VCCINT*(IF($T42 > 0, $T42,($L42/2*(($F42)*(Q42*Data!$N$436+Data!$N$437))))* OFFSET(POWER_OPT,OFFSET(OPTIMIZATION,0,3),2))*$U$1 -> 0 | AB42: =(VCCINT/1000)*VCCINT*(IF($T42 > 0, $T42,($L42/2*($G42*(Q42*Data!$P$436+Data!$P$437))))* OFFSET(POWER_OPT,OFFSET(OPTIMIZATION,0,3),2))*$U$1 -> 0 | AC42: =(VCCINT/1000)*VCCINT*(IF($T42 > 0, $T42,($L42/2*($H42*(Q42*Data!$Q$436+Data!$Q$437))))* OFFSET(POWER_OPT,OFFSET(OPTIMIZATION,0,3),2))*$U$1 -> 0 | AD42: =( VCCINT / 1000 ) * VCCINT * ( IF( $T42 > 0, $T42, ( $L42 / 2 * ( ( $I42 ) * (Q42*Data!$O$436+Data!$O$437) ) ) * OFFSET( POWER_OPT, OFFSET( OPTIMIZATION, 0, 3), 2)) * $U$1 ) -> 0 | AE42: 0 | AF42: 0
J43: 0.125 | K43: 8 | L43: 0 | M43: 0 | O43: 0 | P43: 0 | Q43: 5.309573445 | U43: 0.0008136315897 | W43: =(VCCINT/1000)*VCCINT*(IF($T43>0,$T43,($L43/2*(($F43*(Data!$N$435)))* OFFSET(POWER_OPT,OFFSET(OPTIMIZATION,0,3),2))*$U$1)) -> 0 | X43: =(VCCINT/1000)*VCCINT*(IF($T43>0,$T43,($L43/2*($G43*(Data!$P$435))))* OFFSET(POWER_OPT,OFFSET(OPTIMIZATION,0,3),2))*$U$1 -> 0 | Y43: =(VCCINT/1000)*VCCINT*(IF($T43>0,$T43,($L43/2*($H43*(Data!$Q$435))))* OFFSET(POWER_OPT,OFFSET(OPTIMIZATION,0,3),2))*$U$1 -> 0 | Z43: =( VCCINT / 1000 ) * VCCINT * ( IF( $T43 > 0, $T43, ( $L43 / 2 * ( ( $I43 * ( Data!$O$435 ) ) ) ) *OFFSET( POWER_OPT, OFFSET( OPTIMIZATION, 0, 3), 2)) * $U$1 ) -> 0 | AA43: =(VCCINT/1000)*VCCINT*(IF($T43 > 0, $T43,($L43/2*(($F43)*(Q43*Data!$N$436+Data!$N$437))))* OFFSET(POWER_OPT,OFFSET(OPTIMIZATION,0,3),2))*$U$1 -> 0 | AB43: =(VCCINT/1000)*VCCINT*(IF($T43 > 0, $T43,($L43/2*($G43*(Q43*Data!$P$436+Data!$P$437))))* OFFSET(POWER_OPT,OFFSET(OPTIMIZATION,0,3),2))*$U$1 -> 0 | AC43: =(VCCINT/1000)*VCCINT*(IF($T43 > 0, $T43,($L43/2*($H43*(Q43*Data!$Q$436+Data!$Q$437))))* OFFSET(POWER_OPT,OFFSET(OPTIMIZATION,0,3),2))*$U$1 -> 0 | AD43: =( VCCINT / 1000 ) * VCCINT * ( IF( $T43 > 0, $T43, ( $L43 / 2 * ( ( $I43 ) * (Q43*Data!$O$436+Data!$O$437) ) ) * OFFSET( POWER_OPT, OFFSET( OPTIMIZATION, 0, 3), 2)) * $U$1 ) -> 0 | AE43: 0 | AF43: 0
J44: 0.125 | K44: 8 | L44: 0 | M44: 0 | O44: 0 | P44: 0 | Q44: 5.309573445 | U44: 0.0008136315897 | W44: =(VCCINT/1000)*VCCINT*(IF($T44>0,$T44,($L44/2*(($F44*(Data!$N$435)))* OFFSET(POWER_OPT,OFFSET(OPTIMIZATION,0,3),2))*$U$1)) -> 0 | X44: =(VCCINT/1000)*VCCINT*(IF($T44>0,$T44,($L44/2*($G44*(Data!$P$435))))* OFFSET(POWER_OPT,OFFSET(OPTIMIZATION,0,3),2))*$U$1 -> 0 | Y44: =(VCCINT/1000)*VCCINT*(IF($T44>0,$T44,($L44/2*($H44*(Data!$Q$435))))* OFFSET(POWER_OPT,OFFSET(OPTIMIZATION,0,3),2))*$U$1 -> 0 | Z44: =( VCCINT / 1000 ) * VCCINT * ( IF( $T44 > 0, $T44, ( $L44 / 2 * ( ( $I44 * ( Data!$O$435 ) ) ) ) *OFFSET( POWER_OPT, OFFSET( OPTIMIZATION, 0, 3), 2)) * $U$1 ) -> 0 | AA44: =(VCCINT/1000)*VCCINT*(IF($T44 > 0, $T44,($L44/2*(($F44)*(Q44*Data!$N$436+Data!$N$437))))* OFFSET(POWER_OPT,OFFSET(OPTIMIZATION,0,3),2))*$U$1 -> 0 | AB44: =(VCCINT/1000)*VCCINT*(IF($T44 > 0, $T44,($L44/2*($G44*(Q44*Data!$P$436+Data!$P$437))))* OFFSET(POWER_OPT,OFFSET(OPTIMIZATION,0,3),2))*$U$1 -> 0 | AC44: =(VCCINT/1000)*VCCINT*(IF($T44 > 0, $T44,($L44/2*($H44*(Q44*Data!$Q$436+Data!$Q$437))))* OFFSET(POWER_OPT,OFFSET(OPTIMIZATION,0,3),2))*$U$1 -> 0 | AD44: =( VCCINT / 1000 ) * VCCINT * ( IF( $T44 > 0, $T44, ( $L44 / 2 * ( ( $I44 ) * (Q44*Data!$O$436+Data!$O$437) ) ) * OFFSET( POWER_OPT, OFFSET( OPTIMIZATION, 0, 3), 2)) * $U$1 ) -> 0 | AE44: 0 | AF44: 0
J45: 0.125 | K45: 8 | L45: 0 | M45: 0 | O45: 0 | P45: 0 | Q45: 5.309573445 | U45: 0.0008136315897 | W45: =(VCCINT/1000)*VCCINT*(IF($T45>0,$T45,($L45/2*(($F45*(Data!$N$435)))* OFFSET(POWER_OPT,OFFSET(OPTIMIZATION,0,3),2))*$U$1)) -> 0 | X45: =(VCCINT/1000)*VCCINT*(IF($T45>0,$T45,($L45/2*($G45*(Data!$P$435))))* OFFSET(POWER_OPT,OFFSET(OPTIMIZATION,0,3),2))*$U$1 -> 0 | Y45: =(VCCINT/1000)*VCCINT*(IF($T45>0,$T45,($L45/2*($H45*(Data!$Q$435))))* OFFSET(POWER_OPT,OFFSET(OPTIMIZATION,0,3),2))*$U$1 -> 0 | Z45: =( VCCINT / 1000 ) * VCCINT * ( IF( $T45 > 0, $T45, ( $L45 / 2 * ( ( $I45 * ( Data!$O$435 ) ) ) ) *OFFSET( POWER_OPT, OFFSET( OPTIMIZATION, 0, 3), 2)) * $U$1 ) -> 0 | AA45: =(VCCINT/1000)*VCCINT*(IF($T45 > 0, $T45,($L45/2*(($F45)*(Q45*Data!$N$436+Data!$N$437))))* OFFSET(POWER_OPT,OFFSET(OPTIMIZATION,0,3),2))*$U$1 -> 0 | AB45: =(VCCINT/1000)*VCCINT*(IF($T45 > 0, $T45,($L45/2*($G45*(Q45*Data!$P$436+Data!$P$437))))* OFFSET(POWER_OPT,OFFSET(OPTIMIZATION,0,3),2))*$U$1 -> 0 | AC45: =(VCCINT/1000)*VCCINT*(IF($T45 > 0, $T45,($L45/2*($H45*(Q45*Data!$Q$436+Data!$Q$437))))* OFFSET(POWER_OPT,OFFSET(OPTIMIZATION,0,3),2))*$U$1 -> 0 | AD45: =( VCCINT / 1000 ) * VCCINT * ( IF( $T45 > 0, $T45, ( $L45 / 2 * ( ( $I45 ) * (Q45*Data!$O$436+Data!$O$437) ) ) * OFFSET( POWER_OPT, OFFSET( OPTIMIZATION, 0, 3), 2)) * $U$1 ) -> 0 | AE45: 0 | AF45: 0
J46: 0.125 | K46: 8 | L46: 0 | M46: 0 | O46: 0 | P46: 0 | Q46: 5.309573445 | U46: 0.0008136315897 | W46: =(VCCINT/1000)*VCCINT*(IF($T46>0,$T46,($L46/2*(($F46*(Data!$N$435)))* OFFSET(POWER_OPT,OFFSET(OPTIMIZATION,0,3),2))*$U$1)) -> 0 | X46: =(VCCINT/1000)*VCCINT*(IF($T46>0,$T46,($L46/2*($G46*(Data!$P$435))))* OFFSET(POWER_OPT,OFFSET(OPTIMIZATION,0,3),2))*$U$1 -> 0 | Y46: =(VCCINT/1000)*VCCINT*(IF($T46>0,$T46,($L46/2*($H46*(Data!$Q$435))))* OFFSET(POWER_OPT,OFFSET(OPTIMIZATION,0,3),2))*$U$1 -> 0 | Z46: =( VCCINT / 1000 ) * VCCINT * ( IF( $T46 > 0, $T46, ( $L46 / 2 * ( ( $I46 * ( Data!$O$435 ) ) ) ) *OFFSET( POWER_OPT, OFFSET( OPTIMIZATION, 0, 3), 2)) * $U$1 ) -> 0 | AA46: =(VCCINT/1000)*VCCINT*(IF($T46 > 0, $T46,($L46/2*(($F46)*(Q46*Data!$N$436+Data!$N$437))))* OFFSET(POWER_OPT,OFFSET(OPTIMIZATION,0,3),2))*$U$1 -> 0 | AB46: =(VCCINT/1000)*VCCINT*(IF($T46 > 0, $T46,($L46/2*($G46*(Q46*Data!$P$436+Data!$P$437))))* OFFSET(POWER_OPT,OFFSET(OPTIMIZATION,0,3),2))*$U$1 -> 0 | AC46: =(VCCINT/1000)*VCCINT*(IF($T46 > 0, $T46,($L46/2*($H46*(Q46*Data!$Q$436+Data!$Q$437))))* OFFSET(POWER_OPT,OFFSET(OPTIMIZATION,0,3),2))*$U$1 -> 0 | AD46: =( VCCINT / 1000 ) * VCCINT * ( IF( $T46 > 0, $T46, ( $L46 / 2 * ( ( $I46 ) * (Q46*Data!$O$436+Data!$O$437) ) ) * OFFSET( POWER_OPT, OFFSET( OPTIMIZATION, 0, 3), 2)) * $U$1 ) -> 0 | AE46: 0 | AF46: 0
J47: 0.125 | K47: 8 | L47: 0 | M47: 0 | O47: 0 | P47: 0 | Q47: 5.309573445 | U47: 0.0008136315897 | W47: =(VCCINT/1000)*VCCINT*(IF($T47>0,$T47,($L47/2*(($F47*(Data!$N$435)))* OFFSET(POWER_OPT,OFFSET(OPTIMIZATION,0,3),2))*$U$1)) -> 0 | X47: =(VCCINT/1000)*VCCINT*(IF($T47>0,$T47,($L47/2*($G47*(Data!$P$435))))* OFFSET(POWER_OPT,OFFSET(OPTIMIZATION,0,3),2))*$U$1 -> 0 | Y47: =(VCCINT/1000)*VCCINT*(IF($T47>0,$T47,($L47/2*($H47*(Data!$Q$435))))* OFFSET(POWER_OPT,OFFSET(OPTIMIZATION,0,3),2))*$U$1 -> 0 | Z47: =( VCCINT / 1000 ) * VCCINT * ( IF( $T47 > 0, $T47, ( $L47 / 2 * ( ( $I47 * ( Data!$O$435 ) ) ) ) *OFFSET( POWER_OPT, OFFSET( OPTIMIZATION, 0, 3), 2)) * $U$1 ) -> 0 | AA47: =(VCCINT/1000)*VCCINT*(IF($T47 > 0, $T47,($L47/2*(($F47)*(Q47*Data!$N$436+Data!$N$437))))* OFFSET(POWER_OPT,OFFSET(OPTIMIZATION,0,3),2))*$U$1 -> 0 | AB47: =(VCCINT/1000)*VCCINT*(IF($T47 > 0, $T47,($L47/2*($G47*(Q47*Data!$P$436+Data!$P$437))))* OFFSET(POWER_OPT,OFFSET(OPTIMIZATION,0,3),2))*$U$1 -> 0 | AC47: =(VCCINT/1000)*VCCINT*(IF($T47 > 0, $T47,($L47/2*($H47*(Q47*Data!$Q$436+Data!$Q$437))))* OFFSET(POWER_OPT,OFFSET(OPTIMIZATION,0,3),2))*$U$1 -> 0 | AD47: =( VCCINT / 1000 ) * VCCINT * ( IF( $T47 > 0, $T47, ( $L47 / 2 * ( ( $I47 ) * (Q47*Data!$O$436+Data!$O$437) ) ) * OFFSET( POWER_OPT, OFFSET( OPTIMIZATION, 0, 3), 2)) * $U$1 ) -> 0 | AE47: 0 | AF47: 0
J48: 0.125 | K48: 8 | L48: 0 | M48: 0 | O48: 0 | P48: 0 | Q48: 5.309573445 | U48: 0.0008136315897 | W48: =(VCCINT/1000)*VCCINT*(IF($T48>0,$T48,($L48/2*(($F48*(Data!$N$435)))* OFFSET(POWER_OPT,OFFSET(OPTIMIZATION,0,3),2))*$U$1)) -> 0 | X48: =(VCCINT/1000)*VCCINT*(IF($T48>0,$T48,($L48/2*($G48*(Data!$P$435))))* OFFSET(POWER_OPT,OFFSET(OPTIMIZATION,0,3),2))*$U$1 -> 0 | Y48: =(VCCINT/1000)*VCCINT*(IF($T48>0,$T48,($L48/2*($H48*(Data!$Q$435))))* OFFSET(POWER_OPT,OFFSET(OPTIMIZATION,0,3),2))*$U$1 -> 0 | Z48: =( VCCINT / 1000 ) * VCCINT * ( IF( $T48 > 0, $T48, ( $L48 / 2 * ( ( $I48 * ( Data!$O$435 ) ) ) ) *OFFSET( POWER_OPT, OFFSET( OPTIMIZATION, 0, 3), 2)) * $U$1 ) -> 0 | AA48: =(VCCINT/1000)*VCCINT*(IF($T48 > 0, $T48,($L48/2*(($F48)*(Q48*Data!$N$436+Data!$N$437))))* OFFSET(POWER_OPT,OFFSET(OPTIMIZATION,0,3),2))*$U$1 -> 0 | AB48: =(VCCINT/1000)*VCCINT*(IF($T48 > 0, $T48,($L48/2*($G48*(Q48*Data!$P$436+Data!$P$437))))* OFFSET(POWER_OPT,OFFSET(OPTIMIZATION,0,3),2))*$U$1 -> 0 | AC48: =(VCCINT/1000)*VCCINT*(IF($T48 > 0, $T48,($L48/2*($H48*(Q48*Data!$Q$436+Data!$Q$437))))* OFFSET(POWER_OPT,OFFSET(OPTIMIZATION,0,3),2))*$U$1 -> 0 | AD48: =( VCCINT / 1000 ) * VCCINT * ( IF( $T48 > 0, $T48, ( $L48 / 2 * ( ( $I48 ) * (Q48*Data!$O$436+Data!$O$437) ) ) * OFFSET( POWER_OPT, OFFSET( OPTIMIZATION, 0, 3), 2)) * $U$1 ) -> 0 | AE48: 0 | AF48: 0
J49: 0.125 | K49: 8 | L49: 0 | M49: 0 | O49: 0 | P49: 0 | Q49: 5.309573445 | U49: 0.0008136315897 | W49: =(VCCINT/1000)*VCCINT*(IF($T49>0,$T49,($L49/2*(($F49*(Data!$N$435)))* OFFSET(POWER_OPT,OFFSET(OPTIMIZATION,0,3),2))*$U$1)) -> 0 | X49: =(VCCINT/1000)*VCCINT*(IF($T49>0,$T49,($L49/2*($G49*(Data!$P$435))))* OFFSET(POWER_OPT,OFFSET(OPTIMIZATION,0,3),2))*$U$1 -> 0 | Y49: =(VCCINT/1000)*VCCINT*(IF($T49>0,$T49,($L49/2*($H49*(Data!$Q$435))))* OFFSET(POWER_OPT,OFFSET(OPTIMIZATION,0,3),2))*$U$1 -> 0 | Z49: =( VCCINT / 1000 ) * VCCINT * ( IF( $T49 > 0, $T49, ( $L49 / 2 * ( ( $I49 * ( Data!$O$435 ) ) ) ) *OFFSET( POWER_OPT, OFFSET( OPTIMIZATION, 0, 3), 2)) * $U$1 ) -> 0 | AA49: =(VCCINT/1000)*VCCINT*(IF($T49 > 0, $T49,($L49/2*(($F49)*(Q49*Data!$N$436+Data!$N$437))))* OFFSET(POWER_OPT,OFFSET(OPTIMIZATION,0,3),2))*$U$1 -> 0 | AB49: =(VCCINT/1000)*VCCINT*(IF($T49 > 0, $T49,($L49/2*($G49*(Q49*Data!$P$436+Data!$P$437))))* OFFSET(POWER_OPT,OFFSET(OPTIMIZATION,0,3),2))*$U$1 -> 0 | AC49: =(VCCINT/1000)*VCCINT*(IF($T49 > 0, $T49,($L49/2*($H49*(Q49*Data!$Q$436+Data!$Q$437))))* OFFSET(POWER_OPT,OFFSET(OPTIMIZATION,0,3),2))*$U$1 -> 0 | AD49: =( VCCINT / 1000 ) * VCCINT * ( IF( $T49 > 0, $T49, ( $L49 / 2 * ( ( $I49 ) * (Q49*Data!$O$436+Data!$O$437) ) ) * OFFSET( POWER_OPT, OFFSET( OPTIMIZATION, 0, 3), 2)) * $U$1 ) -> 0 | AE49: 0 | AF49: 0
J50: 0.125 | K50: 8 | L50: 0 | M50: 0 | O50: 0 | P50: 0 | Q50: 5.309573445 | U50: 0.0008136315897 | W50: =(VCCINT/1000)*VCCINT*(IF($T50>0,$T50,($L50/2*(($F50*(Data!$N$435)))* OFFSET(POWER_OPT,OFFSET(OPTIMIZATION,0,3),2))*$U$1)) -> 0 | X50: =(VCCINT/1000)*VCCINT*(IF($T50>0,$T50,($L50/2*($G50*(Data!$P$435))))* OFFSET(POWER_OPT,OFFSET(OPTIMIZATION,0,3),2))*$U$1 -> 0 | Y50: =(VCCINT/1000)*VCCINT*(IF($T50>0,$T50,($L50/2*($H50*(Data!$Q$435))))* OFFSET(POWER_OPT,OFFSET(OPTIMIZATION,0,3),2))*$U$1 -> 0 | Z50: =( VCCINT / 1000 ) * VCCINT * ( IF( $T50 > 0, $T50, ( $L50 / 2 * ( ( $I50 * ( Data!$O$435 ) ) ) ) *OFFSET( POWER_OPT, OFFSET( OPTIMIZATION, 0, 3), 2)) * $U$1 ) -> 0 | AA50: =(VCCINT/1000)*VCCINT*(IF($T50 > 0, $T50,($L50/2*(($F50)*(Q50*Data!$N$436+Data!$N$437))))* OFFSET(POWER_OPT,OFFSET(OPTIMIZATION,0,3),2))*$U$1 -> 0 | AB50: =(VCCINT/1000)*VCCINT*(IF($T50 > 0, $T50,($L50/2*($G50*(Q50*Data!$P$436+Data!$P$437))))* OFFSET(POWER_OPT,OFFSET(OPTIMIZATION,0,3),2))*$U$1 -> 0 | AC50: =(VCCINT/1000)*VCCINT*(IF($T50 > 0, $T50,($L50/2*($H50*(Q50*Data!$Q$436+Data!$Q$437))))* OFFSET(POWER_OPT,OFFSET(OPTIMIZATION,0,3),2))*$U$1 -> 0 | AD50: =( VCCINT / 1000 ) * VCCINT * ( IF( $T50 > 0, $T50, ( $L50 / 2 * ( ( $I50 ) * (Q50*Data!$O$436+Data!$O$437) ) ) * OFFSET( POWER_OPT, OFFSET( OPTIMIZATION, 0, 3), 2)) * $U$1 ) -> 0 | AE50: 0 | AF50: 0
J51: 0.125 | K51: 8 | L51: 0 | M51: 0 | O51: 0 | P51: 0 | Q51: 5.309573445 | U51: 0.0008136315897 | W51: =(VCCINT/1000)*VCCINT*(IF($T51>0,$T51,($L51/2*(($F51*(Data!$N$435)))* OFFSET(POWER_OPT,OFFSET(OPTIMIZATION,0,3),2))*$U$1)) -> 0 | X51: =(VCCINT/1000)*VCCINT*(IF($T51>0,$T51,($L51/2*($G51*(Data!$P$435))))* OFFSET(POWER_OPT,OFFSET(OPTIMIZATION,0,3),2))*$U$1 -> 0 | Y51: =(VCCINT/1000)*VCCINT*(IF($T51>0,$T51,($L51/2*($H51*(Data!$Q$435))))* OFFSET(POWER_OPT,OFFSET(OPTIMIZATION,0,3),2))*$U$1 -> 0 | Z51: =( VCCINT / 1000 ) * VCCINT * ( IF( $T51 > 0, $T51, ( $L51 / 2 * ( ( $I51 * ( Data!$O$435 ) ) ) ) *OFFSET( POWER_OPT, OFFSET( OPTIMIZATION, 0, 3), 2)) * $U$1 ) -> 0 | AA51: =(VCCINT/1000)*VCCINT*(IF($T51 > 0, $T51,($L51/2*(($F51)*(Q51*Data!$N$436+Data!$N$437))))* OFFSET(POWER_OPT,OFFSET(OPTIMIZATION,0,3),2))*$U$1 -> 0 | AB51: =(VCCINT/1000)*VCCINT*(IF($T51 > 0, $T51,($L51/2*($G51*(Q51*Data!$P$436+Data!$P$437))))* OFFSET(POWER_OPT,OFFSET(OPTIMIZATION,0,3),2))*$U$1 -> 0 | AC51: =(VCCINT/1000)*VCCINT*(IF($T51 > 0, $T51,($L51/2*($H51*(Q51*Data!$Q$436+Data!$Q$437))))* OFFSET(POWER_OPT,OFFSET(OPTIMIZATION,0,3),2))*$U$1 -> 0 | AD51: =( VCCINT / 1000 ) * VCCINT * ( IF( $T51 > 0, $T51, ( $L51 / 2 * ( ( $I51 ) * (Q51*Data!$O$436+Data!$O$437) ) ) * OFFSET( POWER_OPT, OFFSET( OPTIMIZATION, 0, 3), 2)) * $U$1 ) -> 0 | AE51: 0 | AF51: 0
J52: 0.125 | K52: 8 | L52: 0 | M52: 0 | O52: 0 | P52: 0 | Q52: 5.309573445 | U52: 0.0008136315897 | W52: =(VCCINT/1000)*VCCINT*(IF($T52>0,$T52,($L52/2*(($F52*(Data!$N$435)))* OFFSET(POWER_OPT,OFFSET(OPTIMIZATION,0,3),2))*$U$1)) -> 0 | X52: =(VCCINT/1000)*VCCINT*(IF($T52>0,$T52,($L52/2*($G52*(Data!$P$435))))* OFFSET(POWER_OPT,OFFSET(OPTIMIZATION,0,3),2))*$U$1 -> 0 | Y52: =(VCCINT/1000)*VCCINT*(IF($T52>0,$T52,($L52/2*($H52*(Data!$Q$435))))* OFFSET(POWER_OPT,OFFSET(OPTIMIZATION,0,3),2))*$U$1 -> 0 | Z52: =( VCCINT / 1000 ) * VCCINT * ( IF( $T52 > 0, $T52, ( $L52 / 2 * ( ( $I52 * ( Data!$O$435 ) ) ) ) *OFFSET( POWER_OPT, OFFSET( OPTIMIZATION, 0, 3), 2)) * $U$1 ) -> 0 | AA52: =(VCCINT/1000)*VCCINT*(IF($T52 > 0, $T52,($L52/2*(($F52)*(Q52*Data!$N$436+Data!$N$437))))* OFFSET(POWER_OPT,OFFSET(OPTIMIZATION,0,3),2))*$U$1 -> 0 | AB52: =(VCCINT/1000)*VCCINT*(IF($T52 > 0, $T52,($L52/2*($G52*(Q52*Data!$P$436+Data!$P$437))))* OFFSET(POWER_OPT,OFFSET(OPTIMIZATION,0,3),2))*$U$1 -> 0 | AC52: =(VCCINT/1000)*VCCINT*(IF($T52 > 0, $T52,($L52/2*($H52*(Q52*Data!$Q$436+Data!$Q$437))))* OFFSET(POWER_OPT,OFFSET(OPTIMIZATION,0,3),2))*$U$1 -> 0 | AD52: =( VCCINT / 1000 ) * VCCINT * ( IF( $T52 > 0, $T52, ( $L52 / 2 * ( ( $I52 ) * (Q52*Data!$O$436+Data!$O$437) ) ) * OFFSET( POWER_OPT, OFFSET( OPTIMIZATION, 0, 3), 2)) * $U$1 ) -> 0 | AE52: 0 | AF52: 0
J53: 0.125 | K53: 8 | L53: 0 | M53: 0 | O53: 0 | P53: 0 | Q53: 5.309573445 | U53: 0.0008136315897 | W53: =(VCCINT/1000)*VCCINT*(IF($T53>0,$T53,($L53/2*(($F53*(Data!$N$435)))* OFFSET(POWER_OPT,OFFSET(OPTIMIZATION,0,3),2))*$U$1)) -> 0 | X53: =(VCCINT/1000)*VCCINT*(IF($T53>0,$T53,($L53/2*($G53*(Data!$P$435))))* OFFSET(POWER_OPT,OFFSET(OPTIMIZATION,0,3),2))*$U$1 -> 0 | Y53: =(VCCINT/1000)*VCCINT*(IF($T53>0,$T53,($L53/2*($H53*(Data!$Q$435))))* OFFSET(POWER_OPT,OFFSET(OPTIMIZATION,0,3),2))*$U$1 -> 0 | Z53: =( VCCINT / 1000 ) * VCCINT * ( IF( $T53 > 0, $T53, ( $L53 / 2 * ( ( $I53 * ( Data!$O$435 ) ) ) ) *OFFSET( POWER_OPT, OFFSET( OPTIMIZATION, 0, 3), 2)) * $U$1 ) -> 0 | AA53: =(VCCINT/1000)*VCCINT*(IF($T53 > 0, $T53,($L53/2*(($F53)*(Q53*Data!$N$436+Data!$N$437))))* OFFSET(POWER_OPT,OFFSET(OPTIMIZATION,0,3),2))*$U$1 -> 0 | AB53: =(VCCINT/1000)*VCCINT*(IF($T53 > 0, $T53,($L53/2*($G53*(Q53*Data!$P$436+Data!$P$437))))* OFFSET(POWER_OPT,OFFSET(OPTIMIZATION,0,3),2))*$U$1 -> 0 | AC53: =(VCCINT/1000)*VCCINT*(IF($T53 > 0, $T53,($L53/2*($H53*(Q53*Data!$Q$436+Data!$Q$437))))* OFFSET(POWER_OPT,OFFSET(OPTIMIZATION,0,3),2))*$U$1 -> 0 | AD53: =( VCCINT / 1000 ) * VCCINT * ( IF( $T53 > 0, $T53, ( $L53 / 2 * ( ( $I53 ) * (Q53*Data!$O$436+Data!$O$437) ) ) * OFFSET( POWER_OPT, OFFSET( OPTIMIZATION, 0, 3), 2)) * $U$1 ) -> 0 | AE53: 0 | AF53: 0
J54: 0.125 | K54: 8 | L54: 0 | M54: 0 | O54: 0 | P54: 0 | Q54: 5.309573445 | U54: 0.0008136315897 | W54: =(VCCINT/1000)*VCCINT*(IF($T54>0,$T54,($L54/2*(($F54*(Data!$N$435)))* OFFSET(POWER_OPT,OFFSET(OPTIMIZATION,0,3),2))*$U$1)) -> 0 | X54: =(VCCINT/1000)*VCCINT*(IF($T54>0,$T54,($L54/2*($G54*(Data!$P$435))))* OFFSET(POWER_OPT,OFFSET(OPTIMIZATION,0,3),2))*$U$1 -> 0 | Y54: =(VCCINT/1000)*VCCINT*(IF($T54>0,$T54,($L54/2*($H54*(Data!$Q$435))))* OFFSET(POWER_OPT,OFFSET(OPTIMIZATION,0,3),2))*$U$1 -> 0 | Z54: =( VCCINT / 1000 ) * VCCINT * ( IF( $T54 > 0, $T54, ( $L54 / 2 * ( ( $I54 * ( Data!$O$435 ) ) ) ) *OFFSET( POWER_OPT, OFFSET( OPTIMIZATION, 0, 3), 2)) * $U$1 ) -> 0 | AA54: =(VCCINT/1000)*VCCINT*(IF($T54 > 0, $T54,($L54/2*(($F54)*(Q54*Data!$N$436+Data!$N$437))))* OFFSET(POWER_OPT,OFFSET(OPTIMIZATION,0,3),2))*$U$1 -> 0 | AB54: =(VCCINT/1000)*VCCINT*(IF($T54 > 0, $T54,($L54/2*($G54*(Q54*Data!$P$436+Data!$P$437))))* OFFSET(POWER_OPT,OFFSET(OPTIMIZATION,0,3),2))*$U$1 -> 0 | AC54: =(VCCINT/1000)*VCCINT*(IF($T54 > 0, $T54,($L54/2*($H54*(Q54*Data!$Q$436+Data!$Q$437))))* OFFSET(POWER_OPT,OFFSET(OPTIMIZATION,0,3),2))*$U$1 -> 0 | AD54: =( VCCINT / 1000 ) * VCCINT * ( IF( $T54 > 0, $T54, ( $L54 / 2 * ( ( $I54 ) * (Q54*Data!$O$436+Data!$O$437) ) ) * OFFSET( POWER_OPT, OFFSET( OPTIMIZATION, 0, 3), 2)) * $U$1 ) -> 0 | AE54: 0 | AF54: 0
J55: 0.125 | K55: 8 | L55: 0 | M55: 0 | O55: 0 | P55: 0 | Q55: 5.309573445 | U55: 0.0008136315897 | W55: =(VCCINT/1000)*VCCINT*(IF($T55>0,$T55,($L55/2*(($F55*(Data!$N$435)))* OFFSET(POWER_OPT,OFFSET(OPTIMIZATION,0,3),2))*$U$1)) -> 0 | X55: =(VCCINT/1000)*VCCINT*(IF($T55>0,$T55,($L55/2*($G55*(Data!$P$435))))* OFFSET(POWER_OPT,OFFSET(OPTIMIZATION,0,3),2))*$U$1 -> 0 | Y55: =(VCCINT/1000)*VCCINT*(IF($T55>0,$T55,($L55/2*($H55*(Data!$Q$435))))* OFFSET(POWER_OPT,OFFSET(OPTIMIZATION,0,3),2))*$U$1 -> 0 | Z55: =( VCCINT / 1000 ) * VCCINT * ( IF( $T55 > 0, $T55, ( $L55 / 2 * ( ( $I55 * ( Data!$O$435 ) ) ) ) *OFFSET( POWER_OPT, OFFSET( OPTIMIZATION, 0, 3), 2)) * $U$1 ) -> 0 | AA55: =(VCCINT/1000)*VCCINT*(IF($T55 > 0, $T55,($L55/2*(($F55)*(Q55*Data!$N$436+Data!$N$437))))* OFFSET(POWER_OPT,OFFSET(OPTIMIZATION,0,3),2))*$U$1 -> 0 | AB55: =(VCCINT/1000)*VCCINT*(IF($T55 > 0, $T55,($L55/2*($G55*(Q55*Data!$P$436+Data!$P$437))))* OFFSET(POWER_OPT,OFFSET(OPTIMIZATION,0,3),2))*$U$1 -> 0 | AC55: =(VCCINT/1000)*VCCINT*(IF($T55 > 0, $T55,($L55/2*($H55*(Q55*Data!$Q$436+Data!$Q$437))))* OFFSET(POWER_OPT,OFFSET(OPTIMIZATION,0,3),2))*$U$1 -> 0 | AD55: =( VCCINT / 1000 ) * VCCINT * ( IF( $T55 > 0, $T55, ( $L55 / 2 * ( ( $I55 ) * (Q55*Data!$O$436+Data!$O$437) ) ) * OFFSET( POWER_OPT, OFFSET( OPTIMIZATION, 0, 3), 2)) * $U$1 ) -> 0 | AE55: 0 | AF55: 0
J56: 0.125 | K56: 8 | L56: 0 | M56: 0 | O56: 0 | P56: 0 | Q56: 5.309573445 | U56: 0.0008136315897 | W56: =(VCCINT/1000)*VCCINT*(IF($T56>0,$T56,($L56/2*(($F56*(Data!$N$435)))* OFFSET(POWER_OPT,OFFSET(OPTIMIZATION,0,3),2))*$U$1)) -> 0 | X56: =(VCCINT/1000)*VCCINT*(IF($T56>0,$T56,($L56/2*($G56*(Data!$P$435))))* OFFSET(POWER_OPT,OFFSET(OPTIMIZATION,0,3),2))*$U$1 -> 0 | Y56: =(VCCINT/1000)*VCCINT*(IF($T56>0,$T56,($L56/2*($H56*(Data!$Q$435))))* OFFSET(POWER_OPT,OFFSET(OPTIMIZATION,0,3),2))*$U$1 -> 0 | Z56: =( VCCINT / 1000 ) * VCCINT * ( IF( $T56 > 0, $T56, ( $L56 / 2 * ( ( $I56 * ( Data!$O$435 ) ) ) ) *OFFSET( POWER_OPT, OFFSET( OPTIMIZATION, 0, 3), 2)) * $U$1 ) -> 0 | AA56: =(VCCINT/1000)*VCCINT*(IF($T56 > 0, $T56,($L56/2*(($F56)*(Q56*Data!$N$436+Data!$N$437))))* OFFSET(POWER_OPT,OFFSET(OPTIMIZATION,0,3),2))*$U$1 -> 0 | AB56: =(VCCINT/1000)*VCCINT*(IF($T56 > 0, $T56,($L56/2*($G56*(Q56*Data!$P$436+Data!$P$437))))* OFFSET(POWER_OPT,OFFSET(OPTIMIZATION,0,3),2))*$U$1 -> 0 | AC56: =(VCCINT/1000)*VCCINT*(IF($T56 > 0, $T56,($L56/2*($H56*(Q56*Data!$Q$436+Data!$Q$437))))* OFFSET(POWER_OPT,OFFSET(OPTIMIZATION,0,3),2))*$U$1 -> 0 | AD56: =( VCCINT / 1000 ) * VCCINT * ( IF( $T56 > 0, $T56, ( $L56 / 2 * ( ( $I56 ) * (Q56*Data!$O$436+Data!$O$437) ) ) * OFFSET( POWER_OPT, OFFSET( OPTIMIZATION, 0, 3), 2)) * $U$1 ) -> 0 | AE56: 0 | AF56: 0
J57: 0.125 | K57: 8 | L57: 0 | M57: 0 | O57: 0 | P57: 0 | Q57: 5.309573445 | U57: 0.0008136315897 | W57: =(VCCINT/1000)*VCCINT*(IF($T57>0,$T57,($L57/2*(($F57*(Data!$N$435)))* OFFSET(POWER_OPT,OFFSET(OPTIMIZATION,0,3),2))*$U$1)) -> 0 | X57: =(VCCINT/1000)*VCCINT*(IF($T57>0,$T57,($L57/2*($G57*(Data!$P$435))))* OFFSET(POWER_OPT,OFFSET(OPTIMIZATION,0,3),2))*$U$1 -> 0 | Y57: =(VCCINT/1000)*VCCINT*(IF($T57>0,$T57,($L57/2*($H57*(Data!$Q$435))))* OFFSET(POWER_OPT,OFFSET(OPTIMIZATION,0,3),2))*$U$1 -> 0 | Z57: =( VCCINT / 1000 ) * VCCINT * ( IF( $T57 > 0, $T57, ( $L57 / 2 * ( ( $I57 * ( Data!$O$435 ) ) ) ) *OFFSET( POWER_OPT, OFFSET( OPTIMIZATION, 0, 3), 2)) * $U$1 ) -> 0 | AA57: =(VCCINT/1000)*VCCINT*(IF($T57 > 0, $T57,($L57/2*(($F57)*(Q57*Data!$N$436+Data!$N$437))))* OFFSET(POWER_OPT,OFFSET(OPTIMIZATION,0,3),2))*$U$1 -> 0 | AB57: =(VCCINT/1000)*VCCINT*(IF($T57 > 0, $T57,($L57/2*($G57*(Q57*Data!$P$436+Data!$P$437))))* OFFSET(POWER_OPT,OFFSET(OPTIMIZATION,0,3),2))*$U$1 -> 0 | AC57: =(VCCINT/1000)*VCCINT*(IF($T57 > 0, $T57,($L57/2*($H57*(Q57*Data!$Q$436+Data!$Q$437))))* OFFSET(POWER_OPT,OFFSET(OPTIMIZATION,0,3),2))*$U$1 -> 0 | AD57: =( VCCINT / 1000 ) * VCCINT * ( IF( $T57 > 0, $T57, ( $L57 / 2 * ( ( $I57 ) * (Q57*Data!$O$436+Data!$O$437) ) ) * OFFSET( POWER_OPT, OFFSET( OPTIMIZATION, 0, 3), 2)) * $U$1 ) -> 0 | AE57: 0 | AF57: 0
J58: 0.125 | K58: 8 | L58: 0 | M58: 0 | O58: 0 | P58: 0 | Q58: 5.309573445 | U58: 0.0008136315897 | W58: =(VCCINT/1000)*VCCINT*(IF($T58>0,$T58,($L58/2*(($F58*(Data!$N$435)))* OFFSET(POWER_OPT,OFFSET(OPTIMIZATION,0,3),2))*$U$1)) -> 0 | X58: =(VCCINT/1000)*VCCINT*(IF($T58>0,$T58,($L58/2*($G58*(Data!$P$435))))* OFFSET(POWER_OPT,OFFSET(OPTIMIZATION,0,3),2))*$U$1 -> 0 | Y58: =(VCCINT/1000)*VCCINT*(IF($T58>0,$T58,($L58/2*($H58*(Data!$Q$435))))* OFFSET(POWER_OPT,OFFSET(OPTIMIZATION,0,3),2))*$U$1 -> 0 | Z58: =( VCCINT / 1000 ) * VCCINT * ( IF( $T58 > 0, $T58, ( $L58 / 2 * ( ( $I58 * ( Data!$O$435 ) ) ) ) *OFFSET( POWER_OPT, OFFSET( OPTIMIZATION, 0, 3), 2)) * $U$1 ) -> 0 | AA58: =(VCCINT/1000)*VCCINT*(IF($T58 > 0, $T58,($L58/2*(($F58)*(Q58*Data!$N$436+Data!$N$437))))* OFFSET(POWER_OPT,OFFSET(OPTIMIZATION,0,3),2))*$U$1 -> 0 | AB58: =(VCCINT/1000)*VCCINT*(IF($T58 > 0, $T58,($L58/2*($G58*(Q58*Data!$P$436+Data!$P$437))))* OFFSET(POWER_OPT,OFFSET(OPTIMIZATION,0,3),2))*$U$1 -> 0 | AC58: =(VCCINT/1000)*VCCINT*(IF($T58 > 0, $T58,($L58/2*($H58*(Q58*Data!$Q$436+Data!$Q$437))))* OFFSET(POWER_OPT,OFFSET(OPTIMIZATION,0,3),2))*$U$1 -> 0 | AD58: =( VCCINT / 1000 ) * VCCINT * ( IF( $T58 > 0, $T58, ( $L58 / 2 * ( ( $I58 ) * (Q58*Data!$O$436+Data!$O$437) ) ) * OFFSET( POWER_OPT, OFFSET( OPTIMIZATION, 0, 3), 2)) * $U$1 ) -> 0 | AE58: 0 | AF58: 0
J59: 0.125 | K59: 8 | L59: 0 | M59: 0 | O59: 0 | P59: 0 | Q59: 5.309573445 | U59: 0.0008136315897 | W59: =(VCCINT/1000)*VCCINT*(IF($T59>0,$T59,($L59/2*(($F59*(Data!$N$435)))* OFFSET(POWER_OPT,OFFSET(OPTIMIZATION,0,3),2))*$U$1)) -> 0 | X59: =(VCCINT/1000)*VCCINT*(IF($T59>0,$T59,($L59/2*($G59*(Data!$P$435))))* OFFSET(POWER_OPT,OFFSET(OPTIMIZATION,0,3),2))*$U$1 -> 0 | Y59: =(VCCINT/1000)*VCCINT*(IF($T59>0,$T59,($L59/2*($H59*(Data!$Q$435))))* OFFSET(POWER_OPT,OFFSET(OPTIMIZATION,0,3),2))*$U$1 -> 0 | Z59: =( VCCINT / 1000 ) * VCCINT * ( IF( $T59 > 0, $T59, ( $L59 / 2 * ( ( $I59 * ( Data!$O$435 ) ) ) ) *OFFSET( POWER_OPT, OFFSET( OPTIMIZATION, 0, 3), 2)) * $U$1 ) -> 0 | AA59: =(VCCINT/1000)*VCCINT*(IF($T59 > 0, $T59,($L59/2*(($F59)*(Q59*Data!$N$436+Data!$N$437))))* OFFSET(POWER_OPT,OFFSET(OPTIMIZATION,0,3),2))*$U$1 -> 0 | AB59: =(VCCINT/1000)*VCCINT*(IF($T59 > 0, $T59,($L59/2*($G59*(Q59*Data!$P$436+Data!$P$437))))* OFFSET(POWER_OPT,OFFSET(OPTIMIZATION,0,3),2))*$U$1 -> 0 | AC59: =(VCCINT/1000)*VCCINT*(IF($T59 > 0, $T59,($L59/2*($H59*(Q59*Data!$Q$436+Data!$Q$437))))* OFFSET(POWER_OPT,OFFSET(OPTIMIZATION,0,3),2))*$U$1 -> 0 | AD59: =( VCCINT / 1000 ) * VCCINT * ( IF( $T59 > 0, $T59, ( $L59 / 2 * ( ( $I59 ) * (Q59*Data!$O$436+Data!$O$437) ) ) * OFFSET( POWER_OPT, OFFSET( OPTIMIZATION, 0, 3), 2)) * $U$1 ) -> 0 | AE59: 0 | AF59: 0
J60: 0.125 | K60: 8 | L60: 0 | M60: 0 | O60: 0 | P60: 0 | Q60: 5.309573445 | U60: 0.0008136315897 | W60: =(VCCINT/1000)*VCCINT*(IF($T60>0,$T60,($L60/2*(($F60*(Data!$N$435)))* OFFSET(POWER_OPT,OFFSET(OPTIMIZATION,0,3),2))*$U$1)) -> 0 | X60: =(VCCINT/1000)*VCCINT*(IF($T60>0,$T60,($L60/2*($G60*(Data!$P$435))))* OFFSET(POWER_OPT,OFFSET(OPTIMIZATION,0,3),2))*$U$1 -> 0 | Y60: =(VCCINT/1000)*VCCINT*(IF($T60>0,$T60,($L60/2*($H60*(Data!$Q$435))))* OFFSET(POWER_OPT,OFFSET(OPTIMIZATION,0,3),2))*$U$1 -> 0 | Z60: =( VCCINT / 1000 ) * VCCINT * ( IF( $T60 > 0, $T60, ( $L60 / 2 * ( ( $I60 * ( Data!$O$435 ) ) ) ) *OFFSET( POWER_OPT, OFFSET( OPTIMIZATION, 0, 3), 2)) * $U$1 ) -> 0 | AA60: =(VCCINT/1000)*VCCINT*(IF($T60 > 0, $T60,($L60/2*(($F60)*(Q60*Data!$N$436+Data!$N$437))))* OFFSET(POWER_OPT,OFFSET(OPTIMIZATION,0,3),2))*$U$1 -> 0 | AB60: =(VCCINT/1000)*VCCINT*(IF($T60 > 0, $T60,($L60/2*($G60*(Q60*Data!$P$436+Data!$P$437))))* OFFSET(POWER_OPT,OFFSET(OPTIMIZATION,0,3),2))*$U$1 -> 0 | AC60: =(VCCINT/1000)*VCCINT*(IF($T60 > 0, $T60,($L60/2*($H60*(Q60*Data!$Q$436+Data!$Q$437))))* OFFSET(POWER_OPT,OFFSET(OPTIMIZATION,0,3),2))*$U$1 -> 0 | AD60: =( VCCINT / 1000 ) * VCCINT * ( IF( $T60 > 0, $T60, ( $L60 / 2 * ( ( $I60 ) * (Q60*Data!$O$436+Data!$O$437) ) ) * OFFSET( POWER_OPT, OFFSET( OPTIMIZATION, 0, 3), 2)) * $U$1 ) -> 0 | AE60: 0 | AF60: 0
J61: 0.125 | K61: 8 | L61: 0 | M61: 0 | O61: 0 | P61: 0 | Q61: 5.309573445 | U61: 0.0008136315897 | W61: =(VCCINT/1000)*VCCINT*(IF($T61>0,$T61,($L61/2*(($F61*(Data!$N$435)))* OFFSET(POWER_OPT,OFFSET(OPTIMIZATION,0,3),2))*$U$1)) -> 0 | X61: =(VCCINT/1000)*VCCINT*(IF($T61>0,$T61,($L61/2*($G61*(Data!$P$435))))* OFFSET(POWER_OPT,OFFSET(OPTIMIZATION,0,3),2))*$U$1 -> 0 | Y61: =(VCCINT/1000)*VCCINT*(IF($T61>0,$T61,($L61/2*($H61*(Data!$Q$435))))* OFFSET(POWER_OPT,OFFSET(OPTIMIZATION,0,3),2))*$U$1 -> 0 | Z61: =( VCCINT / 1000 ) * VCCINT * ( IF( $T61 > 0, $T61, ( $L61 / 2 * ( ( $I61 * ( Data!$O$435 ) ) ) ) *OFFSET( POWER_OPT, OFFSET( OPTIMIZATION, 0, 3), 2)) * $U$1 ) -> 0 | AA61: =(VCCINT/1000)*VCCINT*(IF($T61 > 0, $T61,($L61/2*(($F61)*(Q61*Data!$N$436+Data!$N$437))))* OFFSET(POWER_OPT,OFFSET(OPTIMIZATION,0,3),2))*$U$1 -> 0 | AB61: =(VCCINT/1000)*VCCINT*(IF($T61 > 0, $T61,($L61/2*($G61*(Q61*Data!$P$436+Data!$P$437))))* OFFSET(POWER_OPT,OFFSET(OPTIMIZATION,0,3),2))*$U$1 -> 0 | AC61: =(VCCINT/1000)*VCCINT*(IF($T61 > 0, $T61,($L61/2*($H61*(Q61*Data!$Q$436+Data!$Q$437))))* OFFSET(POWER_OPT,OFFSET(OPTIMIZATION,0,3),2))*$U$1 -> 0 | AD61: =( VCCINT / 1000 ) * VCCINT * ( IF( $T61 > 0, $T61, ( $L61 / 2 * ( ( $I61 ) * (Q61*Data!$O$436+Data!$O$437) ) ) * OFFSET( POWER_OPT, OFFSET( OPTIMIZATION, 0, 3), 2)) * $U$1 ) -> 0 | AE61: 0 | AF61: 0
J62: 0.125 | K62: 8 | L62: 0 | M62: 0 | O62: 0 | P62: 0 | Q62: 5.309573445 | U62: 0.0008136315897 | W62: =(VCCINT/1000)*VCCINT*(IF($T62>0,$T62,($L62/2*(($F62*(Data!$N$435)))* OFFSET(POWER_OPT,OFFSET(OPTIMIZATION,0,3),2))*$U$1)) -> 0 | X62: =(VCCINT/1000)*VCCINT*(IF($T62>0,$T62,($L62/2*($G62*(Data!$P$435))))* OFFSET(POWER_OPT,OFFSET(OPTIMIZATION,0,3),2))*$U$1 -> 0 | Y62: =(VCCINT/1000)*VCCINT*(IF($T62>0,$T62,($L62/2*($H62*(Data!$Q$435))))* OFFSET(POWER_OPT,OFFSET(OPTIMIZATION,0,3),2))*$U$1 -> 0 | Z62: =( VCCINT / 1000 ) * VCCINT * ( IF( $T62 > 0, $T62, ( $L62 / 2 * ( ( $I62 * ( Data!$O$435 ) ) ) ) *OFFSET( POWER_OPT, OFFSET( OPTIMIZATION, 0, 3), 2)) * $U$1 ) -> 0 | AA62: =(VCCINT/1000)*VCCINT*(IF($T62 > 0, $T62,($L62/2*(($F62)*(Q62*Data!$N$436+Data!$N$437))))* OFFSET(POWER_OPT,OFFSET(OPTIMIZATION,0,3),2))*$U$1 -> 0 | AB62: =(VCCINT/1000)*VCCINT*(IF($T62 > 0, $T62,($L62/2*($G62*(Q62*Data!$P$436+Data!$P$437))))* OFFSET(POWER_OPT,OFFSET(OPTIMIZATION,0,3),2))*$U$1 -> 0 | AC62: =(VCCINT/1000)*VCCINT*(IF($T62 > 0, $T62,($L62/2*($H62*(Q62*Data!$Q$436+Data!$Q$437))))* OFFSET(POWER_OPT,OFFSET(OPTIMIZATION,0,3),2))*$U$1 -> 0 | AD62: =( VCCINT / 1000 ) * VCCINT * ( IF( $T62 > 0, $T62, ( $L62 / 2 * ( ( $I62 ) * (Q62*Data!$O$436+Data!$O$437) ) ) * OFFSET( POWER_OPT, OFFSET( OPTIMIZATION, 0, 3), 2)) * $U$1 ) -> 0 | AE62: 0 | AF62: 0
J63: 0.125 | K63: 8 | L63: 0 | M63: 0 | O63: 0 | P63: 0 | Q63: 5.309573445 | U63: 0.0008136315897 | W63: =(VCCINT/1000)*VCCINT*(IF($T63>0,$T63,($L63/2*(($F63*(Data!$N$435)))* OFFSET(POWER_OPT,OFFSET(OPTIMIZATION,0,3),2))*$U$1)) -> 0 | X63: =(VCCINT/1000)*VCCINT*(IF($T63>0,$T63,($L63/2*($G63*(Data!$P$435))))* OFFSET(POWER_OPT,OFFSET(OPTIMIZATION,0,3),2))*$U$1 -> 0 | Y63: =(VCCINT/1000)*VCCINT*(IF($T63>0,$T63,($L63/2*($H63*(Data!$Q$435))))* OFFSET(POWER_OPT,OFFSET(OPTIMIZATION,0,3),2))*$U$1 -> 0 | Z63: =( VCCINT / 1000 ) * VCCINT * ( IF( $T63 > 0, $T63, ( $L63 / 2 * ( ( $I63 * ( Data!$O$435 ) ) ) ) *OFFSET( POWER_OPT, OFFSET( OPTIMIZATION, 0, 3), 2)) * $U$1 ) -> 0 | AA63: =(VCCINT/1000)*VCCINT*(IF($T63 > 0, $T63,($L63/2*(($F63)*(Q63*Data!$N$436+Data!$N$437))))* OFFSET(POWER_OPT,OFFSET(OPTIMIZATION,0,3),2))*$U$1 -> 0 | AB63: =(VCCINT/1000)*VCCINT*(IF($T63 > 0, $T63,($L63/2*($G63*(Q63*Data!$P$436+Data!$P$437))))* OFFSET(POWER_OPT,OFFSET(OPTIMIZATION,0,3),2))*$U$1 -> 0 | AC63: =(VCCINT/1000)*VCCINT*(IF($T63 > 0, $T63,($L63/2*($H63*(Q63*Data!$Q$436+Data!$Q$437))))* OFFSET(POWER_OPT,OFFSET(OPTIMIZATION,0,3),2))*$U$1 -> 0 | AD63: =( VCCINT / 1000 ) * VCCINT * ( IF( $T63 > 0, $T63, ( $L63 / 2 * ( ( $I63 ) * (Q63*Data!$O$436+Data!$O$437) ) ) * OFFSET( POWER_OPT, OFFSET( OPTIMIZATION, 0, 3), 2)) * $U$1 ) -> 0 | AE63: 0 | AF63: 0
J64: 0.125 | K64: 8 | L64: 0 | M64: 0 | O64: 0 | P64: 0 | Q64: 5.309573445 | U64: 0.0008136315897 | W64: =(VCCINT/1000)*VCCINT*(IF($T64>0,$T64,($L64/2*(($F64*(Data!$N$435)))* OFFSET(POWER_OPT,OFFSET(OPTIMIZATION,0,3),2))*$U$1)) -> 0 | X64: =(VCCINT/1000)*VCCINT*(IF($T64>0,$T64,($L64/2*($G64*(Data!$P$435))))* OFFSET(POWER_OPT,OFFSET(OPTIMIZATION,0,3),2))*$U$1 -> 0 | Y64: =(VCCINT/1000)*VCCINT*(IF($T64>0,$T64,($L64/2*($H64*(Data!$Q$435))))* OFFSET(POWER_OPT,OFFSET(OPTIMIZATION,0,3),2))*$U$1 -> 0 | Z64: =( VCCINT / 1000 ) * VCCINT * ( IF( $T64 > 0, $T64, ( $L64 / 2 * ( ( $I64 * ( Data!$O$435 ) ) ) ) *OFFSET( POWER_OPT, OFFSET( OPTIMIZATION, 0, 3), 2)) * $U$1 ) -> 0 | AA64: =(VCCINT/1000)*VCCINT*(IF($T64 > 0, $T64,($L64/2*(($F64)*(Q64*Data!$N$436+Data!$N$437))))* OFFSET(POWER_OPT,OFFSET(OPTIMIZATION,0,3),2))*$U$1 -> 0 | AB64: =(VCCINT/1000)*VCCINT*(IF($T64 > 0, $T64,($L64/2*($G64*(Q64*Data!$P$436+Data!$P$437))))* OFFSET(POWER_OPT,OFFSET(OPTIMIZATION,0,3),2))*$U$1 -> 0 | AC64: =(VCCINT/1000)*VCCINT*(IF($T64 > 0, $T64,($L64/2*($H64*(Q64*Data!$Q$436+Data!$Q$437))))* OFFSET(POWER_OPT,OFFSET(OPTIMIZATION,0,3),2))*$U$1 -> 0 | AD64: =( VCCINT / 1000 ) * VCCINT * ( IF( $T64 > 0, $T64, ( $L64 / 2 * ( ( $I64 ) * (Q64*Data!$O$436+Data!$O$437) ) ) * OFFSET( POWER_OPT, OFFSET( OPTIMIZATION, 0, 3), 2)) * $U$1 ) -> 0 | AE64: 0 | AF64: 0
J65: 0.125 | K65: 8 | L65: 0 | M65: 0 | O65: 0 | P65: 0 | Q65: 5.309573445 | U65: 0.0008136315897 | W65: =(VCCINT/1000)*VCCINT*(IF($T65>0,$T65,($L65/2*(($F65*(Data!$N$435)))* OFFSET(POWER_OPT,OFFSET(OPTIMIZATION,0,3),2))*$U$1)) -> 0 | X65: =(VCCINT/1000)*VCCINT*(IF($T65>0,$T65,($L65/2*($G65*(Data!$P$435))))* OFFSET(POWER_OPT,OFFSET(OPTIMIZATION,0,3),2))*$U$1 -> 0 | Y65: =(VCCINT/1000)*VCCINT*(IF($T65>0,$T65,($L65/2*($H65*(Data!$Q$435))))* OFFSET(POWER_OPT,OFFSET(OPTIMIZATION,0,3),2))*$U$1 -> 0 | Z65: =( VCCINT / 1000 ) * VCCINT * ( IF( $T65 > 0, $T65, ( $L65 / 2 * ( ( $I65 * ( Data!$O$435 ) ) ) ) *OFFSET( POWER_OPT, OFFSET( OPTIMIZATION, 0, 3), 2)) * $U$1 ) -> 0 | AA65: =(VCCINT/1000)*VCCINT*(IF($T65 > 0, $T65,($L65/2*(($F65)*(Q65*Data!$N$436+Data!$N$437))))* OFFSET(POWER_OPT,OFFSET(OPTIMIZATION,0,3),2))*$U$1 -> 0 | AB65: =(VCCINT/1000)*VCCINT*(IF($T65 > 0, $T65,($L65/2*($G65*(Q65*Data!$P$436+Data!$P$437))))* OFFSET(POWER_OPT,OFFSET(OPTIMIZATION,0,3),2))*$U$1 -> 0 | AC65: =(VCCINT/1000)*VCCINT*(IF($T65 > 0, $T65,($L65/2*($H65*(Q65*Data!$Q$436+Data!$Q$437))))* OFFSET(POWER_OPT,OFFSET(OPTIMIZATION,0,3),2))*$U$1 -> 0 | AD65: =( VCCINT / 1000 ) * VCCINT * ( IF( $T65 > 0, $T65, ( $L65 / 2 * ( ( $I65 ) * (Q65*Data!$O$436+Data!$O$437) ) ) * OFFSET( POWER_OPT, OFFSET( OPTIMIZATION, 0, 3), 2)) * $U$1 ) -> 0 | AE65: 0 | AF65: 0
J66: 0.125 | K66: 8 | L66: 0 | M66: 0 | O66: 0 | P66: 0 | Q66: 5.309573445 | U66: 0.0008136315897 | W66: =(VCCINT/1000)*VCCINT*(IF($T66>0,$T66,($L66/2*(($F66*(Data!$N$435)))* OFFSET(POWER_OPT,OFFSET(OPTIMIZATION,0,3),2))*$U$1)) -> 0 | X66: =(VCCINT/1000)*VCCINT*(IF($T66>0,$T66,($L66/2*($G66*(Data!$P$435))))* OFFSET(POWER_OPT,OFFSET(OPTIMIZATION,0,3),2))*$U$1 -> 0 | Y66: =(VCCINT/1000)*VCCINT*(IF($T66>0,$T66,($L66/2*($H66*(Data!$Q$435))))* OFFSET(POWER_OPT,OFFSET(OPTIMIZATION,0,3),2))*$U$1 -> 0 | Z66: =( VCCINT / 1000 ) * VCCINT * ( IF( $T66 > 0, $T66, ( $L66 / 2 * ( ( $I66 * ( Data!$O$435 ) ) ) ) *OFFSET( POWER_OPT, OFFSET( OPTIMIZATION, 0, 3), 2)) * $U$1 ) -> 0 | AA66: =(VCCINT/1000)*VCCINT*(IF($T66 > 0, $T66,($L66/2*(($F66)*(Q66*Data!$N$436+Data!$N$437))))* OFFSET(POWER_OPT,OFFSET(OPTIMIZATION,0,3),2))*$U$1 -> 0 | AB66: =(VCCINT/1000)*VCCINT*(IF($T66 > 0, $T66,($L66/2*($G66*(Q66*Data!$P$436+Data!$P$437))))* OFFSET(POWER_OPT,OFFSET(OPTIMIZATION,0,3),2))*$U$1 -> 0 | AC66: =(VCCINT/1000)*VCCINT*(IF($T66 > 0, $T66,($L66/2*($H66*(Q66*Data!$Q$436+Data!$Q$437))))* OFFSET(POWER_OPT,OFFSET(OPTIMIZATION,0,3),2))*$U$1 -> 0 | AD66: =( VCCINT / 1000 ) * VCCINT * ( IF( $T66 > 0, $T66, ( $L66 / 2 * ( ( $I66 ) * (Q66*Data!$O$436+Data!$O$437) ) ) * OFFSET( POWER_OPT, OFFSET( OPTIMIZATION, 0, 3), 2)) * $U$1 ) -> 0 | AE66: 0 | AF66: 0
J67: 0.125 | K67: 8 | L67: 0 | M67: 0 | O67: 0 | P67: 0 | Q67: 5.309573445 | U67: 0.0008136315897 | W67: =(VCCINT/1000)*VCCINT*(IF($T67>0,$T67,($L67/2*(($F67*(Data!$N$435)))* OFFSET(POWER_OPT,OFFSET(OPTIMIZATION,0,3),2))*$U$1)) -> 0 | X67: =(VCCINT/1000)*VCCINT*(IF($T67>0,$T67,($L67/2*($G67*(Data!$P$435))))* OFFSET(POWER_OPT,OFFSET(OPTIMIZATION,0,3),2))*$U$1 -> 0 | Y67: =(VCCINT/1000)*VCCINT*(IF($T67>0,$T67,($L67/2*($H67*(Data!$Q$435))))* OFFSET(POWER_OPT,OFFSET(OPTIMIZATION,0,3),2))*$U$1 -> 0 | Z67: =( VCCINT / 1000 ) * VCCINT * ( IF( $T67 > 0, $T67, ( $L67 / 2 * ( ( $I67 * ( Data!$O$435 ) ) ) ) *OFFSET( POWER_OPT, OFFSET( OPTIMIZATION, 0, 3), 2)) * $U$1 ) -> 0 | AA67: =(VCCINT/1000)*VCCINT*(IF($T67 > 0, $T67,($L67/2*(($F67)*(Q67*Data!$N$436+Data!$N$437))))* OFFSET(POWER_OPT,OFFSET(OPTIMIZATION,0,3),2))*$U$1 -> 0 | AB67: =(VCCINT/1000)*VCCINT*(IF($T67 > 0, $T67,($L67/2*($G67*(Q67*Data!$P$436+Data!$P$437))))* OFFSET(POWER_OPT,OFFSET(OPTIMIZATION,0,3),2))*$U$1 -> 0 | AC67: =(VCCINT/1000)*VCCINT*(IF($T67 > 0, $T67,($L67/2*($H67*(Q67*Data!$Q$436+Data!$Q$437))))* OFFSET(POWER_OPT,OFFSET(OPTIMIZATION,0,3),2))*$U$1 -> 0 | AD67: =( VCCINT / 1000 ) * VCCINT * ( IF( $T67 > 0, $T67, ( $L67 / 2 * ( ( $I67 ) * (Q67*Data!$O$436+Data!$O$437) ) ) * OFFSET( POWER_OPT, OFFSET( OPTIMIZATION, 0, 3), 2)) * $U$1 ) -> 0 | AE67: 0 | AF67: 0
J68: 0.125 | K68: 8 | L68: 0 | M68: 0 | O68: 0 | P68: 0 | Q68: 5.309573445 | U68: 0.0008136315897 | W68: =(VCCINT/1000)*VCCINT*(IF($T68>0,$T68,($L68/2*(($F68*(Data!$N$435)))* OFFSET(POWER_OPT,OFFSET(OPTIMIZATION,0,3),2))*$U$1)) -> 0 | X68: =(VCCINT/1000)*VCCINT*(IF($T68>0,$T68,($L68/2*($G68*(Data!$P$435))))* OFFSET(POWER_OPT,OFFSET(OPTIMIZATION,0,3),2))*$U$1 -> 0 | Y68: =(VCCINT/1000)*VCCINT*(IF($T68>0,$T68,($L68/2*($H68*(Data!$Q$435))))* OFFSET(POWER_OPT,OFFSET(OPTIMIZATION,0,3),2))*$U$1 -> 0 | Z68: =( VCCINT / 1000 ) * VCCINT * ( IF( $T68 > 0, $T68, ( $L68 / 2 * ( ( $I68 * ( Data!$O$435 ) ) ) ) *OFFSET( POWER_OPT, OFFSET( OPTIMIZATION, 0, 3), 2)) * $U$1 ) -> 0 | AA68: =(VCCINT/1000)*VCCINT*(IF($T68 > 0, $T68,($L68/2*(($F68)*(Q68*Data!$N$436+Data!$N$437))))* OFFSET(POWER_OPT,OFFSET(OPTIMIZATION,0,3),2))*$U$1 -> 0 | AB68: =(VCCINT/1000)*VCCINT*(IF($T68 > 0, $T68,($L68/2*($G68*(Q68*Data!$P$436+Data!$P$437))))* OFFSET(POWER_OPT,OFFSET(OPTIMIZATION,0,3),2))*$U$1 -> 0 | AC68: =(VCCINT/1000)*VCCINT*(IF($T68 > 0, $T68,($L68/2*($H68*(Q68*Data!$Q$436+Data!$Q$437))))* OFFSET(POWER_OPT,OFFSET(OPTIMIZATION,0,3),2))*$U$1 -> 0 | AD68: =( VCCINT / 1000 ) * VCCINT * ( IF( $T68 > 0, $T68, ( $L68 / 2 * ( ( $I68 ) * (Q68*Data!$O$436+Data!$O$437) ) ) * OFFSET( POWER_OPT, OFFSET( OPTIMIZATION, 0, 3), 2)) * $U$1 ) -> 0 | AE68: 0 | AF68: 0
J69: 0.125 | K69: 8 | L69: 0 | M69: 0 | O69: 0 | P69: 0 | Q69: 5.309573445 | U69: 0.0008136315897 | W69: =(VCCINT/1000)*VCCINT*(IF($T69>0,$T69,($L69/2*(($F69*(Data!$N$435)))* OFFSET(POWER_OPT,OFFSET(OPTIMIZATION,0,3),2))*$U$1)) -> 0 | X69: =(VCCINT/1000)*VCCINT*(IF($T69>0,$T69,($L69/2*($G69*(Data!$P$435))))* OFFSET(POWER_OPT,OFFSET(OPTIMIZATION,0,3),2))*$U$1 -> 0 | Y69: =(VCCINT/1000)*VCCINT*(IF($T69>0,$T69,($L69/2*($H69*(Data!$Q$435))))* OFFSET(POWER_OPT,OFFSET(OPTIMIZATION,0,3),2))*$U$1 -> 0 | Z69: =( VCCINT / 1000 ) * VCCINT * ( IF( $T69 > 0, $T69, ( $L69 / 2 * ( ( $I69 * ( Data!$O$435 ) ) ) ) *OFFSET( POWER_OPT, OFFSET( OPTIMIZATION, 0, 3), 2)) * $U$1 ) -> 0 | AA69: =(VCCINT/1000)*VCCINT*(IF($T69 > 0, $T69,($L69/2*(($F69)*(Q69*Data!$N$436+Data!$N$437))))* OFFSET(POWER_OPT,OFFSET(OPTIMIZATION,0,3),2))*$U$1 -> 0 | AB69: =(VCCINT/1000)*VCCINT*(IF($T69 > 0, $T69,($L69/2*($G69*(Q69*Data!$P$436+Data!$P$437))))* OFFSET(POWER_OPT,OFFSET(OPTIMIZATION,0,3),2))*$U$1 -> 0 | AC69: =(VCCINT/1000)*VCCINT*(IF($T69 > 0, $T69,($L69/2*($H69*(Q69*Data!$Q$436+Data!$Q$437))))* OFFSET(POWER_OPT,OFFSET(OPTIMIZATION,0,3),2))*$U$1 -> 0 | AD69: =( VCCINT / 1000 ) * VCCINT * ( IF( $T69 > 0, $T69, ( $L69 / 2 * ( ( $I69 ) * (Q69*Data!$O$436+Data!$O$437) ) ) * OFFSET( POWER_OPT, OFFSET( OPTIMIZATION, 0, 3), 2)) * $U$1 ) -> 0 | AE69: 0 | AF69: 0
J70: 0.125 | K70: 8 | L70: 0 | M70: 0 | O70: 0 | P70: 0 | Q70: 5.309573445 | U70: 0.0008136315897 | W70: =(VCCINT/1000)*VCCINT*(IF($T70>0,$T70,($L70/2*(($F70*(Data!$N$435)))* OFFSET(POWER_OPT,OFFSET(OPTIMIZATION,0,3),2))*$U$1)) -> 0 | X70: =(VCCINT/1000)*VCCINT*(IF($T70>0,$T70,($L70/2*($G70*(Data!$P$435))))* OFFSET(POWER_OPT,OFFSET(OPTIMIZATION,0,3),2))*$U$1 -> 0 | Y70: =(VCCINT/1000)*VCCINT*(IF($T70>0,$T70,($L70/2*($H70*(Data!$Q$435))))* OFFSET(POWER_OPT,OFFSET(OPTIMIZATION,0,3),2))*$U$1 -> 0 | Z70: =( VCCINT / 1000 ) * VCCINT * ( IF( $T70 > 0, $T70, ( $L70 / 2 * ( ( $I70 * ( Data!$O$435 ) ) ) ) *OFFSET( POWER_OPT, OFFSET( OPTIMIZATION, 0, 3), 2)) * $U$1 ) -> 0 | AA70: =(VCCINT/1000)*VCCINT*(IF($T70 > 0, $T70,($L70/2*(($F70)*(Q70*Data!$N$436+Data!$N$437))))* OFFSET(POWER_OPT,OFFSET(OPTIMIZATION,0,3),2))*$U$1 -> 0 | AB70: =(VCCINT/1000)*VCCINT*(IF($T70 > 0, $T70,($L70/2*($G70*(Q70*Data!$P$436+Data!$P$437))))* OFFSET(POWER_OPT,OFFSET(OPTIMIZATION,0,3),2))*$U$1 -> 0 | AC70: =(VCCINT/1000)*VCCINT*(IF($T70 > 0, $T70,($L70/2*($H70*(Q70*Data!$Q$436+Data!$Q$437))))* OFFSET(POWER_OPT,OFFSET(OPTIMIZATION,0,3),2))*$U$1 -> 0 | AD70: =( VCCINT / 1000 ) * VCCINT * ( IF( $T70 > 0, $T70, ( $L70 / 2 * ( ( $I70 ) * (Q70*Data!$O$436+Data!$O$437) ) ) * OFFSET( POWER_OPT, OFFSET( OPTIMIZATION, 0, 3), 2)) * $U$1 ) -> 0 | AE70: 0 | AF70: 0
J71: 0.125 | K71: 8 | L71: 0 | M71: 0 | O71: 0 | P71: 0 | Q71: 5.309573445 | U71: 0.0008136315897 | W71: =(VCCINT/1000)*VCCINT*(IF($T71>0,$T71,($L71/2*(($F71*(Data!$N$435)))* OFFSET(POWER_OPT,OFFSET(OPTIMIZATION,0,3),2))*$U$1)) -> 0 | X71: =(VCCINT/1000)*VCCINT*(IF($T71>0,$T71,($L71/2*($G71*(Data!$P$435))))* OFFSET(POWER_OPT,OFFSET(OPTIMIZATION,0,3),2))*$U$1 -> 0 | Y71: =(VCCINT/1000)*VCCINT*(IF($T71>0,$T71,($L71/2*($H71*(Data!$Q$435))))* OFFSET(POWER_OPT,OFFSET(OPTIMIZATION,0,3),2))*$U$1 -> 0 | Z71: =( VCCINT / 1000 ) * VCCINT * ( IF( $T71 > 0, $T71, ( $L71 / 2 * ( ( $I71 * ( Data!$O$435 ) ) ) ) *OFFSET( POWER_OPT, OFFSET( OPTIMIZATION, 0, 3), 2)) * $U$1 ) -> 0 | AA71: =(VCCINT/1000)*VCCINT*(IF($T71 > 0, $T71,($L71/2*(($F71)*(Q71*Data!$N$436+Data!$N$437))))* OFFSET(POWER_OPT,OFFSET(OPTIMIZATION,0,3),2))*$U$1 -> 0 | AB71: =(VCCINT/1000)*VCCINT*(IF($T71 > 0, $T71,($L71/2*($G71*(Q71*Data!$P$436+Data!$P$437))))* OFFSET(POWER_OPT,OFFSET(OPTIMIZATION,0,3),2))*$U$1 -> 0 | AC71: =(VCCINT/1000)*VCCINT*(IF($T71 > 0, $T71,($L71/2*($H71*(Q71*Data!$Q$436+Data!$Q$437))))* OFFSET(POWER_OPT,OFFSET(OPTIMIZATION,0,3),2))*$U$1 -> 0 | AD71: =( VCCINT / 1000 ) * VCCINT * ( IF( $T71 > 0, $T71, ( $L71 / 2 * ( ( $I71 ) * (Q71*Data!$O$436+Data!$O$437) ) ) * OFFSET( POWER_OPT, OFFSET( OPTIMIZATION, 0, 3), 2)) * $U$1 ) -> 0 | AE71: 0 | AF71: 0
J72: 0.125 | K72: 8 | L72: 0 | M72: 0 | O72: 0 | P72: 0 | Q72: 5.309573445 | U72: 0.0008136315897 | W72: =(VCCINT/1000)*VCCINT*(IF($T72>0,$T72,($L72/2*(($F72*(Data!$N$435)))* OFFSET(POWER_OPT,OFFSET(OPTIMIZATION,0,3),2))*$U$1)) -> 0 | X72: =(VCCINT/1000)*VCCINT*(IF($T72>0,$T72,($L72/2*($G72*(Data!$P$435))))* OFFSET(POWER_OPT,OFFSET(OPTIMIZATION,0,3),2))*$U$1 -> 0 | Y72: =(VCCINT/1000)*VCCINT*(IF($T72>0,$T72,($L72/2*($H72*(Data!$Q$435))))* OFFSET(POWER_OPT,OFFSET(OPTIMIZATION,0,3),2))*$U$1 -> 0 | Z72: =( VCCINT / 1000 ) * VCCINT * ( IF( $T72 > 0, $T72, ( $L72 / 2 * ( ( $I72 * ( Data!$O$435 ) ) ) ) *OFFSET( POWER_OPT, OFFSET( OPTIMIZATION, 0, 3), 2)) * $U$1 ) -> 0 | AA72: =(VCCINT/1000)*VCCINT*(IF($T72 > 0, $T72,($L72/2*(($F72)*(Q72*Data!$N$436+Data!$N$437))))* OFFSET(POWER_OPT,OFFSET(OPTIMIZATION,0,3),2))*$U$1 -> 0 | AB72: =(VCCINT/1000)*VCCINT*(IF($T72 > 0, $T72,($L72/2*($G72*(Q72*Data!$P$436+Data!$P$437))))* OFFSET(POWER_OPT,OFFSET(OPTIMIZATION,0,3),2))*$U$1 -> 0 | AC72: =(VCCINT/1000)*VCCINT*(IF($T72 > 0, $T72,($L72/2*($H72*(Q72*Data!$Q$436+Data!$Q$437))))* OFFSET(POWER_OPT,OFFSET(OPTIMIZATION,0,3),2))*$U$1 -> 0 | AD72: =( VCCINT / 1000 ) * VCCINT * ( IF( $T72 > 0, $T72, ( $L72 / 2 * ( ( $I72 ) * (Q72*Data!$O$436+Data!$O$437) ) ) * OFFSET( POWER_OPT, OFFSET( OPTIMIZATION, 0, 3), 2)) * $U$1 ) -> 0 | AE72: 0 | AF72: 0
J73: 0.125 | K73: 8 | L73: 0 | M73: 0 | O73: 0 | P73: 0 | Q73: 5.309573445 | U73: 0.0008136315897 | W73: =(VCCINT/1000)*VCCINT*(IF($T73>0,$T73,($L73/2*(($F73*(Data!$N$435)))* OFFSET(POWER_OPT,OFFSET(OPTIMIZATION,0,3),2))*$U$1)) -> 0 | X73: =(VCCINT/1000)*VCCINT*(IF($T73>0,$T73,($L73/2*($G73*(Data!$P$435))))* OFFSET(POWER_OPT,OFFSET(OPTIMIZATION,0,3),2))*$U$1 -> 0 | Y73: =(VCCINT/1000)*VCCINT*(IF($T73>0,$T73,($L73/2*($H73*(Data!$Q$435))))* OFFSET(POWER_OPT,OFFSET(OPTIMIZATION,0,3),2))*$U$1 -> 0 | Z73: =( VCCINT / 1000 ) * VCCINT * ( IF( $T73 > 0, $T73, ( $L73 / 2 * ( ( $I73 * ( Data!$O$435 ) ) ) ) *OFFSET( POWER_OPT, OFFSET( OPTIMIZATION, 0, 3), 2)) * $U$1 ) -> 0 | AA73: =(VCCINT/1000)*VCCINT*(IF($T73 > 0, $T73,($L73/2*(($F73)*(Q73*Data!$N$436+Data!$N$437))))* OFFSET(POWER_OPT,OFFSET(OPTIMIZATION,0,3),2))*$U$1 -> 0 | AB73: =(VCCINT/1000)*VCCINT*(IF($T73 > 0, $T73,($L73/2*($G73*(Q73*Data!$P$436+Data!$P$437))))* OFFSET(POWER_OPT,OFFSET(OPTIMIZATION,0,3),2))*$U$1 -> 0 | AC73: =(VCCINT/1000)*VCCINT*(IF($T73 > 0, $T73,($L73/2*($H73*(Q73*Data!$Q$436+Data!$Q$437))))* OFFSET(POWER_OPT,OFFSET(OPTIMIZATION,0,3),2))*$U$1 -> 0 | AD73: =( VCCINT / 1000 ) * VCCINT * ( IF( $T73 > 0, $T73, ( $L73 / 2 * ( ( $I73 ) * (Q73*Data!$O$436+Data!$O$437) ) ) * OFFSET( POWER_OPT, OFFSET( OPTIMIZATION, 0, 3), 2)) * $U$1 ) -> 0 | AE73: 0 | AF73: 0
J74: 0.125 | K74: 8 | L74: 0 | M74: 0 | O74: 0 | P74: 0 | Q74: 5.309573445 | U74: 0.0008136315897 | W74: =(VCCINT/1000)*VCCINT*(IF($T74>0,$T74,($L74/2*(($F74*(Data!$N$435)))* OFFSET(POWER_OPT,OFFSET(OPTIMIZATION,0,3),2))*$U$1)) -> 0 | X74: =(VCCINT/1000)*VCCINT*(IF($T74>0,$T74,($L74/2*($G74*(Data!$P$435))))* OFFSET(POWER_OPT,OFFSET(OPTIMIZATION,0,3),2))*$U$1 -> 0 | Y74: =(VCCINT/1000)*VCCINT*(IF($T74>0,$T74,($L74/2*($H74*(Data!$Q$435))))* OFFSET(POWER_OPT,OFFSET(OPTIMIZATION,0,3),2))*$U$1 -> 0 | Z74: =( VCCINT / 1000 ) * VCCINT * ( IF( $T74 > 0, $T74, ( $L74 / 2 * ( ( $I74 * ( Data!$O$435 ) ) ) ) *OFFSET( POWER_OPT, OFFSET( OPTIMIZATION, 0, 3), 2)) * $U$1 ) -> 0 | AA74: =(VCCINT/1000)*VCCINT*(IF($T74 > 0, $T74,($L74/2*(($F74)*(Q74*Data!$N$436+Data!$N$437))))* OFFSET(POWER_OPT,OFFSET(OPTIMIZATION,0,3),2))*$U$1 -> 0 | AB74: =(VCCINT/1000)*VCCINT*(IF($T74 > 0, $T74,($L74/2*($G74*(Q74*Data!$P$436+Data!$P$437))))* OFFSET(POWER_OPT,OFFSET(OPTIMIZATION,0,3),2))*$U$1 -> 0 | AC74: =(VCCINT/1000)*VCCINT*(IF($T74 > 0, $T74,($L74/2*($H74*(Q74*Data!$Q$436+Data!$Q$437))))* OFFSET(POWER_OPT,OFFSET(OPTIMIZATION,0,3),2))*$U$1 -> 0 | AD74: =( VCCINT / 1000 ) * VCCINT * ( IF( $T74 > 0, $T74, ( $L74 / 2 * ( ( $I74 ) * (Q74*Data!$O$436+Data!$O$437) ) ) * OFFSET( POWER_OPT, OFFSET( OPTIMIZATION, 0, 3), 2)) * $U$1 ) -> 0 | AE74: 0 | AF74: 0
J75: 0.125 | K75: 8 | L75: 0 | M75: 0 | O75: 0 | P75: 0 | Q75: 5.309573445 | U75: 0.0008136315897 | W75: =(VCCINT/1000)*VCCINT*(IF($T75>0,$T75,($L75/2*(($F75*(Data!$N$435)))* OFFSET(POWER_OPT,OFFSET(OPTIMIZATION,0,3),2))*$U$1)) -> 0 | X75: =(VCCINT/1000)*VCCINT*(IF($T75>0,$T75,($L75/2*($G75*(Data!$P$435))))* OFFSET(POWER_OPT,OFFSET(OPTIMIZATION,0,3),2))*$U$1 -> 0 | Y75: =(VCCINT/1000)*VCCINT*(IF($T75>0,$T75,($L75/2*($H75*(Data!$Q$435))))* OFFSET(POWER_OPT,OFFSET(OPTIMIZATION,0,3),2))*$U$1 -> 0 | Z75: =( VCCINT / 1000 ) * VCCINT * ( IF( $T75 > 0, $T75, ( $L75 / 2 * ( ( $I75 * ( Data!$O$435 ) ) ) ) *OFFSET( POWER_OPT, OFFSET( OPTIMIZATION, 0, 3), 2)) * $U$1 ) -> 0 | AA75: =(VCCINT/1000)*VCCINT*(IF($T75 > 0, $T75,($L75/2*(($F75)*(Q75*Data!$N$436+Data!$N$437))))* OFFSET(POWER_OPT,OFFSET(OPTIMIZATION,0,3),2))*$U$1 -> 0 | AB75: =(VCCINT/1000)*VCCINT*(IF($T75 > 0, $T75,($L75/2*($G75*(Q75*Data!$P$436+Data!$P$437))))* OFFSET(POWER_OPT,OFFSET(OPTIMIZATION,0,3),2))*$U$1 -> 0 | AC75: =(VCCINT/1000)*VCCINT*(IF($T75 > 0, $T75,($L75/2*($H75*(Q75*Data!$Q$436+Data!$Q$437))))* OFFSET(POWER_OPT,OFFSET(OPTIMIZATION,0,3),2))*$U$1 -> 0 | AD75: =( VCCINT / 1000 ) * VCCINT * ( IF( $T75 > 0, $T75, ( $L75 / 2 * ( ( $I75 ) * (Q75*Data!$O$436+Data!$O$437) ) ) * OFFSET( POWER_OPT, OFFSET( OPTIMIZATION, 0, 3), 2)) * $U$1 ) -> 0 | AE75: 0 | AF75: 0
J76: 0.125 | K76: 8 | L76: =E76*J76 -> 0 | M76: =IF(TRUE,SUM(AE76:AF76),(VCCINT/1000)*VCCINT_N*IF($R76>0,$R76,($L76/2*(($F76+$I76)*0.45*$U76+($F76*(OFFSET(FANOUT,8,2))+$G76*(OFFSET(FANOUT,8,4)+$U76)+$H76*(OFFSET(FANOUT,8,5)+$U76)+$I76*(OFFSET(FANOUT,8,3)))))*OFFSET(POWER_OPT,OFFSET(OPTIMIZATION,0,3),2))*$U$1) -> 0 | O76: 0 | P76: 0 | Q76: 5.309573445 | U76: 0.0008136315897 | W76: =(VCCINT/1000)*VCCINT*(IF($T76>0,$T76,($L76/2*(($F76*(Data!$N$435)))* OFFSET(POWER_OPT,OFFSET(OPTIMIZATION,0,3),2))*$U$1)) -> 0 | X76: =(VCCINT/1000)*VCCINT*(IF($T76>0,$T76,($L76/2*($G76*(Data!$P$435))))* OFFSET(POWER_OPT,OFFSET(OPTIMIZATION,0,3),2))*$U$1 -> 0 | Y76: =(VCCINT/1000)*VCCINT*(IF($T76>0,$T76,($L76/2*($H76*(Data!$Q$435))))* OFFSET(POWER_OPT,OFFSET(OPTIMIZATION,0,3),2))*$U$1 -> 0 | Z76: =( VCCINT / 1000 ) * VCCINT * ( IF( $T76 > 0, $T76, ( $L76 / 2 * ( ( $I76 * ( Data!$O$435 ) ) ) ) *OFFSET( POWER_OPT, OFFSET( OPTIMIZATION, 0, 3), 2)) * $U$1 ) -> 0 | AA76: =(VCCINT/1000)*VCCINT*(IF($T76 > 0, $T76,($L76/2*(($F76)*(Q76*Data!$N$436+Data!$N$437))))* OFFSET(POWER_OPT,OFFSET(OPTIMIZATION,0,3),2))*$U$1 -> 0 | AB76: =(VCCINT/1000)*VCCINT*(IF($T76 > 0, $T76,($L76/2*($G76*(Q76*Data!$P$436+Data!$P$437))))* OFFSET(POWER_OPT,OFFSET(OPTIMIZATION,0,3),2))*$U$1 -> 0 | AC76: =(VCCINT/1000)*VCCINT*(IF($T76 > 0, $T76,($L76/2*($H76*(Q76*Data!$Q$436+Data!$Q$437))))* OFFSET(POWER_OPT,OFFSET(OPTIMIZATION,0,3),2))*$U$1 -> 0 | AD76: =( VCCINT / 1000 ) * VCCINT * ( IF( $T76 > 0, $T76, ( $L76 / 2 * ( ( $I76 ) * (Q76*Data!$O$436+Data!$O$437) ) ) * OFFSET( POWER_OPT, OFFSET( OPTIMIZATION, 0, 3), 2)) * $U$1 ) -> 0 | AE76: 0 | AF76: 0
J77: 0.125 | K77: 8 | L77: 0 | M77: 0 | O77: 0 | P77: 0 | Q77: =10^(K77/10)-1 -> 5.309573445 | U77: 0.0008136315897 | W77: =(VCCINT/1000)*VCCINT*(IF($T77>0,$T77,($L77/2*(($F77*(Data!$N$435)))* OFFSET(POWER_OPT,OFFSET(OPTIMIZATION,0,3),2))*$U$1)) -> 0 | X77: =(VCCINT/1000)*VCCINT*(IF($T77>0,$T77,($L77/2*($G77*(Data!$P$435))))* OFFSET(POWER_OPT,OFFSET(OPTIMIZATION,0,3),2))*$U$1 -> 0 | Y77: =(VCCINT/1000)*VCCINT*(IF($T77>0,$T77,($L77/2*($H77*(Data!$Q$435))))* OFFSET(POWER_OPT,OFFSET(OPTIMIZATION,0,3),2))*$U$1 -> 0 | Z77: =( VCCINT / 1000 ) * VCCINT * ( IF( $T77 > 0, $T77, ( $L77 / 2 * ( ( $I77 * ( Data!$O$435 ) ) ) ) *OFFSET( POWER_OPT, OFFSET( OPTIMIZATION, 0, 3), 2)) * $U$1 ) -> 0 | AA77: =(VCCINT/1000)*VCCINT*(IF($T77 > 0, $T77,($L77/2*(($F77)*(Q77*Data!$N$436+Data!$N$437))))* OFFSET(POWER_OPT,OFFSET(OPTIMIZATION,0,3),2))*$U$1 -> 0 | AB77: =(VCCINT/1000)*VCCINT*(IF($T77 > 0, $T77,($L77/2*($G77*(Q77*Data!$P$436+Data!$P$437))))* OFFSET(POWER_OPT,OFFSET(OPTIMIZATION,0,3),2))*$U$1 -> 0 | AC77: =(VCCINT/1000)*VCCINT*(IF($T77 > 0, $T77,($L77/2*($H77*(Q77*Data!$Q$436+Data!$Q$437))))* OFFSET(POWER_OPT,OFFSET(OPTIMIZATION,0,3),2))*$U$1 -> 0 | AD77: =( VCCINT / 1000 ) * VCCINT * ( IF( $T77 > 0, $T77, ( $L77 / 2 * ( ( $I77 ) * (Q77*Data!$O$436+Data!$O$437) ) ) * OFFSET( POWER_OPT, OFFSET( OPTIMIZATION, 0, 3), 2)) * $U$1 ) -> 0 | AE77: =SUM(W77:Z77) -> 0 | AF77: =SUM(AA77:AD77) -> 0
J78: 0.125 | K78: 8 | L78: 0 | M78: 0 | O78: 0 | P78: 0 | Q78: 5.309573445 | U78: 0.0008136315897 | W78: =(VCCINT/1000)*VCCINT*(IF($T78>0,$T78,($L78/2*(($F78*(Data!$N$435)))* OFFSET(POWER_OPT,OFFSET(OPTIMIZATION,0,3),2))*$U$1)) -> 0 | X78: =(VCCINT/1000)*VCCINT*(IF($T78>0,$T78,($L78/2*($G78*(Data!$P$435))))* OFFSET(POWER_OPT,OFFSET(OPTIMIZATION,0,3),2))*$U$1 -> 0 | Y78: =(VCCINT/1000)*VCCINT*(IF($T78>0,$T78,($L78/2*($H78*(Data!$Q$435))))* OFFSET(POWER_OPT,OFFSET(OPTIMIZATION,0,3),2))*$U$1 -> 0 | Z78: =( VCCINT / 1000 ) * VCCINT * ( IF( $T78 > 0, $T78, ( $L78 / 2 * ( ( $I78 * ( Data!$O$435 ) ) ) ) *OFFSET( POWER_OPT, OFFSET( OPTIMIZATION, 0, 3), 2)) * $U$1 ) -> 0 | AA78: =(VCCINT/1000)*VCCINT*(IF($T78 > 0, $T78,($L78/2*(($F78)*(Q78*Data!$N$436+Data!$N$437))))* OFFSET(POWER_OPT,OFFSET(OPTIMIZATION,0,3),2))*$U$1 -> 0 | AB78: =(VCCINT/1000)*VCCINT*(IF($T78 > 0, $T78,($L78/2*($G78*(Q78*Data!$P$436+Data!$P$437))))* OFFSET(POWER_OPT,OFFSET(OPTIMIZATION,0,3),2))*$U$1 -> 0 | AC78: =(VCCINT/1000)*VCCINT*(IF($T78 > 0, $T78,($L78/2*($H78*(Q78*Data!$Q$436+Data!$Q$437))))* OFFSET(POWER_OPT,OFFSET(OPTIMIZATION,0,3),2))*$U$1 -> 0 | AD78: =( VCCINT / 1000 ) * VCCINT * ( IF( $T78 > 0, $T78, ( $L78 / 2 * ( ( $I78 ) * (Q78*Data!$O$436+Data!$O$437) ) ) * OFFSET( POWER_OPT, OFFSET( OPTIMIZATION, 0, 3), 2)) * $U$1 ) -> 0 | AE78: 0 | AF78: 0
J79: 0.125 | K79: 8 | L79: 0 | M79: 0 | O79: 0 | P79: 0 | Q79: 5.309573445 | U79: 0.0008136315897 | W79: =(VCCINT/1000)*VCCINT*(IF($T79>0,$T79,($L79/2*(($F79*(Data!$N$435)))* OFFSET(POWER_OPT,OFFSET(OPTIMIZATION,0,3),2))*$U$1)) -> 0 | X79: =(VCCINT/1000)*VCCINT*(IF($T79>0,$T79,($L79/2*($G79*(Data!$P$435))))* OFFSET(POWER_OPT,OFFSET(OPTIMIZATION,0,3),2))*$U$1 -> 0 | Y79: =(VCCINT/1000)*VCCINT*(IF($T79>0,$T79,($L79/2*($H79*(Data!$Q$435))))* OFFSET(POWER_OPT,OFFSET(OPTIMIZATION,0,3),2))*$U$1 -> 0 | Z79: =( VCCINT / 1000 ) * VCCINT * ( IF( $T79 > 0, $T79, ( $L79 / 2 * ( ( $I79 * ( Data!$O$435 ) ) ) ) *OFFSET( POWER_OPT, OFFSET( OPTIMIZATION, 0, 3), 2)) * $U$1 ) -> 0 | AA79: =(VCCINT/1000)*VCCINT*(IF($T79 > 0, $T79,($L79/2*(($F79)*(Q79*Data!$N$436+Data!$N$437))))* OFFSET(POWER_OPT,OFFSET(OPTIMIZATION,0,3),2))*$U$1 -> 0 | AB79: =(VCCINT/1000)*VCCINT*(IF($T79 > 0, $T79,($L79/2*($G79*(Q79*Data!$P$436+Data!$P$437))))* OFFSET(POWER_OPT,OFFSET(OPTIMIZATION,0,3),2))*$U$1 -> 0 | AC79: =(VCCINT/1000)*VCCINT*(IF($T79 > 0, $T79,($L79/2*($H79*(Q79*Data!$Q$436+Data!$Q$437))))* OFFSET(POWER_OPT,OFFSET(OPTIMIZATION,0,3),2))*$U$1 -> 0 | AD79: =( VCCINT / 1000 ) * VCCINT * ( IF( $T79 > 0, $T79, ( $L79 / 2 * ( ( $I79 ) * (Q79*Data!$O$436+Data!$O$437) ) ) * OFFSET( POWER_OPT, OFFSET( OPTIMIZATION, 0, 3), 2)) * $U$1 ) -> 0 | AE79: 0 | AF79: 0
J80: 0.125 | K80: 8 | L80: 0 | M80: 0 | O80: 0 | P80: 0 | Q80: 5.309573445 | U80: 0.0008136315897 | W80: =(VCCINT/1000)*VCCINT*(IF($T80>0,$T80,($L80/2*(($F80*(Data!$N$435)))* OFFSET(POWER_OPT,OFFSET(OPTIMIZATION,0,3),2))*$U$1)) -> 0 | X80: =(VCCINT/1000)*VCCINT*(IF($T80>0,$T80,($L80/2*($G80*(Data!$P$435))))* OFFSET(POWER_OPT,OFFSET(OPTIMIZATION,0,3),2))*$U$1 -> 0 | Y80: =(VCCINT/1000)*VCCINT*(IF($T80>0,$T80,($L80/2*($H80*(Data!$Q$435))))* OFFSET(POWER_OPT,OFFSET(OPTIMIZATION,0,3),2))*$U$1 -> 0 | Z80: =( VCCINT / 1000 ) * VCCINT * ( IF( $T80 > 0, $T80, ( $L80 / 2 * ( ( $I80 * ( Data!$O$435 ) ) ) ) *OFFSET( POWER_OPT, OFFSET( OPTIMIZATION, 0, 3), 2)) * $U$1 ) -> 0 | AA80: =(VCCINT/1000)*VCCINT*(IF($T80 > 0, $T80,($L80/2*(($F80)*(Q80*Data!$N$436+Data!$N$437))))* OFFSET(POWER_OPT,OFFSET(OPTIMIZATION,0,3),2))*$U$1 -> 0 | AB80: =(VCCINT/1000)*VCCINT*(IF($T80 > 0, $T80,($L80/2*($G80*(Q80*Data!$P$436+Data!$P$437))))* OFFSET(POWER_OPT,OFFSET(OPTIMIZATION,0,3),2))*$U$1 -> 0 | AC80: =(VCCINT/1000)*VCCINT*(IF($T80 > 0, $T80,($L80/2*($H80*(Q80*Data!$Q$436+Data!$Q$437))))* OFFSET(POWER_OPT,OFFSET(OPTIMIZATION,0,3),2))*$U$1 -> 0 | AD80: =( VCCINT / 1000 ) * VCCINT * ( IF( $T80 > 0, $T80, ( $L80 / 2 * ( ( $I80 ) * (Q80*Data!$O$436+Data!$O$437) ) ) * OFFSET( POWER_OPT, OFFSET( OPTIMIZATION, 0, 3), 2)) * $U$1 ) -> 0 | AE80: 0 | AF80: 0
J81: 0.125 | K81: 8 | L81: 0 | M81: 0 | O81: 0 | P81: 0 | Q81: 5.309573445 | U81: 0.0008136315897 | W81: =(VCCINT/1000)*VCCINT*(IF($T81>0,$T81,($L81/2*(($F81*(Data!$N$435)))* OFFSET(POWER_OPT,OFFSET(OPTIMIZATION,0,3),2))*$U$1)) -> 0 | X81: =(VCCINT/1000)*VCCINT*(IF($T81>0,$T81,($L81/2*($G81*(Data!$P$435))))* OFFSET(POWER_OPT,OFFSET(OPTIMIZATION,0,3),2))*$U$1 -> 0 | Y81: =(VCCINT/1000)*VCCINT*(IF($T81>0,$T81,($L81/2*($H81*(Data!$Q$435))))* OFFSET(POWER_OPT,OFFSET(OPTIMIZATION,0,3),2))*$U$1 -> 0 | Z81: =( VCCINT / 1000 ) * VCCINT * ( IF( $T81 > 0, $T81, ( $L81 / 2 * ( ( $I81 * ( Data!$O$435 ) ) ) ) *OFFSET( POWER_OPT, OFFSET( OPTIMIZATION, 0, 3), 2)) * $U$1 ) -> 0 | AA81: =(VCCINT/1000)*VCCINT*(IF($T81 > 0, $T81,($L81/2*(($F81)*(Q81*Data!$N$436+Data!$N$437))))* OFFSET(POWER_OPT,OFFSET(OPTIMIZATION,0,3),2))*$U$1 -> 0 | AB81: =(VCCINT/1000)*VCCINT*(IF($T81 > 0, $T81,($L81/2*($G81*(Q81*Data!$P$436+Data!$P$437))))* OFFSET(POWER_OPT,OFFSET(OPTIMIZATION,0,3),2))*$U$1 -> 0 | AC81: =(VCCINT/1000)*VCCINT*(IF($T81 > 0, $T81,($L81/2*($H81*(Q81*Data!$Q$436+Data!$Q$437))))* OFFSET(POWER_OPT,OFFSET(OPTIMIZATION,0,3),2))*$U$1 -> 0 | AD81: =( VCCINT / 1000 ) * VCCINT * ( IF( $T81 > 0, $T81, ( $L81 / 2 * ( ( $I81 ) * (Q81*Data!$O$436+Data!$O$437) ) ) * OFFSET( POWER_OPT, OFFSET( OPTIMIZATION, 0, 3), 2)) * $U$1 ) -> 0 | AE81: 0 | AF81: 0
J82: 0.125 | K82: 8 | L82: 0 | M82: 0 | O82: 0 | P82: 0 | Q82: 5.309573445 | U82: 0.0008136315897 | W82: =(VCCINT/1000)*VCCINT*(IF($T82>0,$T82,($L82/2*(($F82*(Data!$N$435)))* OFFSET(POWER_OPT,OFFSET(OPTIMIZATION,0,3),2))*$U$1)) -> 0 | X82: =(VCCINT/1000)*VCCINT*(IF($T82>0,$T82,($L82/2*($G82*(Data!$P$435))))* OFFSET(POWER_OPT,OFFSET(OPTIMIZATION,0,3),2))*$U$1 -> 0 | Y82: =(VCCINT/1000)*VCCINT*(IF($T82>0,$T82,($L82/2*($H82*(Data!$Q$435))))* OFFSET(POWER_OPT,OFFSET(OPTIMIZATION,0,3),2))*$U$1 -> 0 | Z82: =( VCCINT / 1000 ) * VCCINT * ( IF( $T82 > 0, $T82, ( $L82 / 2 * ( ( $I82 * ( Data!$O$435 ) ) ) ) *OFFSET( POWER_OPT, OFFSET( OPTIMIZATION, 0, 3), 2)) * $U$1 ) -> 0 | AA82: =(VCCINT/1000)*VCCINT*(IF($T82 > 0, $T82,($L82/2*(($F82)*(Q82*Data!$N$436+Data!$N$437))))* OFFSET(POWER_OPT,OFFSET(OPTIMIZATION,0,3),2))*$U$1 -> 0 | AB82: =(VCCINT/1000)*VCCINT*(IF($T82 > 0, $T82,($L82/2*($G82*(Q82*Data!$P$436+Data!$P$437))))* OFFSET(POWER_OPT,OFFSET(OPTIMIZATION,0,3),2))*$U$1 -> 0 | AC82: =(VCCINT/1000)*VCCINT*(IF($T82 > 0, $T82,($L82/2*($H82*(Q82*Data!$Q$436+Data!$Q$437))))* OFFSET(POWER_OPT,OFFSET(OPTIMIZATION,0,3),2))*$U$1 -> 0 | AD82: =( VCCINT / 1000 ) * VCCINT * ( IF( $T82 > 0, $T82, ( $L82 / 2 * ( ( $I82 ) * (Q82*Data!$O$436+Data!$O$437) ) ) * OFFSET( POWER_OPT, OFFSET( OPTIMIZATION, 0, 3), 2)) * $U$1 ) -> 0 | AE82: 0 | AF82: 0
J83: 0.125 | K83: 8 | L83: 0 | M83: 0 | O83: 0 | P83: 0 | Q83: 5.309573445 | U83: 0.0008136315897 | W83: =(VCCINT/1000)*VCCINT*(IF($T83>0,$T83,($L83/2*(($F83*(Data!$N$435)))* OFFSET(POWER_OPT,OFFSET(OPTIMIZATION,0,3),2))*$U$1)) -> 0 | X83: =(VCCINT/1000)*VCCINT*(IF($T83>0,$T83,($L83/2*($G83*(Data!$P$435))))* OFFSET(POWER_OPT,OFFSET(OPTIMIZATION,0,3),2))*$U$1 -> 0 | Y83: =(VCCINT/1000)*VCCINT*(IF($T83>0,$T83,($L83/2*($H83*(Data!$Q$435))))* OFFSET(POWER_OPT,OFFSET(OPTIMIZATION,0,3),2))*$U$1 -> 0 | Z83: =( VCCINT / 1000 ) * VCCINT * ( IF( $T83 > 0, $T83, ( $L83 / 2 * ( ( $I83 * ( Data!$O$435 ) ) ) ) *OFFSET( POWER_OPT, OFFSET( OPTIMIZATION, 0, 3), 2)) * $U$1 ) -> 0 | AA83: =(VCCINT/1000)*VCCINT*(IF($T83 > 0, $T83,($L83/2*(($F83)*(Q83*Data!$N$436+Data!$N$437))))* OFFSET(POWER_OPT,OFFSET(OPTIMIZATION,0,3),2))*$U$1 -> 0 | AB83: =(VCCINT/1000)*VCCINT*(IF($T83 > 0, $T83,($L83/2*($G83*(Q83*Data!$P$436+Data!$P$437))))* OFFSET(POWER_OPT,OFFSET(OPTIMIZATION,0,3),2))*$U$1 -> 0 | AC83: =(VCCINT/1000)*VCCINT*(IF($T83 > 0, $T83,($L83/2*($H83*(Q83*Data!$Q$436+Data!$Q$437))))* OFFSET(POWER_OPT,OFFSET(OPTIMIZATION,0,3),2))*$U$1 -> 0 | AD83: =( VCCINT / 1000 ) * VCCINT * ( IF( $T83 > 0, $T83, ( $L83 / 2 * ( ( $I83 ) * (Q83*Data!$O$436+Data!$O$437) ) ) * OFFSET( POWER_OPT, OFFSET( OPTIMIZATION, 0, 3), 2)) * $U$1 ) -> 0 | AE83: 0 | AF83: 0
J84: 0.125 | K84: 8 | L84: 0 | M84: 0 | O84: 0 | P84: 0 | Q84: 5.309573445 | U84: 0.0008136315897 | W84: =(VCCINT/1000)*VCCINT*(IF($T84>0,$T84,($L84/2*(($F84*(Data!$N$435)))* OFFSET(POWER_OPT,OFFSET(OPTIMIZATION,0,3),2))*$U$1)) -> 0 | X84: =(VCCINT/1000)*VCCINT*(IF($T84>0,$T84,($L84/2*($G84*(Data!$P$435))))* OFFSET(POWER_OPT,OFFSET(OPTIMIZATION,0,3),2))*$U$1 -> 0 | Y84: =(VCCINT/1000)*VCCINT*(IF($T84>0,$T84,($L84/2*($H84*(Data!$Q$435))))* OFFSET(POWER_OPT,OFFSET(OPTIMIZATION,0,3),2))*$U$1 -> 0 | Z84: =( VCCINT / 1000 ) * VCCINT * ( IF( $T84 > 0, $T84, ( $L84 / 2 * ( ( $I84 * ( Data!$O$435 ) ) ) ) *OFFSET( POWER_OPT, OFFSET( OPTIMIZATION, 0, 3), 2)) * $U$1 ) -> 0 | AA84: =(VCCINT/1000)*VCCINT*(IF($T84 > 0, $T84,($L84/2*(($F84)*(Q84*Data!$N$436+Data!$N$437))))* OFFSET(POWER_OPT,OFFSET(OPTIMIZATION,0,3),2))*$U$1 -> 0 | AB84: =(VCCINT/1000)*VCCINT*(IF($T84 > 0, $T84,($L84/2*($G84*(Q84*Data!$P$436+Data!$P$437))))* OFFSET(POWER_OPT,OFFSET(OPTIMIZATION,0,3),2))*$U$1 -> 0 | AC84: =(VCCINT/1000)*VCCINT*(IF($T84 > 0, $T84,($L84/2*($H84*(Q84*Data!$Q$436+Data!$Q$437))))* OFFSET(POWER_OPT,OFFSET(OPTIMIZATION,0,3),2))*$U$1 -> 0 | AD84: =( VCCINT / 1000 ) * VCCINT * ( IF( $T84 > 0, $T84, ( $L84 / 2 * ( ( $I84 ) * (Q84*Data!$O$436+Data!$O$437) ) ) * OFFSET( POWER_OPT, OFFSET( OPTIMIZATION, 0, 3), 2)) * $U$1 ) -> 0 | AE84: 0 | AF84: 0
J85: 0.125 | K85: 8 | L85: 0 | M85: 0 | O85: 0 | P85: 0 | Q85: 5.309573445 | U85: 0.0008136315897 | W85: =(VCCINT/1000)*VCCINT*(IF($T85>0,$T85,($L85/2*(($F85*(Data!$N$435)))* OFFSET(POWER_OPT,OFFSET(OPTIMIZATION,0,3),2))*$U$1)) -> 0 | X85: =(VCCINT/1000)*VCCINT*(IF($T85>0,$T85,($L85/2*($G85*(Data!$P$435))))* OFFSET(POWER_OPT,OFFSET(OPTIMIZATION,0,3),2))*$U$1 -> 0 | Y85: =(VCCINT/1000)*VCCINT*(IF($T85>0,$T85,($L85/2*($H85*(Data!$Q$435))))* OFFSET(POWER_OPT,OFFSET(OPTIMIZATION,0,3),2))*$U$1 -> 0 | Z85: =( VCCINT / 1000 ) * VCCINT * ( IF( $T85 > 0, $T85, ( $L85 / 2 * ( ( $I85 * ( Data!$O$435 ) ) ) ) *OFFSET( POWER_OPT, OFFSET( OPTIMIZATION, 0, 3), 2)) * $U$1 ) -> 0 | AA85: =(VCCINT/1000)*VCCINT*(IF($T85 > 0, $T85,($L85/2*(($F85)*(Q85*Data!$N$436+Data!$N$437))))* OFFSET(POWER_OPT,OFFSET(OPTIMIZATION,0,3),2))*$U$1 -> 0 | AB85: =(VCCINT/1000)*VCCINT*(IF($T85 > 0, $T85,($L85/2*($G85*(Q85*Data!$P$436+Data!$P$437))))* OFFSET(POWER_OPT,OFFSET(OPTIMIZATION,0,3),2))*$U$1 -> 0 | AC85: =(VCCINT/1000)*VCCINT*(IF($T85 > 0, $T85,($L85/2*($H85*(Q85*Data!$Q$436+Data!$Q$437))))* OFFSET(POWER_OPT,OFFSET(OPTIMIZATION,0,3),2))*$U$1 -> 0 | AD85: =( VCCINT / 1000 ) * VCCINT * ( IF( $T85 > 0, $T85, ( $L85 / 2 * ( ( $I85 ) * (Q85*Data!$O$436+Data!$O$437) ) ) * OFFSET( POWER_OPT, OFFSET( OPTIMIZATION, 0, 3), 2)) * $U$1 ) -> 0 | AE85: 0 | AF85: 0
J86: 0.125 | K86: 8 | L86: 0 | M86: 0 | O86: 0 | P86: 0 | Q86: 5.309573445 | U86: 0.0008136315897 | W86: =(VCCINT/1000)*VCCINT*(IF($T86>0,$T86,($L86/2*(($F86*(Data!$N$435)))* OFFSET(POWER_OPT,OFFSET(OPTIMIZATION,0,3),2))*$U$1)) -> 0 | X86: =(VCCINT/1000)*VCCINT*(IF($T86>0,$T86,($L86/2*($G86*(Data!$P$435))))* OFFSET(POWER_OPT,OFFSET(OPTIMIZATION,0,3),2))*$U$1 -> 0 | Y86: =(VCCINT/1000)*VCCINT*(IF($T86>0,$T86,($L86/2*($H86*(Data!$Q$435))))* OFFSET(POWER_OPT,OFFSET(OPTIMIZATION,0,3),2))*$U$1 -> 0 | Z86: =( VCCINT / 1000 ) * VCCINT * ( IF( $T86 > 0, $T86, ( $L86 / 2 * ( ( $I86 * ( Data!$O$435 ) ) ) ) *OFFSET( POWER_OPT, OFFSET( OPTIMIZATION, 0, 3), 2)) * $U$1 ) -> 0 | AA86: =(VCCINT/1000)*VCCINT*(IF($T86 > 0, $T86,($L86/2*(($F86)*(Q86*Data!$N$436+Data!$N$437))))* OFFSET(POWER_OPT,OFFSET(OPTIMIZATION,0,3),2))*$U$1 -> 0 | AB86: =(VCCINT/1000)*VCCINT*(IF($T86 > 0, $T86,($L86/2*($G86*(Q86*Data!$P$436+Data!$P$437))))* OFFSET(POWER_OPT,OFFSET(OPTIMIZATION,0,3),2))*$U$1 -> 0 | AC86: =(VCCINT/1000)*VCCINT*(IF($T86 > 0, $T86,($L86/2*($H86*(Q86*Data!$Q$436+Data!$Q$437))))* OFFSET(POWER_OPT,OFFSET(OPTIMIZATION,0,3),2))*$U$1 -> 0 | AD86: =( VCCINT / 1000 ) * VCCINT * ( IF( $T86 > 0, $T86, ( $L86 / 2 * ( ( $I86 ) * (Q86*Data!$O$436+Data!$O$437) ) ) * OFFSET( POWER_OPT, OFFSET( OPTIMIZATION, 0, 3), 2)) * $U$1 ) -> 0 | AE86: 0 | AF86: 0
J87: 0.125 | K87: 8 | L87: 0 | M87: 0 | O87: 0 | P87: 0 | Q87: 5.309573445 | U87: 0.0008136315897 | W87: =(VCCINT/1000)*VCCINT*(IF($T87>0,$T87,($L87/2*(($F87*(Data!$N$435)))* OFFSET(POWER_OPT,OFFSET(OPTIMIZATION,0,3),2))*$U$1)) -> 0 | X87: =(VCCINT/1000)*VCCINT*(IF($T87>0,$T87,($L87/2*($G87*(Data!$P$435))))* OFFSET(POWER_OPT,OFFSET(OPTIMIZATION,0,3),2))*$U$1 -> 0 | Y87: =(VCCINT/1000)*VCCINT*(IF($T87>0,$T87,($L87/2*($H87*(Data!$Q$435))))* OFFSET(POWER_OPT,OFFSET(OPTIMIZATION,0,3),2))*$U$1 -> 0 | Z87: =( VCCINT / 1000 ) * VCCINT * ( IF( $T87 > 0, $T87, ( $L87 / 2 * ( ( $I87 * ( Data!$O$435 ) ) ) ) *OFFSET( POWER_OPT, OFFSET( OPTIMIZATION, 0, 3), 2)) * $U$1 ) -> 0 | AA87: =(VCCINT/1000)*VCCINT*(IF($T87 > 0, $T87,($L87/2*(($F87)*(Q87*Data!$N$436+Data!$N$437))))* OFFSET(POWER_OPT,OFFSET(OPTIMIZATION,0,3),2))*$U$1 -> 0 | AB87: =(VCCINT/1000)*VCCINT*(IF($T87 > 0, $T87,($L87/2*($G87*(Q87*Data!$P$436+Data!$P$437))))* OFFSET(POWER_OPT,OFFSET(OPTIMIZATION,0,3),2))*$U$1 -> 0 | AC87: =(VCCINT/1000)*VCCINT*(IF($T87 > 0, $T87,($L87/2*($H87*(Q87*Data!$Q$436+Data!$Q$437))))* OFFSET(POWER_OPT,OFFSET(OPTIMIZATION,0,3),2))*$U$1 -> 0 | AD87: =( VCCINT / 1000 ) * VCCINT * ( IF( $T87 > 0, $T87, ( $L87 / 2 * ( ( $I87 ) * (Q87*Data!$O$436+Data!$O$437) ) ) * OFFSET( POWER_OPT, OFFSET( OPTIMIZATION, 0, 3), 2)) * $U$1 ) -> 0 | AE87: 0 | AF87: 0
J88: 0.125 | K88: 8 | L88: 0 | M88: 0 | O88: 0 | P88: 0 | Q88: 5.309573445 | U88: 0.0008136315897 | W88: =(VCCINT/1000)*VCCINT*(IF($T88>0,$T88,($L88/2*(($F88*(Data!$N$435)))* OFFSET(POWER_OPT,OFFSET(OPTIMIZATION,0,3),2))*$U$1)) -> 0 | X88: =(VCCINT/1000)*VCCINT*(IF($T88>0,$T88,($L88/2*($G88*(Data!$P$435))))* OFFSET(POWER_OPT,OFFSET(OPTIMIZATION,0,3),2))*$U$1 -> 0 | Y88: =(VCCINT/1000)*VCCINT*(IF($T88>0,$T88,($L88/2*($H88*(Data!$Q$435))))* OFFSET(POWER_OPT,OFFSET(OPTIMIZATION,0,3),2))*$U$1 -> 0 | Z88: =( VCCINT / 1000 ) * VCCINT * ( IF( $T88 > 0, $T88, ( $L88 / 2 * ( ( $I88 * ( Data!$O$435 ) ) ) ) *OFFSET( POWER_OPT, OFFSET( OPTIMIZATION, 0, 3), 2)) * $U$1 ) -> 0 | AA88: =(VCCINT/1000)*VCCINT*(IF($T88 > 0, $T88,($L88/2*(($F88)*(Q88*Data!$N$436+Data!$N$437))))* OFFSET(POWER_OPT,OFFSET(OPTIMIZATION,0,3),2))*$U$1 -> 0 | AB88: =(VCCINT/1000)*VCCINT*(IF($T88 > 0, $T88,($L88/2*($G88*(Q88*Data!$P$436+Data!$P$437))))* OFFSET(POWER_OPT,OFFSET(OPTIMIZATION,0,3),2))*$U$1 -> 0 | AC88: =(VCCINT/1000)*VCCINT*(IF($T88 > 0, $T88,($L88/2*($H88*(Q88*Data!$Q$436+Data!$Q$437))))* OFFSET(POWER_OPT,OFFSET(OPTIMIZATION,0,3),2))*$U$1 -> 0 | AD88: =( VCCINT / 1000 ) * VCCINT * ( IF( $T88 > 0, $T88, ( $L88 / 2 * ( ( $I88 ) * (Q88*Data!$O$436+Data!$O$437) ) ) * OFFSET( POWER_OPT, OFFSET( OPTIMIZATION, 0, 3), 2)) * $U$1 ) -> 0 | AE88: 0 | AF88: 0
J89: 0.125 | K89: 8 | L89: 0 | M89: 0 | O89: 0 | P89: 0 | Q89: 5.309573445 | U89: 0.0008136315897 | W89: =(VCCINT/1000)*VCCINT*(IF($T89>0,$T89,($L89/2*(($F89*(Data!$N$435)))* OFFSET(POWER_OPT,OFFSET(OPTIMIZATION,0,3),2))*$U$1)) -> 0 | X89: =(VCCINT/1000)*VCCINT*(IF($T89>0,$T89,($L89/2*($G89*(Data!$P$435))))* OFFSET(POWER_OPT,OFFSET(OPTIMIZATION,0,3),2))*$U$1 -> 0 | Y89: =(VCCINT/1000)*VCCINT*(IF($T89>0,$T89,($L89/2*($H89*(Data!$Q$435))))* OFFSET(POWER_OPT,OFFSET(OPTIMIZATION,0,3),2))*$U$1 -> 0 | Z89: =( VCCINT / 1000 ) * VCCINT * ( IF( $T89 > 0, $T89, ( $L89 / 2 * ( ( $I89 * ( Data!$O$435 ) ) ) ) *OFFSET( POWER_OPT, OFFSET( OPTIMIZATION, 0, 3), 2)) * $U$1 ) -> 0 | AA89: =(VCCINT/1000)*VCCINT*(IF($T89 > 0, $T89,($L89/2*(($F89)*(Q89*Data!$N$436+Data!$N$437))))* OFFSET(POWER_OPT,OFFSET(OPTIMIZATION,0,3),2))*$U$1 -> 0 | AB89: =(VCCINT/1000)*VCCINT*(IF($T89 > 0, $T89,($L89/2*($G89*(Q89*Data!$P$436+Data!$P$437))))* OFFSET(POWER_OPT,OFFSET(OPTIMIZATION,0,3),2))*$U$1 -> 0 | AC89: =(VCCINT/1000)*VCCINT*(IF($T89 > 0, $T89,($L89/2*($H89*(Q89*Data!$Q$436+Data!$Q$437))))* OFFSET(POWER_OPT,OFFSET(OPTIMIZATION,0,3),2))*$U$1 -> 0 | AD89: =( VCCINT / 1000 ) * VCCINT * ( IF( $T89 > 0, $T89, ( $L89 / 2 * ( ( $I89 ) * (Q89*Data!$O$436+Data!$O$437) ) ) * OFFSET( POWER_OPT, OFFSET( OPTIMIZATION, 0, 3), 2)) * $U$1 ) -> 0 | AE89: 0 | AF89: 0
J90: 0.125 | K90: 8 | L90: 0 | M90: 0 | O90: 0 | P90: 0 | Q90: 5.309573445 | U90: 0.0008136315897 | W90: =(VCCINT/1000)*VCCINT*(IF($T90>0,$T90,($L90/2*(($F90*(Data!$N$435)))* OFFSET(POWER_OPT,OFFSET(OPTIMIZATION,0,3),2))*$U$1)) -> 0 | X90: =(VCCINT/1000)*VCCINT*(IF($T90>0,$T90,($L90/2*($G90*(Data!$P$435))))* OFFSET(POWER_OPT,OFFSET(OPTIMIZATION,0,3),2))*$U$1 -> 0 | Y90: =(VCCINT/1000)*VCCINT*(IF($T90>0,$T90,($L90/2*($H90*(Data!$Q$435))))* OFFSET(POWER_OPT,OFFSET(OPTIMIZATION,0,3),2))*$U$1 -> 0 | Z90: =( VCCINT / 1000 ) * VCCINT * ( IF( $T90 > 0, $T90, ( $L90 / 2 * ( ( $I90 * ( Data!$O$435 ) ) ) ) *OFFSET( POWER_OPT, OFFSET( OPTIMIZATION, 0, 3), 2)) * $U$1 ) -> 0 | AA90: =(VCCINT/1000)*VCCINT*(IF($T90 > 0, $T90,($L90/2*(($F90)*(Q90*Data!$N$436+Data!$N$437))))* OFFSET(POWER_OPT,OFFSET(OPTIMIZATION,0,3),2))*$U$1 -> 0 | AB90: =(VCCINT/1000)*VCCINT*(IF($T90 > 0, $T90,($L90/2*($G90*(Q90*Data!$P$436+Data!$P$437))))* OFFSET(POWER_OPT,OFFSET(OPTIMIZATION,0,3),2))*$U$1 -> 0 | AC90: =(VCCINT/1000)*VCCINT*(IF($T90 > 0, $T90,($L90/2*($H90*(Q90*Data!$Q$436+Data!$Q$437))))* OFFSET(POWER_OPT,OFFSET(OPTIMIZATION,0,3),2))*$U$1 -> 0 | AD90: =( VCCINT / 1000 ) * VCCINT * ( IF( $T90 > 0, $T90, ( $L90 / 2 * ( ( $I90 ) * (Q90*Data!$O$436+Data!$O$437) ) ) * OFFSET( POWER_OPT, OFFSET( OPTIMIZATION, 0, 3), 2)) * $U$1 ) -> 0 | AE90: 0 | AF90: 0
J91: 0.125 | K91: 8 | L91: 0 | M91: 0 | O91: 0 | P91: 0 | Q91: 5.309573445 | U91: 0.0008136315897 | W91: =(VCCINT/1000)*VCCINT*(IF($T91>0,$T91,($L91/2*(($F91*(Data!$N$435)))* OFFSET(POWER_OPT,OFFSET(OPTIMIZATION,0,3),2))*$U$1)) -> 0 | X91: =(VCCINT/1000)*VCCINT*(IF($T91>0,$T91,($L91/2*($G91*(Data!$P$435))))* OFFSET(POWER_OPT,OFFSET(OPTIMIZATION,0,3),2))*$U$1 -> 0 | Y91: =(VCCINT/1000)*VCCINT*(IF($T91>0,$T91,($L91/2*($H91*(Data!$Q$435))))* OFFSET(POWER_OPT,OFFSET(OPTIMIZATION,0,3),2))*$U$1 -> 0 | Z91: =( VCCINT / 1000 ) * VCCINT * ( IF( $T91 > 0, $T91, ( $L91 / 2 * ( ( $I91 * ( Data!$O$435 ) ) ) ) *OFFSET( POWER_OPT, OFFSET( OPTIMIZATION, 0, 3), 2)) * $U$1 ) -> 0 | AA91: =(VCCINT/1000)*VCCINT*(IF($T91 > 0, $T91,($L91/2*(($F91)*(Q91*Data!$N$436+Data!$N$437))))* OFFSET(POWER_OPT,OFFSET(OPTIMIZATION,0,3),2))*$U$1 -> 0 | AB91: =(VCCINT/1000)*VCCINT*(IF($T91 > 0, $T91,($L91/2*($G91*(Q91*Data!$P$436+Data!$P$437))))* OFFSET(POWER_OPT,OFFSET(OPTIMIZATION,0,3),2))*$U$1 -> 0 | AC91: =(VCCINT/1000)*VCCINT*(IF($T91 > 0, $T91,($L91/2*($H91*(Q91*Data!$Q$436+Data!$Q$437))))* OFFSET(POWER_OPT,OFFSET(OPTIMIZATION,0,3),2))*$U$1 -> 0 | AD91: =( VCCINT / 1000 ) * VCCINT * ( IF( $T91 > 0, $T91, ( $L91 / 2 * ( ( $I91 ) * (Q91*Data!$O$436+Data!$O$437) ) ) * OFFSET( POWER_OPT, OFFSET( OPTIMIZATION, 0, 3), 2)) * $U$1 ) -> 0 | AE91: 0 | AF91: 0
J92: 0.125 | K92: 8 | L92: 0 | M92: 0 | O92: 0 | P92: 0 | Q92: 5.309573445 | U92: 0.0008136315897 | W92: =(VCCINT/1000)*VCCINT*(IF($T92>0,$T92,($L92/2*(($F92*(Data!$N$435)))* OFFSET(POWER_OPT,OFFSET(OPTIMIZATION,0,3),2))*$U$1)) -> 0 | X92: =(VCCINT/1000)*VCCINT*(IF($T92>0,$T92,($L92/2*($G92*(Data!$P$435))))* OFFSET(POWER_OPT,OFFSET(OPTIMIZATION,0,3),2))*$U$1 -> 0 | Y92: =(VCCINT/1000)*VCCINT*(IF($T92>0,$T92,($L92/2*($H92*(Data!$Q$435))))* OFFSET(POWER_OPT,OFFSET(OPTIMIZATION,0,3),2))*$U$1 -> 0 | Z92: =( VCCINT / 1000 ) * VCCINT * ( IF( $T92 > 0, $T92, ( $L92 / 2 * ( ( $I92 * ( Data!$O$435 ) ) ) ) *OFFSET( POWER_OPT, OFFSET( OPTIMIZATION, 0, 3), 2)) * $U$1 ) -> 0 | AA92: =(VCCINT/1000)*VCCINT*(IF($T92 > 0, $T92,($L92/2*(($F92)*(Q92*Data!$N$436+Data!$N$437))))* OFFSET(POWER_OPT,OFFSET(OPTIMIZATION,0,3),2))*$U$1 -> 0 | AB92: =(VCCINT/1000)*VCCINT*(IF($T92 > 0, $T92,($L92/2*($G92*(Q92*Data!$P$436+Data!$P$437))))* OFFSET(POWER_OPT,OFFSET(OPTIMIZATION,0,3),2))*$U$1 -> 0 | AC92: =(VCCINT/1000)*VCCINT*(IF($T92 > 0, $T92,($L92/2*($H92*(Q92*Data!$Q$436+Data!$Q$437))))* OFFSET(POWER_OPT,OFFSET(OPTIMIZATION,0,3),2))*$U$1 -> 0 | AD92: =( VCCINT / 1000 ) * VCCINT * ( IF( $T92 > 0, $T92, ( $L92 / 2 * ( ( $I92 ) * (Q92*Data!$O$436+Data!$O$437) ) ) * OFFSET( POWER_OPT, OFFSET( OPTIMIZATION, 0, 3), 2)) * $U$1 ) -> 0 | AE92: 0 | AF92: 0
J93: 0.125 | K93: 8 | L93: 0 | M93: 0 | O93: 0 | P93: 0 | Q93: 5.309573445 | U93: 0.0008136315897 | W93: =(VCCINT/1000)*VCCINT*(IF($T93>0,$T93,($L93/2*(($F93*(Data!$N$435)))* OFFSET(POWER_OPT,OFFSET(OPTIMIZATION,0,3),2))*$U$1)) -> 0 | X93: =(VCCINT/1000)*VCCINT*(IF($T93>0,$T93,($L93/2*($G93*(Data!$P$435))))* OFFSET(POWER_OPT,OFFSET(OPTIMIZATION,0,3),2))*$U$1 -> 0 | Y93: =(VCCINT/1000)*VCCINT*(IF($T93>0,$T93,($L93/2*($H93*(Data!$Q$435))))* OFFSET(POWER_OPT,OFFSET(OPTIMIZATION,0,3),2))*$U$1 -> 0 | Z93: =( VCCINT / 1000 ) * VCCINT * ( IF( $T93 > 0, $T93, ( $L93 / 2 * ( ( $I93 * ( Data!$O$435 ) ) ) ) *OFFSET( POWER_OPT, OFFSET( OPTIMIZATION, 0, 3), 2)) * $U$1 ) -> 0 | AA93: =(VCCINT/1000)*VCCINT*(IF($T93 > 0, $T93,($L93/2*(($F93)*(Q93*Data!$N$436+Data!$N$437))))* OFFSET(POWER_OPT,OFFSET(OPTIMIZATION,0,3),2))*$U$1 -> 0 | AB93: =(VCCINT/1000)*VCCINT*(IF($T93 > 0, $T93,($L93/2*($G93*(Q93*Data!$P$436+Data!$P$437))))* OFFSET(POWER_OPT,OFFSET(OPTIMIZATION,0,3),2))*$U$1 -> 0 | AC93: =(VCCINT/1000)*VCCINT*(IF($T93 > 0, $T93,($L93/2*($H93*(Q93*Data!$Q$436+Data!$Q$437))))* OFFSET(POWER_OPT,OFFSET(OPTIMIZATION,0,3),2))*$U$1 -> 0 | AD93: =( VCCINT / 1000 ) * VCCINT * ( IF( $T93 > 0, $T93, ( $L93 / 2 * ( ( $I93 ) * (Q93*Data!$O$436+Data!$O$437) ) ) * OFFSET( POWER_OPT, OFFSET( OPTIMIZATION, 0, 3), 2)) * $U$1 ) -> 0 | AE93: 0 | AF93: 0
J94: 0.125 | K94: 8 | L94: 0 | M94: 0 | O94: 0 | P94: 0 | Q94: 5.309573445 | U94: 0.0008136315897 | W94: =(VCCINT/1000)*VCCINT*(IF($T94>0,$T94,($L94/2*(($F94*(Data!$N$435)))* OFFSET(POWER_OPT,OFFSET(OPTIMIZATION,0,3),2))*$U$1)) -> 0 | X94: =(VCCINT/1000)*VCCINT*(IF($T94>0,$T94,($L94/2*($G94*(Data!$P$435))))* OFFSET(POWER_OPT,OFFSET(OPTIMIZATION,0,3),2))*$U$1 -> 0 | Y94: =(VCCINT/1000)*VCCINT*(IF($T94>0,$T94,($L94/2*($H94*(Data!$Q$435))))* OFFSET(POWER_OPT,OFFSET(OPTIMIZATION,0,3),2))*$U$1 -> 0 | Z94: =( VCCINT / 1000 ) * VCCINT * ( IF( $T94 > 0, $T94, ( $L94 / 2 * ( ( $I94 * ( Data!$O$435 ) ) ) ) *OFFSET( POWER_OPT, OFFSET( OPTIMIZATION, 0, 3), 2)) * $U$1 ) -> 0 | AA94: =(VCCINT/1000)*VCCINT*(IF($T94 > 0, $T94,($L94/2*(($F94)*(Q94*Data!$N$436+Data!$N$437))))* OFFSET(POWER_OPT,OFFSET(OPTIMIZATION,0,3),2))*$U$1 -> 0 | AB94: =(VCCINT/1000)*VCCINT*(IF($T94 > 0, $T94,($L94/2*($G94*(Q94*Data!$P$436+Data!$P$437))))* OFFSET(POWER_OPT,OFFSET(OPTIMIZATION,0,3),2))*$U$1 -> 0 | AC94: =(VCCINT/1000)*VCCINT*(IF($T94 > 0, $T94,($L94/2*($H94*(Q94*Data!$Q$436+Data!$Q$437))))* OFFSET(POWER_OPT,OFFSET(OPTIMIZATION,0,3),2))*$U$1 -> 0 | AD94: =( VCCINT / 1000 ) * VCCINT * ( IF( $T94 > 0, $T94, ( $L94 / 2 * ( ( $I94 ) * (Q94*Data!$O$436+Data!$O$437) ) ) * OFFSET( POWER_OPT, OFFSET( OPTIMIZATION, 0, 3), 2)) * $U$1 ) -> 0 | AE94: 0 | AF94: 0
J95: 0.125 | K95: 8 | L95: 0 | M95: 0 | O95: 0 | P95: 0 | Q95: 5.309573445 | U95: 0.0008136315897 | W95: =(VCCINT/1000)*VCCINT*(IF($T95>0,$T95,($L95/2*(($F95*(Data!$N$435)))* OFFSET(POWER_OPT,OFFSET(OPTIMIZATION,0,3),2))*$U$1)) -> 0 | X95: =(VCCINT/1000)*VCCINT*(IF($T95>0,$T95,($L95/2*($G95*(Data!$P$435))))* OFFSET(POWER_OPT,OFFSET(OPTIMIZATION,0,3),2))*$U$1 -> 0 | Y95: =(VCCINT/1000)*VCCINT*(IF($T95>0,$T95,($L95/2*($H95*(Data!$Q$435))))* OFFSET(POWER_OPT,OFFSET(OPTIMIZATION,0,3),2))*$U$1 -> 0 | Z95: =( VCCINT / 1000 ) * VCCINT * ( IF( $T95 > 0, $T95, ( $L95 / 2 * ( ( $I95 * ( Data!$O$435 ) ) ) ) *OFFSET( POWER_OPT, OFFSET( OPTIMIZATION, 0, 3), 2)) * $U$1 ) -> 0 | AA95: =(VCCINT/1000)*VCCINT*(IF($T95 > 0, $T95,($L95/2*(($F95)*(Q95*Data!$N$436+Data!$N$437))))* OFFSET(POWER_OPT,OFFSET(OPTIMIZATION,0,3),2))*$U$1 -> 0 | AB95: =(VCCINT/1000)*VCCINT*(IF($T95 > 0, $T95,($L95/2*($G95*(Q95*Data!$P$436+Data!$P$437))))* OFFSET(POWER_OPT,OFFSET(OPTIMIZATION,0,3),2))*$U$1 -> 0 | AC95: =(VCCINT/1000)*VCCINT*(IF($T95 > 0, $T95,($L95/2*($H95*(Q95*Data!$Q$436+Data!$Q$437))))* OFFSET(POWER_OPT,OFFSET(OPTIMIZATION,0,3),2))*$U$1 -> 0 | AD95: =( VCCINT / 1000 ) * VCCINT * ( IF( $T95 > 0, $T95, ( $L95 / 2 * ( ( $I95 ) * (Q95*Data!$O$436+Data!$O$437) ) ) * OFFSET( POWER_OPT, OFFSET( OPTIMIZATION, 0, 3), 2)) * $U$1 ) -> 0 | AE95: 0 | AF95: 0
J96: 0.125 | K96: 8 | L96: 0 | M96: 0 | O96: 0 | P96: 0 | Q96: 5.309573445 | U96: 0.0008136315897 | W96: =(VCCINT/1000)*VCCINT*(IF($T96>0,$T96,($L96/2*(($F96*(Data!$N$435)))* OFFSET(POWER_OPT,OFFSET(OPTIMIZATION,0,3),2))*$U$1)) -> 0 | X96: =(VCCINT/1000)*VCCINT*(IF($T96>0,$T96,($L96/2*($G96*(Data!$P$435))))* OFFSET(POWER_OPT,OFFSET(OPTIMIZATION,0,3),2))*$U$1 -> 0 | Y96: =(VCCINT/1000)*VCCINT*(IF($T96>0,$T96,($L96/2*($H96*(Data!$Q$435))))* OFFSET(POWER_OPT,OFFSET(OPTIMIZATION,0,3),2))*$U$1 -> 0 | Z96: =( VCCINT / 1000 ) * VCCINT * ( IF( $T96 > 0, $T96, ( $L96 / 2 * ( ( $I96 * ( Data!$O$435 ) ) ) ) *OFFSET( POWER_OPT, OFFSET( OPTIMIZATION, 0, 3), 2)) * $U$1 ) -> 0 | AA96: =(VCCINT/1000)*VCCINT*(IF($T96 > 0, $T96,($L96/2*(($F96)*(Q96*Data!$N$436+Data!$N$437))))* OFFSET(POWER_OPT,OFFSET(OPTIMIZATION,0,3),2))*$U$1 -> 0 | AB96: =(VCCINT/1000)*VCCINT*(IF($T96 > 0, $T96,($L96/2*($G96*(Q96*Data!$P$436+Data!$P$437))))* OFFSET(POWER_OPT,OFFSET(OPTIMIZATION,0,3),2))*$U$1 -> 0 | AC96: =(VCCINT/1000)*VCCINT*(IF($T96 > 0, $T96,($L96/2*($H96*(Q96*Data!$Q$436+Data!$Q$437))))* OFFSET(POWER_OPT,OFFSET(OPTIMIZATION,0,3),2))*$U$1 -> 0 | AD96: =( VCCINT / 1000 ) * VCCINT * ( IF( $T96 > 0, $T96, ( $L96 / 2 * ( ( $I96 ) * (Q96*Data!$O$436+Data!$O$437) ) ) * OFFSET( POWER_OPT, OFFSET( OPTIMIZATION, 0, 3), 2)) * $U$1 ) -> 0 | AE96: 0 | AF96: 0
J97: 0.125 | K97: 8 | L97: 0 | M97: 0 | O97: 0 | P97: 0 | Q97: 5.309573445 | U97: 0.0008136315897 | W97: =(VCCINT/1000)*VCCINT*(IF($T97>0,$T97,($L97/2*(($F97*(Data!$N$435)))* OFFSET(POWER_OPT,OFFSET(OPTIMIZATION,0,3),2))*$U$1)) -> 0 | X97: =(VCCINT/1000)*VCCINT*(IF($T97>0,$T97,($L97/2*($G97*(Data!$P$435))))* OFFSET(POWER_OPT,OFFSET(OPTIMIZATION,0,3),2))*$U$1 -> 0 | Y97: =(VCCINT/1000)*VCCINT*(IF($T97>0,$T97,($L97/2*($H97*(Data!$Q$435))))* OFFSET(POWER_OPT,OFFSET(OPTIMIZATION,0,3),2))*$U$1 -> 0 | Z97: =( VCCINT / 1000 ) * VCCINT * ( IF( $T97 > 0, $T97, ( $L97 / 2 * ( ( $I97 * ( Data!$O$435 ) ) ) ) *OFFSET( POWER_OPT, OFFSET( OPTIMIZATION, 0, 3), 2)) * $U$1 ) -> 0 | AA97: =(VCCINT/1000)*VCCINT*(IF($T97 > 0, $T97,($L97/2*(($F97)*(Q97*Data!$N$436+Data!$N$437))))* OFFSET(POWER_OPT,OFFSET(OPTIMIZATION,0,3),2))*$U$1 -> 0 | AB97: =(VCCINT/1000)*VCCINT*(IF($T97 > 0, $T97,($L97/2*($G97*(Q97*Data!$P$436+Data!$P$437))))* OFFSET(POWER_OPT,OFFSET(OPTIMIZATION,0,3),2))*$U$1 -> 0 | AC97: =(VCCINT/1000)*VCCINT*(IF($T97 > 0, $T97,($L97/2*($H97*(Q97*Data!$Q$436+Data!$Q$437))))* OFFSET(POWER_OPT,OFFSET(OPTIMIZATION,0,3),2))*$U$1 -> 0 | AD97: =( VCCINT / 1000 ) * VCCINT * ( IF( $T97 > 0, $T97, ( $L97 / 2 * ( ( $I97 ) * (Q97*Data!$O$436+Data!$O$437) ) ) * OFFSET( POWER_OPT, OFFSET( OPTIMIZATION, 0, 3), 2)) * $U$1 ) -> 0 | AE97: 0 | AF97: 0
J98: 0.125 | K98: 8 | L98: 0 | M98: 0 | O98: 0 | P98: 0 | Q98: 5.309573445 | U98: 0.0008136315897 | W98: =(VCCINT/1000)*VCCINT*(IF($T98>0,$T98,($L98/2*(($F98*(Data!$N$435)))* OFFSET(POWER_OPT,OFFSET(OPTIMIZATION,0,3),2))*$U$1)) -> 0 | X98: =(VCCINT/1000)*VCCINT*(IF($T98>0,$T98,($L98/2*($G98*(Data!$P$435))))* OFFSET(POWER_OPT,OFFSET(OPTIMIZATION,0,3),2))*$U$1 -> 0 | Y98: =(VCCINT/1000)*VCCINT*(IF($T98>0,$T98,($L98/2*($H98*(Data!$Q$435))))* OFFSET(POWER_OPT,OFFSET(OPTIMIZATION,0,3),2))*$U$1 -> 0 | Z98: =( VCCINT / 1000 ) * VCCINT * ( IF( $T98 > 0, $T98, ( $L98 / 2 * ( ( $I98 * ( Data!$O$435 ) ) ) ) *OFFSET( POWER_OPT, OFFSET( OPTIMIZATION, 0, 3), 2)) * $U$1 ) -> 0 | AA98: =(VCCINT/1000)*VCCINT*(IF($T98 > 0, $T98,($L98/2*(($F98)*(Q98*Data!$N$436+Data!$N$437))))* OFFSET(POWER_OPT,OFFSET(OPTIMIZATION,0,3),2))*$U$1 -> 0 | AB98: =(VCCINT/1000)*VCCINT*(IF($T98 > 0, $T98,($L98/2*($G98*(Q98*Data!$P$436+Data!$P$437))))* OFFSET(POWER_OPT,OFFSET(OPTIMIZATION,0,3),2))*$U$1 -> 0 | AC98: =(VCCINT/1000)*VCCINT*(IF($T98 > 0, $T98,($L98/2*($H98*(Q98*Data!$Q$436+Data!$Q$437))))* OFFSET(POWER_OPT,OFFSET(OPTIMIZATION,0,3),2))*$U$1 -> 0 | AD98: =( VCCINT / 1000 ) * VCCINT * ( IF( $T98 > 0, $T98, ( $L98 / 2 * ( ( $I98 ) * (Q98*Data!$O$436+Data!$O$437) ) ) * OFFSET( POWER_OPT, OFFSET( OPTIMIZATION, 0, 3), 2)) * $U$1 ) -> 0 | AE98: 0 | AF98: 0
J99: 0.125 | K99: 8 | L99: 0 | M99: 0 | O99: 0 | P99: 0 | Q99: 5.309573445 | U99: 0.0008136315897 | W99: =(VCCINT/1000)*VCCINT*(IF($T99>0,$T99,($L99/2*(($F99*(Data!$N$435)))* OFFSET(POWER_OPT,OFFSET(OPTIMIZATION,0,3),2))*$U$1)) -> 0 | X99: =(VCCINT/1000)*VCCINT*(IF($T99>0,$T99,($L99/2*($G99*(Data!$P$435))))* OFFSET(POWER_OPT,OFFSET(OPTIMIZATION,0,3),2))*$U$1 -> 0 | Y99: =(VCCINT/1000)*VCCINT*(IF($T99>0,$T99,($L99/2*($H99*(Data!$Q$435))))* OFFSET(POWER_OPT,OFFSET(OPTIMIZATION,0,3),2))*$U$1 -> 0 | Z99: =( VCCINT / 1000 ) * VCCINT * ( IF( $T99 > 0, $T99, ( $L99 / 2 * ( ( $I99 * ( Data!$O$435 ) ) ) ) *OFFSET( POWER_OPT, OFFSET( OPTIMIZATION, 0, 3), 2)) * $U$1 ) -> 0 | AA99: =(VCCINT/1000)*VCCINT*(IF($T99 > 0, $T99,($L99/2*(($F99)*(Q99*Data!$N$436+Data!$N$437))))* OFFSET(POWER_OPT,OFFSET(OPTIMIZATION,0,3),2))*$U$1 -> 0 | AB99: =(VCCINT/1000)*VCCINT*(IF($T99 > 0, $T99,($L99/2*($G99*(Q99*Data!$P$436+Data!$P$437))))* OFFSET(POWER_OPT,OFFSET(OPTIMIZATION,0,3),2))*$U$1 -> 0 | AC99: =(VCCINT/1000)*VCCINT*(IF($T99 > 0, $T99,($L99/2*($H99*(Q99*Data!$Q$436+Data!$Q$437))))* OFFSET(POWER_OPT,OFFSET(OPTIMIZATION,0,3),2))*$U$1 -> 0 | AD99: =( VCCINT / 1000 ) * VCCINT * ( IF( $T99 > 0, $T99, ( $L99 / 2 * ( ( $I99 ) * (Q99*Data!$O$436+Data!$O$437) ) ) * OFFSET( POWER_OPT, OFFSET( OPTIMIZATION, 0, 3), 2)) * $U$1 ) -> 0 | AE99: 0 | AF99: 0
J100: 0.125 | K100: 8 | L100: 0 | M100: 0 | O100: 0 | P100: 0 | Q100: 5.309573445 | U100: 0.0008136315897 | W100: =(VCCINT/1000)*VCCINT*(IF($T100>0,$T100,($L100/2*(($F100*(Data!$N$435)))* OFFSET(POWER_OPT,OFFSET(OPTIMIZATION,0,3),2))*$U$1)) -> 0 | X100: =(VCCINT/1000)*VCCINT*(IF($T100>0,$T100,($L100/2*($G100*(Data!$P$435))))* OFFSET(POWER_OPT,OFFSET(OPTIMIZATION,0,3),2))*$U$1 -> 0 | Y100: =(VCCINT/1000)*VCCINT*(IF($T100>0,$T100,($L100/2*($H100*(Data!$Q$435))))* OFFSET(POWER_OPT,OFFSET(OPTIMIZATION,0,3),2))*$U$1 -> 0 | Z100: =( VCCINT / 1000 ) * VCCINT * ( IF( $T100 > 0, $T100, ( $L100 / 2 * ( ( $I100 * ( Data!$O$435 ) ) ) ) *OFFSET( POWER_OPT, OFFSET( OPTIMIZATION, 0, 3), 2)) * $U$1 ) -> 0 | AA100: =(VCCINT/1000)*VCCINT*(IF($T100 > 0, $T100,($L100/2*(($F100)*(Q100*Data!$N$436+Data!$N$437))))* OFFSET(POWER_OPT,OFFSET(OPTIMIZATION,0,3),2))*$U$1 -> 0 | AB100: =(VCCINT/1000)*VCCINT*(IF($T100 > 0, $T100,($L100/2*($G100*(Q100*Data!$P$436+Data!$P$437))))* OFFSET(POWER_OPT,OFFSET(OPTIMIZATION,0,3),2))*$U$1 -> 0 | AC100: =(VCCINT/1000)*VCCINT*(IF($T100 > 0, $T100,($L100/2*($H100*(Q100*Data!$Q$436+Data!$Q$437))))* OFFSET(POWER_OPT,OFFSET(OPTIMIZATION,0,3),2))*$U$1 -> 0 | AD100: =( VCCINT / 1000 ) * VCCINT * ( IF( $T100 > 0, $T100, ( $L100 / 2 * ( ( $I100 ) * (Q100*Data!$O$436+Data!$O$437) ) ) * OFFSET( POWER_OPT, OFFSET( OPTIMIZATION, 0, 3), 2)) * $U$1 ) -> 0 | AE100: 0 | AF100: 0
J101: 0.125 | K101: 8 | L101: 0 | M101: 0 | O101: 0 | P101: 0 | Q101: 5.309573445 | U101: 0.0008136315897 | W101: =(VCCINT/1000)*VCCINT*(IF($T101>0,$T101,($L101/2*(($F101*(Data!$N$435)))* OFFSET(POWER_OPT,OFFSET(OPTIMIZATION,0,3),2))*$U$1)) -> 0 | X101: =(VCCINT/1000)*VCCINT*(IF($T101>0,$T101,($L101/2*($G101*(Data!$P$435))))* OFFSET(POWER_OPT,OFFSET(OPTIMIZATION,0,3),2))*$U$1 -> 0 | Y101: =(VCCINT/1000)*VCCINT*(IF($T101>0,$T101,($L101/2*($H101*(Data!$Q$435))))* OFFSET(POWER_OPT,OFFSET(OPTIMIZATION,0,3),2))*$U$1 -> 0 | Z101: =( VCCINT / 1000 ) * VCCINT * ( IF( $T101 > 0, $T101, ( $L101 / 2 * ( ( $I101 * ( Data!$O$435 ) ) ) ) *OFFSET( POWER_OPT, OFFSET( OPTIMIZATION, 0, 3), 2)) * $U$1 ) -> 0 | AA101: =(VCCINT/1000)*VCCINT*(IF($T101 > 0, $T101,($L101/2*(($F101)*(Q101*Data!$N$436+Data!$N$437))))* OFFSET(POWER_OPT,OFFSET(OPTIMIZATION,0,3),2))*$U$1 -> 0 | AB101: =(VCCINT/1000)*VCCINT*(IF($T101 > 0, $T101,($L101/2*($G101*(Q101*Data!$P$436+Data!$P$437))))* OFFSET(POWER_OPT,OFFSET(OPTIMIZATION,0,3),2))*$U$1 -> 0 | AC101: =(VCCINT/1000)*VCCINT*(IF($T101 > 0, $T101,($L101/2*($H101*(Q101*Data!$Q$436+Data!$Q$437))))* OFFSET(POWER_OPT,OFFSET(OPTIMIZATION,0,3),2))*$U$1 -> 0 | AD101: =( VCCINT / 1000 ) * VCCINT * ( IF( $T101 > 0, $T101, ( $L101 / 2 * ( ( $I101 ) * (Q101*Data!$O$436+Data!$O$437) ) ) * OFFSET( POWER_OPT, OFFSET( OPTIMIZATION, 0, 3), 2)) * $U$1 ) -> 0 | AE101: 0 | AF101: 0
J102: 0.125 | K102: 8 | L102: 0 | M102: 0 | O102: 0 | P102: 0 | Q102: 5.309573445 | U102: 0.0008136315897 | W102: =(VCCINT/1000)*VCCINT*(IF($T102>0,$T102,($L102/2*(($F102*(Data!$N$435)))* OFFSET(POWER_OPT,OFFSET(OPTIMIZATION,0,3),2))*$U$1)) -> 0 | X102: =(VCCINT/1000)*VCCINT*(IF($T102>0,$T102,($L102/2*($G102*(Data!$P$435))))* OFFSET(POWER_OPT,OFFSET(OPTIMIZATION,0,3),2))*$U$1 -> 0 | Y102: =(VCCINT/1000)*VCCINT*(IF($T102>0,$T102,($L102/2*($H102*(Data!$Q$435))))* OFFSET(POWER_OPT,OFFSET(OPTIMIZATION,0,3),2))*$U$1 -> 0 | Z102: =( VCCINT / 1000 ) * VCCINT * ( IF( $T102 > 0, $T102, ( $L102 / 2 * ( ( $I102 * ( Data!$O$435 ) ) ) ) *OFFSET( POWER_OPT, OFFSET( OPTIMIZATION, 0, 3), 2)) * $U$1 ) -> 0 | AA102: =(VCCINT/1000)*VCCINT*(IF($T102 > 0, $T102,($L102/2*(($F102)*(Q102*Data!$N$436+Data!$N$437))))* OFFSET(POWER_OPT,OFFSET(OPTIMIZATION,0,3),2))*$U$1 -> 0 | AB102: =(VCCINT/1000)*VCCINT*(IF($T102 > 0, $T102,($L102/2*($G102*(Q102*Data!$P$436+Data!$P$437))))* OFFSET(POWER_OPT,OFFSET(OPTIMIZATION,0,3),2))*$U$1 -> 0 | AC102: =(VCCINT/1000)*VCCINT*(IF($T102 > 0, $T102,($L102/2*($H102*(Q102*Data!$Q$436+Data!$Q$437))))* OFFSET(POWER_OPT,OFFSET(OPTIMIZATION,0,3),2))*$U$1 -> 0 | AD102: =( VCCINT / 1000 ) * VCCINT * ( IF( $T102 > 0, $T102, ( $L102 / 2 * ( ( $I102 ) * (Q102*Data!$O$436+Data!$O$437) ) ) * OFFSET( POWER_OPT, OFFSET( OPTIMIZATION, 0, 3), 2)) * $U$1 ) -> 0 | AE102: 0 | AF102: 0
J103: 0.125 | K103: 8 | L103: 0 | M103: 0 | O103: 0 | P103: 0 | Q103: 5.309573445 | U103: 0.0008136315897 | W103: =(VCCINT/1000)*VCCINT*(IF($T103>0,$T103,($L103/2*(($F103*(Data!$N$435)))* OFFSET(POWER_OPT,OFFSET(OPTIMIZATION,0,3),2))*$U$1)) -> 0 | X103: =(VCCINT/1000)*VCCINT*(IF($T103>0,$T103,($L103/2*($G103*(Data!$P$435))))* OFFSET(POWER_OPT,OFFSET(OPTIMIZATION,0,3),2))*$U$1 -> 0 | Y103: =(VCCINT/1000)*VCCINT*(IF($T103>0,$T103,($L103/2*($H103*(Data!$Q$435))))* OFFSET(POWER_OPT,OFFSET(OPTIMIZATION,0,3),2))*$U$1 -> 0 | Z103: =( VCCINT / 1000 ) * VCCINT * ( IF( $T103 > 0, $T103, ( $L103 / 2 * ( ( $I103 * ( Data!$O$435 ) ) ) ) *OFFSET( POWER_OPT, OFFSET( OPTIMIZATION, 0, 3), 2)) * $U$1 ) -> 0 | AA103: =(VCCINT/1000)*VCCINT*(IF($T103 > 0, $T103,($L103/2*(($F103)*(Q103*Data!$N$436+Data!$N$437))))* OFFSET(POWER_OPT,OFFSET(OPTIMIZATION,0,3),2))*$U$1 -> 0 | AB103: =(VCCINT/1000)*VCCINT*(IF($T103 > 0, $T103,($L103/2*($G103*(Q103*Data!$P$436+Data!$P$437))))* OFFSET(POWER_OPT,OFFSET(OPTIMIZATION,0,3),2))*$U$1 -> 0 | AC103: =(VCCINT/1000)*VCCINT*(IF($T103 > 0, $T103,($L103/2*($H103*(Q103*Data!$Q$436+Data!$Q$437))))* OFFSET(POWER_OPT,OFFSET(OPTIMIZATION,0,3),2))*$U$1 -> 0 | AD103: =( VCCINT / 1000 ) * VCCINT * ( IF( $T103 > 0, $T103, ( $L103 / 2 * ( ( $I103 ) * (Q103*Data!$O$436+Data!$O$437) ) ) * OFFSET( POWER_OPT, OFFSET( OPTIMIZATION, 0, 3), 2)) * $U$1 ) -> 0 | AE103: 0 | AF103: 0
J104: 0.125 | K104: 8 | L104: 0 | M104: 0 | O104: 0 | P104: 0 | Q104: 5.309573445 | U104: 0.0008136315897 | W104: =(VCCINT/1000)*VCCINT*(IF($T104>0,$T104,($L104/2*(($F104*(Data!$N$435)))* OFFSET(POWER_OPT,OFFSET(OPTIMIZATION,0,3),2))*$U$1)) -> 0 | X104: =(VCCINT/1000)*VCCINT*(IF($T104>0,$T104,($L104/2*($G104*(Data!$P$435))))* OFFSET(POWER_OPT,OFFSET(OPTIMIZATION,0,3),2))*$U$1 -> 0 | Y104: =(VCCINT/1000)*VCCINT*(IF($T104>0,$T104,($L104/2*($H104*(Data!$Q$435))))* OFFSET(POWER_OPT,OFFSET(OPTIMIZATION,0,3),2))*$U$1 -> 0 | Z104: =( VCCINT / 1000 ) * VCCINT * ( IF( $T104 > 0, $T104, ( $L104 / 2 * ( ( $I104 * ( Data!$O$435 ) ) ) ) *OFFSET( POWER_OPT, OFFSET( OPTIMIZATION, 0, 3), 2)) * $U$1 ) -> 0 | AA104: =(VCCINT/1000)*VCCINT*(IF($T104 > 0, $T104,($L104/2*(($F104)*(Q104*Data!$N$436+Data!$N$437))))* OFFSET(POWER_OPT,OFFSET(OPTIMIZATION,0,3),2))*$U$1 -> 0 | AB104: =(VCCINT/1000)*VCCINT*(IF($T104 > 0, $T104,($L104/2*($G104*(Q104*Data!$P$436+Data!$P$437))))* OFFSET(POWER_OPT,OFFSET(OPTIMIZATION,0,3),2))*$U$1 -> 0 | AC104: =(VCCINT/1000)*VCCINT*(IF($T104 > 0, $T104,($L104/2*($H104*(Q104*Data!$Q$436+Data!$Q$437))))* OFFSET(POWER_OPT,OFFSET(OPTIMIZATION,0,3),2))*$U$1 -> 0 | AD104: =( VCCINT / 1000 ) * VCCINT * ( IF( $T104 > 0, $T104, ( $L104 / 2 * ( ( $I104 ) * (Q104*Data!$O$436+Data!$O$437) ) ) * OFFSET( POWER_OPT, OFFSET( OPTIMIZATION, 0, 3), 2)) * $U$1 ) -> 0 | AE104: 0 | AF104: 0
J105: 0.125 | K105: 8 | L105: 0 | M105: 0 | O105: 0 | P105: 0 | Q105: 5.309573445 | U105: 0.0008136315897 | W105: =(VCCINT/1000)*VCCINT*(IF($T105>0,$T105,($L105/2*(($F105*(Data!$N$435)))* OFFSET(POWER_OPT,OFFSET(OPTIMIZATION,0,3),2))*$U$1)) -> 0 | X105: =(VCCINT/1000)*VCCINT*(IF($T105>0,$T105,($L105/2*($G105*(Data!$P$435))))* OFFSET(POWER_OPT,OFFSET(OPTIMIZATION,0,3),2))*$U$1 -> 0 | Y105: =(VCCINT/1000)*VCCINT*(IF($T105>0,$T105,($L105/2*($H105*(Data!$Q$435))))* OFFSET(POWER_OPT,OFFSET(OPTIMIZATION,0,3),2))*$U$1 -> 0 | Z105: =( VCCINT / 1000 ) * VCCINT * ( IF( $T105 > 0, $T105, ( $L105 / 2 * ( ( $I105 * ( Data!$O$435 ) ) ) ) *OFFSET( POWER_OPT, OFFSET( OPTIMIZATION, 0, 3), 2)) * $U$1 ) -> 0 | AA105: =(VCCINT/1000)*VCCINT*(IF($T105 > 0, $T105,($L105/2*(($F105)*(Q105*Data!$N$436+Data!$N$437))))* OFFSET(POWER_OPT,OFFSET(OPTIMIZATION,0,3),2))*$U$1 -> 0 | AB105: =(VCCINT/1000)*VCCINT*(IF($T105 > 0, $T105,($L105/2*($G105*(Q105*Data!$P$436+Data!$P$437))))* OFFSET(POWER_OPT,OFFSET(OPTIMIZATION,0,3),2))*$U$1 -> 0 | AC105: =(VCCINT/1000)*VCCINT*(IF($T105 > 0, $T105,($L105/2*($H105*(Q105*Data!$Q$436+Data!$Q$437))))* OFFSET(POWER_OPT,OFFSET(OPTIMIZATION,0,3),2))*$U$1 -> 0 | AD105: =( VCCINT / 1000 ) * VCCINT * ( IF( $T105 > 0, $T105, ( $L105 / 2 * ( ( $I105 ) * (Q105*Data!$O$436+Data!$O$437) ) ) * OFFSET( POWER_OPT, OFFSET( OPTIMIZATION, 0, 3), 2)) * $U$1 ) -> 0 | AE105: 0 | AF105: 0
J106: 0.125 | K106: 8 | L106: 0 | M106: 0 | O106: 0 | P106: 0 | Q106: 5.309573445 | U106: 0.0008136315897 | W106: =(VCCINT/1000)*VCCINT*(IF($T106>0,$T106,($L106/2*(($F106*(Data!$N$435)))* OFFSET(POWER_OPT,OFFSET(OPTIMIZATION,0,3),2))*$U$1)) -> 0 | X106: =(VCCINT/1000)*VCCINT*(IF($T106>0,$T106,($L106/2*($G106*(Data!$P$435))))* OFFSET(POWER_OPT,OFFSET(OPTIMIZATION,0,3),2))*$U$1 -> 0 | Y106: =(VCCINT/1000)*VCCINT*(IF($T106>0,$T106,($L106/2*($H106*(Data!$Q$435))))* OFFSET(POWER_OPT,OFFSET(OPTIMIZATION,0,3),2))*$U$1 -> 0 | Z106: =( VCCINT / 1000 ) * VCCINT * ( IF( $T106 > 0, $T106, ( $L106 / 2 * ( ( $I106 * ( Data!$O$435 ) ) ) ) *OFFSET( POWER_OPT, OFFSET( OPTIMIZATION, 0, 3), 2)) * $U$1 ) -> 0 | AA106: =(VCCINT/1000)*VCCINT*(IF($T106 > 0, $T106,($L106/2*(($F106)*(Q106*Data!$N$436+Data!$N$437))))* OFFSET(POWER_OPT,OFFSET(OPTIMIZATION,0,3),2))*$U$1 -> 0 | AB106: =(VCCINT/1000)*VCCINT*(IF($T106 > 0, $T106,($L106/2*($G106*(Q106*Data!$P$436+Data!$P$437))))* OFFSET(POWER_OPT,OFFSET(OPTIMIZATION,0,3),2))*$U$1 -> 0 | AC106: =(VCCINT/1000)*VCCINT*(IF($T106 > 0, $T106,($L106/2*($H106*(Q106*Data!$Q$436+Data!$Q$437))))* OFFSET(POWER_OPT,OFFSET(OPTIMIZATION,0,3),2))*$U$1 -> 0 | AD106: =( VCCINT / 1000 ) * VCCINT * ( IF( $T106 > 0, $T106, ( $L106 / 2 * ( ( $I106 ) * (Q106*Data!$O$436+Data!$O$437) ) ) * OFFSET( POWER_OPT, OFFSET( OPTIMIZATION, 0, 3), 2)) * $U$1 ) -> 0 | AE106: 0 | AF106: 0
J107: 0.125 | K107: 8 | L107: 0 | M107: 0 | O107: 0 | P107: 0 | Q107: 5.309573445 | U107: 0.0008136315897 | W107: =(VCCINT/1000)*VCCINT*(IF($T107>0,$T107,($L107/2*(($F107*(Data!$N$435)))* OFFSET(POWER_OPT,OFFSET(OPTIMIZATION,0,3),2))*$U$1)) -> 0 | X107: =(VCCINT/1000)*VCCINT*(IF($T107>0,$T107,($L107/2*($G107*(Data!$P$435))))* OFFSET(POWER_OPT,OFFSET(OPTIMIZATION,0,3),2))*$U$1 -> 0 | Y107: =(VCCINT/1000)*VCCINT*(IF($T107>0,$T107,($L107/2*($H107*(Data!$Q$435))))* OFFSET(POWER_OPT,OFFSET(OPTIMIZATION,0,3),2))*$U$1 -> 0 | Z107: =( VCCINT / 1000 ) * VCCINT * ( IF( $T107 > 0, $T107, ( $L107 / 2 * ( ( $I107 * ( Data!$O$435 ) ) ) ) *OFFSET( POWER_OPT, OFFSET( OPTIMIZATION, 0, 3), 2)) * $U$1 ) -> 0 | AA107: =(VCCINT/1000)*VCCINT*(IF($T107 > 0, $T107,($L107/2*(($F107)*(Q107*Data!$N$436+Data!$N$437))))* OFFSET(POWER_OPT,OFFSET(OPTIMIZATION,0,3),2))*$U$1 -> 0 | AB107: =(VCCINT/1000)*VCCINT*(IF($T107 > 0, $T107,($L107/2*($G107*(Q107*Data!$P$436+Data!$P$437))))* OFFSET(POWER_OPT,OFFSET(OPTIMIZATION,0,3),2))*$U$1 -> 0 | AC107: =(VCCINT/1000)*VCCINT*(IF($T107 > 0, $T107,($L107/2*($H107*(Q107*Data!$Q$436+Data!$Q$437))))* OFFSET(POWER_OPT,OFFSET(OPTIMIZATION,0,3),2))*$U$1 -> 0 | AD107: =( VCCINT / 1000 ) * VCCINT * ( IF( $T107 > 0, $T107, ( $L107 / 2 * ( ( $I107 ) * (Q107*Data!$O$436+Data!$O$437) ) ) * OFFSET( POWER_OPT, OFFSET( OPTIMIZATION, 0, 3), 2)) * $U$1 ) -> 0 | AE107: 0 | AF107: 0
J108: 0.125 | K108: 8 | L108: 0 | M108: 0 | O108: 0 | P108: 0 | Q108: 5.309573445 | U108: 0.0008136315897 | W108: =(VCCINT/1000)*VCCINT*(IF($T108>0,$T108,($L108/2*(($F108*(Data!$N$435)))* OFFSET(POWER_OPT,OFFSET(OPTIMIZATION,0,3),2))*$U$1)) -> 0 | X108: =(VCCINT/1000)*VCCINT*(IF($T108>0,$T108,($L108/2*($G108*(Data!$P$435))))* OFFSET(POWER_OPT,OFFSET(OPTIMIZATION,0,3),2))*$U$1 -> 0 | Y108: =(VCCINT/1000)*VCCINT*(IF($T108>0,$T108,($L108/2*($H108*(Data!$Q$435))))* OFFSET(POWER_OPT,OFFSET(OPTIMIZATION,0,3),2))*$U$1 -> 0 | Z108: =( VCCINT / 1000 ) * VCCINT * ( IF( $T108 > 0, $T108, ( $L108 / 2 * ( ( $I108 * ( Data!$O$435 ) ) ) ) *OFFSET( POWER_OPT, OFFSET( OPTIMIZATION, 0, 3), 2)) * $U$1 ) -> 0 | AA108: =(VCCINT/1000)*VCCINT*(IF($T108 > 0, $T108,($L108/2*(($F108)*(Q108*Data!$N$436+Data!$N$437))))* OFFSET(POWER_OPT,OFFSET(OPTIMIZATION,0,3),2))*$U$1 -> 0 | AB108: =(VCCINT/1000)*VCCINT*(IF($T108 > 0, $T108,($L108/2*($G108*(Q108*Data!$P$436+Data!$P$437))))* OFFSET(POWER_OPT,OFFSET(OPTIMIZATION,0,3),2))*$U$1 -> 0 | AC108: =(VCCINT/1000)*VCCINT*(IF($T108 > 0, $T108,($L108/2*($H108*(Q108*Data!$Q$436+Data!$Q$437))))* OFFSET(POWER_OPT,OFFSET(OPTIMIZATION,0,3),2))*$U$1 -> 0 | AD108: =( VCCINT / 1000 ) * VCCINT * ( IF( $T108 > 0, $T108, ( $L108 / 2 * ( ( $I108 ) * (Q108*Data!$O$436+Data!$O$437) ) ) * OFFSET( POWER_OPT, OFFSET( OPTIMIZATION, 0, 3), 2)) * $U$1 ) -> 0 | AE108: 0 | AF108: 0
J109: 0.125 | K109: 8 | L109: 0 | M109: 0 | O109: 0 | P109: 0 | Q109: 5.309573445 | U109: 0.0008136315897 | W109: =(VCCINT/1000)*VCCINT*(IF($T109>0,$T109,($L109/2*(($F109*(Data!$N$435)))* OFFSET(POWER_OPT,OFFSET(OPTIMIZATION,0,3),2))*$U$1)) -> 0 | X109: =(VCCINT/1000)*VCCINT*(IF($T109>0,$T109,($L109/2*($G109*(Data!$P$435))))* OFFSET(POWER_OPT,OFFSET(OPTIMIZATION,0,3),2))*$U$1 -> 0 | Y109: =(VCCINT/1000)*VCCINT*(IF($T109>0,$T109,($L109/2*($H109*(Data!$Q$435))))* OFFSET(POWER_OPT,OFFSET(OPTIMIZATION,0,3),2))*$U$1 -> 0 | Z109: =( VCCINT / 1000 ) * VCCINT * ( IF( $T109 > 0, $T109, ( $L109 / 2 * ( ( $I109 * ( Data!$O$435 ) ) ) ) *OFFSET( POWER_OPT, OFFSET( OPTIMIZATION, 0, 3), 2)) * $U$1 ) -> 0 | AA109: =(VCCINT/1000)*VCCINT*(IF($T109 > 0, $T109,($L109/2*(($F109)*(Q109*Data!$N$436+Data!$N$437))))* OFFSET(POWER_OPT,OFFSET(OPTIMIZATION,0,3),2))*$U$1 -> 0 | AB109: =(VCCINT/1000)*VCCINT*(IF($T109 > 0, $T109,($L109/2*($G109*(Q109*Data!$P$436+Data!$P$437))))* OFFSET(POWER_OPT,OFFSET(OPTIMIZATION,0,3),2))*$U$1 -> 0 | AC109: =(VCCINT/1000)*VCCINT*(IF($T109 > 0, $T109,($L109/2*($H109*(Q109*Data!$Q$436+Data!$Q$437))))* OFFSET(POWER_OPT,OFFSET(OPTIMIZATION,0,3),2))*$U$1 -> 0 | AD109: =( VCCINT / 1000 ) * VCCINT * ( IF( $T109 > 0, $T109, ( $L109 / 2 * ( ( $I109 ) * (Q109*Data!$O$436+Data!$O$437) ) ) * OFFSET( POWER_OPT, OFFSET( OPTIMIZATION, 0, 3), 2)) * $U$1 ) -> 0 | AE109: 0 | AF109: 0
J110: 0.125 | K110: 8 | L110: 0 | M110: 0 | O110: 0 | P110: 0 | Q110: 5.309573445 | U110: 0.0008136315897 | W110: =(VCCINT/1000)*VCCINT*(IF($T110>0,$T110,($L110/2*(($F110*(Data!$N$435)))* OFFSET(POWER_OPT,OFFSET(OPTIMIZATION,0,3),2))*$U$1)) -> 0 | X110: =(VCCINT/1000)*VCCINT*(IF($T110>0,$T110,($L110/2*($G110*(Data!$P$435))))* OFFSET(POWER_OPT,OFFSET(OPTIMIZATION,0,3),2))*$U$1 -> 0 | Y110: =(VCCINT/1000)*VCCINT*(IF($T110>0,$T110,($L110/2*($H110*(Data!$Q$435))))* OFFSET(POWER_OPT,OFFSET(OPTIMIZATION,0,3),2))*$U$1 -> 0 | Z110: =( VCCINT / 1000 ) * VCCINT * ( IF( $T110 > 0, $T110, ( $L110 / 2 * ( ( $I110 * ( Data!$O$435 ) ) ) ) *OFFSET( POWER_OPT, OFFSET( OPTIMIZATION, 0, 3), 2)) * $U$1 ) -> 0 | AA110: =(VCCINT/1000)*VCCINT*(IF($T110 > 0, $T110,($L110/2*(($F110)*(Q110*Data!$N$436+Data!$N$437))))* OFFSET(POWER_OPT,OFFSET(OPTIMIZATION,0,3),2))*$U$1 -> 0 | AB110: =(VCCINT/1000)*VCCINT*(IF($T110 > 0, $T110,($L110/2*($G110*(Q110*Data!$P$436+Data!$P$437))))* OFFSET(POWER_OPT,OFFSET(OPTIMIZATION,0,3),2))*$U$1 -> 0 | AC110: =(VCCINT/1000)*VCCINT*(IF($T110 > 0, $T110,($L110/2*($H110*(Q110*Data!$Q$436+Data!$Q$437))))* OFFSET(POWER_OPT,OFFSET(OPTIMIZATION,0,3),2))*$U$1 -> 0 | AD110: =( VCCINT / 1000 ) * VCCINT * ( IF( $T110 > 0, $T110, ( $L110 / 2 * ( ( $I110 ) * (Q110*Data!$O$436+Data!$O$437) ) ) * OFFSET( POWER_OPT, OFFSET( OPTIMIZATION, 0, 3), 2)) * $U$1 ) -> 0 | AE110: 0 | AF110: 0
J111: 0.125 | K111: 8 | L111: 0 | M111: 0 | O111: 0 | P111: 0 | Q111: 5.309573445 | U111: 0.0008136315897 | W111: =(VCCINT/1000)*VCCINT*(IF($T111>0,$T111,($L111/2*(($F111*(Data!$N$435)))* OFFSET(POWER_OPT,OFFSET(OPTIMIZATION,0,3),2))*$U$1)) -> 0 | X111: =(VCCINT/1000)*VCCINT*(IF($T111>0,$T111,($L111/2*($G111*(Data!$P$435))))* OFFSET(POWER_OPT,OFFSET(OPTIMIZATION,0,3),2))*$U$1 -> 0 | Y111: =(VCCINT/1000)*VCCINT*(IF($T111>0,$T111,($L111/2*($H111*(Data!$Q$435))))* OFFSET(POWER_OPT,OFFSET(OPTIMIZATION,0,3),2))*$U$1 -> 0 | Z111: =( VCCINT / 1000 ) * VCCINT * ( IF( $T111 > 0, $T111, ( $L111 / 2 * ( ( $I111 * ( Data!$O$435 ) ) ) ) *OFFSET( POWER_OPT, OFFSET( OPTIMIZATION, 0, 3), 2)) * $U$1 ) -> 0 | AA111: =(VCCINT/1000)*VCCINT*(IF($T111 > 0, $T111,($L111/2*(($F111)*(Q111*Data!$N$436+Data!$N$437))))* OFFSET(POWER_OPT,OFFSET(OPTIMIZATION,0,3),2))*$U$1 -> 0 | AB111: =(VCCINT/1000)*VCCINT*(IF($T111 > 0, $T111,($L111/2*($G111*(Q111*Data!$P$436+Data!$P$437))))* OFFSET(POWER_OPT,OFFSET(OPTIMIZATION,0,3),2))*$U$1 -> 0 | AC111: =(VCCINT/1000)*VCCINT*(IF($T111 > 0, $T111,($L111/2*($H111*(Q111*Data!$Q$436+Data!$Q$437))))* OFFSET(POWER_OPT,OFFSET(OPTIMIZATION,0,3),2))*$U$1 -> 0 | AD111: =( VCCINT / 1000 ) * VCCINT * ( IF( $T111 > 0, $T111, ( $L111 / 2 * ( ( $I111 ) * (Q111*Data!$O$436+Data!$O$437) ) ) * OFFSET( POWER_OPT, OFFSET( OPTIMIZATION, 0, 3), 2)) * $U$1 ) -> 0 | AE111: 0 | AF111: 0
J112: 0.125 | K112: 8 | L112: 0 | M112: 0 | O112: 0 | P112: 0 | Q112: 5.309573445 | U112: 0.0008136315897 | W112: =(VCCINT/1000)*VCCINT*(IF($T112>0,$T112,($L112/2*(($F112*(Data!$N$435)))* OFFSET(POWER_OPT,OFFSET(OPTIMIZATION,0,3),2))*$U$1)) -> 0 | X112: =(VCCINT/1000)*VCCINT*(IF($T112>0,$T112,($L112/2*($G112*(Data!$P$435))))* OFFSET(POWER_OPT,OFFSET(OPTIMIZATION,0,3),2))*$U$1 -> 0 | Y112: =(VCCINT/1000)*VCCINT*(IF($T112>0,$T112,($L112/2*($H112*(Data!$Q$435))))* OFFSET(POWER_OPT,OFFSET(OPTIMIZATION,0,3),2))*$U$1 -> 0 | Z112: =( VCCINT / 1000 ) * VCCINT * ( IF( $T112 > 0, $T112, ( $L112 / 2 * ( ( $I112 * ( Data!$O$435 ) ) ) ) *OFFSET( POWER_OPT, OFFSET( OPTIMIZATION, 0, 3), 2)) * $U$1 ) -> 0 | AA112: =(VCCINT/1000)*VCCINT*(IF($T112 > 0, $T112,($L112/2*(($F112)*(Q112*Data!$N$436+Data!$N$437))))* OFFSET(POWER_OPT,OFFSET(OPTIMIZATION,0,3),2))*$U$1 -> 0 | AB112: =(VCCINT/1000)*VCCINT*(IF($T112 > 0, $T112,($L112/2*($G112*(Q112*Data!$P$436+Data!$P$437))))* OFFSET(POWER_OPT,OFFSET(OPTIMIZATION,0,3),2))*$U$1 -> 0 | AC112: =(VCCINT/1000)*VCCINT*(IF($T112 > 0, $T112,($L112/2*($H112*(Q112*Data!$Q$436+Data!$Q$437))))* OFFSET(POWER_OPT,OFFSET(OPTIMIZATION,0,3),2))*$U$1 -> 0 | AD112: =( VCCINT / 1000 ) * VCCINT * ( IF( $T112 > 0, $T112, ( $L112 / 2 * ( ( $I112 ) * (Q112*Data!$O$436+Data!$O$437) ) ) * OFFSET( POWER_OPT, OFFSET( OPTIMIZATION, 0, 3), 2)) * $U$1 ) -> 0 | AE112: 0 | AF112: 0
J113: 0.125 | K113: 8 | L113: 0 | M113: 0 | O113: 0 | P113: 0 | Q113: 5.309573445 | U113: 0.0008136315897 | W113: =(VCCINT/1000)*VCCINT*(IF($T113>0,$T113,($L113/2*(($F113*(Data!$N$435)))* OFFSET(POWER_OPT,OFFSET(OPTIMIZATION,0,3),2))*$U$1)) -> 0 | X113: =(VCCINT/1000)*VCCINT*(IF($T113>0,$T113,($L113/2*($G113*(Data!$P$435))))* OFFSET(POWER_OPT,OFFSET(OPTIMIZATION,0,3),2))*$U$1 -> 0 | Y113: =(VCCINT/1000)*VCCINT*(IF($T113>0,$T113,($L113/2*($H113*(Data!$Q$435))))* OFFSET(POWER_OPT,OFFSET(OPTIMIZATION,0,3),2))*$U$1 -> 0 | Z113: =( VCCINT / 1000 ) * VCCINT * ( IF( $T113 > 0, $T113, ( $L113 / 2 * ( ( $I113 * ( Data!$O$435 ) ) ) ) *OFFSET( POWER_OPT, OFFSET( OPTIMIZATION, 0, 3), 2)) * $U$1 ) -> 0 | AA113: =(VCCINT/1000)*VCCINT*(IF($T113 > 0, $T113,($L113/2*(($F113)*(Q113*Data!$N$436+Data!$N$437))))* OFFSET(POWER_OPT,OFFSET(OPTIMIZATION,0,3),2))*$U$1 -> 0 | AB113: =(VCCINT/1000)*VCCINT*(IF($T113 > 0, $T113,($L113/2*($G113*(Q113*Data!$P$436+Data!$P$437))))* OFFSET(POWER_OPT,OFFSET(OPTIMIZATION,0,3),2))*$U$1 -> 0 | AC113: =(VCCINT/1000)*VCCINT*(IF($T113 > 0, $T113,($L113/2*($H113*(Q113*Data!$Q$436+Data!$Q$437))))* OFFSET(POWER_OPT,OFFSET(OPTIMIZATION,0,3),2))*$U$1 -> 0 | AD113: =( VCCINT / 1000 ) * VCCINT * ( IF( $T113 > 0, $T113, ( $L113 / 2 * ( ( $I113 ) * (Q113*Data!$O$436+Data!$O$437) ) ) * OFFSET( POWER_OPT, OFFSET( OPTIMIZATION, 0, 3), 2)) * $U$1 ) -> 0 | AE113: 0 | AF113: 0
J114: 0.125 | K114: 8 | L114: 0 | M114: 0 | O114: 0 | P114: 0 | Q114: 5.309573445 | U114: 0.0008136315897 | W114: =(VCCINT/1000)*VCCINT*(IF($T114>0,$T114,($L114/2*(($F114*(Data!$N$435)))* OFFSET(POWER_OPT,OFFSET(OPTIMIZATION,0,3),2))*$U$1)) -> 0 | X114: =(VCCINT/1000)*VCCINT*(IF($T114>0,$T114,($L114/2*($G114*(Data!$P$435))))* OFFSET(POWER_OPT,OFFSET(OPTIMIZATION,0,3),2))*$U$1 -> 0 | Y114: =(VCCINT/1000)*VCCINT*(IF($T114>0,$T114,($L114/2*($H114*(Data!$Q$435))))* OFFSET(POWER_OPT,OFFSET(OPTIMIZATION,0,3),2))*$U$1 -> 0 | Z114: =( VCCINT / 1000 ) * VCCINT * ( IF( $T114 > 0, $T114, ( $L114 / 2 * ( ( $I114 * ( Data!$O$435 ) ) ) ) *OFFSET( POWER_OPT, OFFSET( OPTIMIZATION, 0, 3), 2)) * $U$1 ) -> 0 | AA114: =(VCCINT/1000)*VCCINT*(IF($T114 > 0, $T114,($L114/2*(($F114)*(Q114*Data!$N$436+Data!$N$437))))* OFFSET(POWER_OPT,OFFSET(OPTIMIZATION,0,3),2))*$U$1 -> 0 | AB114: =(VCCINT/1000)*VCCINT*(IF($T114 > 0, $T114,($L114/2*($G114*(Q114*Data!$P$436+Data!$P$437))))* OFFSET(POWER_OPT,OFFSET(OPTIMIZATION,0,3),2))*$U$1 -> 0 | AC114: =(VCCINT/1000)*VCCINT*(IF($T114 > 0, $T114,($L114/2*($H114*(Q114*Data!$Q$436+Data!$Q$437))))* OFFSET(POWER_OPT,OFFSET(OPTIMIZATION,0,3),2))*$U$1 -> 0 | AD114: =( VCCINT / 1000 ) * VCCINT * ( IF( $T114 > 0, $T114, ( $L114 / 2 * ( ( $I114 ) * (Q114*Data!$O$436+Data!$O$437) ) ) * OFFSET( POWER_OPT, OFFSET( OPTIMIZATION, 0, 3), 2)) * $U$1 ) -> 0 | AE114: 0 | AF114: 0
J115: 0.125 | K115: 8 | L115: 0 | M115: 0 | O115: 0 | P115: 0 | Q115: 5.309573445 | U115: 0.0008136315897 | W115: =(VCCINT/1000)*VCCINT*(IF($T115>0,$T115,($L115/2*(($F115*(Data!$N$435)))* OFFSET(POWER_OPT,OFFSET(OPTIMIZATION,0,3),2))*$U$1)) -> 0 | X115: =(VCCINT/1000)*VCCINT*(IF($T115>0,$T115,($L115/2*($G115*(Data!$P$435))))* OFFSET(POWER_OPT,OFFSET(OPTIMIZATION,0,3),2))*$U$1 -> 0 | Y115: =(VCCINT/1000)*VCCINT*(IF($T115>0,$T115,($L115/2*($H115*(Data!$Q$435))))* OFFSET(POWER_OPT,OFFSET(OPTIMIZATION,0,3),2))*$U$1 -> 0 | Z115: =( VCCINT / 1000 ) * VCCINT * ( IF( $T115 > 0, $T115, ( $L115 / 2 * ( ( $I115 * ( Data!$O$435 ) ) ) ) *OFFSET( POWER_OPT, OFFSET( OPTIMIZATION, 0, 3), 2)) * $U$1 ) -> 0 | AA115: =(VCCINT/1000)*VCCINT*(IF($T115 > 0, $T115,($L115/2*(($F115)*(Q115*Data!$N$436+Data!$N$437))))* OFFSET(POWER_OPT,OFFSET(OPTIMIZATION,0,3),2))*$U$1 -> 0 | AB115: =(VCCINT/1000)*VCCINT*(IF($T115 > 0, $T115,($L115/2*($G115*(Q115*Data!$P$436+Data!$P$437))))* OFFSET(POWER_OPT,OFFSET(OPTIMIZATION,0,3),2))*$U$1 -> 0 | AC115: =(VCCINT/1000)*VCCINT*(IF($T115 > 0, $T115,($L115/2*($H115*(Q115*Data!$Q$436+Data!$Q$437))))* OFFSET(POWER_OPT,OFFSET(OPTIMIZATION,0,3),2))*$U$1 -> 0 | AD115: =( VCCINT / 1000 ) * VCCINT * ( IF( $T115 > 0, $T115, ( $L115 / 2 * ( ( $I115 ) * (Q115*Data!$O$436+Data!$O$437) ) ) * OFFSET( POWER_OPT, OFFSET( OPTIMIZATION, 0, 3), 2)) * $U$1 ) -> 0 | AE115: 0 | AF115: 0
J116: 0.125 | K116: 8 | L116: 0 | M116: 0 | O116: 0 | P116: 0 | Q116: 5.309573445 | U116: 0.0008136315897 | W116: =(VCCINT/1000)*VCCINT*(IF($T116>0,$T116,($L116/2*(($F116*(Data!$N$435)))* OFFSET(POWER_OPT,OFFSET(OPTIMIZATION,0,3),2))*$U$1)) -> 0 | X116: =(VCCINT/1000)*VCCINT*(IF($T116>0,$T116,($L116/2*($G116*(Data!$P$435))))* OFFSET(POWER_OPT,OFFSET(OPTIMIZATION,0,3),2))*$U$1 -> 0 | Y116: =(VCCINT/1000)*VCCINT*(IF($T116>0,$T116,($L116/2*($H116*(Data!$Q$435))))* OFFSET(POWER_OPT,OFFSET(OPTIMIZATION,0,3),2))*$U$1 -> 0 | Z116: =( VCCINT / 1000 ) * VCCINT * ( IF( $T116 > 0, $T116, ( $L116 / 2 * ( ( $I116 * ( Data!$O$435 ) ) ) ) *OFFSET( POWER_OPT, OFFSET( OPTIMIZATION, 0, 3), 2)) * $U$1 ) -> 0 | AA116: =(VCCINT/1000)*VCCINT*(IF($T116 > 0, $T116,($L116/2*(($F116)*(Q116*Data!$N$436+Data!$N$437))))* OFFSET(POWER_OPT,OFFSET(OPTIMIZATION,0,3),2))*$U$1 -> 0 | AB116: =(VCCINT/1000)*VCCINT*(IF($T116 > 0, $T116,($L116/2*($G116*(Q116*Data!$P$436+Data!$P$437))))* OFFSET(POWER_OPT,OFFSET(OPTIMIZATION,0,3),2))*$U$1 -> 0 | AC116: =(VCCINT/1000)*VCCINT*(IF($T116 > 0, $T116,($L116/2*($H116*(Q116*Data!$Q$436+Data!$Q$437))))* OFFSET(POWER_OPT,OFFSET(OPTIMIZATION,0,3),2))*$U$1 -> 0 | AD116: =( VCCINT / 1000 ) * VCCINT * ( IF( $T116 > 0, $T116, ( $L116 / 2 * ( ( $I116 ) * (Q116*Data!$O$436+Data!$O$437) ) ) * OFFSET( POWER_OPT, OFFSET( OPTIMIZATION, 0, 3), 2)) * $U$1 ) -> 0 | AE116: 0 | AF116: 0
J117: 0.125 | K117: 8 | L117: 0 | M117: 0 | O117: 0 | P117: 0 | Q117: 5.309573445 | U117: 0.0008136315897 | W117: =(VCCINT/1000)*VCCINT*(IF($T117>0,$T117,($L117/2*(($F117*(Data!$N$435)))* OFFSET(POWER_OPT,OFFSET(OPTIMIZATION,0,3),2))*$U$1)) -> 0 | X117: =(VCCINT/1000)*VCCINT*(IF($T117>0,$T117,($L117/2*($G117*(Data!$P$435))))* OFFSET(POWER_OPT,OFFSET(OPTIMIZATION,0,3),2))*$U$1 -> 0 | Y117: =(VCCINT/1000)*VCCINT*(IF($T117>0,$T117,($L117/2*($H117*(Data!$Q$435))))* OFFSET(POWER_OPT,OFFSET(OPTIMIZATION,0,3),2))*$U$1 -> 0 | Z117: =( VCCINT / 1000 ) * VCCINT * ( IF( $T117 > 0, $T117, ( $L117 / 2 * ( ( $I117 * ( Data!$O$435 ) ) ) ) *OFFSET( POWER_OPT, OFFSET( OPTIMIZATION, 0, 3), 2)) * $U$1 ) -> 0 | AA117: =(VCCINT/1000)*VCCINT*(IF($T117 > 0, $T117,($L117/2*(($F117)*(Q117*Data!$N$436+Data!$N$437))))* OFFSET(POWER_OPT,OFFSET(OPTIMIZATION,0,3),2))*$U$1 -> 0 | AB117: =(VCCINT/1000)*VCCINT*(IF($T117 > 0, $T117,($L117/2*($G117*(Q117*Data!$P$436+Data!$P$437))))* OFFSET(POWER_OPT,OFFSET(OPTIMIZATION,0,3),2))*$U$1 -> 0 | AC117: =(VCCINT/1000)*VCCINT*(IF($T117 > 0, $T117,($L117/2*($H117*(Q117*Data!$Q$436+Data!$Q$437))))* OFFSET(POWER_OPT,OFFSET(OPTIMIZATION,0,3),2))*$U$1 -> 0 | AD117: =( VCCINT / 1000 ) * VCCINT * ( IF( $T117 > 0, $T117, ( $L117 / 2 * ( ( $I117 ) * (Q117*Data!$O$436+Data!$O$437) ) ) * OFFSET( POWER_OPT, OFFSET( OPTIMIZATION, 0, 3), 2)) * $U$1 ) -> 0 | AE117: 0 | AF117: 0
J118: 0.125 | K118: 8 | L118: 0 | M118: 0 | O118: 0 | P118: 0 | Q118: 5.309573445 | U118: 0.0008136315897 | W118: =(VCCINT/1000)*VCCINT*(IF($T118>0,$T118,($L118/2*(($F118*(Data!$N$435)))* OFFSET(POWER_OPT,OFFSET(OPTIMIZATION,0,3),2))*$U$1)) -> 0 | X118: =(VCCINT/1000)*VCCINT*(IF($T118>0,$T118,($L118/2*($G118*(Data!$P$435))))* OFFSET(POWER_OPT,OFFSET(OPTIMIZATION,0,3),2))*$U$1 -> 0 | Y118: =(VCCINT/1000)*VCCINT*(IF($T118>0,$T118,($L118/2*($H118*(Data!$Q$435))))* OFFSET(POWER_OPT,OFFSET(OPTIMIZATION,0,3),2))*$U$1 -> 0 | Z118: =( VCCINT / 1000 ) * VCCINT * ( IF( $T118 > 0, $T118, ( $L118 / 2 * ( ( $I118 * ( Data!$O$435 ) ) ) ) *OFFSET( POWER_OPT, OFFSET( OPTIMIZATION, 0, 3), 2)) * $U$1 ) -> 0 | AA118: =(VCCINT/1000)*VCCINT*(IF($T118 > 0, $T118,($L118/2*(($F118)*(Q118*Data!$N$436+Data!$N$437))))* OFFSET(POWER_OPT,OFFSET(OPTIMIZATION,0,3),2))*$U$1 -> 0 | AB118: =(VCCINT/1000)*VCCINT*(IF($T118 > 0, $T118,($L118/2*($G118*(Q118*Data!$P$436+Data!$P$437))))* OFFSET(POWER_OPT,OFFSET(OPTIMIZATION,0,3),2))*$U$1 -> 0 | AC118: =(VCCINT/1000)*VCCINT*(IF($T118 > 0, $T118,($L118/2*($H118*(Q118*Data!$Q$436+Data!$Q$437))))* OFFSET(POWER_OPT,OFFSET(OPTIMIZATION,0,3),2))*$U$1 -> 0 | AD118: =( VCCINT / 1000 ) * VCCINT * ( IF( $T118 > 0, $T118, ( $L118 / 2 * ( ( $I118 ) * (Q118*Data!$O$436+Data!$O$437) ) ) * OFFSET( POWER_OPT, OFFSET( OPTIMIZATION, 0, 3), 2)) * $U$1 ) -> 0 | AE118: 0 | AF118: 0
J119: 0.125 | K119: 8 | L119: 0 | M119: 0 | O119: 0 | P119: 0 | Q119: 5.309573445 | U119: 0.0008136315897 | W119: =(VCCINT/1000)*VCCINT*(IF($T119>0,$T119,($L119/2*(($F119*(Data!$N$435)))* OFFSET(POWER_OPT,OFFSET(OPTIMIZATION,0,3),2))*$U$1)) -> 0 | X119: =(VCCINT/1000)*VCCINT*(IF($T119>0,$T119,($L119/2*($G119*(Data!$P$435))))* OFFSET(POWER_OPT,OFFSET(OPTIMIZATION,0,3),2))*$U$1 -> 0 | Y119: =(VCCINT/1000)*VCCINT*(IF($T119>0,$T119,($L119/2*($H119*(Data!$Q$435))))* OFFSET(POWER_OPT,OFFSET(OPTIMIZATION,0,3),2))*$U$1 -> 0 | Z119: =( VCCINT / 1000 ) * VCCINT * ( IF( $T119 > 0, $T119, ( $L119 / 2 * ( ( $I119 * ( Data!$O$435 ) ) ) ) *OFFSET( POWER_OPT, OFFSET( OPTIMIZATION, 0, 3), 2)) * $U$1 ) -> 0 | AA119: =(VCCINT/1000)*VCCINT*(IF($T119 > 0, $T119,($L119/2*(($F119)*(Q119*Data!$N$436+Data!$N$437))))* OFFSET(POWER_OPT,OFFSET(OPTIMIZATION,0,3),2))*$U$1 -> 0 | AB119: =(VCCINT/1000)*VCCINT*(IF($T119 > 0, $T119,($L119/2*($G119*(Q119*Data!$P$436+Data!$P$437))))* OFFSET(POWER_OPT,OFFSET(OPTIMIZATION,0,3),2))*$U$1 -> 0 | AC119: =(VCCINT/1000)*VCCINT*(IF($T119 > 0, $T119,($L119/2*($H119*(Q119*Data!$Q$436+Data!$Q$437))))* OFFSET(POWER_OPT,OFFSET(OPTIMIZATION,0,3),2))*$U$1 -> 0 | AD119: =( VCCINT / 1000 ) * VCCINT * ( IF( $T119 > 0, $T119, ( $L119 / 2 * ( ( $I119 ) * (Q119*Data!$O$436+Data!$O$437) ) ) * OFFSET( POWER_OPT, OFFSET( OPTIMIZATION, 0, 3), 2)) * $U$1 ) -> 0 | AE119: 0 | AF119: 0
J120: 0.125 | K120: 8 | L120: 0 | M120: 0 | O120: 0 | P120: 0 | Q120: 5.309573445 | U120: 0.0008136315897 | W120: =(VCCINT/1000)*VCCINT*(IF($T120>0,$T120,($L120/2*(($F120*(Data!$N$435)))* OFFSET(POWER_OPT,OFFSET(OPTIMIZATION,0,3),2))*$U$1)) -> 0 | X120: =(VCCINT/1000)*VCCINT*(IF($T120>0,$T120,($L120/2*($G120*(Data!$P$435))))* OFFSET(POWER_OPT,OFFSET(OPTIMIZATION,0,3),2))*$U$1 -> 0 | Y120: =(VCCINT/1000)*VCCINT*(IF($T120>0,$T120,($L120/2*($H120*(Data!$Q$435))))* OFFSET(POWER_OPT,OFFSET(OPTIMIZATION,0,3),2))*$U$1 -> 0 | Z120: =( VCCINT / 1000 ) * VCCINT * ( IF( $T120 > 0, $T120, ( $L120 / 2 * ( ( $I120 * ( Data!$O$435 ) ) ) ) *OFFSET( POWER_OPT, OFFSET( OPTIMIZATION, 0, 3), 2)) * $U$1 ) -> 0 | AA120: =(VCCINT/1000)*VCCINT*(IF($T120 > 0, $T120,($L120/2*(($F120)*(Q120*Data!$N$436+Data!$N$437))))* OFFSET(POWER_OPT,OFFSET(OPTIMIZATION,0,3),2))*$U$1 -> 0 | AB120: =(VCCINT/1000)*VCCINT*(IF($T120 > 0, $T120,($L120/2*($G120*(Q120*Data!$P$436+Data!$P$437))))* OFFSET(POWER_OPT,OFFSET(OPTIMIZATION,0,3),2))*$U$1 -> 0 | AC120: =(VCCINT/1000)*VCCINT*(IF($T120 > 0, $T120,($L120/2*($H120*(Q120*Data!$Q$436+Data!$Q$437))))* OFFSET(POWER_OPT,OFFSET(OPTIMIZATION,0,3),2))*$U$1 -> 0 | AD120: =( VCCINT / 1000 ) * VCCINT * ( IF( $T120 > 0, $T120, ( $L120 / 2 * ( ( $I120 ) * (Q120*Data!$O$436+Data!$O$437) ) ) * OFFSET( POWER_OPT, OFFSET( OPTIMIZATION, 0, 3), 2)) * $U$1 ) -> 0 | AE120: 0 | AF120: 0
J121: 0.125 | K121: 8 | L121: 0 | M121: 0 | O121: 0 | P121: 0 | Q121: 5.309573445 | U121: 0.0008136315897 | W121: =(VCCINT/1000)*VCCINT*(IF($T121>0,$T121,($L121/2*(($F121*(Data!$N$435)))* OFFSET(POWER_OPT,OFFSET(OPTIMIZATION,0,3),2))*$U$1)) -> 0 | X121: =(VCCINT/1000)*VCCINT*(IF($T121>0,$T121,($L121/2*($G121*(Data!$P$435))))* OFFSET(POWER_OPT,OFFSET(OPTIMIZATION,0,3),2))*$U$1 -> 0 | Y121: =(VCCINT/1000)*VCCINT*(IF($T121>0,$T121,($L121/2*($H121*(Data!$Q$435))))* OFFSET(POWER_OPT,OFFSET(OPTIMIZATION,0,3),2))*$U$1 -> 0 | Z121: =( VCCINT / 1000 ) * VCCINT * ( IF( $T121 > 0, $T121, ( $L121 / 2 * ( ( $I121 * ( Data!$O$435 ) ) ) ) *OFFSET( POWER_OPT, OFFSET( OPTIMIZATION, 0, 3), 2)) * $U$1 ) -> 0 | AA121: =(VCCINT/1000)*VCCINT*(IF($T121 > 0, $T121,($L121/2*(($F121)*(Q121*Data!$N$436+Data!$N$437))))* OFFSET(POWER_OPT,OFFSET(OPTIMIZATION,0,3),2))*$U$1 -> 0 | AB121: =(VCCINT/1000)*VCCINT*(IF($T121 > 0, $T121,($L121/2*($G121*(Q121*Data!$P$436+Data!$P$437))))* OFFSET(POWER_OPT,OFFSET(OPTIMIZATION,0,3),2))*$U$1 -> 0 | AC121: =(VCCINT/1000)*VCCINT*(IF($T121 > 0, $T121,($L121/2*($H121*(Q121*Data!$Q$436+Data!$Q$437))))* OFFSET(POWER_OPT,OFFSET(OPTIMIZATION,0,3),2))*$U$1 -> 0 | AD121: =( VCCINT / 1000 ) * VCCINT * ( IF( $T121 > 0, $T121, ( $L121 / 2 * ( ( $I121 ) * (Q121*Data!$O$436+Data!$O$437) ) ) * OFFSET( POWER_OPT, OFFSET( OPTIMIZATION, 0, 3), 2)) * $U$1 ) -> 0 | AE121: 0 | AF121: 0
J122: 0.125 | K122: 8 | L122: 0 | M122: 0 | O122: 0 | P122: 0 | Q122: 5.309573445 | U122: 0.0008136315897 | W122: =(VCCINT/1000)*VCCINT*(IF($T122>0,$T122,($L122/2*(($F122*(Data!$N$435)))* OFFSET(POWER_OPT,OFFSET(OPTIMIZATION,0,3),2))*$U$1)) -> 0 | X122: =(VCCINT/1000)*VCCINT*(IF($T122>0,$T122,($L122/2*($G122*(Data!$P$435))))* OFFSET(POWER_OPT,OFFSET(OPTIMIZATION,0,3),2))*$U$1 -> 0 | Y122: =(VCCINT/1000)*VCCINT*(IF($T122>0,$T122,($L122/2*($H122*(Data!$Q$435))))* OFFSET(POWER_OPT,OFFSET(OPTIMIZATION,0,3),2))*$U$1 -> 0 | Z122: =( VCCINT / 1000 ) * VCCINT * ( IF( $T122 > 0, $T122, ( $L122 / 2 * ( ( $I122 * ( Data!$O$435 ) ) ) ) *OFFSET( POWER_OPT, OFFSET( OPTIMIZATION, 0, 3), 2)) * $U$1 ) -> 0 | AA122: =(VCCINT/1000)*VCCINT*(IF($T122 > 0, $T122,($L122/2*(($F122)*(Q122*Data!$N$436+Data!$N$437))))* OFFSET(POWER_OPT,OFFSET(OPTIMIZATION,0,3),2))*$U$1 -> 0 | AB122: =(VCCINT/1000)*VCCINT*(IF($T122 > 0, $T122,($L122/2*($G122*(Q122*Data!$P$436+Data!$P$437))))* OFFSET(POWER_OPT,OFFSET(OPTIMIZATION,0,3),2))*$U$1 -> 0 | AC122: =(VCCINT/1000)*VCCINT*(IF($T122 > 0, $T122,($L122/2*($H122*(Q122*Data!$Q$436+Data!$Q$437))))* OFFSET(POWER_OPT,OFFSET(OPTIMIZATION,0,3),2))*$U$1 -> 0 | AD122: =( VCCINT / 1000 ) * VCCINT * ( IF( $T122 > 0, $T122, ( $L122 / 2 * ( ( $I122 ) * (Q122*Data!$O$436+Data!$O$437) ) ) * OFFSET( POWER_OPT, OFFSET( OPTIMIZATION, 0, 3), 2)) * $U$1 ) -> 0 | AE122: 0 | AF122: 0
J123: 0.125 | K123: 8 | L123: 0 | M123: 0 | O123: 0 | P123: 0 | Q123: 5.309573445 | U123: 0.0008136315897 | W123: =(VCCINT/1000)*VCCINT*(IF($T123>0,$T123,($L123/2*(($F123*(Data!$N$435)))* OFFSET(POWER_OPT,OFFSET(OPTIMIZATION,0,3),2))*$U$1)) -> 0 | X123: =(VCCINT/1000)*VCCINT*(IF($T123>0,$T123,($L123/2*($G123*(Data!$P$435))))* OFFSET(POWER_OPT,OFFSET(OPTIMIZATION,0,3),2))*$U$1 -> 0 | Y123: =(VCCINT/1000)*VCCINT*(IF($T123>0,$T123,($L123/2*($H123*(Data!$Q$435))))* OFFSET(POWER_OPT,OFFSET(OPTIMIZATION,0,3),2))*$U$1 -> 0 | Z123: =( VCCINT / 1000 ) * VCCINT * ( IF( $T123 > 0, $T123, ( $L123 / 2 * ( ( $I123 * ( Data!$O$435 ) ) ) ) *OFFSET( POWER_OPT, OFFSET( OPTIMIZATION, 0, 3), 2)) * $U$1 ) -> 0 | AA123: =(VCCINT/1000)*VCCINT*(IF($T123 > 0, $T123,($L123/2*(($F123)*(Q123*Data!$N$436+Data!$N$437))))* OFFSET(POWER_OPT,OFFSET(OPTIMIZATION,0,3),2))*$U$1 -> 0 | AB123: =(VCCINT/1000)*VCCINT*(IF($T123 > 0, $T123,($L123/2*($G123*(Q123*Data!$P$436+Data!$P$437))))* OFFSET(POWER_OPT,OFFSET(OPTIMIZATION,0,3),2))*$U$1 -> 0 | AC123: =(VCCINT/1000)*VCCINT*(IF($T123 > 0, $T123,($L123/2*($H123*(Q123*Data!$Q$436+Data!$Q$437))))* OFFSET(POWER_OPT,OFFSET(OPTIMIZATION,0,3),2))*$U$1 -> 0 | AD123: =( VCCINT / 1000 ) * VCCINT * ( IF( $T123 > 0, $T123, ( $L123 / 2 * ( ( $I123 ) * (Q123*Data!$O$436+Data!$O$437) ) ) * OFFSET( POWER_OPT, OFFSET( OPTIMIZATION, 0, 3), 2)) * $U$1 ) -> 0 | AE123: 0 | AF123: 0
J124: 0.125 | K124: 8 | L124: 0 | M124: 0 | O124: 0 | P124: 0 | Q124: 5.309573445 | U124: 0.0008136315897 | W124: =(VCCINT/1000)*VCCINT*(IF($T124>0,$T124,($L124/2*(($F124*(Data!$N$435)))* OFFSET(POWER_OPT,OFFSET(OPTIMIZATION,0,3),2))*$U$1)) -> 0 | X124: =(VCCINT/1000)*VCCINT*(IF($T124>0,$T124,($L124/2*($G124*(Data!$P$435))))* OFFSET(POWER_OPT,OFFSET(OPTIMIZATION,0,3),2))*$U$1 -> 0 | Y124: =(VCCINT/1000)*VCCINT*(IF($T124>0,$T124,($L124/2*($H124*(Data!$Q$435))))* OFFSET(POWER_OPT,OFFSET(OPTIMIZATION,0,3),2))*$U$1 -> 0 | Z124: =( VCCINT / 1000 ) * VCCINT * ( IF( $T124 > 0, $T124, ( $L124 / 2 * ( ( $I124 * ( Data!$O$435 ) ) ) ) *OFFSET( POWER_OPT, OFFSET( OPTIMIZATION, 0, 3), 2)) * $U$1 ) -> 0 | AA124: =(VCCINT/1000)*VCCINT*(IF($T124 > 0, $T124,($L124/2*(($F124)*(Q124*Data!$N$436+Data!$N$437))))* OFFSET(POWER_OPT,OFFSET(OPTIMIZATION,0,3),2))*$U$1 -> 0 | AB124: =(VCCINT/1000)*VCCINT*(IF($T124 > 0, $T124,($L124/2*($G124*(Q124*Data!$P$436+Data!$P$437))))* OFFSET(POWER_OPT,OFFSET(OPTIMIZATION,0,3),2))*$U$1 -> 0 | AC124: =(VCCINT/1000)*VCCINT*(IF($T124 > 0, $T124,($L124/2*($H124*(Q124*Data!$Q$436+Data!$Q$437))))* OFFSET(POWER_OPT,OFFSET(OPTIMIZATION,0,3),2))*$U$1 -> 0 | AD124: =( VCCINT / 1000 ) * VCCINT * ( IF( $T124 > 0, $T124, ( $L124 / 2 * ( ( $I124 ) * (Q124*Data!$O$436+Data!$O$437) ) ) * OFFSET( POWER_OPT, OFFSET( OPTIMIZATION, 0, 3), 2)) * $U$1 ) -> 0 | AE124: 0 | AF124: 0
J125: 0.125 | K125: 8 | L125: 0 | M125: 0 | O125: 0 | P125: 0 | Q125: 5.309573445 | U125: 0.0008136315897 | W125: =(VCCINT/1000)*VCCINT*(IF($T125>0,$T125,($L125/2*(($F125*(Data!$N$435)))* OFFSET(POWER_OPT,OFFSET(OPTIMIZATION,0,3),2))*$U$1)) -> 0 | X125: =(VCCINT/1000)*VCCINT*(IF($T125>0,$T125,($L125/2*($G125*(Data!$P$435))))* OFFSET(POWER_OPT,OFFSET(OPTIMIZATION,0,3),2))*$U$1 -> 0 | Y125: =(VCCINT/1000)*VCCINT*(IF($T125>0,$T125,($L125/2*($H125*(Data!$Q$435))))* OFFSET(POWER_OPT,OFFSET(OPTIMIZATION,0,3),2))*$U$1 -> 0 | Z125: =( VCCINT / 1000 ) * VCCINT * ( IF( $T125 > 0, $T125, ( $L125 / 2 * ( ( $I125 * ( Data!$O$435 ) ) ) ) *OFFSET( POWER_OPT, OFFSET( OPTIMIZATION, 0, 3), 2)) * $U$1 ) -> 0 | AA125: =(VCCINT/1000)*VCCINT*(IF($T125 > 0, $T125,($L125/2*(($F125)*(Q125*Data!$N$436+Data!$N$437))))* OFFSET(POWER_OPT,OFFSET(OPTIMIZATION,0,3),2))*$U$1 -> 0 | AB125: =(VCCINT/1000)*VCCINT*(IF($T125 > 0, $T125,($L125/2*($G125*(Q125*Data!$P$436+Data!$P$437))))* OFFSET(POWER_OPT,OFFSET(OPTIMIZATION,0,3),2))*$U$1 -> 0 | AC125: =(VCCINT/1000)*VCCINT*(IF($T125 > 0, $T125,($L125/2*($H125*(Q125*Data!$Q$436+Data!$Q$437))))* OFFSET(POWER_OPT,OFFSET(OPTIMIZATION,0,3),2))*$U$1 -> 0 | AD125: =( VCCINT / 1000 ) * VCCINT * ( IF( $T125 > 0, $T125, ( $L125 / 2 * ( ( $I125 ) * (Q125*Data!$O$436+Data!$O$437) ) ) * OFFSET( POWER_OPT, OFFSET( OPTIMIZATION, 0, 3), 2)) * $U$1 ) -> 0 | AE125: 0 | AF125: 0
J126: 0.125 | K126: 8 | L126: 0 | M126: 0 | O126: 0 | P126: 0 | Q126: 5.309573445 | U126: 0.0008136315897 | W126: =(VCCINT/1000)*VCCINT*(IF($T126>0,$T126,($L126/2*(($F126*(Data!$N$435)))* OFFSET(POWER_OPT,OFFSET(OPTIMIZATION,0,3),2))*$U$1)) -> 0 | X126: =(VCCINT/1000)*VCCINT*(IF($T126>0,$T126,($L126/2*($G126*(Data!$P$435))))* OFFSET(POWER_OPT,OFFSET(OPTIMIZATION,0,3),2))*$U$1 -> 0 | Y126: =(VCCINT/1000)*VCCINT*(IF($T126>0,$T126,($L126/2*($H126*(Data!$Q$435))))* OFFSET(POWER_OPT,OFFSET(OPTIMIZATION,0,3),2))*$U$1 -> 0 | Z126: =( VCCINT / 1000 ) * VCCINT * ( IF( $T126 > 0, $T126, ( $L126 / 2 * ( ( $I126 * ( Data!$O$435 ) ) ) ) *OFFSET( POWER_OPT, OFFSET( OPTIMIZATION, 0, 3), 2)) * $U$1 ) -> 0 | AA126: =(VCCINT/1000)*VCCINT*(IF($T126 > 0, $T126,($L126/2*(($F126)*(Q126*Data!$N$436+Data!$N$437))))* OFFSET(POWER_OPT,OFFSET(OPTIMIZATION,0,3),2))*$U$1 -> 0 | AB126: =(VCCINT/1000)*VCCINT*(IF($T126 > 0, $T126,($L126/2*($G126*(Q126*Data!$P$436+Data!$P$437))))* OFFSET(POWER_OPT,OFFSET(OPTIMIZATION,0,3),2))*$U$1 -> 0 | AC126: =(VCCINT/1000)*VCCINT*(IF($T126 > 0, $T126,($L126/2*($H126*(Q126*Data!$Q$436+Data!$Q$437))))* OFFSET(POWER_OPT,OFFSET(OPTIMIZATION,0,3),2))*$U$1 -> 0 | AD126: =( VCCINT / 1000 ) * VCCINT * ( IF( $T126 > 0, $T126, ( $L126 / 2 * ( ( $I126 ) * (Q126*Data!$O$436+Data!$O$437) ) ) * OFFSET( POWER_OPT, OFFSET( OPTIMIZATION, 0, 3), 2)) * $U$1 ) -> 0 | AE126: 0 | AF126: 0
J127: 0.125 | K127: 8 | L127: 0 | M127: 0 | O127: 0 | P127: 0 | Q127: 5.309573445 | U127: 0.0008136315897 | W127: =(VCCINT/1000)*VCCINT*(IF($T127>0,$T127,($L127/2*(($F127*(Data!$N$435)))* OFFSET(POWER_OPT,OFFSET(OPTIMIZATION,0,3),2))*$U$1)) -> 0 | X127: =(VCCINT/1000)*VCCINT*(IF($T127>0,$T127,($L127/2*($G127*(Data!$P$435))))* OFFSET(POWER_OPT,OFFSET(OPTIMIZATION,0,3),2))*$U$1 -> 0 | Y127: =(VCCINT/1000)*VCCINT*(IF($T127>0,$T127,($L127/2*($H127*(Data!$Q$435))))* OFFSET(POWER_OPT,OFFSET(OPTIMIZATION,0,3),2))*$U$1 -> 0 | Z127: =( VCCINT / 1000 ) * VCCINT * ( IF( $T127 > 0, $T127, ( $L127 / 2 * ( ( $I127 * ( Data!$O$435 ) ) ) ) *OFFSET( POWER_OPT, OFFSET( OPTIMIZATION, 0, 3), 2)) * $U$1 ) -> 0 | AA127: =(VCCINT/1000)*VCCINT*(IF($T127 > 0, $T127,($L127/2*(($F127)*(Q127*Data!$N$436+Data!$N$437))))* OFFSET(POWER_OPT,OFFSET(OPTIMIZATION,0,3),2))*$U$1 -> 0 | AB127: =(VCCINT/1000)*VCCINT*(IF($T127 > 0, $T127,($L127/2*($G127*(Q127*Data!$P$436+Data!$P$437))))* OFFSET(POWER_OPT,OFFSET(OPTIMIZATION,0,3),2))*$U$1 -> 0 | AC127: =(VCCINT/1000)*VCCINT*(IF($T127 > 0, $T127,($L127/2*($H127*(Q127*Data!$Q$436+Data!$Q$437))))* OFFSET(POWER_OPT,OFFSET(OPTIMIZATION,0,3),2))*$U$1 -> 0 | AD127: =( VCCINT / 1000 ) * VCCINT * ( IF( $T127 > 0, $T127, ( $L127 / 2 * ( ( $I127 ) * (Q127*Data!$O$436+Data!$O$437) ) ) * OFFSET( POWER_OPT, OFFSET( OPTIMIZATION, 0, 3), 2)) * $U$1 ) -> 0 | AE127: 0 | AF127: 0
J128: 0.125 | K128: 8 | L128: 0 | M128: 0 | O128: 0 | P128: 0 | Q128: 5.309573445 | U128: 0.0008136315897 | W128: =(VCCINT/1000)*VCCINT*(IF($T128>0,$T128,($L128/2*(($F128*(Data!$N$435)))* OFFSET(POWER_OPT,OFFSET(OPTIMIZATION,0,3),2))*$U$1)) -> 0 | X128: =(VCCINT/1000)*VCCINT*(IF($T128>0,$T128,($L128/2*($G128*(Data!$P$435))))* OFFSET(POWER_OPT,OFFSET(OPTIMIZATION,0,3),2))*$U$1 -> 0 | Y128: =(VCCINT/1000)*VCCINT*(IF($T128>0,$T128,($L128/2*($H128*(Data!$Q$435))))* OFFSET(POWER_OPT,OFFSET(OPTIMIZATION,0,3),2))*$U$1 -> 0 | Z128: =( VCCINT / 1000 ) * VCCINT * ( IF( $T128 > 0, $T128, ( $L128 / 2 * ( ( $I128 * ( Data!$O$435 ) ) ) ) *OFFSET( POWER_OPT, OFFSET( OPTIMIZATION, 0, 3), 2)) * $U$1 ) -> 0 | AA128: =(VCCINT/1000)*VCCINT*(IF($T128 > 0, $T128,($L128/2*(($F128)*(Q128*Data!$N$436+Data!$N$437))))* OFFSET(POWER_OPT,OFFSET(OPTIMIZATION,0,3),2))*$U$1 -> 0 | AB128: =(VCCINT/1000)*VCCINT*(IF($T128 > 0, $T128,($L128/2*($G128*(Q128*Data!$P$436+Data!$P$437))))* OFFSET(POWER_OPT,OFFSET(OPTIMIZATION,0,3),2))*$U$1 -> 0 | AC128: =(VCCINT/1000)*VCCINT*(IF($T128 > 0, $T128,($L128/2*($H128*(Q128*Data!$Q$436+Data!$Q$437))))* OFFSET(POWER_OPT,OFFSET(OPTIMIZATION,0,3),2))*$U$1 -> 0 | AD128: =( VCCINT / 1000 ) * VCCINT * ( IF( $T128 > 0, $T128, ( $L128 / 2 * ( ( $I128 ) * (Q128*Data!$O$436+Data!$O$437) ) ) * OFFSET( POWER_OPT, OFFSET( OPTIMIZATION, 0, 3), 2)) * $U$1 ) -> 0 | AE128: 0 | AF128: 0
J129: 0.125 | K129: 8 | L129: 0 | M129: 0 | O129: 0 | P129: 0 | Q129: 5.309573445 | U129: 0.0008136315897 | W129: =(VCCINT/1000)*VCCINT*(IF($T129>0,$T129,($L129/2*(($F129*(Data!$N$435)))* OFFSET(POWER_OPT,OFFSET(OPTIMIZATION,0,3),2))*$U$1)) -> 0 | X129: =(VCCINT/1000)*VCCINT*(IF($T129>0,$T129,($L129/2*($G129*(Data!$P$435))))* OFFSET(POWER_OPT,OFFSET(OPTIMIZATION,0,3),2))*$U$1 -> 0 | Y129: =(VCCINT/1000)*VCCINT*(IF($T129>0,$T129,($L129/2*($H129*(Data!$Q$435))))* OFFSET(POWER_OPT,OFFSET(OPTIMIZATION,0,3),2))*$U$1 -> 0 | Z129: =( VCCINT / 1000 ) * VCCINT * ( IF( $T129 > 0, $T129, ( $L129 / 2 * ( ( $I129 * ( Data!$O$435 ) ) ) ) *OFFSET( POWER_OPT, OFFSET( OPTIMIZATION, 0, 3), 2)) * $U$1 ) -> 0 | AA129: =(VCCINT/1000)*VCCINT*(IF($T129 > 0, $T129,($L129/2*(($F129)*(Q129*Data!$N$436+Data!$N$437))))* OFFSET(POWER_OPT,OFFSET(OPTIMIZATION,0,3),2))*$U$1 -> 0 | AB129: =(VCCINT/1000)*VCCINT*(IF($T129 > 0, $T129,($L129/2*($G129*(Q129*Data!$P$436+Data!$P$437))))* OFFSET(POWER_OPT,OFFSET(OPTIMIZATION,0,3),2))*$U$1 -> 0 | AC129: =(VCCINT/1000)*VCCINT*(IF($T129 > 0, $T129,($L129/2*($H129*(Q129*Data!$Q$436+Data!$Q$437))))* OFFSET(POWER_OPT,OFFSET(OPTIMIZATION,0,3),2))*$U$1 -> 0 | AD129: =( VCCINT / 1000 ) * VCCINT * ( IF( $T129 > 0, $T129, ( $L129 / 2 * ( ( $I129 ) * (Q129*Data!$O$436+Data!$O$437) ) ) * OFFSET( POWER_OPT, OFFSET( OPTIMIZATION, 0, 3), 2)) * $U$1 ) -> 0 | AE129: 0 | AF129: 0
J130: 0.125 | K130: 8 | L130: 0 | M130: 0 | O130: 0 | P130: 0 | Q130: 5.309573445 | U130: 0.0008136315897 | W130: =(VCCINT/1000)*VCCINT*(IF($T130>0,$T130,($L130/2*(($F130*(Data!$N$435)))* OFFSET(POWER_OPT,OFFSET(OPTIMIZATION,0,3),2))*$U$1)) -> 0 | X130: =(VCCINT/1000)*VCCINT*(IF($T130>0,$T130,($L130/2*($G130*(Data!$P$435))))* OFFSET(POWER_OPT,OFFSET(OPTIMIZATION,0,3),2))*$U$1 -> 0 | Y130: =(VCCINT/1000)*VCCINT*(IF($T130>0,$T130,($L130/2*($H130*(Data!$Q$435))))* OFFSET(POWER_OPT,OFFSET(OPTIMIZATION,0,3),2))*$U$1 -> 0 | Z130: =( VCCINT / 1000 ) * VCCINT * ( IF( $T130 > 0, $T130, ( $L130 / 2 * ( ( $I130 * ( Data!$O$435 ) ) ) ) *OFFSET( POWER_OPT, OFFSET( OPTIMIZATION, 0, 3), 2)) * $U$1 ) -> 0 | AA130: =(VCCINT/1000)*VCCINT*(IF($T130 > 0, $T130,($L130/2*(($F130)*(Q130*Data!$N$436+Data!$N$437))))* OFFSET(POWER_OPT,OFFSET(OPTIMIZATION,0,3),2))*$U$1 -> 0 | AB130: =(VCCINT/1000)*VCCINT*(IF($T130 > 0, $T130,($L130/2*($G130*(Q130*Data!$P$436+Data!$P$437))))* OFFSET(POWER_OPT,OFFSET(OPTIMIZATION,0,3),2))*$U$1 -> 0 | AC130: =(VCCINT/1000)*VCCINT*(IF($T130 > 0, $T130,($L130/2*($H130*(Q130*Data!$Q$436+Data!$Q$437))))* OFFSET(POWER_OPT,OFFSET(OPTIMIZATION,0,3),2))*$U$1 -> 0 | AD130: =( VCCINT / 1000 ) * VCCINT * ( IF( $T130 > 0, $T130, ( $L130 / 2 * ( ( $I130 ) * (Q130*Data!$O$436+Data!$O$437) ) ) * OFFSET( POWER_OPT, OFFSET( OPTIMIZATION, 0, 3), 2)) * $U$1 ) -> 0 | AE130: 0 | AF130: 0
J131: 0.125 | K131: 8 | L131: 0 | M131: 0 | O131: 0 | P131: 0 | Q131: 5.309573445 | U131: 0.0008136315897 | W131: =(VCCINT/1000)*VCCINT*(IF($T131>0,$T131,($L131/2*(($F131*(Data!$N$435)))* OFFSET(POWER_OPT,OFFSET(OPTIMIZATION,0,3),2))*$U$1)) -> 0 | X131: =(VCCINT/1000)*VCCINT*(IF($T131>0,$T131,($L131/2*($G131*(Data!$P$435))))* OFFSET(POWER_OPT,OFFSET(OPTIMIZATION,0,3),2))*$U$1 -> 0 | Y131: =(VCCINT/1000)*VCCINT*(IF($T131>0,$T131,($L131/2*($H131*(Data!$Q$435))))* OFFSET(POWER_OPT,OFFSET(OPTIMIZATION,0,3),2))*$U$1 -> 0 | Z131: =( VCCINT / 1000 ) * VCCINT * ( IF( $T131 > 0, $T131, ( $L131 / 2 * ( ( $I131 * ( Data!$O$435 ) ) ) ) *OFFSET( POWER_OPT, OFFSET( OPTIMIZATION, 0, 3), 2)) * $U$1 ) -> 0 | AA131: =(VCCINT/1000)*VCCINT*(IF($T131 > 0, $T131,($L131/2*(($F131)*(Q131*Data!$N$436+Data!$N$437))))* OFFSET(POWER_OPT,OFFSET(OPTIMIZATION,0,3),2))*$U$1 -> 0 | AB131: =(VCCINT/1000)*VCCINT*(IF($T131 > 0, $T131,($L131/2*($G131*(Q131*Data!$P$436+Data!$P$437))))* OFFSET(POWER_OPT,OFFSET(OPTIMIZATION,0,3),2))*$U$1 -> 0 | AC131: =(VCCINT/1000)*VCCINT*(IF($T131 > 0, $T131,($L131/2*($H131*(Q131*Data!$Q$436+Data!$Q$437))))* OFFSET(POWER_OPT,OFFSET(OPTIMIZATION,0,3),2))*$U$1 -> 0 | AD131: =( VCCINT / 1000 ) * VCCINT * ( IF( $T131 > 0, $T131, ( $L131 / 2 * ( ( $I131 ) * (Q131*Data!$O$436+Data!$O$437) ) ) * OFFSET( POWER_OPT, OFFSET( OPTIMIZATION, 0, 3), 2)) * $U$1 ) -> 0 | AE131: 0 | AF131: 0
J132: 0.125 | K132: 8 | L132: 0 | M132: 0 | O132: 0 | P132: 0 | Q132: 5.309573445 | U132: 0.0008136315897 | W132: =(VCCINT/1000)*VCCINT*(IF($T132>0,$T132,($L132/2*(($F132*(Data!$N$435)))* OFFSET(POWER_OPT,OFFSET(OPTIMIZATION,0,3),2))*$U$1)) -> 0 | X132: =(VCCINT/1000)*VCCINT*(IF($T132>0,$T132,($L132/2*($G132*(Data!$P$435))))* OFFSET(POWER_OPT,OFFSET(OPTIMIZATION,0,3),2))*$U$1 -> 0 | Y132: =(VCCINT/1000)*VCCINT*(IF($T132>0,$T132,($L132/2*($H132*(Data!$Q$435))))* OFFSET(POWER_OPT,OFFSET(OPTIMIZATION,0,3),2))*$U$1 -> 0 | Z132: =( VCCINT / 1000 ) * VCCINT * ( IF( $T132 > 0, $T132, ( $L132 / 2 * ( ( $I132 * ( Data!$O$435 ) ) ) ) *OFFSET( POWER_OPT, OFFSET( OPTIMIZATION, 0, 3), 2)) * $U$1 ) -> 0 | AA132: =(VCCINT/1000)*VCCINT*(IF($T132 > 0, $T132,($L132/2*(($F132)*(Q132*Data!$N$436+Data!$N$437))))* OFFSET(POWER_OPT,OFFSET(OPTIMIZATION,0,3),2))*$U$1 -> 0 | AB132: =(VCCINT/1000)*VCCINT*(IF($T132 > 0, $T132,($L132/2*($G132*(Q132*Data!$P$436+Data!$P$437))))* OFFSET(POWER_OPT,OFFSET(OPTIMIZATION,0,3),2))*$U$1 -> 0 | AC132: =(VCCINT/1000)*VCCINT*(IF($T132 > 0, $T132,($L132/2*($H132*(Q132*Data!$Q$436+Data!$Q$437))))* OFFSET(POWER_OPT,OFFSET(OPTIMIZATION,0,3),2))*$U$1 -> 0 | AD132: =( VCCINT / 1000 ) * VCCINT * ( IF( $T132 > 0, $T132, ( $L132 / 2 * ( ( $I132 ) * (Q132*Data!$O$436+Data!$O$437) ) ) * OFFSET( POWER_OPT, OFFSET( OPTIMIZATION, 0, 3), 2)) * $U$1 ) -> 0 | AE132: 0 | AF132: 0
J133: 0.125 | K133: 8 | L133: 0 | M133: 0 | O133: 0 | P133: 0 | Q133: 5.309573445 | U133: 0.0008136315897 | W133: =(VCCINT/1000)*VCCINT*(IF($T133>0,$T133,($L133/2*(($F133*(Data!$N$435)))* OFFSET(POWER_OPT,OFFSET(OPTIMIZATION,0,3),2))*$U$1)) -> 0 | X133: =(VCCINT/1000)*VCCINT*(IF($T133>0,$T133,($L133/2*($G133*(Data!$P$435))))* OFFSET(POWER_OPT,OFFSET(OPTIMIZATION,0,3),2))*$U$1 -> 0 | Y133: =(VCCINT/1000)*VCCINT*(IF($T133>0,$T133,($L133/2*($H133*(Data!$Q$435))))* OFFSET(POWER_OPT,OFFSET(OPTIMIZATION,0,3),2))*$U$1 -> 0 | Z133: =( VCCINT / 1000 ) * VCCINT * ( IF( $T133 > 0, $T133, ( $L133 / 2 * ( ( $I133 * ( Data!$O$435 ) ) ) ) *OFFSET( POWER_OPT, OFFSET( OPTIMIZATION, 0, 3), 2)) * $U$1 ) -> 0 | AA133: =(VCCINT/1000)*VCCINT*(IF($T133 > 0, $T133,($L133/2*(($F133)*(Q133*Data!$N$436+Data!$N$437))))* OFFSET(POWER_OPT,OFFSET(OPTIMIZATION,0,3),2))*$U$1 -> 0 | AB133: =(VCCINT/1000)*VCCINT*(IF($T133 > 0, $T133,($L133/2*($G133*(Q133*Data!$P$436+Data!$P$437))))* OFFSET(POWER_OPT,OFFSET(OPTIMIZATION,0,3),2))*$U$1 -> 0 | AC133: =(VCCINT/1000)*VCCINT*(IF($T133 > 0, $T133,($L133/2*($H133*(Q133*Data!$Q$436+Data!$Q$437))))* OFFSET(POWER_OPT,OFFSET(OPTIMIZATION,0,3),2))*$U$1 -> 0 | AD133: =( VCCINT / 1000 ) * VCCINT * ( IF( $T133 > 0, $T133, ( $L133 / 2 * ( ( $I133 ) * (Q133*Data!$O$436+Data!$O$437) ) ) * OFFSET( POWER_OPT, OFFSET( OPTIMIZATION, 0, 3), 2)) * $U$1 ) -> 0 | AE133: 0 | AF133: 0
J134: 0.125 | K134: 8 | L134: 0 | M134: 0 | O134: 0 | P134: 0 | Q134: 5.309573445 | U134: 0.0008136315897 | W134: =(VCCINT/1000)*VCCINT*(IF($T134>0,$T134,($L134/2*(($F134*(Data!$N$435)))* OFFSET(POWER_OPT,OFFSET(OPTIMIZATION,0,3),2))*$U$1)) -> 0 | X134: =(VCCINT/1000)*VCCINT*(IF($T134>0,$T134,($L134/2*($G134*(Data!$P$435))))* OFFSET(POWER_OPT,OFFSET(OPTIMIZATION,0,3),2))*$U$1 -> 0 | Y134: =(VCCINT/1000)*VCCINT*(IF($T134>0,$T134,($L134/2*($H134*(Data!$Q$435))))* OFFSET(POWER_OPT,OFFSET(OPTIMIZATION,0,3),2))*$U$1 -> 0 | Z134: =( VCCINT / 1000 ) * VCCINT * ( IF( $T134 > 0, $T134, ( $L134 / 2 * ( ( $I134 * ( Data!$O$435 ) ) ) ) *OFFSET( POWER_OPT, OFFSET( OPTIMIZATION, 0, 3), 2)) * $U$1 ) -> 0 | AA134: =(VCCINT/1000)*VCCINT*(IF($T134 > 0, $T134,($L134/2*(($F134)*(Q134*Data!$N$436+Data!$N$437))))* OFFSET(POWER_OPT,OFFSET(OPTIMIZATION,0,3),2))*$U$1 -> 0 | AB134: =(VCCINT/1000)*VCCINT*(IF($T134 > 0, $T134,($L134/2*($G134*(Q134*Data!$P$436+Data!$P$437))))* OFFSET(POWER_OPT,OFFSET(OPTIMIZATION,0,3),2))*$U$1 -> 0 | AC134: =(VCCINT/1000)*VCCINT*(IF($T134 > 0, $T134,($L134/2*($H134*(Q134*Data!$Q$436+Data!$Q$437))))* OFFSET(POWER_OPT,OFFSET(OPTIMIZATION,0,3),2))*$U$1 -> 0 | AD134: =( VCCINT / 1000 ) * VCCINT * ( IF( $T134 > 0, $T134, ( $L134 / 2 * ( ( $I134 ) * (Q134*Data!$O$436+Data!$O$437) ) ) * OFFSET( POWER_OPT, OFFSET( OPTIMIZATION, 0, 3), 2)) * $U$1 ) -> 0 | AE134: 0 | AF134: 0
J135: 0.125 | K135: 8 | L135: 0 | M135: 0 | O135: 0 | P135: 0 | Q135: 5.309573445 | U135: 0.0008136315897 | W135: =(VCCINT/1000)*VCCINT*(IF($T135>0,$T135,($L135/2*(($F135*(Data!$N$435)))* OFFSET(POWER_OPT,OFFSET(OPTIMIZATION,0,3),2))*$U$1)) -> 0 | X135: =(VCCINT/1000)*VCCINT*(IF($T135>0,$T135,($L135/2*($G135*(Data!$P$435))))* OFFSET(POWER_OPT,OFFSET(OPTIMIZATION,0,3),2))*$U$1 -> 0 | Y135: =(VCCINT/1000)*VCCINT*(IF($T135>0,$T135,($L135/2*($H135*(Data!$Q$435))))* OFFSET(POWER_OPT,OFFSET(OPTIMIZATION,0,3),2))*$U$1 -> 0 | Z135: =( VCCINT / 1000 ) * VCCINT * ( IF( $T135 > 0, $T135, ( $L135 / 2 * ( ( $I135 * ( Data!$O$435 ) ) ) ) *OFFSET( POWER_OPT, OFFSET( OPTIMIZATION, 0, 3), 2)) * $U$1 ) -> 0 | AA135: =(VCCINT/1000)*VCCINT*(IF($T135 > 0, $T135,($L135/2*(($F135)*(Q135*Data!$N$436+Data!$N$437))))* OFFSET(POWER_OPT,OFFSET(OPTIMIZATION,0,3),2))*$U$1 -> 0 | AB135: =(VCCINT/1000)*VCCINT*(IF($T135 > 0, $T135,($L135/2*($G135*(Q135*Data!$P$436+Data!$P$437))))* OFFSET(POWER_OPT,OFFSET(OPTIMIZATION,0,3),2))*$U$1 -> 0 | AC135: =(VCCINT/1000)*VCCINT*(IF($T135 > 0, $T135,($L135/2*($H135*(Q135*Data!$Q$436+Data!$Q$437))))* OFFSET(POWER_OPT,OFFSET(OPTIMIZATION,0,3),2))*$U$1 -> 0 | AD135: =( VCCINT / 1000 ) * VCCINT * ( IF( $T135 > 0, $T135, ( $L135 / 2 * ( ( $I135 ) * (Q135*Data!$O$436+Data!$O$437) ) ) * OFFSET( POWER_OPT, OFFSET( OPTIMIZATION, 0, 3), 2)) * $U$1 ) -> 0 | AE135: 0 | AF135: 0
J136: 0.125 | K136: 8 | L136: 0 | M136: 0 | O136: 0 | P136: 0 | Q136: 5.309573445 | U136: 0.0008136315897 | W136: =(VCCINT/1000)*VCCINT*(IF($T136>0,$T136,($L136/2*(($F136*(Data!$N$435)))* OFFSET(POWER_OPT,OFFSET(OPTIMIZATION,0,3),2))*$U$1)) -> 0 | X136: =(VCCINT/1000)*VCCINT*(IF($T136>0,$T136,($L136/2*($G136*(Data!$P$435))))* OFFSET(POWER_OPT,OFFSET(OPTIMIZATION,0,3),2))*$U$1 -> 0 | Y136: =(VCCINT/1000)*VCCINT*(IF($T136>0,$T136,($L136/2*($H136*(Data!$Q$435))))* OFFSET(POWER_OPT,OFFSET(OPTIMIZATION,0,3),2))*$U$1 -> 0 | Z136: =( VCCINT / 1000 ) * VCCINT * ( IF( $T136 > 0, $T136, ( $L136 / 2 * ( ( $I136 * ( Data!$O$435 ) ) ) ) *OFFSET( POWER_OPT, OFFSET( OPTIMIZATION, 0, 3), 2)) * $U$1 ) -> 0 | AA136: =(VCCINT/1000)*VCCINT*(IF($T136 > 0, $T136,($L136/2*(($F136)*(Q136*Data!$N$436+Data!$N$437))))* OFFSET(POWER_OPT,OFFSET(OPTIMIZATION,0,3),2))*$U$1 -> 0 | AB136: =(VCCINT/1000)*VCCINT*(IF($T136 > 0, $T136,($L136/2*($G136*(Q136*Data!$P$436+Data!$P$437))))* OFFSET(POWER_OPT,OFFSET(OPTIMIZATION,0,3),2))*$U$1 -> 0 | AC136: =(VCCINT/1000)*VCCINT*(IF($T136 > 0, $T136,($L136/2*($H136*(Q136*Data!$Q$436+Data!$Q$437))))* OFFSET(POWER_OPT,OFFSET(OPTIMIZATION,0,3),2))*$U$1 -> 0 | AD136: =( VCCINT / 1000 ) * VCCINT * ( IF( $T136 > 0, $T136, ( $L136 / 2 * ( ( $I136 ) * (Q136*Data!$O$436+Data!$O$437) ) ) * OFFSET( POWER_OPT, OFFSET( OPTIMIZATION, 0, 3), 2)) * $U$1 ) -> 0 | AE136: 0 | AF136: 0
J137: 0.125 | K137: 8 | L137: 0 | M137: 0 | O137: 0 | P137: 0 | Q137: 5.309573445 | U137: 0.0008136315897 | W137: =(VCCINT/1000)*VCCINT*(IF($T137>0,$T137,($L137/2*(($F137*(Data!$N$435)))* OFFSET(POWER_OPT,OFFSET(OPTIMIZATION,0,3),2))*$U$1)) -> 0 | X137: =(VCCINT/1000)*VCCINT*(IF($T137>0,$T137,($L137/2*($G137*(Data!$P$435))))* OFFSET(POWER_OPT,OFFSET(OPTIMIZATION,0,3),2))*$U$1 -> 0 | Y137: =(VCCINT/1000)*VCCINT*(IF($T137>0,$T137,($L137/2*($H137*(Data!$Q$435))))* OFFSET(POWER_OPT,OFFSET(OPTIMIZATION,0,3),2))*$U$1 -> 0 | Z137: =( VCCINT / 1000 ) * VCCINT * ( IF( $T137 > 0, $T137, ( $L137 / 2 * ( ( $I137 * ( Data!$O$435 ) ) ) ) *OFFSET( POWER_OPT, OFFSET( OPTIMIZATION, 0, 3), 2)) * $U$1 ) -> 0 | AA137: =(VCCINT/1000)*VCCINT*(IF($T137 > 0, $T137,($L137/2*(($F137)*(Q137*Data!$N$436+Data!$N$437))))* OFFSET(POWER_OPT,OFFSET(OPTIMIZATION,0,3),2))*$U$1 -> 0 | AB137: =(VCCINT/1000)*VCCINT*(IF($T137 > 0, $T137,($L137/2*($G137*(Q137*Data!$P$436+Data!$P$437))))* OFFSET(POWER_OPT,OFFSET(OPTIMIZATION,0,3),2))*$U$1 -> 0 | AC137: =(VCCINT/1000)*VCCINT*(IF($T137 > 0, $T137,($L137/2*($H137*(Q137*Data!$Q$436+Data!$Q$437))))* OFFSET(POWER_OPT,OFFSET(OPTIMIZATION,0,3),2))*$U$1 -> 0 | AD137: =( VCCINT / 1000 ) * VCCINT * ( IF( $T137 > 0, $T137, ( $L137 / 2 * ( ( $I137 ) * (Q137*Data!$O$436+Data!$O$437) ) ) * OFFSET( POWER_OPT, OFFSET( OPTIMIZATION, 0, 3), 2)) * $U$1 ) -> 0 | AE137: 0 | AF137: 0
J138: 0.125 | K138: 8 | L138: 0 | M138: 0 | O138: 0 | P138: 0 | Q138: 5.309573445 | U138: 0.0008136315897 | W138: =(VCCINT/1000)*VCCINT*(IF($T138>0,$T138,($L138/2*(($F138*(Data!$N$435)))* OFFSET(POWER_OPT,OFFSET(OPTIMIZATION,0,3),2))*$U$1)) -> 0 | X138: =(VCCINT/1000)*VCCINT*(IF($T138>0,$T138,($L138/2*($G138*(Data!$P$435))))* OFFSET(POWER_OPT,OFFSET(OPTIMIZATION,0,3),2))*$U$1 -> 0 | Y138: =(VCCINT/1000)*VCCINT*(IF($T138>0,$T138,($L138/2*($H138*(Data!$Q$435))))* OFFSET(POWER_OPT,OFFSET(OPTIMIZATION,0,3),2))*$U$1 -> 0 | Z138: =( VCCINT / 1000 ) * VCCINT * ( IF( $T138 > 0, $T138, ( $L138 / 2 * ( ( $I138 * ( Data!$O$435 ) ) ) ) *OFFSET( POWER_OPT, OFFSET( OPTIMIZATION, 0, 3), 2)) * $U$1 ) -> 0 | AA138: =(VCCINT/1000)*VCCINT*(IF($T138 > 0, $T138,($L138/2*(($F138)*(Q138*Data!$N$436+Data!$N$437))))* OFFSET(POWER_OPT,OFFSET(OPTIMIZATION,0,3),2))*$U$1 -> 0 | AB138: =(VCCINT/1000)*VCCINT*(IF($T138 > 0, $T138,($L138/2*($G138*(Q138*Data!$P$436+Data!$P$437))))* OFFSET(POWER_OPT,OFFSET(OPTIMIZATION,0,3),2))*$U$1 -> 0 | AC138: =(VCCINT/1000)*VCCINT*(IF($T138 > 0, $T138,($L138/2*($H138*(Q138*Data!$Q$436+Data!$Q$437))))* OFFSET(POWER_OPT,OFFSET(OPTIMIZATION,0,3),2))*$U$1 -> 0 | AD138: =( VCCINT / 1000 ) * VCCINT * ( IF( $T138 > 0, $T138, ( $L138 / 2 * ( ( $I138 ) * (Q138*Data!$O$436+Data!$O$437) ) ) * OFFSET( POWER_OPT, OFFSET( OPTIMIZATION, 0, 3), 2)) * $U$1 ) -> 0 | AE138: 0 | AF138: 0
J139: 0.125 | K139: 8 | L139: 0 | M139: 0 | O139: 0 | P139: 0 | Q139: 5.309573445 | U139: 0.0008136315897 | W139: =(VCCINT/1000)*VCCINT*(IF($T139>0,$T139,($L139/2*(($F139*(Data!$N$435)))* OFFSET(POWER_OPT,OFFSET(OPTIMIZATION,0,3),2))*$U$1)) -> 0 | X139: =(VCCINT/1000)*VCCINT*(IF($T139>0,$T139,($L139/2*($G139*(Data!$P$435))))* OFFSET(POWER_OPT,OFFSET(OPTIMIZATION,0,3),2))*$U$1 -> 0 | Y139: =(VCCINT/1000)*VCCINT*(IF($T139>0,$T139,($L139/2*($H139*(Data!$Q$435))))* OFFSET(POWER_OPT,OFFSET(OPTIMIZATION,0,3),2))*$U$1 -> 0 | Z139: =( VCCINT / 1000 ) * VCCINT * ( IF( $T139 > 0, $T139, ( $L139 / 2 * ( ( $I139 * ( Data!$O$435 ) ) ) ) *OFFSET( POWER_OPT, OFFSET( OPTIMIZATION, 0, 3), 2)) * $U$1 ) -> 0 | AA139: =(VCCINT/1000)*VCCINT*(IF($T139 > 0, $T139,($L139/2*(($F139)*(Q139*Data!$N$436+Data!$N$437))))* OFFSET(POWER_OPT,OFFSET(OPTIMIZATION,0,3),2))*$U$1 -> 0 | AB139: =(VCCINT/1000)*VCCINT*(IF($T139 > 0, $T139,($L139/2*($G139*(Q139*Data!$P$436+Data!$P$437))))* OFFSET(POWER_OPT,OFFSET(OPTIMIZATION,0,3),2))*$U$1 -> 0 | AC139: =(VCCINT/1000)*VCCINT*(IF($T139 > 0, $T139,($L139/2*($H139*(Q139*Data!$Q$436+Data!$Q$437))))* OFFSET(POWER_OPT,OFFSET(OPTIMIZATION,0,3),2))*$U$1 -> 0 | AD139: =( VCCINT / 1000 ) * VCCINT * ( IF( $T139 > 0, $T139, ( $L139 / 2 * ( ( $I139 ) * (Q139*Data!$O$436+Data!$O$437) ) ) * OFFSET( POWER_OPT, OFFSET( OPTIMIZATION, 0, 3), 2)) * $U$1 ) -> 0 | AE139: 0 | AF139: 0
J140: 0.125 | K140: 8 | L140: =E140*J140 -> 0 | M140: =IF(TRUE,SUM(AE140:AF140),(VCCINT/1000)*VCCINT_N*IF($R140>0,$R140,($L140/2*(($F140+$I140)*0.45*$U140+($F140*(OFFSET(FANOUT,8,2))+$G140*(OFFSET(FANOUT,8,4)+$U140)+$H140*(OFFSET(FANOUT,8,5)+$U140)+$I140*(OFFSET(FANOUT,8,3)))))*OFFSET(POWER_OPT,OFFSET(OPTIMIZATION,0,3),2))*$U$1) -> 0 | O140: 0 | P140: 0 | Q140: 5.309573445 | U140: 0.0008136315897 | W140: =(VCCINT/1000)*VCCINT*(IF($T140>0,$T140,($L140/2*(($F140*(Data!$N$435)))* OFFSET(POWER_OPT,OFFSET(OPTIMIZATION,0,3),2))*$U$1)) -> 0 | X140: =(VCCINT/1000)*VCCINT*(IF($T140>0,$T140,($L140/2*($G140*(Data!$P$435))))* OFFSET(POWER_OPT,OFFSET(OPTIMIZATION,0,3),2))*$U$1 -> 0 | Y140: =(VCCINT/1000)*VCCINT*(IF($T140>0,$T140,($L140/2*($H140*(Data!$Q$435))))* OFFSET(POWER_OPT,OFFSET(OPTIMIZATION,0,3),2))*$U$1 -> 0 | Z140: =( VCCINT / 1000 ) * VCCINT * ( IF( $T140 > 0, $T140, ( $L140 / 2 * ( ( $I140 * ( Data!$O$435 ) ) ) ) *OFFSET( POWER_OPT, OFFSET( OPTIMIZATION, 0, 3), 2)) * $U$1 ) -> 0 | AA140: =(VCCINT/1000)*VCCINT*(IF($T140 > 0, $T140,($L140/2*(($F140)*(Q140*Data!$N$436+Data!$N$437))))* OFFSET(POWER_OPT,OFFSET(OPTIMIZATION,0,3),2))*$U$1 -> 0 | AB140: =(VCCINT/1000)*VCCINT*(IF($T140 > 0, $T140,($L140/2*($G140*(Q140*Data!$P$436+Data!$P$437))))* OFFSET(POWER_OPT,OFFSET(OPTIMIZATION,0,3),2))*$U$1 -> 0 | AC140: =(VCCINT/1000)*VCCINT*(IF($T140 > 0, $T140,($L140/2*($H140*(Q140*Data!$Q$436+Data!$Q$437))))* OFFSET(POWER_OPT,OFFSET(OPTIMIZATION,0,3),2))*$U$1 -> 0 | AD140: =( VCCINT / 1000 ) * VCCINT * ( IF( $T140 > 0, $T140, ( $L140 / 2 * ( ( $I140 ) * (Q140*Data!$O$436+Data!$O$437) ) ) * OFFSET( POWER_OPT, OFFSET( OPTIMIZATION, 0, 3), 2)) * $U$1 ) -> 0 | AE140: 0 | AF140: 0
J141: 0.125 | K141: 8 | L141: 0 | M141: 0 | O141: 0 | P141: 0 | Q141: =10^(K141/10)-1 -> 5.309573445 | U141: 0.0008136315897 | W141: =(VCCINT/1000)*VCCINT*(IF($T141>0,$T141,($L141/2*(($F141*(Data!$N$435)))* OFFSET(POWER_OPT,OFFSET(OPTIMIZATION,0,3),2))*$U$1)) -> 0 | X141: =(VCCINT/1000)*VCCINT*(IF($T141>0,$T141,($L141/2*($G141*(Data!$P$435))))* OFFSET(POWER_OPT,OFFSET(OPTIMIZATION,0,3),2))*$U$1 -> 0 | Y141: =(VCCINT/1000)*VCCINT*(IF($T141>0,$T141,($L141/2*($H141*(Data!$Q$435))))* OFFSET(POWER_OPT,OFFSET(OPTIMIZATION,0,3),2))*$U$1 -> 0 | Z141: =( VCCINT / 1000 ) * VCCINT * ( IF( $T141 > 0, $T141, ( $L141 / 2 * ( ( $I141 * ( Data!$O$435 ) ) ) ) *OFFSET( POWER_OPT, OFFSET( OPTIMIZATION, 0, 3), 2)) * $U$1 ) -> 0 | AA141: =(VCCINT/1000)*VCCINT*(IF($T141 > 0, $T141,($L141/2*(($F141)*(Q141*Data!$N$436+Data!$N$437))))* OFFSET(POWER_OPT,OFFSET(OPTIMIZATION,0,3),2))*$U$1 -> 0 | AB141: =(VCCINT/1000)*VCCINT*(IF($T141 > 0, $T141,($L141/2*($G141*(Q141*Data!$P$436+Data!$P$437))))* OFFSET(POWER_OPT,OFFSET(OPTIMIZATION,0,3),2))*$U$1 -> 0 | AC141: =(VCCINT/1000)*VCCINT*(IF($T141 > 0, $T141,($L141/2*($H141*(Q141*Data!$Q$436+Data!$Q$437))))* OFFSET(POWER_OPT,OFFSET(OPTIMIZATION,0,3),2))*$U$1 -> 0 | AD141: =( VCCINT / 1000 ) * VCCINT * ( IF( $T141 > 0, $T141, ( $L141 / 2 * ( ( $I141 ) * (Q141*Data!$O$436+Data!$O$437) ) ) * OFFSET( POWER_OPT, OFFSET( OPTIMIZATION, 0, 3), 2)) * $U$1 ) -> 0 | AE141: =SUM(W141:Z141) -> 0 | AF141: =SUM(AA141:AD141) -> 0
J142: 0.125 | K142: 8 | L142: 0 | M142: 0 | O142: 0 | P142: 0 | Q142: 5.309573445 | U142: 0.0008136315897 | W142: =(VCCINT/1000)*VCCINT*(IF($T142>0,$T142,($L142/2*(($F142*(Data!$N$435)))* OFFSET(POWER_OPT,OFFSET(OPTIMIZATION,0,3),2))*$U$1)) -> 0 | X142: =(VCCINT/1000)*VCCINT*(IF($T142>0,$T142,($L142/2*($G142*(Data!$P$435))))* OFFSET(POWER_OPT,OFFSET(OPTIMIZATION,0,3),2))*$U$1 -> 0 | Y142: =(VCCINT/1000)*VCCINT*(IF($T142>0,$T142,($L142/2*($H142*(Data!$Q$435))))* OFFSET(POWER_OPT,OFFSET(OPTIMIZATION,0,3),2))*$U$1 -> 0 | Z142: =( VCCINT / 1000 ) * VCCINT * ( IF( $T142 > 0, $T142, ( $L142 / 2 * ( ( $I142 * ( Data!$O$435 ) ) ) ) *OFFSET( POWER_OPT, OFFSET( OPTIMIZATION, 0, 3), 2)) * $U$1 ) -> 0 | AA142: =(VCCINT/1000)*VCCINT*(IF($T142 > 0, $T142,($L142/2*(($F142)*(Q142*Data!$N$436+Data!$N$437))))* OFFSET(POWER_OPT,OFFSET(OPTIMIZATION,0,3),2))*$U$1 -> 0 | AB142: =(VCCINT/1000)*VCCINT*(IF($T142 > 0, $T142,($L142/2*($G142*(Q142*Data!$P$436+Data!$P$437))))* OFFSET(POWER_OPT,OFFSET(OPTIMIZATION,0,3),2))*$U$1 -> 0 | AC142: =(VCCINT/1000)*VCCINT*(IF($T142 > 0, $T142,($L142/2*($H142*(Q142*Data!$Q$436+Data!$Q$437))))* OFFSET(POWER_OPT,OFFSET(OPTIMIZATION,0,3),2))*$U$1 -> 0 | AD142: =( VCCINT / 1000 ) * VCCINT * ( IF( $T142 > 0, $T142, ( $L142 / 2 * ( ( $I142 ) * (Q142*Data!$O$436+Data!$O$437) ) ) * OFFSET( POWER_OPT, OFFSET( OPTIMIZATION, 0, 3), 2)) * $U$1 ) -> 0 | AE142: 0 | AF142: 0
J143: 0.125 | K143: 8 | L143: 0 | M143: 0 | O143: 0 | P143: 0 | Q143: 5.309573445 | U143: 0.0008136315897 | W143: =(VCCINT/1000)*VCCINT*(IF($T143>0,$T143,($L143/2*(($F143*(Data!$N$435)))* OFFSET(POWER_OPT,OFFSET(OPTIMIZATION,0,3),2))*$U$1)) -> 0 | X143: =(VCCINT/1000)*VCCINT*(IF($T143>0,$T143,($L143/2*($G143*(Data!$P$435))))* OFFSET(POWER_OPT,OFFSET(OPTIMIZATION,0,3),2))*$U$1 -> 0 | Y143: =(VCCINT/1000)*VCCINT*(IF($T143>0,$T143,($L143/2*($H143*(Data!$Q$435))))* OFFSET(POWER_OPT,OFFSET(OPTIMIZATION,0,3),2))*$U$1 -> 0 | Z143: =( VCCINT / 1000 ) * VCCINT * ( IF( $T143 > 0, $T143, ( $L143 / 2 * ( ( $I143 * ( Data!$O$435 ) ) ) ) *OFFSET( POWER_OPT, OFFSET( OPTIMIZATION, 0, 3), 2)) * $U$1 ) -> 0 | AA143: =(VCCINT/1000)*VCCINT*(IF($T143 > 0, $T143,($L143/2*(($F143)*(Q143*Data!$N$436+Data!$N$437))))* OFFSET(POWER_OPT,OFFSET(OPTIMIZATION,0,3),2))*$U$1 -> 0 | AB143: =(VCCINT/1000)*VCCINT*(IF($T143 > 0, $T143,($L143/2*($G143*(Q143*Data!$P$436+Data!$P$437))))* OFFSET(POWER_OPT,OFFSET(OPTIMIZATION,0,3),2))*$U$1 -> 0 | AC143: =(VCCINT/1000)*VCCINT*(IF($T143 > 0, $T143,($L143/2*($H143*(Q143*Data!$Q$436+Data!$Q$437))))* OFFSET(POWER_OPT,OFFSET(OPTIMIZATION,0,3),2))*$U$1 -> 0 | AD143: =( VCCINT / 1000 ) * VCCINT * ( IF( $T143 > 0, $T143, ( $L143 / 2 * ( ( $I143 ) * (Q143*Data!$O$436+Data!$O$437) ) ) * OFFSET( POWER_OPT, OFFSET( OPTIMIZATION, 0, 3), 2)) * $U$1 ) -> 0 | AE143: 0 | AF143: 0
J144: 0.125 | K144: 8 | L144: 0 | M144: 0 | O144: 0 | P144: 0 | Q144: 5.309573445 | U144: 0.0008136315897 | W144: =(VCCINT/1000)*VCCINT*(IF($T144>0,$T144,($L144/2*(($F144*(Data!$N$435)))* OFFSET(POWER_OPT,OFFSET(OPTIMIZATION,0,3),2))*$U$1)) -> 0 | X144: =(VCCINT/1000)*VCCINT*(IF($T144>0,$T144,($L144/2*($G144*(Data!$P$435))))* OFFSET(POWER_OPT,OFFSET(OPTIMIZATION,0,3),2))*$U$1 -> 0 | Y144: =(VCCINT/1000)*VCCINT*(IF($T144>0,$T144,($L144/2*($H144*(Data!$Q$435))))* OFFSET(POWER_OPT,OFFSET(OPTIMIZATION,0,3),2))*$U$1 -> 0 | Z144: =( VCCINT / 1000 ) * VCCINT * ( IF( $T144 > 0, $T144, ( $L144 / 2 * ( ( $I144 * ( Data!$O$435 ) ) ) ) *OFFSET( POWER_OPT, OFFSET( OPTIMIZATION, 0, 3), 2)) * $U$1 ) -> 0 | AA144: =(VCCINT/1000)*VCCINT*(IF($T144 > 0, $T144,($L144/2*(($F144)*(Q144*Data!$N$436+Data!$N$437))))* OFFSET(POWER_OPT,OFFSET(OPTIMIZATION,0,3),2))*$U$1 -> 0 | AB144: =(VCCINT/1000)*VCCINT*(IF($T144 > 0, $T144,($L144/2*($G144*(Q144*Data!$P$436+Data!$P$437))))* OFFSET(POWER_OPT,OFFSET(OPTIMIZATION,0,3),2))*$U$1 -> 0 | AC144: =(VCCINT/1000)*VCCINT*(IF($T144 > 0, $T144,($L144/2*($H144*(Q144*Data!$Q$436+Data!$Q$437))))* OFFSET(POWER_OPT,OFFSET(OPTIMIZATION,0,3),2))*$U$1 -> 0 | AD144: =( VCCINT / 1000 ) * VCCINT * ( IF( $T144 > 0, $T144, ( $L144 / 2 * ( ( $I144 ) * (Q144*Data!$O$436+Data!$O$437) ) ) * OFFSET( POWER_OPT, OFFSET( OPTIMIZATION, 0, 3), 2)) * $U$1 ) -> 0 | AE144: 0 | AF144: 0
J145: 0.125 | K145: 8 | L145: 0 | M145: 0 | O145: 0 | P145: 0 | Q145: 5.309573445 | U145: 0.0008136315897 | W145: =(VCCINT/1000)*VCCINT*(IF($T145>0,$T145,($L145/2*(($F145*(Data!$N$435)))* OFFSET(POWER_OPT,OFFSET(OPTIMIZATION,0,3),2))*$U$1)) -> 0 | X145: =(VCCINT/1000)*VCCINT*(IF($T145>0,$T145,($L145/2*($G145*(Data!$P$435))))* OFFSET(POWER_OPT,OFFSET(OPTIMIZATION,0,3),2))*$U$1 -> 0 | Y145: =(VCCINT/1000)*VCCINT*(IF($T145>0,$T145,($L145/2*($H145*(Data!$Q$435))))* OFFSET(POWER_OPT,OFFSET(OPTIMIZATION,0,3),2))*$U$1 -> 0 | Z145: =( VCCINT / 1000 ) * VCCINT * ( IF( $T145 > 0, $T145, ( $L145 / 2 * ( ( $I145 * ( Data!$O$435 ) ) ) ) *OFFSET( POWER_OPT, OFFSET( OPTIMIZATION, 0, 3), 2)) * $U$1 ) -> 0 | AA145: =(VCCINT/1000)*VCCINT*(IF($T145 > 0, $T145,($L145/2*(($F145)*(Q145*Data!$N$436+Data!$N$437))))* OFFSET(POWER_OPT,OFFSET(OPTIMIZATION,0,3),2))*$U$1 -> 0 | AB145: =(VCCINT/1000)*VCCINT*(IF($T145 > 0, $T145,($L145/2*($G145*(Q145*Data!$P$436+Data!$P$437))))* OFFSET(POWER_OPT,OFFSET(OPTIMIZATION,0,3),2))*$U$1 -> 0 | AC145: =(VCCINT/1000)*VCCINT*(IF($T145 > 0, $T145,($L145/2*($H145*(Q145*Data!$Q$436+Data!$Q$437))))* OFFSET(POWER_OPT,OFFSET(OPTIMIZATION,0,3),2))*$U$1 -> 0 | AD145: =( VCCINT / 1000 ) * VCCINT * ( IF( $T145 > 0, $T145, ( $L145 / 2 * ( ( $I145 ) * (Q145*Data!$O$436+Data!$O$437) ) ) * OFFSET( POWER_OPT, OFFSET( OPTIMIZATION, 0, 3), 2)) * $U$1 ) -> 0 | AE145: 0 | AF145: 0
J146: 0.125 | K146: 8 | L146: 0 | M146: 0 | O146: 0 | P146: 0 | Q146: 5.309573445 | U146: 0.0008136315897 | W146: =(VCCINT/1000)*VCCINT*(IF($T146>0,$T146,($L146/2*(($F146*(Data!$N$435)))* OFFSET(POWER_OPT,OFFSET(OPTIMIZATION,0,3),2))*$U$1)) -> 0 | X146: =(VCCINT/1000)*VCCINT*(IF($T146>0,$T146,($L146/2*($G146*(Data!$P$435))))* OFFSET(POWER_OPT,OFFSET(OPTIMIZATION,0,3),2))*$U$1 -> 0 | Y146: =(VCCINT/1000)*VCCINT*(IF($T146>0,$T146,($L146/2*($H146*(Data!$Q$435))))* OFFSET(POWER_OPT,OFFSET(OPTIMIZATION,0,3),2))*$U$1 -> 0 | Z146: =( VCCINT / 1000 ) * VCCINT * ( IF( $T146 > 0, $T146, ( $L146 / 2 * ( ( $I146 * ( Data!$O$435 ) ) ) ) *OFFSET( POWER_OPT, OFFSET( OPTIMIZATION, 0, 3), 2)) * $U$1 ) -> 0 | AA146: =(VCCINT/1000)*VCCINT*(IF($T146 > 0, $T146,($L146/2*(($F146)*(Q146*Data!$N$436+Data!$N$437))))* OFFSET(POWER_OPT,OFFSET(OPTIMIZATION,0,3),2))*$U$1 -> 0 | AB146: =(VCCINT/1000)*VCCINT*(IF($T146 > 0, $T146,($L146/2*($G146*(Q146*Data!$P$436+Data!$P$437))))* OFFSET(POWER_OPT,OFFSET(OPTIMIZATION,0,3),2))*$U$1 -> 0 | AC146: =(VCCINT/1000)*VCCINT*(IF($T146 > 0, $T146,($L146/2*($H146*(Q146*Data!$Q$436+Data!$Q$437))))* OFFSET(POWER_OPT,OFFSET(OPTIMIZATION,0,3),2))*$U$1 -> 0 | AD146: =( VCCINT / 1000 ) * VCCINT * ( IF( $T146 > 0, $T146, ( $L146 / 2 * ( ( $I146 ) * (Q146*Data!$O$436+Data!$O$437) ) ) * OFFSET( POWER_OPT, OFFSET( OPTIMIZATION, 0, 3), 2)) * $U$1 ) -> 0 | AE146: 0 | AF146: 0
J147: 0.125 | K147: 8 | L147: 0 | M147: 0 | O147: 0 | P147: 0 | Q147: 5.309573445 | U147: 0.0008136315897 | W147: =(VCCINT/1000)*VCCINT*(IF($T147>0,$T147,($L147/2*(($F147*(Data!$N$435)))* OFFSET(POWER_OPT,OFFSET(OPTIMIZATION,0,3),2))*$U$1)) -> 0 | X147: =(VCCINT/1000)*VCCINT*(IF($T147>0,$T147,($L147/2*($G147*(Data!$P$435))))* OFFSET(POWER_OPT,OFFSET(OPTIMIZATION,0,3),2))*$U$1 -> 0 | Y147: =(VCCINT/1000)*VCCINT*(IF($T147>0,$T147,($L147/2*($H147*(Data!$Q$435))))* OFFSET(POWER_OPT,OFFSET(OPTIMIZATION,0,3),2))*$U$1 -> 0 | Z147: =( VCCINT / 1000 ) * VCCINT * ( IF( $T147 > 0, $T147, ( $L147 / 2 * ( ( $I147 * ( Data!$O$435 ) ) ) ) *OFFSET( POWER_OPT, OFFSET( OPTIMIZATION, 0, 3), 2)) * $U$1 ) -> 0 | AA147: =(VCCINT/1000)*VCCINT*(IF($T147 > 0, $T147,($L147/2*(($F147)*(Q147*Data!$N$436+Data!$N$437))))* OFFSET(POWER_OPT,OFFSET(OPTIMIZATION,0,3),2))*$U$1 -> 0 | AB147: =(VCCINT/1000)*VCCINT*(IF($T147 > 0, $T147,($L147/2*($G147*(Q147*Data!$P$436+Data!$P$437))))* OFFSET(POWER_OPT,OFFSET(OPTIMIZATION,0,3),2))*$U$1 -> 0 | AC147: =(VCCINT/1000)*VCCINT*(IF($T147 > 0, $T147,($L147/2*($H147*(Q147*Data!$Q$436+Data!$Q$437))))* OFFSET(POWER_OPT,OFFSET(OPTIMIZATION,0,3),2))*$U$1 -> 0 | AD147: =( VCCINT / 1000 ) * VCCINT * ( IF( $T147 > 0, $T147, ( $L147 / 2 * ( ( $I147 ) * (Q147*Data!$O$436+Data!$O$437) ) ) * OFFSET( POWER_OPT, OFFSET( OPTIMIZATION, 0, 3), 2)) * $U$1 ) -> 0 | AE147: 0 | AF147: 0
J148: 0.125 | K148: 8 | L148: 0 | M148: 0 | O148: 0 | P148: 0 | Q148: 5.309573445 | U148: 0.0008136315897 | W148: =(VCCINT/1000)*VCCINT*(IF($T148>0,$T148,($L148/2*(($F148*(Data!$N$435)))* OFFSET(POWER_OPT,OFFSET(OPTIMIZATION,0,3),2))*$U$1)) -> 0 | X148: =(VCCINT/1000)*VCCINT*(IF($T148>0,$T148,($L148/2*($G148*(Data!$P$435))))* OFFSET(POWER_OPT,OFFSET(OPTIMIZATION,0,3),2))*$U$1 -> 0 | Y148: =(VCCINT/1000)*VCCINT*(IF($T148>0,$T148,($L148/2*($H148*(Data!$Q$435))))* OFFSET(POWER_OPT,OFFSET(OPTIMIZATION,0,3),2))*$U$1 -> 0 | Z148: =( VCCINT / 1000 ) * VCCINT * ( IF( $T148 > 0, $T148, ( $L148 / 2 * ( ( $I148 * ( Data!$O$435 ) ) ) ) *OFFSET( POWER_OPT, OFFSET( OPTIMIZATION, 0, 3), 2)) * $U$1 ) -> 0 | AA148: =(VCCINT/1000)*VCCINT*(IF($T148 > 0, $T148,($L148/2*(($F148)*(Q148*Data!$N$436+Data!$N$437))))* OFFSET(POWER_OPT,OFFSET(OPTIMIZATION,0,3),2))*$U$1 -> 0 | AB148: =(VCCINT/1000)*VCCINT*(IF($T148 > 0, $T148,($L148/2*($G148*(Q148*Data!$P$436+Data!$P$437))))* OFFSET(POWER_OPT,OFFSET(OPTIMIZATION,0,3),2))*$U$1 -> 0 | AC148: =(VCCINT/1000)*VCCINT*(IF($T148 > 0, $T148,($L148/2*($H148*(Q148*Data!$Q$436+Data!$Q$437))))* OFFSET(POWER_OPT,OFFSET(OPTIMIZATION,0,3),2))*$U$1 -> 0 | AD148: =( VCCINT / 1000 ) * VCCINT * ( IF( $T148 > 0, $T148, ( $L148 / 2 * ( ( $I148 ) * (Q148*Data!$O$436+Data!$O$437) ) ) * OFFSET( POWER_OPT, OFFSET( OPTIMIZATION, 0, 3), 2)) * $U$1 ) -> 0 | AE148: 0 | AF148: 0
J149: 0.125 | K149: 8 | L149: 0 | M149: 0 | O149: 0 | P149: 0 | Q149: 5.309573445 | U149: 0.0008136315897 | W149: =(VCCINT/1000)*VCCINT*(IF($T149>0,$T149,($L149/2*(($F149*(Data!$N$435)))* OFFSET(POWER_OPT,OFFSET(OPTIMIZATION,0,3),2))*$U$1)) -> 0 | X149: =(VCCINT/1000)*VCCINT*(IF($T149>0,$T149,($L149/2*($G149*(Data!$P$435))))* OFFSET(POWER_OPT,OFFSET(OPTIMIZATION,0,3),2))*$U$1 -> 0 | Y149: =(VCCINT/1000)*VCCINT*(IF($T149>0,$T149,($L149/2*($H149*(Data!$Q$435))))* OFFSET(POWER_OPT,OFFSET(OPTIMIZATION,0,3),2))*$U$1 -> 0 | Z149: =( VCCINT / 1000 ) * VCCINT * ( IF( $T149 > 0, $T149, ( $L149 / 2 * ( ( $I149 * ( Data!$O$435 ) ) ) ) *OFFSET( POWER_OPT, OFFSET( OPTIMIZATION, 0, 3), 2)) * $U$1 ) -> 0 | AA149: =(VCCINT/1000)*VCCINT*(IF($T149 > 0, $T149,($L149/2*(($F149)*(Q149*Data!$N$436+Data!$N$437))))* OFFSET(POWER_OPT,OFFSET(OPTIMIZATION,0,3),2))*$U$1 -> 0 | AB149: =(VCCINT/1000)*VCCINT*(IF($T149 > 0, $T149,($L149/2*($G149*(Q149*Data!$P$436+Data!$P$437))))* OFFSET(POWER_OPT,OFFSET(OPTIMIZATION,0,3),2))*$U$1 -> 0 | AC149: =(VCCINT/1000)*VCCINT*(IF($T149 > 0, $T149,($L149/2*($H149*(Q149*Data!$Q$436+Data!$Q$437))))* OFFSET(POWER_OPT,OFFSET(OPTIMIZATION,0,3),2))*$U$1 -> 0 | AD149: =( VCCINT / 1000 ) * VCCINT * ( IF( $T149 > 0, $T149, ( $L149 / 2 * ( ( $I149 ) * (Q149*Data!$O$436+Data!$O$437) ) ) * OFFSET( POWER_OPT, OFFSET( OPTIMIZATION, 0, 3), 2)) * $U$1 ) -> 0 | AE149: 0 | AF149: 0
J150: 0.125 | K150: 8 | L150: 0 | M150: 0 | O150: 0 | P150: 0 | Q150: 5.309573445 | U150: 0.0008136315897 | W150: =(VCCINT/1000)*VCCINT*(IF($T150>0,$T150,($L150/2*(($F150*(Data!$N$435)))* OFFSET(POWER_OPT,OFFSET(OPTIMIZATION,0,3),2))*$U$1)) -> 0 | X150: =(VCCINT/1000)*VCCINT*(IF($T150>0,$T150,($L150/2*($G150*(Data!$P$435))))* OFFSET(POWER_OPT,OFFSET(OPTIMIZATION,0,3),2))*$U$1 -> 0 | Y150: =(VCCINT/1000)*VCCINT*(IF($T150>0,$T150,($L150/2*($H150*(Data!$Q$435))))* OFFSET(POWER_OPT,OFFSET(OPTIMIZATION,0,3),2))*$U$1 -> 0 | Z150: =( VCCINT / 1000 ) * VCCINT * ( IF( $T150 > 0, $T150, ( $L150 / 2 * ( ( $I150 * ( Data!$O$435 ) ) ) ) *OFFSET( POWER_OPT, OFFSET( OPTIMIZATION, 0, 3), 2)) * $U$1 ) -> 0 | AA150: =(VCCINT/1000)*VCCINT*(IF($T150 > 0, $T150,($L150/2*(($F150)*(Q150*Data!$N$436+Data!$N$437))))* OFFSET(POWER_OPT,OFFSET(OPTIMIZATION,0,3),2))*$U$1 -> 0 | AB150: =(VCCINT/1000)*VCCINT*(IF($T150 > 0, $T150,($L150/2*($G150*(Q150*Data!$P$436+Data!$P$437))))* OFFSET(POWER_OPT,OFFSET(OPTIMIZATION,0,3),2))*$U$1 -> 0 | AC150: =(VCCINT/1000)*VCCINT*(IF($T150 > 0, $T150,($L150/2*($H150*(Q150*Data!$Q$436+Data!$Q$437))))* OFFSET(POWER_OPT,OFFSET(OPTIMIZATION,0,3),2))*$U$1 -> 0 | AD150: =( VCCINT / 1000 ) * VCCINT * ( IF( $T150 > 0, $T150, ( $L150 / 2 * ( ( $I150 ) * (Q150*Data!$O$436+Data!$O$437) ) ) * OFFSET( POWER_OPT, OFFSET( OPTIMIZATION, 0, 3), 2)) * $U$1 ) -> 0 | AE150: 0 | AF150: 0
J151: 0.125 | K151: 8 | L151: 0 | M151: 0 | O151: 0 | P151: 0 | Q151: 5.309573445 | U151: 0.0008136315897 | W151: =(VCCINT/1000)*VCCINT*(IF($T151>0,$T151,($L151/2*(($F151*(Data!$N$435)))* OFFSET(POWER_OPT,OFFSET(OPTIMIZATION,0,3),2))*$U$1)) -> 0 | X151: =(VCCINT/1000)*VCCINT*(IF($T151>0,$T151,($L151/2*($G151*(Data!$P$435))))* OFFSET(POWER_OPT,OFFSET(OPTIMIZATION,0,3),2))*$U$1 -> 0 | Y151: =(VCCINT/1000)*VCCINT*(IF($T151>0,$T151,($L151/2*($H151*(Data!$Q$435))))* OFFSET(POWER_OPT,OFFSET(OPTIMIZATION,0,3),2))*$U$1 -> 0 | Z151: =( VCCINT / 1000 ) * VCCINT * ( IF( $T151 > 0, $T151, ( $L151 / 2 * ( ( $I151 * ( Data!$O$435 ) ) ) ) *OFFSET( POWER_OPT, OFFSET( OPTIMIZATION, 0, 3), 2)) * $U$1 ) -> 0 | AA151: =(VCCINT/1000)*VCCINT*(IF($T151 > 0, $T151,($L151/2*(($F151)*(Q151*Data!$N$436+Data!$N$437))))* OFFSET(POWER_OPT,OFFSET(OPTIMIZATION,0,3),2))*$U$1 -> 0 | AB151: =(VCCINT/1000)*VCCINT*(IF($T151 > 0, $T151,($L151/2*($G151*(Q151*Data!$P$436+Data!$P$437))))* OFFSET(POWER_OPT,OFFSET(OPTIMIZATION,0,3),2))*$U$1 -> 0 | AC151: =(VCCINT/1000)*VCCINT*(IF($T151 > 0, $T151,($L151/2*($H151*(Q151*Data!$Q$436+Data!$Q$437))))* OFFSET(POWER_OPT,OFFSET(OPTIMIZATION,0,3),2))*$U$1 -> 0 | AD151: =( VCCINT / 1000 ) * VCCINT * ( IF( $T151 > 0, $T151, ( $L151 / 2 * ( ( $I151 ) * (Q151*Data!$O$436+Data!$O$437) ) ) * OFFSET( POWER_OPT, OFFSET( OPTIMIZATION, 0, 3), 2)) * $U$1 ) -> 0 | AE151: 0 | AF151: 0
J152: 0.125 | K152: 8 | L152: 0 | M152: 0 | O152: 0 | P152: 0 | Q152: 5.309573445 | U152: 0.0008136315897 | W152: =(VCCINT/1000)*VCCINT*(IF($T152>0,$T152,($L152/2*(($F152*(Data!$N$435)))* OFFSET(POWER_OPT,OFFSET(OPTIMIZATION,0,3),2))*$U$1)) -> 0 | X152: =(VCCINT/1000)*VCCINT*(IF($T152>0,$T152,($L152/2*($G152*(Data!$P$435))))* OFFSET(POWER_OPT,OFFSET(OPTIMIZATION,0,3),2))*$U$1 -> 0 | Y152: =(VCCINT/1000)*VCCINT*(IF($T152>0,$T152,($L152/2*($H152*(Data!$Q$435))))* OFFSET(POWER_OPT,OFFSET(OPTIMIZATION,0,3),2))*$U$1 -> 0 | Z152: =( VCCINT / 1000 ) * VCCINT * ( IF( $T152 > 0, $T152, ( $L152 / 2 * ( ( $I152 * ( Data!$O$435 ) ) ) ) *OFFSET( POWER_OPT, OFFSET( OPTIMIZATION, 0, 3), 2)) * $U$1 ) -> 0 | AA152: =(VCCINT/1000)*VCCINT*(IF($T152 > 0, $T152,($L152/2*(($F152)*(Q152*Data!$N$436+Data!$N$437))))* OFFSET(POWER_OPT,OFFSET(OPTIMIZATION,0,3),2))*$U$1 -> 0 | AB152: =(VCCINT/1000)*VCCINT*(IF($T152 > 0, $T152,($L152/2*($G152*(Q152*Data!$P$436+Data!$P$437))))* OFFSET(POWER_OPT,OFFSET(OPTIMIZATION,0,3),2))*$U$1 -> 0 | AC152: =(VCCINT/1000)*VCCINT*(IF($T152 > 0, $T152,($L152/2*($H152*(Q152*Data!$Q$436+Data!$Q$437))))* OFFSET(POWER_OPT,OFFSET(OPTIMIZATION,0,3),2))*$U$1 -> 0 | AD152: =( VCCINT / 1000 ) * VCCINT * ( IF( $T152 > 0, $T152, ( $L152 / 2 * ( ( $I152 ) * (Q152*Data!$O$436+Data!$O$437) ) ) * OFFSET( POWER_OPT, OFFSET( OPTIMIZATION, 0, 3), 2)) * $U$1 ) -> 0 | AE152: 0 | AF152: 0
J153: 0.125 | K153: 8 | L153: 0 | M153: 0 | O153: 0 | P153: 0 | Q153: 5.309573445 | U153: 0.0008136315897 | W153: =(VCCINT/1000)*VCCINT*(IF($T153>0,$T153,($L153/2*(($F153*(Data!$N$435)))* OFFSET(POWER_OPT,OFFSET(OPTIMIZATION,0,3),2))*$U$1)) -> 0 | X153: =(VCCINT/1000)*VCCINT*(IF($T153>0,$T153,($L153/2*($G153*(Data!$P$435))))* OFFSET(POWER_OPT,OFFSET(OPTIMIZATION,0,3),2))*$U$1 -> 0 | Y153: =(VCCINT/1000)*VCCINT*(IF($T153>0,$T153,($L153/2*($H153*(Data!$Q$435))))* OFFSET(POWER_OPT,OFFSET(OPTIMIZATION,0,3),2))*$U$1 -> 0 | Z153: =( VCCINT / 1000 ) * VCCINT * ( IF( $T153 > 0, $T153, ( $L153 / 2 * ( ( $I153 * ( Data!$O$435 ) ) ) ) *OFFSET( POWER_OPT, OFFSET( OPTIMIZATION, 0, 3), 2)) * $U$1 ) -> 0 | AA153: =(VCCINT/1000)*VCCINT*(IF($T153 > 0, $T153,($L153/2*(($F153)*(Q153*Data!$N$436+Data!$N$437))))* OFFSET(POWER_OPT,OFFSET(OPTIMIZATION,0,3),2))*$U$1 -> 0 | AB153: =(VCCINT/1000)*VCCINT*(IF($T153 > 0, $T153,($L153/2*($G153*(Q153*Data!$P$436+Data!$P$437))))* OFFSET(POWER_OPT,OFFSET(OPTIMIZATION,0,3),2))*$U$1 -> 0 | AC153: =(VCCINT/1000)*VCCINT*(IF($T153 > 0, $T153,($L153/2*($H153*(Q153*Data!$Q$436+Data!$Q$437))))* OFFSET(POWER_OPT,OFFSET(OPTIMIZATION,0,3),2))*$U$1 -> 0 | AD153: =( VCCINT / 1000 ) * VCCINT * ( IF( $T153 > 0, $T153, ( $L153 / 2 * ( ( $I153 ) * (Q153*Data!$O$436+Data!$O$437) ) ) * OFFSET( POWER_OPT, OFFSET( OPTIMIZATION, 0, 3), 2)) * $U$1 ) -> 0 | AE153: 0 | AF153: 0
J154: 0.125 | K154: 8 | L154: 0 | M154: 0 | O154: 0 | P154: 0 | Q154: 5.309573445 | U154: 0.0008136315897 | W154: =(VCCINT/1000)*VCCINT*(IF($T154>0,$T154,($L154/2*(($F154*(Data!$N$435)))* OFFSET(POWER_OPT,OFFSET(OPTIMIZATION,0,3),2))*$U$1)) -> 0 | X154: =(VCCINT/1000)*VCCINT*(IF($T154>0,$T154,($L154/2*($G154*(Data!$P$435))))* OFFSET(POWER_OPT,OFFSET(OPTIMIZATION,0,3),2))*$U$1 -> 0 | Y154: =(VCCINT/1000)*VCCINT*(IF($T154>0,$T154,($L154/2*($H154*(Data!$Q$435))))* OFFSET(POWER_OPT,OFFSET(OPTIMIZATION,0,3),2))*$U$1 -> 0 | Z154: =( VCCINT / 1000 ) * VCCINT * ( IF( $T154 > 0, $T154, ( $L154 / 2 * ( ( $I154 * ( Data!$O$435 ) ) ) ) *OFFSET( POWER_OPT, OFFSET( OPTIMIZATION, 0, 3), 2)) * $U$1 ) -> 0 | AA154: =(VCCINT/1000)*VCCINT*(IF($T154 > 0, $T154,($L154/2*(($F154)*(Q154*Data!$N$436+Data!$N$437))))* OFFSET(POWER_OPT,OFFSET(OPTIMIZATION,0,3),2))*$U$1 -> 0 | AB154: =(VCCINT/1000)*VCCINT*(IF($T154 > 0, $T154,($L154/2*($G154*(Q154*Data!$P$436+Data!$P$437))))* OFFSET(POWER_OPT,OFFSET(OPTIMIZATION,0,3),2))*$U$1 -> 0 | AC154: =(VCCINT/1000)*VCCINT*(IF($T154 > 0, $T154,($L154/2*($H154*(Q154*Data!$Q$436+Data!$Q$437))))* OFFSET(POWER_OPT,OFFSET(OPTIMIZATION,0,3),2))*$U$1 -> 0 | AD154: =( VCCINT / 1000 ) * VCCINT * ( IF( $T154 > 0, $T154, ( $L154 / 2 * ( ( $I154 ) * (Q154*Data!$O$436+Data!$O$437) ) ) * OFFSET( POWER_OPT, OFFSET( OPTIMIZATION, 0, 3), 2)) * $U$1 ) -> 0 | AE154: 0 | AF154: 0
J155: 0.125 | K155: 8 | L155: 0 | M155: 0 | O155: 0 | P155: 0 | Q155: 5.309573445 | U155: 0.0008136315897 | W155: =(VCCINT/1000)*VCCINT*(IF($T155>0,$T155,($L155/2*(($F155*(Data!$N$435)))* OFFSET(POWER_OPT,OFFSET(OPTIMIZATION,0,3),2))*$U$1)) -> 0 | X155: =(VCCINT/1000)*VCCINT*(IF($T155>0,$T155,($L155/2*($G155*(Data!$P$435))))* OFFSET(POWER_OPT,OFFSET(OPTIMIZATION,0,3),2))*$U$1 -> 0 | Y155: =(VCCINT/1000)*VCCINT*(IF($T155>0,$T155,($L155/2*($H155*(Data!$Q$435))))* OFFSET(POWER_OPT,OFFSET(OPTIMIZATION,0,3),2))*$U$1 -> 0 | Z155: =( VCCINT / 1000 ) * VCCINT * ( IF( $T155 > 0, $T155, ( $L155 / 2 * ( ( $I155 * ( Data!$O$435 ) ) ) ) *OFFSET( POWER_OPT, OFFSET( OPTIMIZATION, 0, 3), 2)) * $U$1 ) -> 0 | AA155: =(VCCINT/1000)*VCCINT*(IF($T155 > 0, $T155,($L155/2*(($F155)*(Q155*Data!$N$436+Data!$N$437))))* OFFSET(POWER_OPT,OFFSET(OPTIMIZATION,0,3),2))*$U$1 -> 0 | AB155: =(VCCINT/1000)*VCCINT*(IF($T155 > 0, $T155,($L155/2*($G155*(Q155*Data!$P$436+Data!$P$437))))* OFFSET(POWER_OPT,OFFSET(OPTIMIZATION,0,3),2))*$U$1 -> 0 | AC155: =(VCCINT/1000)*VCCINT*(IF($T155 > 0, $T155,($L155/2*($H155*(Q155*Data!$Q$436+Data!$Q$437))))* OFFSET(POWER_OPT,OFFSET(OPTIMIZATION,0,3),2))*$U$1 -> 0 | AD155: =( VCCINT / 1000 ) * VCCINT * ( IF( $T155 > 0, $T155, ( $L155 / 2 * ( ( $I155 ) * (Q155*Data!$O$436+Data!$O$437) ) ) * OFFSET( POWER_OPT, OFFSET( OPTIMIZATION, 0, 3), 2)) * $U$1 ) -> 0 | AE155: 0 | AF155: 0
J156: 0.125 | K156: 8 | L156: 0 | M156: 0 | O156: 0 | P156: 0 | Q156: 5.309573445 | U156: 0.0008136315897 | W156: =(VCCINT/1000)*VCCINT*(IF($T156>0,$T156,($L156/2*(($F156*(Data!$N$435)))* OFFSET(POWER_OPT,OFFSET(OPTIMIZATION,0,3),2))*$U$1)) -> 0 | X156: =(VCCINT/1000)*VCCINT*(IF($T156>0,$T156,($L156/2*($G156*(Data!$P$435))))* OFFSET(POWER_OPT,OFFSET(OPTIMIZATION,0,3),2))*$U$1 -> 0 | Y156: =(VCCINT/1000)*VCCINT*(IF($T156>0,$T156,($L156/2*($H156*(Data!$Q$435))))* OFFSET(POWER_OPT,OFFSET(OPTIMIZATION,0,3),2))*$U$1 -> 0 | Z156: =( VCCINT / 1000 ) * VCCINT * ( IF( $T156 > 0, $T156, ( $L156 / 2 * ( ( $I156 * ( Data!$O$435 ) ) ) ) *OFFSET( POWER_OPT, OFFSET( OPTIMIZATION, 0, 3), 2)) * $U$1 ) -> 0 | AA156: =(VCCINT/1000)*VCCINT*(IF($T156 > 0, $T156,($L156/2*(($F156)*(Q156*Data!$N$436+Data!$N$437))))* OFFSET(POWER_OPT,OFFSET(OPTIMIZATION,0,3),2))*$U$1 -> 0 | AB156: =(VCCINT/1000)*VCCINT*(IF($T156 > 0, $T156,($L156/2*($G156*(Q156*Data!$P$436+Data!$P$437))))* OFFSET(POWER_OPT,OFFSET(OPTIMIZATION,0,3),2))*$U$1 -> 0 | AC156: =(VCCINT/1000)*VCCINT*(IF($T156 > 0, $T156,($L156/2*($H156*(Q156*Data!$Q$436+Data!$Q$437))))* OFFSET(POWER_OPT,OFFSET(OPTIMIZATION,0,3),2))*$U$1 -> 0 | AD156: =( VCCINT / 1000 ) * VCCINT * ( IF( $T156 > 0, $T156, ( $L156 / 2 * ( ( $I156 ) * (Q156*Data!$O$436+Data!$O$437) ) ) * OFFSET( POWER_OPT, OFFSET( OPTIMIZATION, 0, 3), 2)) * $U$1 ) -> 0 | AE156: 0 | AF156: 0
J157: 0.125 | K157: 8 | L157: 0 | M157: 0 | O157: 0 | P157: 0 | Q157: 5.309573445 | U157: 0.0008136315897 | W157: =(VCCINT/1000)*VCCINT*(IF($T157>0,$T157,($L157/2*(($F157*(Data!$N$435)))* OFFSET(POWER_OPT,OFFSET(OPTIMIZATION,0,3),2))*$U$1)) -> 0 | X157: =(VCCINT/1000)*VCCINT*(IF($T157>0,$T157,($L157/2*($G157*(Data!$P$435))))* OFFSET(POWER_OPT,OFFSET(OPTIMIZATION,0,3),2))*$U$1 -> 0 | Y157: =(VCCINT/1000)*VCCINT*(IF($T157>0,$T157,($L157/2*($H157*(Data!$Q$435))))* OFFSET(POWER_OPT,OFFSET(OPTIMIZATION,0,3),2))*$U$1 -> 0 | Z157: =( VCCINT / 1000 ) * VCCINT * ( IF( $T157 > 0, $T157, ( $L157 / 2 * ( ( $I157 * ( Data!$O$435 ) ) ) ) *OFFSET( POWER_OPT, OFFSET( OPTIMIZATION, 0, 3), 2)) * $U$1 ) -> 0 | AA157: =(VCCINT/1000)*VCCINT*(IF($T157 > 0, $T157,($L157/2*(($F157)*(Q157*Data!$N$436+Data!$N$437))))* OFFSET(POWER_OPT,OFFSET(OPTIMIZATION,0,3),2))*$U$1 -> 0 | AB157: =(VCCINT/1000)*VCCINT*(IF($T157 > 0, $T157,($L157/2*($G157*(Q157*Data!$P$436+Data!$P$437))))* OFFSET(POWER_OPT,OFFSET(OPTIMIZATION,0,3),2))*$U$1 -> 0 | AC157: =(VCCINT/1000)*VCCINT*(IF($T157 > 0, $T157,($L157/2*($H157*(Q157*Data!$Q$436+Data!$Q$437))))* OFFSET(POWER_OPT,OFFSET(OPTIMIZATION,0,3),2))*$U$1 -> 0 | AD157: =( VCCINT / 1000 ) * VCCINT * ( IF( $T157 > 0, $T157, ( $L157 / 2 * ( ( $I157 ) * (Q157*Data!$O$436+Data!$O$437) ) ) * OFFSET( POWER_OPT, OFFSET( OPTIMIZATION, 0, 3), 2)) * $U$1 ) -> 0 | AE157: 0 | AF157: 0
J158: 0.125 | K158: 8 | L158: 0 | M158: 0 | O158: 0 | P158: 0 | Q158: 5.309573445 | U158: 0.0008136315897 | W158: =(VCCINT/1000)*VCCINT*(IF($T158>0,$T158,($L158/2*(($F158*(Data!$N$435)))* OFFSET(POWER_OPT,OFFSET(OPTIMIZATION,0,3),2))*$U$1)) -> 0 | X158: =(VCCINT/1000)*VCCINT*(IF($T158>0,$T158,($L158/2*($G158*(Data!$P$435))))* OFFSET(POWER_OPT,OFFSET(OPTIMIZATION,0,3),2))*$U$1 -> 0 | Y158: =(VCCINT/1000)*VCCINT*(IF($T158>0,$T158,($L158/2*($H158*(Data!$Q$435))))* OFFSET(POWER_OPT,OFFSET(OPTIMIZATION,0,3),2))*$U$1 -> 0 | Z158: =( VCCINT / 1000 ) * VCCINT * ( IF( $T158 > 0, $T158, ( $L158 / 2 * ( ( $I158 * ( Data!$O$435 ) ) ) ) *OFFSET( POWER_OPT, OFFSET( OPTIMIZATION, 0, 3), 2)) * $U$1 ) -> 0 | AA158: =(VCCINT/1000)*VCCINT*(IF($T158 > 0, $T158,($L158/2*(($F158)*(Q158*Data!$N$436+Data!$N$437))))* OFFSET(POWER_OPT,OFFSET(OPTIMIZATION,0,3),2))*$U$1 -> 0 | AB158: =(VCCINT/1000)*VCCINT*(IF($T158 > 0, $T158,($L158/2*($G158*(Q158*Data!$P$436+Data!$P$437))))* OFFSET(POWER_OPT,OFFSET(OPTIMIZATION,0,3),2))*$U$1 -> 0 | AC158: =(VCCINT/1000)*VCCINT*(IF($T158 > 0, $T158,($L158/2*($H158*(Q158*Data!$Q$436+Data!$Q$437))))* OFFSET(POWER_OPT,OFFSET(OPTIMIZATION,0,3),2))*$U$1 -> 0 | AD158: =( VCCINT / 1000 ) * VCCINT * ( IF( $T158 > 0, $T158, ( $L158 / 2 * ( ( $I158 ) * (Q158*Data!$O$436+Data!$O$437) ) ) * OFFSET( POWER_OPT, OFFSET( OPTIMIZATION, 0, 3), 2)) * $U$1 ) -> 0 | AE158: 0 | AF158: 0
J159: 0.125 | K159: 8 | L159: 0 | M159: 0 | O159: 0 | P159: 0 | Q159: 5.309573445 | U159: 0.0008136315897 | W159: =(VCCINT/1000)*VCCINT*(IF($T159>0,$T159,($L159/2*(($F159*(Data!$N$435)))* OFFSET(POWER_OPT,OFFSET(OPTIMIZATION,0,3),2))*$U$1)) -> 0 | X159: =(VCCINT/1000)*VCCINT*(IF($T159>0,$T159,($L159/2*($G159*(Data!$P$435))))* OFFSET(POWER_OPT,OFFSET(OPTIMIZATION,0,3),2))*$U$1 -> 0 | Y159: =(VCCINT/1000)*VCCINT*(IF($T159>0,$T159,($L159/2*($H159*(Data!$Q$435))))* OFFSET(POWER_OPT,OFFSET(OPTIMIZATION,0,3),2))*$U$1 -> 0 | Z159: =( VCCINT / 1000 ) * VCCINT * ( IF( $T159 > 0, $T159, ( $L159 / 2 * ( ( $I159 * ( Data!$O$435 ) ) ) ) *OFFSET( POWER_OPT, OFFSET( OPTIMIZATION, 0, 3), 2)) * $U$1 ) -> 0 | AA159: =(VCCINT/1000)*VCCINT*(IF($T159 > 0, $T159,($L159/2*(($F159)*(Q159*Data!$N$436+Data!$N$437))))* OFFSET(POWER_OPT,OFFSET(OPTIMIZATION,0,3),2))*$U$1 -> 0 | AB159: =(VCCINT/1000)*VCCINT*(IF($T159 > 0, $T159,($L159/2*($G159*(Q159*Data!$P$436+Data!$P$437))))* OFFSET(POWER_OPT,OFFSET(OPTIMIZATION,0,3),2))*$U$1 -> 0 | AC159: =(VCCINT/1000)*VCCINT*(IF($T159 > 0, $T159,($L159/2*($H159*(Q159*Data!$Q$436+Data!$Q$437))))* OFFSET(POWER_OPT,OFFSET(OPTIMIZATION,0,3),2))*$U$1 -> 0 | AD159: =( VCCINT / 1000 ) * VCCINT * ( IF( $T159 > 0, $T159, ( $L159 / 2 * ( ( $I159 ) * (Q159*Data!$O$436+Data!$O$437) ) ) * OFFSET( POWER_OPT, OFFSET( OPTIMIZATION, 0, 3), 2)) * $U$1 ) -> 0 | AE159: 0 | AF159: 0
J160: 0.125 | K160: 8 | L160: 0 | M160: 0 | O160: 0 | P160: 0 | Q160: 5.309573445 | U160: 0.0008136315897 | W160: =(VCCINT/1000)*VCCINT*(IF($T160>0,$T160,($L160/2*(($F160*(Data!$N$435)))* OFFSET(POWER_OPT,OFFSET(OPTIMIZATION,0,3),2))*$U$1)) -> 0 | X160: =(VCCINT/1000)*VCCINT*(IF($T160>0,$T160,($L160/2*($G160*(Data!$P$435))))* OFFSET(POWER_OPT,OFFSET(OPTIMIZATION,0,3),2))*$U$1 -> 0 | Y160: =(VCCINT/1000)*VCCINT*(IF($T160>0,$T160,($L160/2*($H160*(Data!$Q$435))))* OFFSET(POWER_OPT,OFFSET(OPTIMIZATION,0,3),2))*$U$1 -> 0 | Z160: =( VCCINT / 1000 ) * VCCINT * ( IF( $T160 > 0, $T160, ( $L160 / 2 * ( ( $I160 * ( Data!$O$435 ) ) ) ) *OFFSET( POWER_OPT, OFFSET( OPTIMIZATION, 0, 3), 2)) * $U$1 ) -> 0 | AA160: =(VCCINT/1000)*VCCINT*(IF($T160 > 0, $T160,($L160/2*(($F160)*(Q160*Data!$N$436+Data!$N$437))))* OFFSET(POWER_OPT,OFFSET(OPTIMIZATION,0,3),2))*$U$1 -> 0 | AB160: =(VCCINT/1000)*VCCINT*(IF($T160 > 0, $T160,($L160/2*($G160*(Q160*Data!$P$436+Data!$P$437))))* OFFSET(POWER_OPT,OFFSET(OPTIMIZATION,0,3),2))*$U$1 -> 0 | AC160: =(VCCINT/1000)*VCCINT*(IF($T160 > 0, $T160,($L160/2*($H160*(Q160*Data!$Q$436+Data!$Q$437))))* OFFSET(POWER_OPT,OFFSET(OPTIMIZATION,0,3),2))*$U$1 -> 0 | AD160: =( VCCINT / 1000 ) * VCCINT * ( IF( $T160 > 0, $T160, ( $L160 / 2 * ( ( $I160 ) * (Q160*Data!$O$436+Data!$O$437) ) ) * OFFSET( POWER_OPT, OFFSET( OPTIMIZATION, 0, 3), 2)) * $U$1 ) -> 0 | AE160: 0 | AF160: 0
J161: 0.125 | K161: 8 | L161: 0 | M161: 0 | O161: 0 | P161: 0 | Q161: 5.309573445 | U161: 0.0008136315897 | W161: =(VCCINT/1000)*VCCINT*(IF($T161>0,$T161,($L161/2*(($F161*(Data!$N$435)))* OFFSET(POWER_OPT,OFFSET(OPTIMIZATION,0,3),2))*$U$1)) -> 0 | X161: =(VCCINT/1000)*VCCINT*(IF($T161>0,$T161,($L161/2*($G161*(Data!$P$435))))* OFFSET(POWER_OPT,OFFSET(OPTIMIZATION,0,3),2))*$U$1 -> 0 | Y161: =(VCCINT/1000)*VCCINT*(IF($T161>0,$T161,($L161/2*($H161*(Data!$Q$435))))* OFFSET(POWER_OPT,OFFSET(OPTIMIZATION,0,3),2))*$U$1 -> 0 | Z161: =( VCCINT / 1000 ) * VCCINT * ( IF( $T161 > 0, $T161, ( $L161 / 2 * ( ( $I161 * ( Data!$O$435 ) ) ) ) *OFFSET( POWER_OPT, OFFSET( OPTIMIZATION, 0, 3), 2)) * $U$1 ) -> 0 | AA161: =(VCCINT/1000)*VCCINT*(IF($T161 > 0, $T161,($L161/2*(($F161)*(Q161*Data!$N$436+Data!$N$437))))* OFFSET(POWER_OPT,OFFSET(OPTIMIZATION,0,3),2))*$U$1 -> 0 | AB161: =(VCCINT/1000)*VCCINT*(IF($T161 > 0, $T161,($L161/2*($G161*(Q161*Data!$P$436+Data!$P$437))))* OFFSET(POWER_OPT,OFFSET(OPTIMIZATION,0,3),2))*$U$1 -> 0 | AC161: =(VCCINT/1000)*VCCINT*(IF($T161 > 0, $T161,($L161/2*($H161*(Q161*Data!$Q$436+Data!$Q$437))))* OFFSET(POWER_OPT,OFFSET(OPTIMIZATION,0,3),2))*$U$1 -> 0 | AD161: =( VCCINT / 1000 ) * VCCINT * ( IF( $T161 > 0, $T161, ( $L161 / 2 * ( ( $I161 ) * (Q161*Data!$O$436+Data!$O$437) ) ) * OFFSET( POWER_OPT, OFFSET( OPTIMIZATION, 0, 3), 2)) * $U$1 ) -> 0 | AE161: 0 | AF161: 0
J162: 0.125 | K162: 8 | L162: 0 | M162: 0 | O162: 0 | P162: 0 | Q162: 5.309573445 | U162: 0.0008136315897 | W162: =(VCCINT/1000)*VCCINT*(IF($T162>0,$T162,($L162/2*(($F162*(Data!$N$435)))* OFFSET(POWER_OPT,OFFSET(OPTIMIZATION,0,3),2))*$U$1)) -> 0 | X162: =(VCCINT/1000)*VCCINT*(IF($T162>0,$T162,($L162/2*($G162*(Data!$P$435))))* OFFSET(POWER_OPT,OFFSET(OPTIMIZATION,0,3),2))*$U$1 -> 0 | Y162: =(VCCINT/1000)*VCCINT*(IF($T162>0,$T162,($L162/2*($H162*(Data!$Q$435))))* OFFSET(POWER_OPT,OFFSET(OPTIMIZATION,0,3),2))*$U$1 -> 0 | Z162: =( VCCINT / 1000 ) * VCCINT * ( IF( $T162 > 0, $T162, ( $L162 / 2 * ( ( $I162 * ( Data!$O$435 ) ) ) ) *OFFSET( POWER_OPT, OFFSET( OPTIMIZATION, 0, 3), 2)) * $U$1 ) -> 0 | AA162: =(VCCINT/1000)*VCCINT*(IF($T162 > 0, $T162,($L162/2*(($F162)*(Q162*Data!$N$436+Data!$N$437))))* OFFSET(POWER_OPT,OFFSET(OPTIMIZATION,0,3),2))*$U$1 -> 0 | AB162: =(VCCINT/1000)*VCCINT*(IF($T162 > 0, $T162,($L162/2*($G162*(Q162*Data!$P$436+Data!$P$437))))* OFFSET(POWER_OPT,OFFSET(OPTIMIZATION,0,3),2))*$U$1 -> 0 | AC162: =(VCCINT/1000)*VCCINT*(IF($T162 > 0, $T162,($L162/2*($H162*(Q162*Data!$Q$436+Data!$Q$437))))* OFFSET(POWER_OPT,OFFSET(OPTIMIZATION,0,3),2))*$U$1 -> 0 | AD162: =( VCCINT / 1000 ) * VCCINT * ( IF( $T162 > 0, $T162, ( $L162 / 2 * ( ( $I162 ) * (Q162*Data!$O$436+Data!$O$437) ) ) * OFFSET( POWER_OPT, OFFSET( OPTIMIZATION, 0, 3), 2)) * $U$1 ) -> 0 | AE162: 0 | AF162: 0
J163: 0.125 | K163: 8 | L163: 0 | M163: 0 | O163: 0 | P163: 0 | Q163: 5.309573445 | U163: 0.0008136315897 | W163: =(VCCINT/1000)*VCCINT*(IF($T163>0,$T163,($L163/2*(($F163*(Data!$N$435)))* OFFSET(POWER_OPT,OFFSET(OPTIMIZATION,0,3),2))*$U$1)) -> 0 | X163: =(VCCINT/1000)*VCCINT*(IF($T163>0,$T163,($L163/2*($G163*(Data!$P$435))))* OFFSET(POWER_OPT,OFFSET(OPTIMIZATION,0,3),2))*$U$1 -> 0 | Y163: =(VCCINT/1000)*VCCINT*(IF($T163>0,$T163,($L163/2*($H163*(Data!$Q$435))))* OFFSET(POWER_OPT,OFFSET(OPTIMIZATION,0,3),2))*$U$1 -> 0 | Z163: =( VCCINT / 1000 ) * VCCINT * ( IF( $T163 > 0, $T163, ( $L163 / 2 * ( ( $I163 * ( Data!$O$435 ) ) ) ) *OFFSET( POWER_OPT, OFFSET( OPTIMIZATION, 0, 3), 2)) * $U$1 ) -> 0 | AA163: =(VCCINT/1000)*VCCINT*(IF($T163 > 0, $T163,($L163/2*(($F163)*(Q163*Data!$N$436+Data!$N$437))))* OFFSET(POWER_OPT,OFFSET(OPTIMIZATION,0,3),2))*$U$1 -> 0 | AB163: =(VCCINT/1000)*VCCINT*(IF($T163 > 0, $T163,($L163/2*($G163*(Q163*Data!$P$436+Data!$P$437))))* OFFSET(POWER_OPT,OFFSET(OPTIMIZATION,0,3),2))*$U$1 -> 0 | AC163: =(VCCINT/1000)*VCCINT*(IF($T163 > 0, $T163,($L163/2*($H163*(Q163*Data!$Q$436+Data!$Q$437))))* OFFSET(POWER_OPT,OFFSET(OPTIMIZATION,0,3),2))*$U$1 -> 0 | AD163: =( VCCINT / 1000 ) * VCCINT * ( IF( $T163 > 0, $T163, ( $L163 / 2 * ( ( $I163 ) * (Q163*Data!$O$436+Data!$O$437) ) ) * OFFSET( POWER_OPT, OFFSET( OPTIMIZATION, 0, 3), 2)) * $U$1 ) -> 0 | AE163: 0 | AF163: 0
J164: 0.125 | K164: 8 | L164: 0 | M164: 0 | O164: 0 | P164: 0 | Q164: 5.309573445 | U164: 0.0008136315897 | W164: =(VCCINT/1000)*VCCINT*(IF($T164>0,$T164,($L164/2*(($F164*(Data!$N$435)))* OFFSET(POWER_OPT,OFFSET(OPTIMIZATION,0,3),2))*$U$1)) -> 0 | X164: =(VCCINT/1000)*VCCINT*(IF($T164>0,$T164,($L164/2*($G164*(Data!$P$435))))* OFFSET(POWER_OPT,OFFSET(OPTIMIZATION,0,3),2))*$U$1 -> 0 | Y164: =(VCCINT/1000)*VCCINT*(IF($T164>0,$T164,($L164/2*($H164*(Data!$Q$435))))* OFFSET(POWER_OPT,OFFSET(OPTIMIZATION,0,3),2))*$U$1 -> 0 | Z164: =( VCCINT / 1000 ) * VCCINT * ( IF( $T164 > 0, $T164, ( $L164 / 2 * ( ( $I164 * ( Data!$O$435 ) ) ) ) *OFFSET( POWER_OPT, OFFSET( OPTIMIZATION, 0, 3), 2)) * $U$1 ) -> 0 | AA164: =(VCCINT/1000)*VCCINT*(IF($T164 > 0, $T164,($L164/2*(($F164)*(Q164*Data!$N$436+Data!$N$437))))* OFFSET(POWER_OPT,OFFSET(OPTIMIZATION,0,3),2))*$U$1 -> 0 | AB164: =(VCCINT/1000)*VCCINT*(IF($T164 > 0, $T164,($L164/2*($G164*(Q164*Data!$P$436+Data!$P$437))))* OFFSET(POWER_OPT,OFFSET(OPTIMIZATION,0,3),2))*$U$1 -> 0 | AC164: =(VCCINT/1000)*VCCINT*(IF($T164 > 0, $T164,($L164/2*($H164*(Q164*Data!$Q$436+Data!$Q$437))))* OFFSET(POWER_OPT,OFFSET(OPTIMIZATION,0,3),2))*$U$1 -> 0 | AD164: =( VCCINT / 1000 ) * VCCINT * ( IF( $T164 > 0, $T164, ( $L164 / 2 * ( ( $I164 ) * (Q164*Data!$O$436+Data!$O$437) ) ) * OFFSET( POWER_OPT, OFFSET( OPTIMIZATION, 0, 3), 2)) * $U$1 ) -> 0 | AE164: 0 | AF164: 0
J165: 0.125 | K165: 8 | L165: 0 | M165: 0 | O165: 0 | P165: 0 | Q165: 5.309573445 | U165: 0.0008136315897 | W165: =(VCCINT/1000)*VCCINT*(IF($T165>0,$T165,($L165/2*(($F165*(Data!$N$435)))* OFFSET(POWER_OPT,OFFSET(OPTIMIZATION,0,3),2))*$U$1)) -> 0 | X165: =(VCCINT/1000)*VCCINT*(IF($T165>0,$T165,($L165/2*($G165*(Data!$P$435))))* OFFSET(POWER_OPT,OFFSET(OPTIMIZATION,0,3),2))*$U$1 -> 0 | Y165: =(VCCINT/1000)*VCCINT*(IF($T165>0,$T165,($L165/2*($H165*(Data!$Q$435))))* OFFSET(POWER_OPT,OFFSET(OPTIMIZATION,0,3),2))*$U$1 -> 0 | Z165: =( VCCINT / 1000 ) * VCCINT * ( IF( $T165 > 0, $T165, ( $L165 / 2 * ( ( $I165 * ( Data!$O$435 ) ) ) ) *OFFSET( POWER_OPT, OFFSET( OPTIMIZATION, 0, 3), 2)) * $U$1 ) -> 0 | AA165: =(VCCINT/1000)*VCCINT*(IF($T165 > 0, $T165,($L165/2*(($F165)*(Q165*Data!$N$436+Data!$N$437))))* OFFSET(POWER_OPT,OFFSET(OPTIMIZATION,0,3),2))*$U$1 -> 0 | AB165: =(VCCINT/1000)*VCCINT*(IF($T165 > 0, $T165,($L165/2*($G165*(Q165*Data!$P$436+Data!$P$437))))* OFFSET(POWER_OPT,OFFSET(OPTIMIZATION,0,3),2))*$U$1 -> 0 | AC165: =(VCCINT/1000)*VCCINT*(IF($T165 > 0, $T165,($L165/2*($H165*(Q165*Data!$Q$436+Data!$Q$437))))* OFFSET(POWER_OPT,OFFSET(OPTIMIZATION,0,3),2))*$U$1 -> 0 | AD165: =( VCCINT / 1000 ) * VCCINT * ( IF( $T165 > 0, $T165, ( $L165 / 2 * ( ( $I165 ) * (Q165*Data!$O$436+Data!$O$437) ) ) * OFFSET( POWER_OPT, OFFSET( OPTIMIZATION, 0, 3), 2)) * $U$1 ) -> 0 | AE165: 0 | AF165: 0
J166: 0.125 | K166: 8 | L166: 0 | M166: 0 | O166: 0 | P166: 0 | Q166: 5.309573445 | U166: 0.0008136315897 | W166: =(VCCINT/1000)*VCCINT*(IF($T166>0,$T166,($L166/2*(($F166*(Data!$N$435)))* OFFSET(POWER_OPT,OFFSET(OPTIMIZATION,0,3),2))*$U$1)) -> 0 | X166: =(VCCINT/1000)*VCCINT*(IF($T166>0,$T166,($L166/2*($G166*(Data!$P$435))))* OFFSET(POWER_OPT,OFFSET(OPTIMIZATION,0,3),2))*$U$1 -> 0 | Y166: =(VCCINT/1000)*VCCINT*(IF($T166>0,$T166,($L166/2*($H166*(Data!$Q$435))))* OFFSET(POWER_OPT,OFFSET(OPTIMIZATION,0,3),2))*$U$1 -> 0 | Z166: =( VCCINT / 1000 ) * VCCINT * ( IF( $T166 > 0, $T166, ( $L166 / 2 * ( ( $I166 * ( Data!$O$435 ) ) ) ) *OFFSET( POWER_OPT, OFFSET( OPTIMIZATION, 0, 3), 2)) * $U$1 ) -> 0 | AA166: =(VCCINT/1000)*VCCINT*(IF($T166 > 0, $T166,($L166/2*(($F166)*(Q166*Data!$N$436+Data!$N$437))))* OFFSET(POWER_OPT,OFFSET(OPTIMIZATION,0,3),2))*$U$1 -> 0 | AB166: =(VCCINT/1000)*VCCINT*(IF($T166 > 0, $T166,($L166/2*($G166*(Q166*Data!$P$436+Data!$P$437))))* OFFSET(POWER_OPT,OFFSET(OPTIMIZATION,0,3),2))*$U$1 -> 0 | AC166: =(VCCINT/1000)*VCCINT*(IF($T166 > 0, $T166,($L166/2*($H166*(Q166*Data!$Q$436+Data!$Q$437))))* OFFSET(POWER_OPT,OFFSET(OPTIMIZATION,0,3),2))*$U$1 -> 0 | AD166: =( VCCINT / 1000 ) * VCCINT * ( IF( $T166 > 0, $T166, ( $L166 / 2 * ( ( $I166 ) * (Q166*Data!$O$436+Data!$O$437) ) ) * OFFSET( POWER_OPT, OFFSET( OPTIMIZATION, 0, 3), 2)) * $U$1 ) -> 0 | AE166: 0 | AF166: 0
J167: 0.125 | K167: 8 | L167: 0 | M167: 0 | O167: 0 | P167: 0 | Q167: 5.309573445 | U167: 0.0008136315897 | W167: =(VCCINT/1000)*VCCINT*(IF($T167>0,$T167,($L167/2*(($F167*(Data!$N$435)))* OFFSET(POWER_OPT,OFFSET(OPTIMIZATION,0,3),2))*$U$1)) -> 0 | X167: =(VCCINT/1000)*VCCINT*(IF($T167>0,$T167,($L167/2*($G167*(Data!$P$435))))* OFFSET(POWER_OPT,OFFSET(OPTIMIZATION,0,3),2))*$U$1 -> 0 | Y167: =(VCCINT/1000)*VCCINT*(IF($T167>0,$T167,($L167/2*($H167*(Data!$Q$435))))* OFFSET(POWER_OPT,OFFSET(OPTIMIZATION,0,3),2))*$U$1 -> 0 | Z167: =( VCCINT / 1000 ) * VCCINT * ( IF( $T167 > 0, $T167, ( $L167 / 2 * ( ( $I167 * ( Data!$O$435 ) ) ) ) *OFFSET( POWER_OPT, OFFSET( OPTIMIZATION, 0, 3), 2)) * $U$1 ) -> 0 | AA167: =(VCCINT/1000)*VCCINT*(IF($T167 > 0, $T167,($L167/2*(($F167)*(Q167*Data!$N$436+Data!$N$437))))* OFFSET(POWER_OPT,OFFSET(OPTIMIZATION,0,3),2))*$U$1 -> 0 | AB167: =(VCCINT/1000)*VCCINT*(IF($T167 > 0, $T167,($L167/2*($G167*(Q167*Data!$P$436+Data!$P$437))))* OFFSET(POWER_OPT,OFFSET(OPTIMIZATION,0,3),2))*$U$1 -> 0 | AC167: =(VCCINT/1000)*VCCINT*(IF($T167 > 0, $T167,($L167/2*($H167*(Q167*Data!$Q$436+Data!$Q$437))))* OFFSET(POWER_OPT,OFFSET(OPTIMIZATION,0,3),2))*$U$1 -> 0 | AD167: =( VCCINT / 1000 ) * VCCINT * ( IF( $T167 > 0, $T167, ( $L167 / 2 * ( ( $I167 ) * (Q167*Data!$O$436+Data!$O$437) ) ) * OFFSET( POWER_OPT, OFFSET( OPTIMIZATION, 0, 3), 2)) * $U$1 ) -> 0 | AE167: 0 | AF167: 0
J168: 0.125 | K168: 8 | L168: 0 | M168: 0 | O168: 0 | P168: 0 | Q168: 5.309573445 | U168: 0.0008136315897 | W168: =(VCCINT/1000)*VCCINT*(IF($T168>0,$T168,($L168/2*(($F168*(Data!$N$435)))* OFFSET(POWER_OPT,OFFSET(OPTIMIZATION,0,3),2))*$U$1)) -> 0 | X168: =(VCCINT/1000)*VCCINT*(IF($T168>0,$T168,($L168/2*($G168*(Data!$P$435))))* OFFSET(POWER_OPT,OFFSET(OPTIMIZATION,0,3),2))*$U$1 -> 0 | Y168: =(VCCINT/1000)*VCCINT*(IF($T168>0,$T168,($L168/2*($H168*(Data!$Q$435))))* OFFSET(POWER_OPT,OFFSET(OPTIMIZATION,0,3),2))*$U$1 -> 0 | Z168: =( VCCINT / 1000 ) * VCCINT * ( IF( $T168 > 0, $T168, ( $L168 / 2 * ( ( $I168 * ( Data!$O$435 ) ) ) ) *OFFSET( POWER_OPT, OFFSET( OPTIMIZATION, 0, 3), 2)) * $U$1 ) -> 0 | AA168: =(VCCINT/1000)*VCCINT*(IF($T168 > 0, $T168,($L168/2*(($F168)*(Q168*Data!$N$436+Data!$N$437))))* OFFSET(POWER_OPT,OFFSET(OPTIMIZATION,0,3),2))*$U$1 -> 0 | AB168: =(VCCINT/1000)*VCCINT*(IF($T168 > 0, $T168,($L168/2*($G168*(Q168*Data!$P$436+Data!$P$437))))* OFFSET(POWER_OPT,OFFSET(OPTIMIZATION,0,3),2))*$U$1 -> 0 | AC168: =(VCCINT/1000)*VCCINT*(IF($T168 > 0, $T168,($L168/2*($H168*(Q168*Data!$Q$436+Data!$Q$437))))* OFFSET(POWER_OPT,OFFSET(OPTIMIZATION,0,3),2))*$U$1 -> 0 | AD168: =( VCCINT / 1000 ) * VCCINT * ( IF( $T168 > 0, $T168, ( $L168 / 2 * ( ( $I168 ) * (Q168*Data!$O$436+Data!$O$437) ) ) * OFFSET( POWER_OPT, OFFSET( OPTIMIZATION, 0, 3), 2)) * $U$1 ) -> 0 | AE168: 0 | AF168: 0
J169: 0.125 | K169: 8 | L169: 0 | M169: 0 | O169: 0 | P169: 0 | Q169: 5.309573445 | U169: 0.0008136315897 | W169: =(VCCINT/1000)*VCCINT*(IF($T169>0,$T169,($L169/2*(($F169*(Data!$N$435)))* OFFSET(POWER_OPT,OFFSET(OPTIMIZATION,0,3),2))*$U$1)) -> 0 | X169: =(VCCINT/1000)*VCCINT*(IF($T169>0,$T169,($L169/2*($G169*(Data!$P$435))))* OFFSET(POWER_OPT,OFFSET(OPTIMIZATION,0,3),2))*$U$1 -> 0 | Y169: =(VCCINT/1000)*VCCINT*(IF($T169>0,$T169,($L169/2*($H169*(Data!$Q$435))))* OFFSET(POWER_OPT,OFFSET(OPTIMIZATION,0,3),2))*$U$1 -> 0 | Z169: =( VCCINT / 1000 ) * VCCINT * ( IF( $T169 > 0, $T169, ( $L169 / 2 * ( ( $I169 * ( Data!$O$435 ) ) ) ) *OFFSET( POWER_OPT, OFFSET( OPTIMIZATION, 0, 3), 2)) * $U$1 ) -> 0 | AA169: =(VCCINT/1000)*VCCINT*(IF($T169 > 0, $T169,($L169/2*(($F169)*(Q169*Data!$N$436+Data!$N$437))))* OFFSET(POWER_OPT,OFFSET(OPTIMIZATION,0,3),2))*$U$1 -> 0 | AB169: =(VCCINT/1000)*VCCINT*(IF($T169 > 0, $T169,($L169/2*($G169*(Q169*Data!$P$436+Data!$P$437))))* OFFSET(POWER_OPT,OFFSET(OPTIMIZATION,0,3),2))*$U$1 -> 0 | AC169: =(VCCINT/1000)*VCCINT*(IF($T169 > 0, $T169,($L169/2*($H169*(Q169*Data!$Q$436+Data!$Q$437))))* OFFSET(POWER_OPT,OFFSET(OPTIMIZATION,0,3),2))*$U$1 -> 0 | AD169: =( VCCINT / 1000 ) * VCCINT * ( IF( $T169 > 0, $T169, ( $L169 / 2 * ( ( $I169 ) * (Q169*Data!$O$436+Data!$O$437) ) ) * OFFSET( POWER_OPT, OFFSET( OPTIMIZATION, 0, 3), 2)) * $U$1 ) -> 0 | AE169: 0 | AF169: 0
J170: 0.125 | K170: 8 | L170: 0 | M170: 0 | O170: 0 | P170: 0 | Q170: 5.309573445 | U170: 0.0008136315897 | W170: =(VCCINT/1000)*VCCINT*(IF($T170>0,$T170,($L170/2*(($F170*(Data!$N$435)))* OFFSET(POWER_OPT,OFFSET(OPTIMIZATION,0,3),2))*$U$1)) -> 0 | X170: =(VCCINT/1000)*VCCINT*(IF($T170>0,$T170,($L170/2*($G170*(Data!$P$435))))* OFFSET(POWER_OPT,OFFSET(OPTIMIZATION,0,3),2))*$U$1 -> 0 | Y170: =(VCCINT/1000)*VCCINT*(IF($T170>0,$T170,($L170/2*($H170*(Data!$Q$435))))* OFFSET(POWER_OPT,OFFSET(OPTIMIZATION,0,3),2))*$U$1 -> 0 | Z170: =( VCCINT / 1000 ) * VCCINT * ( IF( $T170 > 0, $T170, ( $L170 / 2 * ( ( $I170 * ( Data!$O$435 ) ) ) ) *OFFSET( POWER_OPT, OFFSET( OPTIMIZATION, 0, 3), 2)) * $U$1 ) -> 0 | AA170: =(VCCINT/1000)*VCCINT*(IF($T170 > 0, $T170,($L170/2*(($F170)*(Q170*Data!$N$436+Data!$N$437))))* OFFSET(POWER_OPT,OFFSET(OPTIMIZATION,0,3),2))*$U$1 -> 0 | AB170: =(VCCINT/1000)*VCCINT*(IF($T170 > 0, $T170,($L170/2*($G170*(Q170*Data!$P$436+Data!$P$437))))* OFFSET(POWER_OPT,OFFSET(OPTIMIZATION,0,3),2))*$U$1 -> 0 | AC170: =(VCCINT/1000)*VCCINT*(IF($T170 > 0, $T170,($L170/2*($H170*(Q170*Data!$Q$436+Data!$Q$437))))* OFFSET(POWER_OPT,OFFSET(OPTIMIZATION,0,3),2))*$U$1 -> 0 | AD170: =( VCCINT / 1000 ) * VCCINT * ( IF( $T170 > 0, $T170, ( $L170 / 2 * ( ( $I170 ) * (Q170*Data!$O$436+Data!$O$437) ) ) * OFFSET( POWER_OPT, OFFSET( OPTIMIZATION, 0, 3), 2)) * $U$1 ) -> 0 | AE170: 0 | AF170: 0
J171: 0.125 | K171: 8 | L171: 0 | M171: 0 | O171: 0 | P171: 0 | Q171: 5.309573445 | U171: 0.0008136315897 | W171: =(VCCINT/1000)*VCCINT*(IF($T171>0,$T171,($L171/2*(($F171*(Data!$N$435)))* OFFSET(POWER_OPT,OFFSET(OPTIMIZATION,0,3),2))*$U$1)) -> 0 | X171: =(VCCINT/1000)*VCCINT*(IF($T171>0,$T171,($L171/2*($G171*(Data!$P$435))))* OFFSET(POWER_OPT,OFFSET(OPTIMIZATION,0,3),2))*$U$1 -> 0 | Y171: =(VCCINT/1000)*VCCINT*(IF($T171>0,$T171,($L171/2*($H171*(Data!$Q$435))))* OFFSET(POWER_OPT,OFFSET(OPTIMIZATION,0,3),2))*$U$1 -> 0 | Z171: =( VCCINT / 1000 ) * VCCINT * ( IF( $T171 > 0, $T171, ( $L171 / 2 * ( ( $I171 * ( Data!$O$435 ) ) ) ) *OFFSET( POWER_OPT, OFFSET( OPTIMIZATION, 0, 3), 2)) * $U$1 ) -> 0 | AA171: =(VCCINT/1000)*VCCINT*(IF($T171 > 0, $T171,($L171/2*(($F171)*(Q171*Data!$N$436+Data!$N$437))))* OFFSET(POWER_OPT,OFFSET(OPTIMIZATION,0,3),2))*$U$1 -> 0 | AB171: =(VCCINT/1000)*VCCINT*(IF($T171 > 0, $T171,($L171/2*($G171*(Q171*Data!$P$436+Data!$P$437))))* OFFSET(POWER_OPT,OFFSET(OPTIMIZATION,0,3),2))*$U$1 -> 0 | AC171: =(VCCINT/1000)*VCCINT*(IF($T171 > 0, $T171,($L171/2*($H171*(Q171*Data!$Q$436+Data!$Q$437))))* OFFSET(POWER_OPT,OFFSET(OPTIMIZATION,0,3),2))*$U$1 -> 0 | AD171: =( VCCINT / 1000 ) * VCCINT * ( IF( $T171 > 0, $T171, ( $L171 / 2 * ( ( $I171 ) * (Q171*Data!$O$436+Data!$O$437) ) ) * OFFSET( POWER_OPT, OFFSET( OPTIMIZATION, 0, 3), 2)) * $U$1 ) -> 0 | AE171: 0 | AF171: 0
J172: 0.125 | K172: 8 | L172: 0 | M172: 0 | O172: 0 | P172: 0 | Q172: 5.309573445 | U172: 0.0008136315897 | W172: =(VCCINT/1000)*VCCINT*(IF($T172>0,$T172,($L172/2*(($F172*(Data!$N$435)))* OFFSET(POWER_OPT,OFFSET(OPTIMIZATION,0,3),2))*$U$1)) -> 0 | X172: =(VCCINT/1000)*VCCINT*(IF($T172>0,$T172,($L172/2*($G172*(Data!$P$435))))* OFFSET(POWER_OPT,OFFSET(OPTIMIZATION,0,3),2))*$U$1 -> 0 | Y172: =(VCCINT/1000)*VCCINT*(IF($T172>0,$T172,($L172/2*($H172*(Data!$Q$435))))* OFFSET(POWER_OPT,OFFSET(OPTIMIZATION,0,3),2))*$U$1 -> 0 | Z172: =( VCCINT / 1000 ) * VCCINT * ( IF( $T172 > 0, $T172, ( $L172 / 2 * ( ( $I172 * ( Data!$O$435 ) ) ) ) *OFFSET( POWER_OPT, OFFSET( OPTIMIZATION, 0, 3), 2)) * $U$1 ) -> 0 | AA172: =(VCCINT/1000)*VCCINT*(IF($T172 > 0, $T172,($L172/2*(($F172)*(Q172*Data!$N$436+Data!$N$437))))* OFFSET(POWER_OPT,OFFSET(OPTIMIZATION,0,3),2))*$U$1 -> 0 | AB172: =(VCCINT/1000)*VCCINT*(IF($T172 > 0, $T172,($L172/2*($G172*(Q172*Data!$P$436+Data!$P$437))))* OFFSET(POWER_OPT,OFFSET(OPTIMIZATION,0,3),2))*$U$1 -> 0 | AC172: =(VCCINT/1000)*VCCINT*(IF($T172 > 0, $T172,($L172/2*($H172*(Q172*Data!$Q$436+Data!$Q$437))))* OFFSET(POWER_OPT,OFFSET(OPTIMIZATION,0,3),2))*$U$1 -> 0 | AD172: =( VCCINT / 1000 ) * VCCINT * ( IF( $T172 > 0, $T172, ( $L172 / 2 * ( ( $I172 ) * (Q172*Data!$O$436+Data!$O$437) ) ) * OFFSET( POWER_OPT, OFFSET( OPTIMIZATION, 0, 3), 2)) * $U$1 ) -> 0 | AE172: 0 | AF172: 0
J173: 0.125 | K173: 8 | L173: 0 | M173: 0 | O173: 0 | P173: 0 | Q173: 5.309573445 | U173: 0.0008136315897 | W173: =(VCCINT/1000)*VCCINT*(IF($T173>0,$T173,($L173/2*(($F173*(Data!$N$435)))* OFFSET(POWER_OPT,OFFSET(OPTIMIZATION,0,3),2))*$U$1)) -> 0 | X173: =(VCCINT/1000)*VCCINT*(IF($T173>0,$T173,($L173/2*($G173*(Data!$P$435))))* OFFSET(POWER_OPT,OFFSET(OPTIMIZATION,0,3),2))*$U$1 -> 0 | Y173: =(VCCINT/1000)*VCCINT*(IF($T173>0,$T173,($L173/2*($H173*(Data!$Q$435))))* OFFSET(POWER_OPT,OFFSET(OPTIMIZATION,0,3),2))*$U$1 -> 0 | Z173: =( VCCINT / 1000 ) * VCCINT * ( IF( $T173 > 0, $T173, ( $L173 / 2 * ( ( $I173 * ( Data!$O$435 ) ) ) ) *OFFSET( POWER_OPT, OFFSET( OPTIMIZATION, 0, 3), 2)) * $U$1 ) -> 0 | AA173: =(VCCINT/1000)*VCCINT*(IF($T173 > 0, $T173,($L173/2*(($F173)*(Q173*Data!$N$436+Data!$N$437))))* OFFSET(POWER_OPT,OFFSET(OPTIMIZATION,0,3),2))*$U$1 -> 0 | AB173: =(VCCINT/1000)*VCCINT*(IF($T173 > 0, $T173,($L173/2*($G173*(Q173*Data!$P$436+Data!$P$437))))* OFFSET(POWER_OPT,OFFSET(OPTIMIZATION,0,3),2))*$U$1 -> 0 | AC173: =(VCCINT/1000)*VCCINT*(IF($T173 > 0, $T173,($L173/2*($H173*(Q173*Data!$Q$436+Data!$Q$437))))* OFFSET(POWER_OPT,OFFSET(OPTIMIZATION,0,3),2))*$U$1 -> 0 | AD173: =( VCCINT / 1000 ) * VCCINT * ( IF( $T173 > 0, $T173, ( $L173 / 2 * ( ( $I173 ) * (Q173*Data!$O$436+Data!$O$437) ) ) * OFFSET( POWER_OPT, OFFSET( OPTIMIZATION, 0, 3), 2)) * $U$1 ) -> 0 | AE173: 0 | AF173: 0
J174: 0.125 | K174: 8 | L174: 0 | M174: 0 | O174: 0 | P174: 0 | Q174: 5.309573445 | U174: 0.0008136315897 | W174: =(VCCINT/1000)*VCCINT*(IF($T174>0,$T174,($L174/2*(($F174*(Data!$N$435)))* OFFSET(POWER_OPT,OFFSET(OPTIMIZATION,0,3),2))*$U$1)) -> 0 | X174: =(VCCINT/1000)*VCCINT*(IF($T174>0,$T174,($L174/2*($G174*(Data!$P$435))))* OFFSET(POWER_OPT,OFFSET(OPTIMIZATION,0,3),2))*$U$1 -> 0 | Y174: =(VCCINT/1000)*VCCINT*(IF($T174>0,$T174,($L174/2*($H174*(Data!$Q$435))))* OFFSET(POWER_OPT,OFFSET(OPTIMIZATION,0,3),2))*$U$1 -> 0 | Z174: =( VCCINT / 1000 ) * VCCINT * ( IF( $T174 > 0, $T174, ( $L174 / 2 * ( ( $I174 * ( Data!$O$435 ) ) ) ) *OFFSET( POWER_OPT, OFFSET( OPTIMIZATION, 0, 3), 2)) * $U$1 ) -> 0 | AA174: =(VCCINT/1000)*VCCINT*(IF($T174 > 0, $T174,($L174/2*(($F174)*(Q174*Data!$N$436+Data!$N$437))))* OFFSET(POWER_OPT,OFFSET(OPTIMIZATION,0,3),2))*$U$1 -> 0 | AB174: =(VCCINT/1000)*VCCINT*(IF($T174 > 0, $T174,($L174/2*($G174*(Q174*Data!$P$436+Data!$P$437))))* OFFSET(POWER_OPT,OFFSET(OPTIMIZATION,0,3),2))*$U$1 -> 0 | AC174: =(VCCINT/1000)*VCCINT*(IF($T174 > 0, $T174,($L174/2*($H174*(Q174*Data!$Q$436+Data!$Q$437))))* OFFSET(POWER_OPT,OFFSET(OPTIMIZATION,0,3),2))*$U$1 -> 0 | AD174: =( VCCINT / 1000 ) * VCCINT * ( IF( $T174 > 0, $T174, ( $L174 / 2 * ( ( $I174 ) * (Q174*Data!$O$436+Data!$O$437) ) ) * OFFSET( POWER_OPT, OFFSET( OPTIMIZATION, 0, 3), 2)) * $U$1 ) -> 0 | AE174: 0 | AF174: 0
J175: 0.125 | K175: 8 | L175: 0 | M175: 0 | O175: 0 | P175: 0 | Q175: 5.309573445 | U175: 0.0008136315897 | W175: =(VCCINT/1000)*VCCINT*(IF($T175>0,$T175,($L175/2*(($F175*(Data!$N$435)))* OFFSET(POWER_OPT,OFFSET(OPTIMIZATION,0,3),2))*$U$1)) -> 0 | X175: =(VCCINT/1000)*VCCINT*(IF($T175>0,$T175,($L175/2*($G175*(Data!$P$435))))* OFFSET(POWER_OPT,OFFSET(OPTIMIZATION,0,3),2))*$U$1 -> 0 | Y175: =(VCCINT/1000)*VCCINT*(IF($T175>0,$T175,($L175/2*($H175*(Data!$Q$435))))* OFFSET(POWER_OPT,OFFSET(OPTIMIZATION,0,3),2))*$U$1 -> 0 | Z175: =( VCCINT / 1000 ) * VCCINT * ( IF( $T175 > 0, $T175, ( $L175 / 2 * ( ( $I175 * ( Data!$O$435 ) ) ) ) *OFFSET( POWER_OPT, OFFSET( OPTIMIZATION, 0, 3), 2)) * $U$1 ) -> 0 | AA175: =(VCCINT/1000)*VCCINT*(IF($T175 > 0, $T175,($L175/2*(($F175)*(Q175*Data!$N$436+Data!$N$437))))* OFFSET(POWER_OPT,OFFSET(OPTIMIZATION,0,3),2))*$U$1 -> 0 | AB175: =(VCCINT/1000)*VCCINT*(IF($T175 > 0, $T175,($L175/2*($G175*(Q175*Data!$P$436+Data!$P$437))))* OFFSET(POWER_OPT,OFFSET(OPTIMIZATION,0,3),2))*$U$1 -> 0 | AC175: =(VCCINT/1000)*VCCINT*(IF($T175 > 0, $T175,($L175/2*($H175*(Q175*Data!$Q$436+Data!$Q$437))))* OFFSET(POWER_OPT,OFFSET(OPTIMIZATION,0,3),2))*$U$1 -> 0 | AD175: =( VCCINT / 1000 ) * VCCINT * ( IF( $T175 > 0, $T175, ( $L175 / 2 * ( ( $I175 ) * (Q175*Data!$O$436+Data!$O$437) ) ) * OFFSET( POWER_OPT, OFFSET( OPTIMIZATION, 0, 3), 2)) * $U$1 ) -> 0 | AE175: 0 | AF175: 0
J176: 0.125 | K176: 8 | L176: 0 | M176: 0 | O176: 0 | P176: 0 | Q176: 5.309573445 | U176: 0.0008136315897 | W176: =(VCCINT/1000)*VCCINT*(IF($T176>0,$T176,($L176/2*(($F176*(Data!$N$435)))* OFFSET(POWER_OPT,OFFSET(OPTIMIZATION,0,3),2))*$U$1)) -> 0 | X176: =(VCCINT/1000)*VCCINT*(IF($T176>0,$T176,($L176/2*($G176*(Data!$P$435))))* OFFSET(POWER_OPT,OFFSET(OPTIMIZATION,0,3),2))*$U$1 -> 0 | Y176: =(VCCINT/1000)*VCCINT*(IF($T176>0,$T176,($L176/2*($H176*(Data!$Q$435))))* OFFSET(POWER_OPT,OFFSET(OPTIMIZATION,0,3),2))*$U$1 -> 0 | Z176: =( VCCINT / 1000 ) * VCCINT * ( IF( $T176 > 0, $T176, ( $L176 / 2 * ( ( $I176 * ( Data!$O$435 ) ) ) ) *OFFSET( POWER_OPT, OFFSET( OPTIMIZATION, 0, 3), 2)) * $U$1 ) -> 0 | AA176: =(VCCINT/1000)*VCCINT*(IF($T176 > 0, $T176,($L176/2*(($F176)*(Q176*Data!$N$436+Data!$N$437))))* OFFSET(POWER_OPT,OFFSET(OPTIMIZATION,0,3),2))*$U$1 -> 0 | AB176: =(VCCINT/1000)*VCCINT*(IF($T176 > 0, $T176,($L176/2*($G176*(Q176*Data!$P$436+Data!$P$437))))* OFFSET(POWER_OPT,OFFSET(OPTIMIZATION,0,3),2))*$U$1 -> 0 | AC176: =(VCCINT/1000)*VCCINT*(IF($T176 > 0, $T176,($L176/2*($H176*(Q176*Data!$Q$436+Data!$Q$437))))* OFFSET(POWER_OPT,OFFSET(OPTIMIZATION,0,3),2))*$U$1 -> 0 | AD176: =( VCCINT / 1000 ) * VCCINT * ( IF( $T176 > 0, $T176, ( $L176 / 2 * ( ( $I176 ) * (Q176*Data!$O$436+Data!$O$437) ) ) * OFFSET( POWER_OPT, OFFSET( OPTIMIZATION, 0, 3), 2)) * $U$1 ) -> 0 | AE176: 0 | AF176: 0
J177: 0.125 | K177: 8 | L177: 0 | M177: 0 | O177: 0 | P177: 0 | Q177: 5.309573445 | U177: 0.0008136315897 | W177: =(VCCINT/1000)*VCCINT*(IF($T177>0,$T177,($L177/2*(($F177*(Data!$N$435)))* OFFSET(POWER_OPT,OFFSET(OPTIMIZATION,0,3),2))*$U$1)) -> 0 | X177: =(VCCINT/1000)*VCCINT*(IF($T177>0,$T177,($L177/2*($G177*(Data!$P$435))))* OFFSET(POWER_OPT,OFFSET(OPTIMIZATION,0,3),2))*$U$1 -> 0 | Y177: =(VCCINT/1000)*VCCINT*(IF($T177>0,$T177,($L177/2*($H177*(Data!$Q$435))))* OFFSET(POWER_OPT,OFFSET(OPTIMIZATION,0,3),2))*$U$1 -> 0 | Z177: =( VCCINT / 1000 ) * VCCINT * ( IF( $T177 > 0, $T177, ( $L177 / 2 * ( ( $I177 * ( Data!$O$435 ) ) ) ) *OFFSET( POWER_OPT, OFFSET( OPTIMIZATION, 0, 3), 2)) * $U$1 ) -> 0 | AA177: =(VCCINT/1000)*VCCINT*(IF($T177 > 0, $T177,($L177/2*(($F177)*(Q177*Data!$N$436+Data!$N$437))))* OFFSET(POWER_OPT,OFFSET(OPTIMIZATION,0,3),2))*$U$1 -> 0 | AB177: =(VCCINT/1000)*VCCINT*(IF($T177 > 0, $T177,($L177/2*($G177*(Q177*Data!$P$436+Data!$P$437))))* OFFSET(POWER_OPT,OFFSET(OPTIMIZATION,0,3),2))*$U$1 -> 0 | AC177: =(VCCINT/1000)*VCCINT*(IF($T177 > 0, $T177,($L177/2*($H177*(Q177*Data!$Q$436+Data!$Q$437))))* OFFSET(POWER_OPT,OFFSET(OPTIMIZATION,0,3),2))*$U$1 -> 0 | AD177: =( VCCINT / 1000 ) * VCCINT * ( IF( $T177 > 0, $T177, ( $L177 / 2 * ( ( $I177 ) * (Q177*Data!$O$436+Data!$O$437) ) ) * OFFSET( POWER_OPT, OFFSET( OPTIMIZATION, 0, 3), 2)) * $U$1 ) -> 0 | AE177: 0 | AF177: 0
J178: 0.125 | K178: 8 | L178: 0 | M178: 0 | O178: 0 | P178: 0 | Q178: 5.309573445 | U178: 0.0008136315897 | W178: =(VCCINT/1000)*VCCINT*(IF($T178>0,$T178,($L178/2*(($F178*(Data!$N$435)))* OFFSET(POWER_OPT,OFFSET(OPTIMIZATION,0,3),2))*$U$1)) -> 0 | X178: =(VCCINT/1000)*VCCINT*(IF($T178>0,$T178,($L178/2*($G178*(Data!$P$435))))* OFFSET(POWER_OPT,OFFSET(OPTIMIZATION,0,3),2))*$U$1 -> 0 | Y178: =(VCCINT/1000)*VCCINT*(IF($T178>0,$T178,($L178/2*($H178*(Data!$Q$435))))* OFFSET(POWER_OPT,OFFSET(OPTIMIZATION,0,3),2))*$U$1 -> 0 | Z178: =( VCCINT / 1000 ) * VCCINT * ( IF( $T178 > 0, $T178, ( $L178 / 2 * ( ( $I178 * ( Data!$O$435 ) ) ) ) *OFFSET( POWER_OPT, OFFSET( OPTIMIZATION, 0, 3), 2)) * $U$1 ) -> 0 | AA178: =(VCCINT/1000)*VCCINT*(IF($T178 > 0, $T178,($L178/2*(($F178)*(Q178*Data!$N$436+Data!$N$437))))* OFFSET(POWER_OPT,OFFSET(OPTIMIZATION,0,3),2))*$U$1 -> 0 | AB178: =(VCCINT/1000)*VCCINT*(IF($T178 > 0, $T178,($L178/2*($G178*(Q178*Data!$P$436+Data!$P$437))))* OFFSET(POWER_OPT,OFFSET(OPTIMIZATION,0,3),2))*$U$1 -> 0 | AC178: =(VCCINT/1000)*VCCINT*(IF($T178 > 0, $T178,($L178/2*($H178*(Q178*Data!$Q$436+Data!$Q$437))))* OFFSET(POWER_OPT,OFFSET(OPTIMIZATION,0,3),2))*$U$1 -> 0 | AD178: =( VCCINT / 1000 ) * VCCINT * ( IF( $T178 > 0, $T178, ( $L178 / 2 * ( ( $I178 ) * (Q178*Data!$O$436+Data!$O$437) ) ) * OFFSET( POWER_OPT, OFFSET( OPTIMIZATION, 0, 3), 2)) * $U$1 ) -> 0 | AE178: 0 | AF178: 0
J179: 0.125 | K179: 8 | L179: 0 | M179: 0 | O179: 0 | P179: 0 | Q179: 5.309573445 | U179: 0.0008136315897 | W179: =(VCCINT/1000)*VCCINT*(IF($T179>0,$T179,($L179/2*(($F179*(Data!$N$435)))* OFFSET(POWER_OPT,OFFSET(OPTIMIZATION,0,3),2))*$U$1)) -> 0 | X179: =(VCCINT/1000)*VCCINT*(IF($T179>0,$T179,($L179/2*($G179*(Data!$P$435))))* OFFSET(POWER_OPT,OFFSET(OPTIMIZATION,0,3),2))*$U$1 -> 0 | Y179: =(VCCINT/1000)*VCCINT*(IF($T179>0,$T179,($L179/2*($H179*(Data!$Q$435))))* OFFSET(POWER_OPT,OFFSET(OPTIMIZATION,0,3),2))*$U$1 -> 0 | Z179: =( VCCINT / 1000 ) * VCCINT * ( IF( $T179 > 0, $T179, ( $L179 / 2 * ( ( $I179 * ( Data!$O$435 ) ) ) ) *OFFSET( POWER_OPT, OFFSET( OPTIMIZATION, 0, 3), 2)) * $U$1 ) -> 0 | AA179: =(VCCINT/1000)*VCCINT*(IF($T179 > 0, $T179,($L179/2*(($F179)*(Q179*Data!$N$436+Data!$N$437))))* OFFSET(POWER_OPT,OFFSET(OPTIMIZATION,0,3),2))*$U$1 -> 0 | AB179: =(VCCINT/1000)*VCCINT*(IF($T179 > 0, $T179,($L179/2*($G179*(Q179*Data!$P$436+Data!$P$437))))* OFFSET(POWER_OPT,OFFSET(OPTIMIZATION,0,3),2))*$U$1 -> 0 | AC179: =(VCCINT/1000)*VCCINT*(IF($T179 > 0, $T179,($L179/2*($H179*(Q179*Data!$Q$436+Data!$Q$437))))* OFFSET(POWER_OPT,OFFSET(OPTIMIZATION,0,3),2))*$U$1 -> 0 | AD179: =( VCCINT / 1000 ) * VCCINT * ( IF( $T179 > 0, $T179, ( $L179 / 2 * ( ( $I179 ) * (Q179*Data!$O$436+Data!$O$437) ) ) * OFFSET( POWER_OPT, OFFSET( OPTIMIZATION, 0, 3), 2)) * $U$1 ) -> 0 | AE179: 0 | AF179: 0
J180: 0.125 | K180: 8 | L180: 0 | M180: 0 | O180: 0 | P180: 0 | Q180: 5.309573445 | U180: 0.0008136315897 | W180: =(VCCINT/1000)*VCCINT*(IF($T180>0,$T180,($L180/2*(($F180*(Data!$N$435)))* OFFSET(POWER_OPT,OFFSET(OPTIMIZATION,0,3),2))*$U$1)) -> 0 | X180: =(VCCINT/1000)*VCCINT*(IF($T180>0,$T180,($L180/2*($G180*(Data!$P$435))))* OFFSET(POWER_OPT,OFFSET(OPTIMIZATION,0,3),2))*$U$1 -> 0 | Y180: =(VCCINT/1000)*VCCINT*(IF($T180>0,$T180,($L180/2*($H180*(Data!$Q$435))))* OFFSET(POWER_OPT,OFFSET(OPTIMIZATION,0,3),2))*$U$1 -> 0 | Z180: =( VCCINT / 1000 ) * VCCINT * ( IF( $T180 > 0, $T180, ( $L180 / 2 * ( ( $I180 * ( Data!$O$435 ) ) ) ) *OFFSET( POWER_OPT, OFFSET( OPTIMIZATION, 0, 3), 2)) * $U$1 ) -> 0 | AA180: =(VCCINT/1000)*VCCINT*(IF($T180 > 0, $T180,($L180/2*(($F180)*(Q180*Data!$N$436+Data!$N$437))))* OFFSET(POWER_OPT,OFFSET(OPTIMIZATION,0,3),2))*$U$1 -> 0 | AB180: =(VCCINT/1000)*VCCINT*(IF($T180 > 0, $T180,($L180/2*($G180*(Q180*Data!$P$436+Data!$P$437))))* OFFSET(POWER_OPT,OFFSET(OPTIMIZATION,0,3),2))*$U$1 -> 0 | AC180: =(VCCINT/1000)*VCCINT*(IF($T180 > 0, $T180,($L180/2*($H180*(Q180*Data!$Q$436+Data!$Q$437))))* OFFSET(POWER_OPT,OFFSET(OPTIMIZATION,0,3),2))*$U$1 -> 0 | AD180: =( VCCINT / 1000 ) * VCCINT * ( IF( $T180 > 0, $T180, ( $L180 / 2 * ( ( $I180 ) * (Q180*Data!$O$436+Data!$O$437) ) ) * OFFSET( POWER_OPT, OFFSET( OPTIMIZATION, 0, 3), 2)) * $U$1 ) -> 0 | AE180: 0 | AF180: 0
J181: 0.125 | K181: 8 | L181: 0 | M181: 0 | O181: 0 | P181: 0 | Q181: 5.309573445 | U181: 0.0008136315897 | W181: =(VCCINT/1000)*VCCINT*(IF($T181>0,$T181,($L181/2*(($F181*(Data!$N$435)))* OFFSET(POWER_OPT,OFFSET(OPTIMIZATION,0,3),2))*$U$1)) -> 0 | X181: =(VCCINT/1000)*VCCINT*(IF($T181>0,$T181,($L181/2*($G181*(Data!$P$435))))* OFFSET(POWER_OPT,OFFSET(OPTIMIZATION,0,3),2))*$U$1 -> 0 | Y181: =(VCCINT/1000)*VCCINT*(IF($T181>0,$T181,($L181/2*($H181*(Data!$Q$435))))* OFFSET(POWER_OPT,OFFSET(OPTIMIZATION,0,3),2))*$U$1 -> 0 | Z181: =( VCCINT / 1000 ) * VCCINT * ( IF( $T181 > 0, $T181, ( $L181 / 2 * ( ( $I181 * ( Data!$O$435 ) ) ) ) *OFFSET( POWER_OPT, OFFSET( OPTIMIZATION, 0, 3), 2)) * $U$1 ) -> 0 | AA181: =(VCCINT/1000)*VCCINT*(IF($T181 > 0, $T181,($L181/2*(($F181)*(Q181*Data!$N$436+Data!$N$437))))* OFFSET(POWER_OPT,OFFSET(OPTIMIZATION,0,3),2))*$U$1 -> 0 | AB181: =(VCCINT/1000)*VCCINT*(IF($T181 > 0, $T181,($L181/2*($G181*(Q181*Data!$P$436+Data!$P$437))))* OFFSET(POWER_OPT,OFFSET(OPTIMIZATION,0,3),2))*$U$1 -> 0 | AC181: =(VCCINT/1000)*VCCINT*(IF($T181 > 0, $T181,($L181/2*($H181*(Q181*Data!$Q$436+Data!$Q$437))))* OFFSET(POWER_OPT,OFFSET(OPTIMIZATION,0,3),2))*$U$1 -> 0 | AD181: =( VCCINT / 1000 ) * VCCINT * ( IF( $T181 > 0, $T181, ( $L181 / 2 * ( ( $I181 ) * (Q181*Data!$O$436+Data!$O$437) ) ) * OFFSET( POWER_OPT, OFFSET( OPTIMIZATION, 0, 3), 2)) * $U$1 ) -> 0 | AE181: 0 | AF181: 0
J182: 0.125 | K182: 8 | L182: 0 | M182: 0 | O182: 0 | P182: 0 | Q182: 5.309573445 | U182: 0.0008136315897 | W182: =(VCCINT/1000)*VCCINT*(IF($T182>0,$T182,($L182/2*(($F182*(Data!$N$435)))* OFFSET(POWER_OPT,OFFSET(OPTIMIZATION,0,3),2))*$U$1)) -> 0 | X182: =(VCCINT/1000)*VCCINT*(IF($T182>0,$T182,($L182/2*($G182*(Data!$P$435))))* OFFSET(POWER_OPT,OFFSET(OPTIMIZATION,0,3),2))*$U$1 -> 0 | Y182: =(VCCINT/1000)*VCCINT*(IF($T182>0,$T182,($L182/2*($H182*(Data!$Q$435))))* OFFSET(POWER_OPT,OFFSET(OPTIMIZATION,0,3),2))*$U$1 -> 0 | Z182: =( VCCINT / 1000 ) * VCCINT * ( IF( $T182 > 0, $T182, ( $L182 / 2 * ( ( $I182 * ( Data!$O$435 ) ) ) ) *OFFSET( POWER_OPT, OFFSET( OPTIMIZATION, 0, 3), 2)) * $U$1 ) -> 0 | AA182: =(VCCINT/1000)*VCCINT*(IF($T182 > 0, $T182,($L182/2*(($F182)*(Q182*Data!$N$436+Data!$N$437))))* OFFSET(POWER_OPT,OFFSET(OPTIMIZATION,0,3),2))*$U$1 -> 0 | AB182: =(VCCINT/1000)*VCCINT*(IF($T182 > 0, $T182,($L182/2*($G182*(Q182*Data!$P$436+Data!$P$437))))* OFFSET(POWER_OPT,OFFSET(OPTIMIZATION,0,3),2))*$U$1 -> 0 | AC182: =(VCCINT/1000)*VCCINT*(IF($T182 > 0, $T182,($L182/2*($H182*(Q182*Data!$Q$436+Data!$Q$437))))* OFFSET(POWER_OPT,OFFSET(OPTIMIZATION,0,3),2))*$U$1 -> 0 | AD182: =( VCCINT / 1000 ) * VCCINT * ( IF( $T182 > 0, $T182, ( $L182 / 2 * ( ( $I182 ) * (Q182*Data!$O$436+Data!$O$437) ) ) * OFFSET( POWER_OPT, OFFSET( OPTIMIZATION, 0, 3), 2)) * $U$1 ) -> 0 | AE182: 0 | AF182: 0
J183: 0.125 | K183: 8 | L183: 0 | M183: 0 | O183: 0 | P183: 0 | Q183: 5.309573445 | U183: 0.0008136315897 | W183: =(VCCINT/1000)*VCCINT*(IF($T183>0,$T183,($L183/2*(($F183*(Data!$N$435)))* OFFSET(POWER_OPT,OFFSET(OPTIMIZATION,0,3),2))*$U$1)) -> 0 | X183: =(VCCINT/1000)*VCCINT*(IF($T183>0,$T183,($L183/2*($G183*(Data!$P$435))))* OFFSET(POWER_OPT,OFFSET(OPTIMIZATION,0,3),2))*$U$1 -> 0 | Y183: =(VCCINT/1000)*VCCINT*(IF($T183>0,$T183,($L183/2*($H183*(Data!$Q$435))))* OFFSET(POWER_OPT,OFFSET(OPTIMIZATION,0,3),2))*$U$1 -> 0 | Z183: =( VCCINT / 1000 ) * VCCINT * ( IF( $T183 > 0, $T183, ( $L183 / 2 * ( ( $I183 * ( Data!$O$435 ) ) ) ) *OFFSET( POWER_OPT, OFFSET( OPTIMIZATION, 0, 3), 2)) * $U$1 ) -> 0 | AA183: =(VCCINT/1000)*VCCINT*(IF($T183 > 0, $T183,($L183/2*(($F183)*(Q183*Data!$N$436+Data!$N$437))))* OFFSET(POWER_OPT,OFFSET(OPTIMIZATION,0,3),2))*$U$1 -> 0 | AB183: =(VCCINT/1000)*VCCINT*(IF($T183 > 0, $T183,($L183/2*($G183*(Q183*Data!$P$436+Data!$P$437))))* OFFSET(POWER_OPT,OFFSET(OPTIMIZATION,0,3),2))*$U$1 -> 0 | AC183: =(VCCINT/1000)*VCCINT*(IF($T183 > 0, $T183,($L183/2*($H183*(Q183*Data!$Q$436+Data!$Q$437))))* OFFSET(POWER_OPT,OFFSET(OPTIMIZATION,0,3),2))*$U$1 -> 0 | AD183: =( VCCINT / 1000 ) * VCCINT * ( IF( $T183 > 0, $T183, ( $L183 / 2 * ( ( $I183 ) * (Q183*Data!$O$436+Data!$O$437) ) ) * OFFSET( POWER_OPT, OFFSET( OPTIMIZATION, 0, 3), 2)) * $U$1 ) -> 0 | AE183: 0 | AF183: 0
J184: 0.125 | K184: 8 | L184: 0 | M184: 0 | O184: 0 | P184: 0 | Q184: 5.309573445 | U184: 0.0008136315897 | W184: =(VCCINT/1000)*VCCINT*(IF($T184>0,$T184,($L184/2*(($F184*(Data!$N$435)))* OFFSET(POWER_OPT,OFFSET(OPTIMIZATION,0,3),2))*$U$1)) -> 0 | X184: =(VCCINT/1000)*VCCINT*(IF($T184>0,$T184,($L184/2*($G184*(Data!$P$435))))* OFFSET(POWER_OPT,OFFSET(OPTIMIZATION,0,3),2))*$U$1 -> 0 | Y184: =(VCCINT/1000)*VCCINT*(IF($T184>0,$T184,($L184/2*($H184*(Data!$Q$435))))* OFFSET(POWER_OPT,OFFSET(OPTIMIZATION,0,3),2))*$U$1 -> 0 | Z184: =( VCCINT / 1000 ) * VCCINT * ( IF( $T184 > 0, $T184, ( $L184 / 2 * ( ( $I184 * ( Data!$O$435 ) ) ) ) *OFFSET( POWER_OPT, OFFSET( OPTIMIZATION, 0, 3), 2)) * $U$1 ) -> 0 | AA184: =(VCCINT/1000)*VCCINT*(IF($T184 > 0, $T184,($L184/2*(($F184)*(Q184*Data!$N$436+Data!$N$437))))* OFFSET(POWER_OPT,OFFSET(OPTIMIZATION,0,3),2))*$U$1 -> 0 | AB184: =(VCCINT/1000)*VCCINT*(IF($T184 > 0, $T184,($L184/2*($G184*(Q184*Data!$P$436+Data!$P$437))))* OFFSET(POWER_OPT,OFFSET(OPTIMIZATION,0,3),2))*$U$1 -> 0 | AC184: =(VCCINT/1000)*VCCINT*(IF($T184 > 0, $T184,($L184/2*($H184*(Q184*Data!$Q$436+Data!$Q$437))))* OFFSET(POWER_OPT,OFFSET(OPTIMIZATION,0,3),2))*$U$1 -> 0 | AD184: =( VCCINT / 1000 ) * VCCINT * ( IF( $T184 > 0, $T184, ( $L184 / 2 * ( ( $I184 ) * (Q184*Data!$O$436+Data!$O$437) ) ) * OFFSET( POWER_OPT, OFFSET( OPTIMIZATION, 0, 3), 2)) * $U$1 ) -> 0 | AE184: 0 | AF184: 0
